{"text_format":"1","workbook":"xlsx","n_sheets":38,"sheets":["Quick Start","waybilldata","waybill front 1-12","waybill back 1-12","waybill front BLANK","waybill back BLANK","Train Instruction, Front, BLANK","Train Instruction, Back, BLANK","E-B Way Freight, Front","W-B Way Freight, Front","Way Freight, Back","E-B Coal Drag, Front","E-B Coal Drag, Back","W-B Coal Drag, Front","W-B Coal Drag, Back","E-B Thru Freight, Front","W-B Thru Freight, Front","Thru Freight, Back","E-B 510 Passenger, Front","E-B 510 Passenger, Back","W-B 511 Passenger, Front","W-B 511 Passenger, Back","East Tyrone Turn, Front","East Tyrone Turn, Back","Lock Haven Turn, Front","Lock Haven Turn, Back","Mill Turn, Front","Mill Turn, Back","Pulp Turn, Front","Pulp Turn, Back","KCR Turn, Front","KCR Turn, Back","WVP&P Mill Turn, Front","WVP&P Mill Turn, Back","KCR Coal Turn, Front","KCR Coal Turn, Back","E-B Sweeper, Front","Sweeper, Back"],"not_rendered":{"charts":0,"images":1,"macros":0,"external_links":0,"defined_names":93,"comments":0,"pivot_tables":0},"unopened":[],"bounds":{"document_bytes":16777216,"sheet_cells":100000,"rows_first":2000,"rows_last":500,"rows_between":2000,"halvings":0,"cell_chars":16384,"cell_head_chars":4096},"cells_cut":0,"cells_raw":0,"read":"whole","date_system":"1900"}

{"sheet":"Quick Start","index":0,"n_rows":37,"n_cols":2,"rows_kept":37,"cut":false,"hidden":false,"merged":[[11,1,11,7],[12,1,12,7],[0,0,0,7],[3,3,3,4],[3,6,3,7],[17,1,17,7],[18,1,18,7],[13,1,13,7],[14,1,14,7],[15,1,15,7],[16,1,16,7],[3,0,3,1],[4,3,4,4],[4,0,4,1],[4,6,4,7],[5,1,5,7],[9,1,9,7],[10,1,10,7],[20,1,20,7],[21,1,21,7],[22,1,22,7],[24,1,24,7],[25,1,25,7],[26,1,26,7],[27,1,27,7],[28,1,28,7],[29,1,29,7],[30,1,30,7],[36,1,36,7],[37,1,37,7],[31,1,31,7],[32,1,32,7],[33,1,33,7],[34,1,34,7],[35,1,35,7]]}
["QUICK START"]
[]
[]
[]
["Go to WAYBILLDATA tab:"]
[1,"Review car move examples shown on line numbers 1-12 "]
[2,"The file currently is set up to print up to 8 different color tabs across the top of each"]
[null,"waybill reflecting the \"next stop\" for the car.  The colors available are shown above"]
[null,"MOVE 3.  Modify the destination names to align with your railroad.  If you understand"]
[null,"conditional formatting you can add more colors."]
[null,"NOTE: It is critical to use the COLOR NAME exactly as shown in the color block when"]
[null,"filling in the color field for each move Excel uses for the conditional formatting function."]
[null,"NOTE: If you choose to not have color bands, simply leave the color field blank."]
[3,"Using your railroad's location names, industry names, car types, generate a move"]
[null,"for a set of cars.  SUGGESTION: Start with one industry and think about the flow of"]
[null,"raw material in and finished product out.  Where did it come from, where would it"]
[null,"logically go."]
[4,"With a set of car movements developed, go to the red box in the upper left corner."]
[null,"Place up to 12 number(s) of car moves you wish to print."]
["Go to WAYBILL FRONT 1-12 tab:"]
[5,"The moves you placed in the red box will now show, ready to print.  HINT: prior to "]
[null,"printing, mark a small \"X\" in a corner of the next paper to be printed on.  This will provide"]
[null,"you with a mark to help orient the sheet for printing on the backside in the next step."]
["Go to WAYBILL BACK 1-12 tab:"]
[6,"PRINTING - This file does not support double sided printing.  So, print the front of"]
[null,"of the waybill.  Then take this and place it back in the paper tray such that the "]
[null,"printer will now print on the back side.  NOTE: It may take you a few tries to figure out"]
[null,"the orientation of the back side such that the moves front and back match.  It is"]
[null,"highly recommended you print to plain paper first.  Once you have your printer"]
[null,"figured out, then print to your choice of card stock.  HP printer's typically will"]
[null,"print successfully up to 60 lb. card stock."]
[7,"Cut out each of the moves.  HINT: There are small lines outside the waybill area to help"]
[null,"tomake your cuts."]
[8,"The small number to the right of the lading line on moves 1 and 3 are the LINE NUMBER"]
[null,"the waybill came from on the WAYBILLDATA tab.  If you need to make changes to or"]
[null,"print a new copy of a given waybill, this number will take you to the line you need to work"]
[null,"with."]

{"sheet":"waybilldata","index":1,"n_rows":509,"n_cols":22,"rows_kept":509,"cut":false,"hidden":false,"merged":[[6,17,6,21],[6,2,6,6],[6,7,6,11],[6,12,6,16],[0,0,0,2],[1,0,1,2],[6,0,6,1]]}
["STAGING",null,null,"TYRONE = ",{"$f":"COUNTIF($H$10:$H$509,\"TYRONE\")","v":5},"LOCK HAVEN = ",{"$f":"COUNTIF($H$10:$H$509,\"LOCK HAVEN\")","v":4},null,null,null,null,null,null,null,"Your Town 1","Black",null,"Orange","Your Town 6"]
["Choose files for print (max 12)",null,null,"BOXCAR",{"$f":"COUNTIF($B$10:$B$509,\"BOXCAR\")","v":6},"GONDOLA",{"$f":"COUNTIF($B$10:$B$509,\"GONDOLA\")","v":2},null,null,null,null,null,null,null,"Your Town 2","Lt-Grn",null,"Aqua","Your Town 7"]
[1,5,9,"HOPPER",{"$f":"COUNTIF($B$10:$B$509,\"HOPPER\")","v":3},"REEFER",{"$f":"COUNTIF($B$10:$B$509,\"REEFER\")","v":0},null,null,null,null,null,null,null,"Your Town 3","Gray",null,"Green","Your Town 8"]
[2,6,10,"FLATCAR",{"$f":"COUNTIF($B$10:$B$509,\"FLATCAR\")","v":0},"STOCK",{"$f":"COUNTIF($B$10:$B$509,\"STOCK\")","v":0},null,null,null,null,null,null,null,"Your Town 4","Yellow"]
[3,7,11,"COVERED HOPPER",{"$f":"COUNTIF($B$10:$B$509,\"COVERED HOPPER\")","v":0},"TANK",{"$f":"COUNTIF($B$10:$B$509,\"TANK\")","v":1},null,null,null,null,null,null,null,"Your Town 5","Purple"]
[4,8,12,null,null,"TOTAL",{"$f":"SUM(G2:G5)+SUM(E2:E5)","v":12}]
["Reminder: Generate waybills in groups of three; random chance will place them in: SETOUT, HOLD or PICKUP",null,"MOVE 1",null,null,null,null,"MOVE 2",null,null,null,null,"MOVE 3",null,null,null,null,"MOVE 4"]
[null,2,3,4,5,"new 6","7 = old 6","8 = old 7","new 9","10 = old 8","11 = old 9","12 = old 10","13 =  old 11","new 14","15 = old 12","16 = old 13","17 = old 14","18 = old 15","new 19","20 = old 16","21 = old 17","22 = old 18"]
[" Nr.","AAR","TO: Location 1","Industry 1","Via 1","Via-1 Color","Commodity 1","Via 2","Via-2 Color","TO: Location 2","Industry 2","Commodity 2","Via 3","Via-3 Color","TO: Location 3","Industry 3","Commodity 3","Via 4","Via-4 Color","TO: Location 4","Industry 4","Commodity 4"]
[1,"BOXCAR","CASTANEA","CENTURY HOIST","MILL HALL JUNC.","GRAY","ELECTRIC PARTS","TYRONE","AQUA","TYRONE","STAGING","ELEVATORS","MILL HALL JUNC.","GRAY","CASTANEA","CENTURY HOIST","ELECTRIC PARTS","TYRONE","AQUA","TYRONE","STAGING","ELEVATORS"]
[2,"BOXCAR","CASTANEA","CENTURY HOIST","MILL HALL JUNC.","GRAY","ELECTRIC PARTS","TYRONE","AQUA","TYRONE","STAGING","ELEVATORS","MILL HALL JUNC.","GRAY","CASTANEA","CENTURY HOIST","ELECTRIC PARTS","TYRONE","AQUA","TYRONE","STAGING","ELEVATORS"]
[3,"BOXCAR","CASTANEA","CENTURY HOIST","MILL HALL JUNC.","GRAY","ELECTRIC PARTS","LOCK HAVEN","BLACK","LOCK HAVEN ","STAGING","ELEVATORS","MILL HALL JUNC.","GRAY","CASTANEA","CENTURY HOIST","ELECTRIC PARTS","LOCK HAVEN","BLACK","LOCK HAVEN ","STAGING","ELEVATORS"]
[4,"BOXCAR","CASTANEA","CENTURY HOIST","MILL HALL JUNC.","GRAY","ELECTRIC PARTS","LOCK HAVEN","BLACK","LOCK HAVEN ","STAGING","ELEVATORS","MILL HALL JUNC.","GRAY","CASTANEA","CENTURY HOIST","ELECTRIC PARTS","LOCK HAVEN","BLACK","LOCK HAVEN ","STAGING","ELEVATORS"]
[5,"GONDOLA","CASTANEA","CENTURY HOIST","MILL HALL JUNC.","GRAY","STEEL","TYRONE","AQUA","TYRONE","STAGING","MTY","MILL HALL JUNC.","GRAY","CASTANEA","CENTURY HOIST","STEEL","TYRONE","AQUA","TYRONE","STAGING","MTY"]
[6,"GONDOLA","CASTANEA","CENTURY HOIST","MILL HALL JUNC.","GRAY","STEEL","LOCK HAVEN","BLACK","LOCK HAVEN ","STAGING","SCRAP STEEL","MILL HALL JUNC.","GRAY","CASTANEA","CENTURY HOIST","STEEL","LOCK HAVEN","BLACK","LOCK HAVEN ","STAGING","SCRAP STEEL"]
[7,"BOXCAR","CASTANEA","LOCK HAVEN CHAIR","MILL HALL JUNC.","GRAY","MTY","TYRONE","AQUA","TYRONE","STAGING","FURNITURE","MILL HALL JUNC.","GRAY","CASTANEA","LOCK HAVEN CHAIR","MTY","TYRONE","AQUA","TYRONE","STAGING","FURNITURE"]
[8,"BOXCAR","CASTANEA","LOCK HAVEN CHAIR","MILL HALL JUNC.","GRAY","MTY","LOCK HAVEN","BLACK","LOCK HAVEN ","STAGING","FURNITURE","MILL HALL JUNC.","GRAY","CASTANEA","LOCK HAVEN CHAIR","MTY","LOCK HAVEN","BLACK","LOCK HAVEN ","STAGING","FURNITURE"]
[9,"HOPPER","CASTANEA","MILLER BROS. FUEL","MILL HALL JUNC.","GRAY","STOKER COAL","KCR","GREEN","ROME","BOHN COLLIERY","MTY","MILL HALL JUNC.","GRAY","CASTANEA","MILLER BROS. FUEL","STOKER COAL","KCR","GREEN","ROME","BOHN COLLIERY","MTY"]
[10,"HOPPER","CASTANEA","MILLER BROS. FUEL","MILL HALL JUNC.","GRAY","STOKER COAL","KCR","GREEN","ROME","BOHN COLLIERY","MTY","MILL HALL JUNC.","GRAY","CASTANEA","MILLER BROS. FUEL","STOKER COAL","KCR","GREEN","ROME","BOHN COLLIERY","MTY"]
[11,"HOPPER","CASTANEA","MILLER BROS. FUEL","MILL HALL JUNC.","GRAY","STOKER COAL","KCR","GREEN","ROME","BOHN COLLIERY","MTY","MILL HALL JUNC.","GRAY","CASTANEA","MILLER BROS. FUEL","STOKER COAL","KCR","GREEN","ROME","BOHN COLLIERY","MTY"]
[12,"TANK","CASTANEA","MILLER BROS. FUEL","MILL HALL JUNC.","GRAY","GASOLINE","TYRONE","AQUA","TYRONE","STAGING","MTY","MILL HALL JUNC.","GRAY","CASTANEA","MILLER BROS. FUEL","GASOLINE","TYRONE","AQUA","TYRONE","STAGING","MTY"]
[13]
[14]
[15]
[16]
[17]
[18]
[19]
[20]
[21]
[22]
[23]
[24]
[25]
[26]
[27]
[28]
[29]
[30]
[31]
[32]
[33]
[34]
[35]
[36]
[37]
[38]
[39]
[40]
[41]
[42]
[43]
[44]
[45]
[46]
[47]
[48]
[49]
[50]
[51]
[52]
[53]
[54]
[55]
[56]
[57]
[58]
[59]
[60]
[61]
[62]
[63]
[64]
[65]
[66]
[67]
[68]
[69]
[70]
[71]
[72]
[73]
[74]
[75]
[76]
[77]
[78]
[79]
[80]
[81]
[82]
[83]
[84]
[85]
[86]
[87]
[88]
[89]
[90]
[91]
[92]
[93]
[94]
[95]
[96]
[97]
[98]
[99]
[100]
[101]
[102]
[103]
[104]
[105]
[106]
[107]
[108]
[109]
[110]
[111]
[112]
[113]
[114]
[115]
[116]
[117]
[118]
[119]
[120]
[121]
[122]
[123]
[124]
[125]
[126]
[127]
[128]
[129]
[130]
[131]
[132]
[133]
[134]
[135]
[136]
[137]
[138]
[139]
[140]
[141]
[142]
[143]
[144]
[145]
[146]
[147]
[148]
[149]
[150]
[151]
[152]
[153]
[154]
[155]
[156]
[157]
[158]
[159]
[160]
[161]
[162]
[163]
[164]
[165]
[166]
[167]
[168]
[169]
[170]
[171]
[172]
[173]
[174]
[175]
[176]
[177]
[178]
[179]
[180]
[181]
[182]
[183]
[184]
[185]
[186]
[187]
[188]
[189]
[190]
[191]
[192]
[193]
[194]
[195]
[196]
[197]
[198]
[199]
[200]
[201]
[202]
[203]
[204]
[205]
[206]
[207]
[208]
[209]
[210]
[211]
[212]
[213]
[214]
[215]
[216]
[217]
[218]
[219]
[220]
[221]
[222]
[223]
[224]
[225]
[226]
[227]
[228]
[229]
[230]
[231]
[232]
[233]
[234]
[235]
[236]
[237]
[238]
[239]
[240]
[241]
[242]
[243]
[244]
[245]
[246]
[247]
[248]
[249]
[250]
[251]
[252]
[253]
[254]
[255]
[256]
[257]
[258]
[259]
[260]
[261]
[262]
[263]
[264]
[265]
[266]
[267]
[268]
[269]
[270]
[271]
[272]
[273]
[274]
[275]
[276]
[277]
[278]
[279]
[280]
[281]
[282]
[283]
[284]
[285]
[286]
[287]
[288]
[289]
[290]
[291]
[292]
[293]
[294]
[295]
[296]
[297]
[298]
[299]
[300]
[301]
[302]
[303]
[304]
[305]
[306]
[307]
[308]
[309]
[310]
[311]
[312]
[313]
[314]
[315]
[316]
[317]
[318]
[319]
[320]
[321]
[322]
[323]
[324]
[325]
[326]
[327]
[328]
[329]
[330]
[331]
[332]
[333]
[334]
[335]
[336]
[337]
[338]
[339]
[340]
[341]
[342]
[343]
[344]
[345]
[346]
[347]
[348]
[349]
[350]
[351]
[352]
[353]
[354]
[355]
[356]
[357]
[358]
[359]
[360]
[361]
[362]
[363]
[364]
[365]
[366]
[367]
[368]
[369]
[370]
[371]
[372]
[373]
[374]
[375]
[376]
[377]
[378]
[379]
[380]
[381]
[382]
[383]
[384]
[385]
[386]
[387]
[388]
[389]
[390]
[391]
[392]
[393]
[394]
[395]
[396]
[397]
[398]
[399]
[400]
[401]
[402]
[403]
[404]
[405]
[406]
[407]
[408]
[409]
[410]
[411]
[412]
[413]
[414]
[415]
[416]
[417]
[418]
[419]
[420]
[421]
[422]
[423]
[424]
[425]
[426]
[427]
[428]
[429]
[430]
[431]
[432]
[433]
[434]
[435]
[436]
[437]
[438]
[439]
[440]
[441]
[442]
[443]
[444]
[445]
[446]
[447]
[448]
[449]
[450]
[451]
[452]
[453]
[454]
[455]
[456]
[457]
[458]
[459]
[460]
[461]
[462]
[463]
[464]
[465]
[466]
[467]
[468]
[469]
[470]
[471]
[472]
[473]
[474]
[475]
[476]
[477]
[478]
[479]
[480]
[481]
[482]
[483]
[484]
[485]
[486]
[487]
[488]
[489]
[490]
[491]
[492]
[493]
[494]
[495]
[496]
[497]
[498]
[499]
[500]

{"sheet":"waybill front 1-12","index":2,"n_rows":20,"n_cols":58,"rows_kept":20,"cut":false,"hidden":false,"merged":[[13,52,16,53],[13,33,15,33],[1,33,3,33],[2,43,3,43],[14,48,16,48],[2,38,4,38],[14,50,16,50],[10,48,12,48],[10,50,12,50],[1,34,4,35],[1,36,4,37],[5,42,7,42],[5,41,7,41],[13,49,16,49],[5,40,8,40],[2,47,4,47],[2,48,4,48],[1,40,4,40],[5,49,8,49],[1,41,3,41],[1,42,3,42],[1,49,4,49],[2,46,4,46],[2,44,3,44],[13,16,16,17],[5,18,8,19],[9,18,12,19],[13,18,16,19],[5,34,8,35],[9,34,12,35],[13,34,16,35],[5,36,8,37],[9,36,12,37],[13,36,16,37],[9,31,12,31],[9,33,11,33],[10,25,11,25],[6,26,7,26],[6,29,8,29],[5,31,8,31],[13,31,16,31],[6,25,7,25],[5,24,7,24],[6,20,8,20],[10,20,12,20],[14,20,16,20],[7,54,7,56],[1,0,4,1],[5,0,8,1],[9,0,12,1],[13,0,16,1],[1,16,4,17],[13,51,15,51],[14,43,15,43],[5,15,7,15],[6,8,7,8],[13,42,15,42],[14,45,15,45],[14,27,15,27],[6,27,7,27],[10,27,11,27],[6,30,8,30],[9,41,11,41],[14,26,15,26],[5,33,7,33],[14,11,16,11],[14,12,16,12],[6,14,8,14],[5,21,7,21],[10,30,12,30],[3,54,3,56],[4,54,4,56],[6,45,7,45],[2,54,2,56],[6,43,7,43],[6,50,8,50],[2,50,4,50],[10,47,12,47],[9,51,11,51],[5,51,7,51],[1,51,3,51],[10,43,11,43],[1,52,4,53],[5,52,8,53],[9,52,12,53],[6,44,7,44],[10,44,11,44],[1,54,1,56],[8,54,8,56],[5,54,5,56],[6,47,8,47],[6,48,8,48],[9,49,12,49],[2,45,3,45],[1,23,3,23],[6,54,6,56],[14,2,16,2],[10,2,12,2],[6,2,8,2],[2,2,4,2],[2,9,3,9],[6,9,7,9],[10,9,11,9],[14,9,15,9],[6,7,7,7],[10,7,11,7],[14,8,15,8],[5,4,8,4],[14,7,15,7],[13,5,15,5],[13,6,15,6],[5,3,7,3],[9,3,11,3],[13,3,15,3],[10,8,11,8],[14,25,15,25],[6,32,8,32],[5,39,7,39],[1,22,4,22],[9,21,11,21],[9,24,11,24],[2,8,3,8],[14,47,16,47],[13,41,15,41],[13,24,15,24],[13,23,15,23],[14,28,16,28],[14,29,16,29],[14,30,16,30],[14,46,16,46],[14,32,16,32],[13,39,15,39],[14,38,16,38],[13,40,16,40],[13,21,15,21],[14,14,16,14],[1,39,3,39],[1,24,3,24],[2,30,4,30],[1,31,4,31],[2,26,3,26],[6,46,8,46],[1,3,3,3],[1,4,4,4],[1,5,3,5],[2,7,3,7],[5,5,7,5],[2,12,4,12],[2,14,4,14],[2,10,4,10],[9,23,11,23],[10,10,12,10],[9,22,12,22],[10,11,12,11],[10,12,12,12],[9,16,12,17],[2,11,4,11],[1,15,3,15],[2,20,4,20],[1,18,4,19],[5,16,8,17],[9,15,11,15],[5,23,7,23],[1,21,3,21],[6,11,8,11],[6,12,8,12],[13,4,16,4],[5,13,8,13],[9,13,12,13],[13,13,16,13],[13,22,16,22],[6,10,8,10],[2,28,4,28],[2,29,4,29],[1,13,4,13],[2,27,3,27],[1,6,3,6],[13,15,15,15],[14,10,16,10],[10,14,12,14],[6,28,8,28],[5,6,7,6],[9,5,11,5],[9,6,11,6],[9,4,12,4],[10,28,12,28],[10,29,12,29],[10,26,11,26],[5,22,8,22],[2,25,3,25],[2,32,4,32],[6,38,8,38],[10,38,12,38],[9,39,11,39],[10,46,12,46],[10,45,11,45],[9,42,11,42],[9,40,12,40],[10,32,12,32]]}
[]
[{"$f":"IF(ISERROR(MATCH(Frachtsatz10,waybilldata!$A:$A,0)),\"\",VLOOKUP(Frachtsatz10,waybilldata!$A:$V,6))","v":"GRAY"},null,1,{"$f":"IF(ISERROR(MATCH(Frachtsatz10,waybilldata!$A:$A,0)),\"\",VLOOKUP(Frachtsatz10,waybilldata!$A:$V,3))","v":"CASTANEA"},{"$f":"IF(ISERROR(MATCH(Frachtsatz10,waybilldata!$A:$A,0)),\"\",VLOOKUP(Frachtsatz10,waybilldata!$A:$V,4))","v":"CENTURY HOIST"},{"$f":"IF(ISERROR(MATCH(Frachtsatz10,waybilldata!$A:$A,0)),\"\",VLOOKUP(Frachtsatz10,waybilldata!$A:$V,5))","v":"MILL HALL JUNC."},{"$f":"IF(ISERROR(MATCH(Frachtsatz10,waybilldata!$A:$A,0)),\"\",VLOOKUP(Frachtsatz10,waybilldata!$A:$V,20))","v":"LOCK HAVEN "},{"$f":"IF(ISERROR(MATCH(Frachtsatz10,waybilldata!$A:$A,0)),\"\",VLOOKUP(Frachtsatz10,waybilldata!$A:$V,1))","v":4},null,null,"Lading:","From:","VIA:",{"$f":"IF(ISERROR(MATCH(Frachtsatz10,waybilldata!$A:$A,0)),\"\",VLOOKUP(Frachtsatz10,waybilldata!$A:$V,11))","v":"STAGING"},"To:",{"$f":"IF(ISERROR(MATCH(Frachtsatz10,waybilldata!$A:$A,0)),\"\",VLOOKUP(Frachtsatz10,waybilldata!$A:$V,2))","v":"BOXCAR"},{"$f":"IF(ISERROR(MATCH(Frachtsatz10,waybilldata!$A:$A,0)),\"\",VLOOKUP(Frachtsatz10,waybilldata!$A:$V,9))","v":"BLACK"},null,{"$f":"IF(ISERROR(MATCH(Frachtsatz11,waybilldata!$A:$A,0)),\"\",VLOOKUP(Frachtsatz11,waybilldata!$A:$V,6))","v":"GRAY"},null,1,{"$f":"IF(ISERROR(MATCH(Frachtsatz11,waybilldata!$A:$A,0)),\"\",VLOOKUP(Frachtsatz11,waybilldata!$A:$V,3))","v":"CASTANEA"},{"$f":"IF(ISERROR(MATCH(Frachtsatz11,waybilldata!$A:$A,0)),\"\",VLOOKUP(Frachtsatz11,waybilldata!$A:$V,4))","v":"LOCK HAVEN CHAIR"},{"$f":"IF(ISERROR(MATCH(Frachtsatz11,waybilldata!$A:$A,0)),\"\",VLOOKUP(Frachtsatz11,waybilldata!$A:$V,5))","v":"MILL HALL JUNC."},{"$f":"IF(ISERROR(MATCH(Frachtsatz11,waybilldata!$A:$A,0)),\"\",VLOOKUP(Frachtsatz11,waybilldata!$A:$V,20))","v":"LOCK HAVEN "},{"$f":"IF(ISERROR(MATCH(Frachtsatz10,waybilldata!$A:$A,0)),\"\",VLOOKUP(Frachtsatz11,waybilldata!$A:$V,1))","v":8},null,null,"Lading:","From:","VIA:",{"$f":"IF(ISERROR(MATCH(Frachtsatz11,waybilldata!$A:$A,0)),\"\",VLOOKUP(Frachtsatz11,waybilldata!$A:$V,11))","v":"STAGING"},"To:",{"$f":"IF(ISERROR(MATCH(Frachtsatz11,waybilldata!$A:$A,0)),\"\",VLOOKUP(Frachtsatz11,waybilldata!$A:$V,2))","v":"BOXCAR"},{"$f":"IF(ISERROR(MATCH(Frachtsatz11,waybilldata!$A:$A,0)),\"\",VLOOKUP(Frachtsatz11,waybilldata!$A:$V,9))","v":"BLACK"},null,{"$f":"IF(ISERROR(MATCH(Frachtsatz12,waybilldata!$A:$A,0)),\"\",VLOOKUP(Frachtsatz12,waybilldata!$A:$V,6))","v":"GRAY"},null,1,{"$f":"IF(ISERROR(MATCH(Frachtsatz12,waybilldata!$A:$A,0)),\"\",VLOOKUP(Frachtsatz12,waybilldata!$A:$V,3))","v":"CASTANEA"},{"$f":"IF(ISERROR(MATCH(Frachtsatz12,waybilldata!$A:$A,0)),\"\",VLOOKUP(Frachtsatz12,waybilldata!$A:$V,4))","v":"MILLER BROS. FUEL"},{"$f":"IF(ISERROR(MATCH(Frachtsatz12,waybilldata!$A:$A,0)),\"\",VLOOKUP(Frachtsatz12,waybilldata!$A:$V,5))","v":"MILL HALL JUNC."},{"$f":"IF(ISERROR(MATCH(Frachtsatz12,waybilldata!$A:$A,0)),\"\",VLOOKUP(Frachtsatz12,waybilldata!$A:$V,20))","v":"TYRONE"},{"$f":"IF(ISERROR(MATCH(Frachtsatz12,waybilldata!$A:$A,0)),\"\",VLOOKUP(Frachtsatz12,waybilldata!$A:$V,1))","v":12},null,null,"Lading:","From:","VIA:",{"$f":"IF(ISERROR(MATCH(Frachtsatz12,waybilldata!$A:$A,0)),\"\",VLOOKUP(Frachtsatz12,waybilldata!$A:$V,11))","v":"STAGING"},"To:",{"$f":"IF(ISERROR(MATCH(Frachtsatz12,waybilldata!$A:$A,0)),\"\",VLOOKUP(Frachtsatz12,waybilldata!$A:$V,2))","v":"TANK"},{"$f":"IF(ISERROR(MATCH(Frachtsatz12,waybilldata!$A:$A,0)),\"\",VLOOKUP(Frachtsatz12,waybilldata!$A:$V,9))","v":"AQUA"},null,"Your Town 1",null,null,"Black"]
[null,null,{"$f":"IF(ISERROR(MATCH(Frachtsatz10,waybilldata!$A:$A,0)),\"\",VLOOKUP(Frachtsatz10,waybilldata!$A:$V,2))","v":"BOXCAR"},null,null,null,null,{"$f":"IF(ISERROR(MATCH(Frachtsatz10,waybilldata!$A:$A,0)),\"\",VLOOKUP(Frachtsatz10,waybilldata!$A:$V,7))","v":"ELECTRIC PARTS"},{"$f":"IF(ISERROR(MATCH(Frachtsatz10,waybilldata!$A:$A,0)),\"\",VLOOKUP(Frachtsatz10,waybilldata!$A:$V,1))","v":4},null,{"$f":"IF(ISERROR(MATCH(Frachtsatz10,waybilldata!$A:$A,0)),\"\",VLOOKUP(Frachtsatz10,waybilldata!$A:$V,12))","v":"ELEVATORS"},{"$f":"IF(ISERROR(MATCH(Frachtsatz10,waybilldata!$A:$A,0)),\"\",VLOOKUP(Frachtsatz10,waybilldata!$A:$V,3))","v":"CASTANEA"},{"$f":"IF(ISERROR(MATCH(Frachtsatz10,waybilldata!$A:$A,0)),\"\",VLOOKUP(Frachtsatz10,waybilldata!$A:$V,8))","v":"LOCK HAVEN"},null,{"$f":"IF(ISERROR(MATCH(Frachtsatz10,waybilldata!$A:$A,0)),\"\",VLOOKUP(Frachtsatz10,waybilldata!$A:$V,10))","v":"LOCK HAVEN "},null,null,null,null,null,{"$f":"IF(ISERROR(MATCH(Frachtsatz11,waybilldata!$A:$A,0)),\"\",VLOOKUP(Frachtsatz11,waybilldata!$A:$V,2))","v":"BOXCAR"},null,null,null,null,{"$f":"IF(ISERROR(MATCH(Frachtsatz11,waybilldata!$A:$A,0)),\"\",VLOOKUP(Frachtsatz11,waybilldata!$A:$V,7))","v":"MTY"},"``",null,{"$f":"IF(ISERROR(MATCH(Frachtsatz11,waybilldata!$A:$A,0)),\"\",VLOOKUP(Frachtsatz11,waybilldata!$A:$V,12))","v":"FURNITURE"},{"$f":"IF(ISERROR(MATCH(Frachtsatz11,waybilldata!$A:$A,0)),\"\",VLOOKUP(Frachtsatz11,waybilldata!$A:$V,3))","v":"CASTANEA"},{"$f":"IF(ISERROR(MATCH(Frachtsatz11,waybilldata!$A:$A,0)),\"\",VLOOKUP(Frachtsatz11,waybilldata!$A:$V,8))","v":"LOCK HAVEN"},null,{"$f":"IF(ISERROR(MATCH(Frachtsatz11,waybilldata!$A:$A,0)),\"\",VLOOKUP(Frachtsatz11,waybilldata!$A:$V,10))","v":"LOCK HAVEN "},null,null,null,null,null,{"$f":"IF(ISERROR(MATCH(Frachtsatz12,waybilldata!$A:$A,0)),\"\",VLOOKUP(Frachtsatz12,waybilldata!$A:$V,2))","v":"TANK"},null,null,null,null,{"$f":"IF(ISERROR(MATCH(Frachtsatz12,waybilldata!$A:$A,0)),\"\",VLOOKUP(Frachtsatz12,waybilldata!$A:$V,7))","v":"GASOLINE"},{"$f":"IF(ISERROR(MATCH(Frachtsatz12,waybilldata!$A:$A,0)),\"\",VLOOKUP(Frachtsatz12,waybilldata!$A:$V,1))","v":12},null,{"$f":"IF(ISERROR(MATCH(Frachtsatz12,waybilldata!$A:$A,0)),\"\",VLOOKUP(Frachtsatz12,waybilldata!$A:$V,12))","v":"MTY"},{"$f":"IF(ISERROR(MATCH(Frachtsatz12,waybilldata!$A:$A,0)),\"\",VLOOKUP(Frachtsatz12,waybilldata!$A:$V,3))","v":"CASTANEA"},{"$f":"IF(ISERROR(MATCH(Frachtsatz12,waybilldata!$A:$A,0)),\"\",VLOOKUP(Frachtsatz12,waybilldata!$A:$V,8))","v":"TYRONE"},null,{"$f":"IF(ISERROR(MATCH(Frachtsatz12,waybilldata!$A:$A,0)),\"\",VLOOKUP(Frachtsatz12,waybilldata!$A:$V,10))","v":"TYRONE"},null,null,null,"Your Town 2",null,null,"Lt-Grn"]
[null,null,null,null,null,null,null,null,null,null,null,null,null,null,null,null,null,null,null,null,null,null,null,null,null,null,null,null,null,null,null,null,null,null,null,null,null,null,null,null,null,null,null,null,null,null,null,null,null,null,null,null,null,null,"Your Town 3",null,null,"Gray"]
[null,null,null,"To:",null,"VIA:","From","Lading",null,null,null,null,null,null,null,2,null,null,null,null,null,"To:",null,"VIA:","From","Lading",null,null,null,null,null,null,null,2,null,null,null,null,null,"To:",null,"VIA:","From","Lading",null,null,null,null,null,null,null,2,null,null,"Your Town 4",null,null,"Yellow"]
[{"$f":"IF(ISERROR(MATCH(Frachtsatz7,waybilldata!$A:$A,0)),\"\",VLOOKUP(Frachtsatz7,waybilldata!$A:$V,6))","v":"GRAY"},null,1,{"$f":"IF(ISERROR(MATCH(Frachtsatz7,waybilldata!$A:$A,0)),\"\",VLOOKUP(Frachtsatz7,waybilldata!$A:$V,3))","v":"CASTANEA"},{"$f":"IF(ISERROR(MATCH(Frachtsatz7,waybilldata!$A:$A,0)),\"\",VLOOKUP(Frachtsatz7,waybilldata!$A:$V,4))","v":"CENTURY HOIST"},{"$f":"IF(ISERROR(MATCH(Frachtsatz7,waybilldata!$A:$A,0)),\"\",VLOOKUP(Frachtsatz7,waybilldata!$A:$V,5))","v":"MILL HALL JUNC."},{"$f":"IF(ISERROR(MATCH(Frachtsatz7,waybilldata!$A:$A,0)),\"\",VLOOKUP(Frachtsatz7,waybilldata!$A:$V,20))","v":"LOCK HAVEN "},{"$f":"IF(ISERROR(MATCH(Frachtsatz7,waybilldata!$A:$A,0)),\"\",VLOOKUP(Frachtsatz7,waybilldata!$A:$V,1))","v":3},null,null,"Lading:","From:","VIA:",{"$f":"IF(ISERROR(MATCH(Frachtsatz7,waybilldata!$A:$A,0)),\"\",VLOOKUP(Frachtsatz7,waybilldata!$A:$V,11))","v":"STAGING"},"To:",{"$f":"IF(ISERROR(MATCH(Frachtsatz7,waybilldata!$A:$A,0)),\"\",VLOOKUP(Frachtsatz7,waybilldata!$A:$V,2))","v":"BOXCAR"},{"$f":"IF(ISERROR(MATCH(Frachtsatz7,waybilldata!$A:$A,0)),\"\",VLOOKUP(Frachtsatz7,waybilldata!$A:$V,9))","v":"BLACK"},null,{"$f":"IF(ISERROR(MATCH(Frachtsatz8,waybilldata!$A:$A,0)),\"\",VLOOKUP(Frachtsatz8,waybilldata!$A:$V,6))","v":"GRAY"},null,1,{"$f":"IF(ISERROR(MATCH(Frachtsatz8,waybilldata!$A:$A,0)),\"\",VLOOKUP(Frachtsatz8,waybilldata!$A:$V,3))","v":"CASTANEA"},{"$f":"IF(ISERROR(MATCH(Frachtsatz8,waybilldata!$A:$A,0)),\"\",VLOOKUP(Frachtsatz8,waybilldata!$A:$V,4))","v":"LOCK HAVEN CHAIR"},{"$f":"IF(ISERROR(MATCH(Frachtsatz8,waybilldata!$A:$A,0)),\"\",VLOOKUP(Frachtsatz8,waybilldata!$A:$V,5))","v":"MILL HALL JUNC."},{"$f":"IF(ISERROR(MATCH(Frachtsatz8,waybilldata!$A:$A,0)),\"\",VLOOKUP(Frachtsatz8,waybilldata!$A:$V,20))","v":"TYRONE"},{"$f":"IF(ISERROR(MATCH(Frachtsatz8,waybilldata!$A:$A,0)),\"\",VLOOKUP(Frachtsatz8,waybilldata!$A:$V,1))","v":7},null,null,"Lading:","From:","VIA:",{"$f":"IF(ISERROR(MATCH(Frachtsatz8,waybilldata!$A:$A,0)),\"\",VLOOKUP(Frachtsatz8,waybilldata!$A:$V,11))","v":"STAGING"},"To:",{"$f":"IF(ISERROR(MATCH(Frachtsatz8,waybilldata!$A:$A,0)),\"\",VLOOKUP(Frachtsatz8,waybilldata!$A:$V,2))","v":"BOXCAR"},{"$f":"IF(ISERROR(MATCH(Frachtsatz8,waybilldata!$A:$A,0)),\"\",VLOOKUP(Frachtsatz8,waybilldata!$A:$V,9))","v":"AQUA"},null,{"$f":"IF(ISERROR(MATCH(Frachtsatz9,waybilldata!$A:$A,0)),\"\",VLOOKUP(Frachtsatz9,waybilldata!$A:$V,6))","v":"GRAY"},null,1,{"$f":"IF(ISERROR(MATCH(Frachtsatz9,waybilldata!$A:$A,0)),\"\",VLOOKUP(Frachtsatz9,waybilldata!$A:$V,3))","v":"CASTANEA"},{"$f":"IF(ISERROR(MATCH(Frachtsatz9,waybilldata!$A:$A,0)),\"\",VLOOKUP(Frachtsatz9,waybilldata!$A:$V,4))","v":"MILLER BROS. FUEL"},{"$f":"IF(ISERROR(MATCH(Frachtsatz9,waybilldata!$A:$A,0)),\"\",VLOOKUP(Frachtsatz9,waybilldata!$A:$V,5))","v":"MILL HALL JUNC."},{"$f":"IF(ISERROR(MATCH(Frachtsatz9,waybilldata!$A:$A,0)),\"\",VLOOKUP(Frachtsatz9,waybilldata!$A:$V,20))","v":"ROME"},{"$f":"IF(ISERROR(MATCH(Frachtsatz9,waybilldata!$A:$A,0)),\"\",VLOOKUP(Frachtsatz9,waybilldata!$A:$V,1))","v":11},null,null,"Lading:","From:","VIA:",{"$f":"IF(ISERROR(MATCH(Frachtsatz9,waybilldata!$A:$A,0)),\"\",VLOOKUP(Frachtsatz9,waybilldata!$A:$V,11))","v":"BOHN COLLIERY"},"To:",{"$f":"IF(ISERROR(MATCH(Frachtsatz9,waybilldata!$A:$A,0)),\"\",VLOOKUP(Frachtsatz9,waybilldata!$A:$V,2))","v":"HOPPER"},{"$f":"IF(ISERROR(MATCH(Frachtsatz9,waybilldata!$A:$A,0)),\"\",VLOOKUP(Frachtsatz9,waybilldata!$A:$V,9))","v":"GREEN"},null,"Your Town 5",null,null,"Purple"]
[null,null,{"$f":"IF(ISERROR(MATCH(Frachtsatz7,waybilldata!$A:$A,0)),\"\",VLOOKUP(Frachtsatz7,waybilldata!$A:$V,2))","v":"BOXCAR"},null,null,null,null,{"$f":"IF(ISERROR(MATCH(Frachtsatz7,waybilldata!$A:$A,0)),\"\",VLOOKUP(Frachtsatz7,waybilldata!$A:$V,7))","v":"ELECTRIC PARTS"},{"$f":"IF(ISERROR(MATCH(Frachtsatz7,waybilldata!$A:$A,0)),\"\",VLOOKUP(Frachtsatz7,waybilldata!$A:$V,1))","v":3},null,{"$f":"IF(ISERROR(MATCH(Frachtsatz7,waybilldata!$A:$A,0)),\"\",VLOOKUP(Frachtsatz7,waybilldata!$A:$V,12))","v":"ELEVATORS"},{"$f":"IF(ISERROR(MATCH(Frachtsatz7,waybilldata!$A:$A,0)),\"\",VLOOKUP(Frachtsatz7,waybilldata!$A:$V,3))","v":"CASTANEA"},{"$f":"IF(ISERROR(MATCH(Frachtsatz7,waybilldata!$A:$A,0)),\"\",VLOOKUP(Frachtsatz7,waybilldata!$A:$V,8))","v":"LOCK HAVEN"},null,{"$f":"IF(ISERROR(MATCH(Frachtsatz7,waybilldata!$A:$A,0)),\"\",VLOOKUP(Frachtsatz7,waybilldata!$A:$V,10))","v":"LOCK HAVEN "},null,null,null,null,null,{"$f":"IF(ISERROR(MATCH(Frachtsatz8,waybilldata!$A:$A,0)),\"\",VLOOKUP(Frachtsatz8,waybilldata!$A:$V,2))","v":"BOXCAR"},null,null,null,null,{"$f":"IF(ISERROR(MATCH(Frachtsatz8,waybilldata!$A:$A,0)),\"\",VLOOKUP(Frachtsatz8,waybilldata!$A:$V,7))","v":"MTY"},{"$f":"IF(ISERROR(MATCH(Frachtsatz8,waybilldata!$A:$A,0)),\"\",VLOOKUP(Frachtsatz8,waybilldata!$A:$V,1))","v":7},null,{"$f":"IF(ISERROR(MATCH(Frachtsatz8,waybilldata!$A:$A,0)),\"\",VLOOKUP(Frachtsatz8,waybilldata!$A:$V,12))","v":"FURNITURE"},{"$f":"IF(ISERROR(MATCH(Frachtsatz8,waybilldata!$A:$A,0)),\"\",VLOOKUP(Frachtsatz8,waybilldata!$A:$V,3))","v":"CASTANEA"},{"$f":"IF(ISERROR(MATCH(Frachtsatz8,waybilldata!$A:$A,0)),\"\",VLOOKUP(Frachtsatz8,waybilldata!$A:$V,8))","v":"TYRONE"},null,{"$f":"IF(ISERROR(MATCH(Frachtsatz8,waybilldata!$A:$A,0)),\"\",VLOOKUP(Frachtsatz8,waybilldata!$A:$V,10))","v":"TYRONE"},null,null,null,null,null,{"$f":"IF(ISERROR(MATCH(Frachtsatz9,waybilldata!$A:$A,0)),\"\",VLOOKUP(Frachtsatz9,waybilldata!$A:$V,2))","v":"HOPPER"},null,null,null,null,{"$f":"IF(ISERROR(MATCH(Frachtsatz9,waybilldata!$A:$A,0)),\"\",VLOOKUP(Frachtsatz9,waybilldata!$A:$V,7))","v":"STOKER COAL"},{"$f":"IF(ISERROR(MATCH(Frachtsatz9,waybilldata!$A:$A,0)),\"\",VLOOKUP(Frachtsatz9,waybilldata!$A:$V,1))","v":11},null,{"$f":"IF(ISERROR(MATCH(Frachtsatz9,waybilldata!$A:$A,0)),\"\",VLOOKUP(Frachtsatz9,waybilldata!$A:$V,12))","v":"MTY"},{"$f":"IF(ISERROR(MATCH(Frachtsatz9,waybilldata!$A:$A,0)),\"\",VLOOKUP(Frachtsatz9,waybilldata!$A:$V,3))","v":"CASTANEA"},{"$f":"IF(ISERROR(MATCH(Frachtsatz9,waybilldata!$A:$A,0)),\"\",VLOOKUP(Frachtsatz9,waybilldata!$A:$V,8))","v":"KCR"},null,{"$f":"IF(ISERROR(MATCH(Frachtsatz9,waybilldata!$A:$A,0)),\"\",VLOOKUP(Frachtsatz9,waybilldata!$A:$V,10))","v":"ROME"},null,null,null,"Your Town 6",null,null,"Orange"]
[null,null,null,null,null,null,null,null,null,null,null,null,null,null,null,null,null,null,null,null,null,null,null,null,null,null,null,null,null,null,null,null,null,null,null,null,null,null,null,null,null,null,null,null,null,null,null,null,null,null,null,null,null,null,"Your Town 7",null,null,"Aqua"]
[null,null,null,"To:",null,"VIA:","From","Lading",null,null,null,null,null,null,null,2,null,null,null,null,null,"To:",null,"VIA:","From","Lading",null,null,null,null,null,null,null,2,null,null,null,null,null,"To:",null,"VIA:","From","Lading",null,null,null,null,null,null,null,2,null,null,"Your Town 8",null,null,"Green"]
[{"$f":"IF(ISERROR(MATCH(Frachtsatz4,waybilldata!$A:$A,0)),\"\",VLOOKUP(Frachtsatz4,waybilldata!$A:$V,6))","v":"GRAY"},null,1,{"$f":"IF(ISERROR(MATCH(Frachtsatz4,waybilldata!$A:$A,0)),\"\",VLOOKUP(Frachtsatz4,waybilldata!$A:$V,3))","v":"CASTANEA"},{"$f":"IF(ISERROR(MATCH(Frachtsatz4,waybilldata!$A:$A,0)),\"\",VLOOKUP(Frachtsatz4,waybilldata!$A:$V,4))","v":"CENTURY HOIST"},{"$f":"IF(ISERROR(MATCH(Frachtsatz4,waybilldata!$A:$A,0)),\"\",VLOOKUP(Frachtsatz4,waybilldata!$A:$V,5))","v":"MILL HALL JUNC."},{"$f":"IF(ISERROR(MATCH(Frachtsatz4,waybilldata!$A:$A,0)),\"\",VLOOKUP(Frachtsatz4,waybilldata!$A:$V,20))","v":"TYRONE"},{"$f":"IF(ISERROR(MATCH(Frachtsatz4,waybilldata!$A:$A,0)),\"\",VLOOKUP(Frachtsatz4,waybilldata!$A:$V,1))","v":2},null,null,"Lading:","From:","VIA:",{"$f":"IF(ISERROR(MATCH(Frachtsatz4,waybilldata!$A:$A,0)),\"\",VLOOKUP(Frachtsatz4,waybilldata!$A:$V,11))","v":"STAGING"},"To:",{"$f":"IF(ISERROR(MATCH(Frachtsatz4,waybilldata!$A:$A,0)),\"\",VLOOKUP(Frachtsatz4,waybilldata!$A:$V,2))","v":"BOXCAR"},{"$f":"IF(ISERROR(MATCH(Frachtsatz4,waybilldata!$A:$A,0)),\"\",VLOOKUP(Frachtsatz4,waybilldata!$A:$V,9))","v":"AQUA"},null,{"$f":"IF(ISERROR(MATCH(Frachtsatz5,waybilldata!$A:$A,0)),\"\",VLOOKUP(Frachtsatz5,waybilldata!$A:$V,6))","v":"GRAY"},null,1,{"$f":"IF(ISERROR(MATCH(Frachtsatz5,waybilldata!$A:$A,0)),\"\",VLOOKUP(Frachtsatz5,waybilldata!$A:$V,3))","v":"CASTANEA"},{"$f":"IF(ISERROR(MATCH(Frachtsatz5,waybilldata!$A:$A,0)),\"\",VLOOKUP(Frachtsatz5,waybilldata!$A:$V,4))","v":"CENTURY HOIST"},{"$f":"IF(ISERROR(MATCH(Frachtsatz5,waybilldata!$A:$A,0)),\"\",VLOOKUP(Frachtsatz5,waybilldata!$A:$V,5))","v":"MILL HALL JUNC."},{"$f":"IF(ISERROR(MATCH(Frachtsatz5,waybilldata!$A:$A,0)),\"\",VLOOKUP(Frachtsatz5,waybilldata!$A:$V,20))","v":"LOCK HAVEN "},{"$f":"IF(ISERROR(MATCH(Frachtsatz5,waybilldata!$A:$A,0)),\"\",VLOOKUP(Frachtsatz5,waybilldata!$A:$V,1))","v":6},null,null,"Lading:","From:","VIA:",{"$f":"IF(ISERROR(MATCH(Frachtsatz5,waybilldata!$A:$A,0)),\"\",VLOOKUP(Frachtsatz5,waybilldata!$A:$V,11))","v":"STAGING"},"To:",{"$f":"IF(ISERROR(MATCH(Frachtsatz5,waybilldata!$A:$A,0)),\"\",VLOOKUP(Frachtsatz5,waybilldata!$A:$V,2))","v":"GONDOLA"},{"$f":"IF(ISERROR(MATCH(Frachtsatz5,waybilldata!$A:$A,0)),\"\",VLOOKUP(Frachtsatz5,waybilldata!$A:$V,9))","v":"BLACK"},null,{"$f":"IF(ISERROR(MATCH(Frachtsatz6,waybilldata!$A:$A,0)),\"\",VLOOKUP(Frachtsatz6,waybilldata!$A:$V,6))","v":"GRAY"},null,1,{"$f":"IF(ISERROR(MATCH(Frachtsatz6,waybilldata!$A:$A,0)),\"\",VLOOKUP(Frachtsatz6,waybilldata!$A:$V,3))","v":"CASTANEA"},{"$f":"IF(ISERROR(MATCH(Frachtsatz6,waybilldata!$A:$A,0)),\"\",VLOOKUP(Frachtsatz6,waybilldata!$A:$V,4))","v":"MILLER BROS. FUEL"},{"$f":"IF(ISERROR(MATCH(Frachtsatz6,waybilldata!$A:$A,0)),\"\",VLOOKUP(Frachtsatz6,waybilldata!$A:$V,5))","v":"MILL HALL JUNC."},{"$f":"IF(ISERROR(MATCH(Frachtsatz6,waybilldata!$A:$A,0)),\"\",VLOOKUP(Frachtsatz6,waybilldata!$A:$V,20))","v":"ROME"},{"$f":"IF(ISERROR(MATCH(Frachtsatz6,waybilldata!$A:$A,0)),\"\",VLOOKUP(Frachtsatz6,waybilldata!$A:$V,1))","v":10},null,null,"Lading:","From:","VIA:",{"$f":"IF(ISERROR(MATCH(Frachtsatz6,waybilldata!$A:$A,0)),\"\",VLOOKUP(Frachtsatz6,waybilldata!$A:$V,11))","v":"BOHN COLLIERY"},"To:",{"$f":"IF(ISERROR(MATCH(Frachtsatz6,waybilldata!$A:$A,0)),\"\",VLOOKUP(Frachtsatz6,waybilldata!$A:$V,2))","v":"HOPPER"},{"$f":"IF(ISERROR(MATCH(Frachtsatz6,waybilldata!$A:$A,0)),\"\",VLOOKUP(Frachtsatz6,waybilldata!$A:$V,9))","v":"GREEN"}]
[null,null,{"$f":"IF(ISERROR(MATCH(Frachtsatz4,waybilldata!$A:$A,0)),\"\",VLOOKUP(Frachtsatz4,waybilldata!$A:$V,2))","v":"BOXCAR"},null,null,null,null,{"$f":"IF(ISERROR(MATCH(Frachtsatz4,waybilldata!$A:$A,0)),\"\",VLOOKUP(Frachtsatz4,waybilldata!$A:$V,7))","v":"ELECTRIC PARTS"},{"$f":"IF(ISERROR(MATCH(Frachtsatz4,waybilldata!$A:$A,0)),\"\",VLOOKUP(Frachtsatz4,waybilldata!$A:$V,1))","v":2},null,{"$f":"IF(ISERROR(MATCH(Frachtsatz4,waybilldata!$A:$A,0)),\"\",VLOOKUP(Frachtsatz4,waybilldata!$A:$V,12))","v":"ELEVATORS"},{"$f":"IF(ISERROR(MATCH(Frachtsatz4,waybilldata!$A:$A,0)),\"\",VLOOKUP(Frachtsatz4,waybilldata!$A:$V,3))","v":"CASTANEA"},{"$f":"IF(ISERROR(MATCH(Frachtsatz4,waybilldata!$A:$A,0)),\"\",VLOOKUP(Frachtsatz4,waybilldata!$A:$V,8))","v":"TYRONE"},null,{"$f":"IF(ISERROR(MATCH(Frachtsatz4,waybilldata!$A:$A,0)),\"\",VLOOKUP(Frachtsatz4,waybilldata!$A:$V,10))","v":"TYRONE"},null,null,null,null,null,{"$f":"IF(ISERROR(MATCH(Frachtsatz5,waybilldata!$A:$A,0)),\"\",VLOOKUP(Frachtsatz5,waybilldata!$A:$V,2))","v":"GONDOLA"},null,null,null,null,{"$f":"IF(ISERROR(MATCH(Frachtsatz5,waybilldata!$A:$A,0)),\"\",VLOOKUP(Frachtsatz5,waybilldata!$A:$V,7))","v":"STEEL"},{"$f":"IF(ISERROR(MATCH(Frachtsatz5,waybilldata!$A:$A,0)),\"\",VLOOKUP(Frachtsatz5,waybilldata!$A:$V,1))","v":6},null,{"$f":"IF(ISERROR(MATCH(Frachtsatz5,waybilldata!$A:$A,0)),\"\",VLOOKUP(Frachtsatz5,waybilldata!$A:$V,12))","v":"SCRAP STEEL"},{"$f":"IF(ISERROR(MATCH(Frachtsatz5,waybilldata!$A:$A,0)),\"\",VLOOKUP(Frachtsatz5,waybilldata!$A:$V,3))","v":"CASTANEA"},{"$f":"IF(ISERROR(MATCH(Frachtsatz5,waybilldata!$A:$A,0)),\"\",VLOOKUP(Frachtsatz5,waybilldata!$A:$V,8))","v":"LOCK HAVEN"},null,{"$f":"IF(ISERROR(MATCH(Frachtsatz5,waybilldata!$A:$A,0)),\"\",VLOOKUP(Frachtsatz5,waybilldata!$A:$V,10))","v":"LOCK HAVEN "},null,null,null,null,null,{"$f":"IF(ISERROR(MATCH(Frachtsatz6,waybilldata!$A:$A,0)),\"\",VLOOKUP(Frachtsatz6,waybilldata!$A:$V,2))","v":"HOPPER"},null,null,null,null,{"$f":"IF(ISERROR(MATCH(Frachtsatz6,waybilldata!$A:$A,0)),\"\",VLOOKUP(Frachtsatz6,waybilldata!$A:$V,7))","v":"STOKER COAL"},{"$f":"IF(ISERROR(MATCH(Frachtsatz6,waybilldata!$A:$A,0)),\"\",VLOOKUP(Frachtsatz6,waybilldata!$A:$V,1))","v":10},null,{"$f":"IF(ISERROR(MATCH(Frachtsatz6,waybilldata!$A:$A,0)),\"\",VLOOKUP(Frachtsatz6,waybilldata!$A:$V,12))","v":"MTY"},{"$f":"IF(ISERROR(MATCH(Frachtsatz6,waybilldata!$A:$A,0)),\"\",VLOOKUP(Frachtsatz6,waybilldata!$A:$V,3))","v":"CASTANEA"},{"$f":"IF(ISERROR(MATCH(Frachtsatz6,waybilldata!$A:$A,0)),\"\",VLOOKUP(Frachtsatz6,waybilldata!$A:$V,8))","v":"KCR"},null,{"$f":"IF(ISERROR(MATCH(Frachtsatz6,waybilldata!$A:$A,0)),\"\",VLOOKUP(Frachtsatz6,waybilldata!$A:$V,10))","v":"ROME"}]
[]
[null,null,null,"To:",null,"VIA:","From","Lading",null,null,null,null,null,null,null,2,null,null,null,null,null,"To:",null,"VIA:","From","Lading",null,null,null,null,null,null,null,2,null,null,null,null,null,"To:",null,"VIA:","From","Lading",null,null,null,null,null,null,null,2]
[{"$f":"IF(ISERROR(MATCH(Frachtsatz1,waybilldata!$A:$A,0)),\"\",VLOOKUP(Frachtsatz1,waybilldata!$A:$V,6))","v":"GRAY"},null,1,{"$f":"IF(ISERROR(MATCH(Frachtsatz1,waybilldata!$A:$A,0)),\"\",VLOOKUP(Frachtsatz1,waybilldata!$A:$V,3))","v":"CASTANEA"},{"$f":"IF(ISERROR(MATCH(Frachtsatz1,waybilldata!$A:$A,0)),\"\",VLOOKUP(Frachtsatz1,waybilldata!$A:$V,4))","v":"CENTURY HOIST"},{"$f":"IF(ISERROR(MATCH(Frachtsatz1,waybilldata!$A:$A,0)),\"\",VLOOKUP(Frachtsatz1,waybilldata!$A:$V,5))","v":"MILL HALL JUNC."},{"$f":"IF(ISERROR(MATCH(Frachtsatz1,waybilldata!$A:$A,0)),\"\",VLOOKUP(Frachtsatz1,waybilldata!$A:$V,20))","v":"TYRONE"},{"$f":"IF(ISERROR(MATCH(Frachtsatz1,waybilldata!$A:$A,0)),\"\",VLOOKUP(Frachtsatz1,waybilldata!$A:$V,1))","v":1},null,null,"Lading:","From:","VIA:",{"$f":"IF(ISERROR(MATCH(Frachtsatz1,waybilldata!$A:$A,0)),\"\",VLOOKUP(Frachtsatz1,waybilldata!$A:$V,11))","v":"STAGING"},"To:",{"$f":"IF(ISERROR(MATCH(Frachtsatz1,waybilldata!$A:$A,0)),\"\",VLOOKUP(Frachtsatz1,waybilldata!$A:$V,2))","v":"BOXCAR"},{"$f":"IF(ISERROR(MATCH(Frachtsatz1,waybilldata!$A:$A,0)),\"\",VLOOKUP(Frachtsatz1,waybilldata!$A:$V,9))","v":"AQUA"},null,{"$f":"IF(ISERROR(MATCH(Frachtsatz2,waybilldata!$A:$A,0)),\"\",VLOOKUP(Frachtsatz2,waybilldata!$A:$V,6))","v":"GRAY"},null,1,{"$f":"IF(ISERROR(MATCH(Frachtsatz2,waybilldata!$A:$A,0)),\"\",VLOOKUP(Frachtsatz2,waybilldata!$A:$V,3))","v":"CASTANEA"},{"$f":"IF(ISERROR(MATCH(Frachtsatz2,waybilldata!$A:$A,0)),\"\",VLOOKUP(Frachtsatz2,waybilldata!$A:$V,4))","v":"CENTURY HOIST"},{"$f":"IF(ISERROR(MATCH(Frachtsatz2,waybilldata!$A:$A,0)),\"\",VLOOKUP(Frachtsatz2,waybilldata!$A:$V,5))","v":"MILL HALL JUNC."},{"$f":"IF(ISERROR(MATCH(Frachtsatz2,waybilldata!$A:$A,0)),\"\",VLOOKUP(Frachtsatz2,waybilldata!$A:$V,20))","v":"TYRONE"},{"$f":"IF(ISERROR(MATCH(Frachtsatz2,waybilldata!$A:$A,0)),\"\",VLOOKUP(Frachtsatz2,waybilldata!$A:$V,1))","v":5},null,null,"Lading:","From:","VIA:",{"$f":"IF(ISERROR(MATCH(Frachtsatz2,waybilldata!$A:$A,0)),\"\",VLOOKUP(Frachtsatz2,waybilldata!$A:$V,11))","v":"STAGING"},"To:",{"$f":"IF(ISERROR(MATCH(Frachtsatz2,waybilldata!$A:$A,0)),\"\",VLOOKUP(Frachtsatz2,waybilldata!$A:$V,2))","v":"GONDOLA"},{"$f":"IF(ISERROR(MATCH(Frachtsatz2,waybilldata!$A:$A,0)),\"\",VLOOKUP(Frachtsatz2,waybilldata!$A:$V,9))","v":"AQUA"},null,{"$f":"IF(ISERROR(MATCH(Frachtsatz3,waybilldata!$A:$A,0)),\"\",VLOOKUP(Frachtsatz3,waybilldata!$A:$V,6))","v":"GRAY"},null,1,{"$f":"IF(ISERROR(MATCH(Frachtsatz3,waybilldata!$A:$A,0)),\"\",VLOOKUP(Frachtsatz3,waybilldata!$A:$V,3))","v":"CASTANEA"},{"$f":"IF(ISERROR(MATCH(Frachtsatz3,waybilldata!$A:$A,0)),\"\",VLOOKUP(Frachtsatz3,waybilldata!$A:$V,4))","v":"MILLER BROS. FUEL"},{"$f":"IF(ISERROR(MATCH(Frachtsatz3,waybilldata!$A:$A,0)),\"\",VLOOKUP(Frachtsatz3,waybilldata!$A:$V,5))","v":"MILL HALL JUNC."},{"$f":"IF(ISERROR(MATCH(Frachtsatz3,waybilldata!$A:$A,0)),\"\",VLOOKUP(Frachtsatz3,waybilldata!$A:$V,20))","v":"ROME"},{"$f":"IF(ISERROR(MATCH(Frachtsatz3,waybilldata!$A:$A,0)),\"\",VLOOKUP(Frachtsatz3,waybilldata!$A:$V,1))","v":9},null,null,"Lading:","From:","VIA:",{"$f":"IF(ISERROR(MATCH(Frachtsatz3,waybilldata!$A:$A,0)),\"\",VLOOKUP(Frachtsatz3,waybilldata!$A:$V,11))","v":"BOHN COLLIERY"},"To:",{"$f":"IF(ISERROR(MATCH(Frachtsatz3,waybilldata!$A:$A,0)),\"\",VLOOKUP(Frachtsatz3,waybilldata!$A:$V,2))","v":"HOPPER"},{"$f":"IF(ISERROR(MATCH(Frachtsatz3,waybilldata!$A:$A,0)),\"\",VLOOKUP(Frachtsatz3,waybilldata!$A:$V,9))","v":"GREEN"}]
[null,null,{"$f":"IF(ISERROR(MATCH(Frachtsatz1,waybilldata!$A:$A,0)),\"\",VLOOKUP(Frachtsatz1,waybilldata!$A:$V,2))","v":"BOXCAR"},null,null,null,null,{"$f":"IF(ISERROR(MATCH(Frachtsatz1,waybilldata!$A:$A,0)),\"\",VLOOKUP(Frachtsatz1,waybilldata!$A:$V,7))","v":"ELECTRIC PARTS"},{"$f":"IF(ISERROR(MATCH(Frachtsatz1,waybilldata!$A:$A,0)),\"\",VLOOKUP(Frachtsatz1,waybilldata!$A:$V,1))","v":1},null,{"$f":"IF(ISERROR(MATCH(Frachtsatz1,waybilldata!$A:$A,0)),\"\",VLOOKUP(Frachtsatz1,waybilldata!$A:$V,12))","v":"ELEVATORS"},{"$f":"IF(ISERROR(MATCH(Frachtsatz1,waybilldata!$A:$A,0)),\"\",VLOOKUP(Frachtsatz1,waybilldata!$A:$V,3))","v":"CASTANEA"},{"$f":"IF(ISERROR(MATCH(Frachtsatz1,waybilldata!$A:$A,0)),\"\",VLOOKUP(Frachtsatz1,waybilldata!$A:$V,8))","v":"TYRONE"},null,{"$f":"IF(ISERROR(MATCH(Frachtsatz1,waybilldata!$A:$A,0)),\"\",VLOOKUP(Frachtsatz1,waybilldata!$A:$V,10))","v":"TYRONE"},null,null,null,null,null,{"$f":"IF(ISERROR(MATCH(Frachtsatz2,waybilldata!$A:$A,0)),\"\",VLOOKUP(Frachtsatz2,waybilldata!$A:$V,2))","v":"GONDOLA"},null,null,null,null,{"$f":"IF(ISERROR(MATCH(Frachtsatz2,waybilldata!$A:$A,0)),\"\",VLOOKUP(Frachtsatz2,waybilldata!$A:$V,7))","v":"STEEL"},{"$f":"IF(ISERROR(MATCH(Frachtsatz2,waybilldata!$A:$A,0)),\"\",VLOOKUP(Frachtsatz2,waybilldata!$A:$V,1))","v":5},null,{"$f":"IF(ISERROR(MATCH(Frachtsatz2,waybilldata!$A:$A,0)),\"\",VLOOKUP(Frachtsatz2,waybilldata!$A:$V,12))","v":"MTY"},{"$f":"IF(ISERROR(MATCH(Frachtsatz2,waybilldata!$A:$A,0)),\"\",VLOOKUP(Frachtsatz2,waybilldata!$A:$V,3))","v":"CASTANEA"},{"$f":"IF(ISERROR(MATCH(Frachtsatz2,waybilldata!$A:$A,0)),\"\",VLOOKUP(Frachtsatz2,waybilldata!$A:$V,8))","v":"TYRONE"},null,{"$f":"IF(ISERROR(MATCH(Frachtsatz2,waybilldata!$A:$A,0)),\"\",VLOOKUP(Frachtsatz2,waybilldata!$A:$V,10))","v":"TYRONE"},null,null,null,null,null,{"$f":"IF(ISERROR(MATCH(Frachtsatz3,waybilldata!$A:$A,0)),\"\",VLOOKUP(Frachtsatz3,waybilldata!$A:$V,2))","v":"HOPPER"},null,null,null,null,{"$f":"IF(ISERROR(MATCH(Frachtsatz3,waybilldata!$A:$A,0)),\"\",VLOOKUP(Frachtsatz3,waybilldata!$A:$V,7))","v":"STOKER COAL"},{"$f":"IF(ISERROR(MATCH(Frachtsatz3,waybilldata!$A:$A,0)),\"\",VLOOKUP(Frachtsatz3,waybilldata!$A:$V,1))","v":9},null,{"$f":"IF(ISERROR(MATCH(Frachtsatz3,waybilldata!$A:$A,0)),\"\",VLOOKUP(Frachtsatz3,waybilldata!$A:$V,12))","v":"MTY"},{"$f":"IF(ISERROR(MATCH(Frachtsatz3,waybilldata!$A:$A,0)),\"\",VLOOKUP(Frachtsatz3,waybilldata!$A:$V,3))","v":"CASTANEA"},{"$f":"IF(ISERROR(MATCH(Frachtsatz3,waybilldata!$A:$A,0)),\"\",VLOOKUP(Frachtsatz3,waybilldata!$A:$V,8))","v":"KCR"},null,{"$f":"IF(ISERROR(MATCH(Frachtsatz3,waybilldata!$A:$A,0)),\"\",VLOOKUP(Frachtsatz3,waybilldata!$A:$V,10))","v":"ROME"}]
[]
[null,null,null,"To:",null,"VIA:","From","Lading",null,null,null,null,null,null,null,2,null,null,null,null,null,"To:",null,"VIA:","From","Lading",null,null,null,null,null,null,null,2,null,null,null,null,null,"To:",null,"VIA:","From","Lading",null,null,null,null,null,null,null,2]
[]
[null,null,"Column Width"]
[null,null,3,2,1.57,2,3,1.71,1,null,null,null,null,null,null,null,null,null,null,null,3,2,1.57,2,3,1.71,1,null,null,null,null,null,null,null,null,null,null,null,3,2,1.57,2,3,1.71,1]

{"sheet":"waybill back 1-12","index":3,"n_rows":20,"n_cols":58,"rows_kept":20,"cut":false,"hidden":false,"merged":[[2,48,4,48],[1,52,4,53],[2,7,3,7],[6,7,7,7],[9,52,12,53],[13,52,16,53],[1,0,4,1],[5,0,8,1],[9,0,12,1],[13,0,16,1],[1,18,4,19],[5,18,8,19],[9,18,12,19],[13,18,16,19],[1,16,4,17],[5,16,8,17],[9,16,12,17],[13,16,16,17],[5,49,8,49],[9,49,12,49],[13,49,16,49],[1,40,4,40],[2,9,3,9],[5,21,7,21],[1,24,3,24],[2,26,3,26],[1,21,3,21],[2,43,3,43],[6,43,7,43],[10,45,11,45],[9,23,11,23],[10,43,11,43],[14,43,15,43],[14,44,15,44],[10,44,11,44],[5,24,7,24],[1,36,4,37],[5,36,8,37],[1,34,4,35],[5,34,8,35],[5,40,8,40],[5,22,8,22],[2,25,3,25],[6,25,7,25],[9,22,12,22],[13,41,15,41],[9,31,12,31],[13,31,16,31],[1,22,4,22],[1,15,3,15],[1,13,4,13],[2,14,4,14],[5,13,8,13],[9,13,12,13],[10,11,12,11],[10,12,12,12],[10,14,12,14],[9,21,11,21],[10,20,12,20],[14,48,16,48],[10,32,12,32],[9,39,11,39],[10,28,12,28],[10,47,12,47],[10,48,12,48],[13,39,15,39],[10,30,12,30],[13,40,16,40],[9,36,12,37],[9,34,12,35],[9,40,12,40],[10,29,12,29],[14,28,16,28],[14,29,16,29],[2,54,2,56],[5,33,7,33],[6,54,6,56],[7,54,7,56],[8,54,8,56],[13,51,15,51],[9,51,11,51],[5,51,7,51],[1,51,3,51],[14,45,15,45],[9,41,11,41],[9,33,11,33],[2,46,4,46],[9,42,11,42],[13,42,15,42],[1,49,4,49],[14,46,16,46],[14,47,16,47],[10,50,12,50],[10,46,12,46],[13,33,15,33],[13,36,16,37],[13,34,16,35],[14,50,16,50],[6,28,8,28],[5,41,7,41],[1,4,4,4],[2,47,4,47],[1,23,3,23],[1,54,1,56],[2,29,4,29],[2,30,4,30],[1,39,3,39],[3,54,3,56],[4,54,4,56],[5,54,5,56],[6,38,8,38],[2,38,4,38],[2,45,3,45],[6,45,7,45],[2,32,4,32],[1,31,4,31],[1,41,3,41],[1,42,3,42],[2,50,4,50],[6,50,8,50],[6,32,8,32],[5,52,8,53],[1,6,3,6],[5,6,7,6],[6,48,8,48],[5,42,7,42],[6,29,8,29],[5,39,7,39],[6,44,7,44],[5,31,8,31],[2,44,3,44],[6,47,8,47],[1,33,3,33],[6,30,8,30],[6,46,8,46],[5,23,7,23],[6,26,7,26],[2,28,4,28],[2,27,3,27],[6,27,7,27],[2,8,3,8],[6,8,7,8],[2,11,4,11],[2,10,4,10],[2,12,4,12],[2,20,4,20],[5,3,7,3],[5,5,7,5],[13,15,15,15],[13,21,15,21],[14,20,16,20],[13,22,16,22],[13,24,15,24],[9,24,11,24],[10,25,11,25],[14,25,15,25],[6,10,8,10],[6,11,8,11],[6,12,8,12],[5,15,7,15],[6,14,8,14],[6,20,8,20],[6,9,7,9],[5,4,8,4],[14,26,15,26],[14,38,16,38],[10,38,12,38],[10,26,11,26],[14,30,16,30],[14,32,16,32],[10,7,11,7],[14,7,15,7],[9,15,11,15],[14,27,15,27],[10,27,11,27],[10,8,11,8],[14,2,16,2],[2,2,4,2],[6,2,8,2],[10,2,12,2],[14,11,16,11],[14,12,16,12],[13,23,15,23],[13,3,15,3],[13,5,15,5],[13,6,15,6],[9,4,12,4],[10,9,11,9],[9,3,11,3],[9,5,11,5],[9,6,11,6],[10,10,12,10],[14,8,15,8],[13,4,16,4],[14,9,15,9],[14,10,16,10],[13,13,16,13],[14,14,16,14],[1,3,3,3],[1,5,3,5]]}
[]
[{"$f":"IF(ISERROR(MATCH(Frachtsatz1,waybilldata!$A:$A,0)),\"\",VLOOKUP(Frachtsatz1,waybilldata!$A:$V,14))","v":"GRAY"},null,3,{"$f":"IF(ISERROR(MATCH(Frachtsatz1,waybilldata!$A:$A,0)),\"\",VLOOKUP(Frachtsatz1,waybilldata!$A:$V,15))","v":"CASTANEA"},{"$f":"IF(ISERROR(MATCH(Frachtsatz1,waybilldata!$A:$A,0)),\"\",VLOOKUP(Frachtsatz1,waybilldata!$A:$V,16))","v":"CENTURY HOIST"},{"$f":"IF(ISERROR(MATCH(Frachtsatz1,waybilldata!$A:$A,0)),\"\",VLOOKUP(Frachtsatz1,waybilldata!$A:$V,13))","v":"MILL HALL JUNC."},{"$f":"IF(ISERROR(MATCH(Frachtsatz1,waybilldata!$A:$A,0)),\"\",VLOOKUP(Frachtsatz1,waybilldata!$A:$V,10))","v":"TYRONE"},{"$f":"IF(ISERROR(MATCH(Frachtsatz1,waybilldata!$A:$A,0)),\"\",VLOOKUP(Frachtsatz1,waybilldata!$A:$V,1))","v":1},null,null,"Lading","From","VIA:",{"$f":"IF(ISERROR(MATCH(Frachtsatz1,waybilldata!$A:$A,0)),\"\",VLOOKUP(Frachtsatz1,waybilldata!$A:$V,21))","v":"STAGING"},"To:",{"$f":"IF(ISERROR(MATCH(Frachtsatz1,waybilldata!$A:$A,0)),\"\",VLOOKUP(Frachtsatz1,waybilldata!$A:$V,2))","v":"BOXCAR"},{"$f":"IF(ISERROR(MATCH(Frachtsatz1,waybilldata!$A:$A,0)),\"\",VLOOKUP(Frachtsatz1,waybilldata!$A:$V,19))","v":"AQUA"},null,{"$f":"IF(ISERROR(MATCH(Frachtsatz2,waybilldata!$A:$A,0)),\"\",VLOOKUP(Frachtsatz2,waybilldata!$A:$V,14))","v":"GRAY"},null,3,{"$f":"IF(ISERROR(MATCH(Frachtsatz2,waybilldata!$A:$A,0)),\"\",VLOOKUP(Frachtsatz2,waybilldata!$A:$V,15))","v":"CASTANEA"},{"$f":"IF(ISERROR(MATCH(Frachtsatz2,waybilldata!$A:$A,0)),\"\",VLOOKUP(Frachtsatz2,waybilldata!$A:$V,16))","v":"CENTURY HOIST"},{"$f":"IF(ISERROR(MATCH(Frachtsatz2,waybilldata!$A:$A,0)),\"\",VLOOKUP(Frachtsatz2,waybilldata!$A:$V,13))","v":"MILL HALL JUNC."},{"$f":"IF(ISERROR(MATCH(Frachtsatz2,waybilldata!$A:$A,0)),\"\",VLOOKUP(Frachtsatz2,waybilldata!$A:$V,10))","v":"TYRONE"},{"$f":"IF(ISERROR(MATCH(Frachtsatz2,waybilldata!$A:$A,0)),\"\",VLOOKUP(Frachtsatz2,waybilldata!$A:$V,1))","v":5},null,null,"Lading","From","VIA:",{"$f":"IF(ISERROR(MATCH(Frachtsatz2,waybilldata!$A:$A,0)),\"\",VLOOKUP(Frachtsatz2,waybilldata!$A:$V,21))","v":"STAGING"},"To:",{"$f":"IF(ISERROR(MATCH(Frachtsatz2,waybilldata!$A:$A,0)),\"\",VLOOKUP(Frachtsatz2,waybilldata!$A:$V,2))","v":"GONDOLA"},{"$f":"IF(ISERROR(MATCH(Frachtsatz2,waybilldata!$A:$A,0)),\"\",VLOOKUP(Frachtsatz2,waybilldata!$A:$V,19))","v":"AQUA"},null,{"$f":"IF(ISERROR(MATCH(Frachtsatz3,waybilldata!$A:$A,0)),\"\",VLOOKUP(Frachtsatz3,waybilldata!$A:$V,14))","v":"GRAY"},null,3,{"$f":"IF(ISERROR(MATCH(Frachtsatz3,waybilldata!$A:$A,0)),\"\",VLOOKUP(Frachtsatz3,waybilldata!$A:$V,15))","v":"CASTANEA"},{"$f":"IF(ISERROR(MATCH(Frachtsatz3,waybilldata!$A:$A,0)),\"\",VLOOKUP(Frachtsatz3,waybilldata!$A:$V,16))","v":"MILLER BROS. FUEL"},{"$f":"IF(ISERROR(MATCH(Frachtsatz3,waybilldata!$A:$A,0)),\"\",VLOOKUP(Frachtsatz3,waybilldata!$A:$V,13))","v":"MILL HALL JUNC."},{"$f":"IF(ISERROR(MATCH(Frachtsatz3,waybilldata!$A:$A,0)),\"\",VLOOKUP(Frachtsatz3,waybilldata!$A:$V,10))","v":"ROME"},{"$f":"IF(ISERROR(MATCH(Frachtsatz3,waybilldata!$A:$A,0)),\"\",VLOOKUP(Frachtsatz3,waybilldata!$A:$V,1))","v":9},null,null,"Lading","From","VIA:",{"$f":"IF(ISERROR(MATCH(Frachtsatz3,waybilldata!$A:$A,0)),\"\",VLOOKUP(Frachtsatz3,waybilldata!$A:$V,21))","v":"BOHN COLLIERY"},"To:",{"$f":"IF(ISERROR(MATCH(Frachtsatz3,waybilldata!$A:$A,0)),\"\",VLOOKUP(Frachtsatz3,waybilldata!$A:$V,2))","v":"HOPPER"},{"$f":"IF(ISERROR(MATCH(Frachtsatz3,waybilldata!$A:$A,0)),\"\",VLOOKUP(Frachtsatz3,waybilldata!$A:$V,19))","v":"GREEN"},null,"Your Town 1",null,null,"Black"]
[null,null,{"$f":"IF(ISERROR(MATCH(Frachtsatz1,waybilldata!$A:$A,0)),\"\",VLOOKUP(Frachtsatz1,waybilldata!$A:$V,2))","v":"BOXCAR"},null,null,null,null,{"$f":"IF(ISERROR(MATCH(Frachtsatz1,waybilldata!$A:$A,0)),\"\",VLOOKUP(Frachtsatz1,waybilldata!$A:$V,17))","v":"ELECTRIC PARTS"},null,null,{"$f":"IF(ISERROR(MATCH(Frachtsatz1,waybilldata!$A:$A,0)),\"\",VLOOKUP(Frachtsatz1,waybilldata!$A:$V,22))","v":"ELEVATORS"},{"$f":"IF(ISERROR(MATCH(Frachtsatz1,waybilldata!$A:$A,0)),\"\",VLOOKUP(Frachtsatz1,waybilldata!$A:$V,15))","v":"CASTANEA"},{"$f":"IF(ISERROR(MATCH(Frachtsatz1,waybilldata!$A:$A,0)),\"\",VLOOKUP(Frachtsatz1,waybilldata!$A:$V,18))","v":"TYRONE"},null,{"$f":"IF(ISERROR(MATCH(Frachtsatz1,waybilldata!$A:$A,0)),\"\",VLOOKUP(Frachtsatz1,waybilldata!$A:$V,20))","v":"TYRONE"},null,null,null,null,null,{"$f":"IF(ISERROR(MATCH(Frachtsatz2,waybilldata!$A:$A,0)),\"\",VLOOKUP(Frachtsatz2,waybilldata!$A:$V,2))","v":"GONDOLA"},null,null,null,null,{"$f":"IF(ISERROR(MATCH(Frachtsatz2,waybilldata!$A:$A,0)),\"\",VLOOKUP(Frachtsatz2,waybilldata!$A:$V,17))","v":"STEEL"},null,null,{"$f":"IF(ISERROR(MATCH(Frachtsatz2,waybilldata!$A:$A,0)),\"\",VLOOKUP(Frachtsatz2,waybilldata!$A:$V,22))","v":"MTY"},{"$f":"IF(ISERROR(MATCH(Frachtsatz2,waybilldata!$A:$A,0)),\"\",VLOOKUP(Frachtsatz2,waybilldata!$A:$V,15))","v":"CASTANEA"},{"$f":"IF(ISERROR(MATCH(Frachtsatz2,waybilldata!$A:$A,0)),\"\",VLOOKUP(Frachtsatz2,waybilldata!$A:$V,18))","v":"TYRONE"},null,{"$f":"IF(ISERROR(MATCH(Frachtsatz2,waybilldata!$A:$A,0)),\"\",VLOOKUP(Frachtsatz2,waybilldata!$A:$V,20))","v":"TYRONE"},null,null,null,null,null,{"$f":"IF(ISERROR(MATCH(Frachtsatz3,waybilldata!$A:$A,0)),\"\",VLOOKUP(Frachtsatz3,waybilldata!$A:$V,2))","v":"HOPPER"},null,null,null,null,{"$f":"IF(ISERROR(MATCH(Frachtsatz3,waybilldata!$A:$A,0)),\"\",VLOOKUP(Frachtsatz3,waybilldata!$A:$V,17))","v":"STOKER COAL"},null,null,{"$f":"IF(ISERROR(MATCH(Frachtsatz3,waybilldata!$A:$A,0)),\"\",VLOOKUP(Frachtsatz3,waybilldata!$A:$V,22))","v":"MTY"},{"$f":"IF(ISERROR(MATCH(Frachtsatz3,waybilldata!$A:$A,0)),\"\",VLOOKUP(Frachtsatz3,waybilldata!$A:$V,15))","v":"CASTANEA"},{"$f":"IF(ISERROR(MATCH(Frachtsatz3,waybilldata!$A:$A,0)),\"\",VLOOKUP(Frachtsatz3,waybilldata!$A:$V,18))","v":"KCR"},null,{"$f":"IF(ISERROR(MATCH(Frachtsatz3,waybilldata!$A:$A,0)),\"\",VLOOKUP(Frachtsatz3,waybilldata!$A:$V,20))","v":"ROME"},null,null,null,"Your Town 2",null,null,"Lt-Grn"]
[null,null,null,null,null,null,null,null,null,null,null,null,null,null,null,null,null,null,null,null,null,null,null,null,null,null,null,null,null,null,null,null,null,null,null,null,null,null,null,null,null,null,null,null,null,null,null,null,null,null,null,null,null,null,"Your Town 3",null,null,"Gray"]
[null,null,null,"To:",null,"VIA:","From","Lading",null,null,null,null,null,null,null,4,null,null,null,null,null,"To:",null,"VIA:","From","Lading",null,null,null,null,null,null,null,4,null,null,null,null,null,"To:",null,"VIA:","From","Lading",null,null,null,null,null,null,null,4,null,null,"Your Town 4",null,null,"Yellow"]
[{"$f":"IF(ISERROR(MATCH(Frachtsatz4,waybilldata!$A:$A,0)),\"\",VLOOKUP(Frachtsatz4,waybilldata!$A:$V,14))","v":"GRAY"},null,3,{"$f":"IF(ISERROR(MATCH(Frachtsatz4,waybilldata!$A:$A,0)),\"\",VLOOKUP(Frachtsatz4,waybilldata!$A:$V,15))","v":"CASTANEA"},{"$f":"IF(ISERROR(MATCH(Frachtsatz4,waybilldata!$A:$A,0)),\"\",VLOOKUP(Frachtsatz4,waybilldata!$A:$V,16))","v":"CENTURY HOIST"},{"$f":"IF(ISERROR(MATCH(Frachtsatz4,waybilldata!$A:$A,0)),\"\",VLOOKUP(Frachtsatz4,waybilldata!$A:$V,13))","v":"MILL HALL JUNC."},{"$f":"IF(ISERROR(MATCH(Frachtsatz4,waybilldata!$A:$A,0)),\"\",VLOOKUP(Frachtsatz4,waybilldata!$A:$V,10))","v":"TYRONE"},{"$f":"IF(ISERROR(MATCH(Frachtsatz4,waybilldata!$A:$A,0)),\"\",VLOOKUP(Frachtsatz4,waybilldata!$A:$V,1))","v":2},null,null,"Lading","From","VIA:",{"$f":"IF(ISERROR(MATCH(Frachtsatz4,waybilldata!$A:$A,0)),\"\",VLOOKUP(Frachtsatz4,waybilldata!$A:$V,21))","v":"STAGING"},"To:",{"$f":"IF(ISERROR(MATCH(Frachtsatz4,waybilldata!$A:$A,0)),\"\",VLOOKUP(Frachtsatz4,waybilldata!$A:$V,2))","v":"BOXCAR"},{"$f":"IF(ISERROR(MATCH(Frachtsatz4,waybilldata!$A:$A,0)),\"\",VLOOKUP(Frachtsatz4,waybilldata!$A:$V,19))","v":"AQUA"},null,{"$f":"IF(ISERROR(MATCH(Frachtsatz5,waybilldata!$A:$A,0)),\"\",VLOOKUP(Frachtsatz5,waybilldata!$A:$V,14))","v":"GRAY"},null,3,{"$f":"IF(ISERROR(MATCH(Frachtsatz5,waybilldata!$A:$A,0)),\"\",VLOOKUP(Frachtsatz5,waybilldata!$A:$V,15))","v":"CASTANEA"},{"$f":"IF(ISERROR(MATCH(Frachtsatz5,waybilldata!$A:$A,0)),\"\",VLOOKUP(Frachtsatz5,waybilldata!$A:$V,16))","v":"CENTURY HOIST"},{"$f":"IF(ISERROR(MATCH(Frachtsatz5,waybilldata!$A:$A,0)),\"\",VLOOKUP(Frachtsatz5,waybilldata!$A:$V,13))","v":"MILL HALL JUNC."},{"$f":"IF(ISERROR(MATCH(Frachtsatz5,waybilldata!$A:$A,0)),\"\",VLOOKUP(Frachtsatz5,waybilldata!$A:$V,10))","v":"LOCK HAVEN "},{"$f":"IF(ISERROR(MATCH(Frachtsatz5,waybilldata!$A:$A,0)),\"\",VLOOKUP(Frachtsatz5,waybilldata!$A:$V,1))","v":6},null,null,"Lading","From","VIA:",{"$f":"IF(ISERROR(MATCH(Frachtsatz5,waybilldata!$A:$A,0)),\"\",VLOOKUP(Frachtsatz5,waybilldata!$A:$V,21))","v":"STAGING"},"To:",{"$f":"IF(ISERROR(MATCH(Frachtsatz5,waybilldata!$A:$A,0)),\"\",VLOOKUP(Frachtsatz5,waybilldata!$A:$V,2))","v":"GONDOLA"},{"$f":"IF(ISERROR(MATCH(Frachtsatz5,waybilldata!$A:$A,0)),\"\",VLOOKUP(Frachtsatz5,waybilldata!$A:$V,19))","v":"BLACK"},null,{"$f":"IF(ISERROR(MATCH(Frachtsatz6,waybilldata!$A:$A,0)),\"\",VLOOKUP(Frachtsatz6,waybilldata!$A:$V,14))","v":"GRAY"},null,3,{"$f":"IF(ISERROR(MATCH(Frachtsatz6,waybilldata!$A:$A,0)),\"\",VLOOKUP(Frachtsatz6,waybilldata!$A:$V,15))","v":"CASTANEA"},{"$f":"IF(ISERROR(MATCH(Frachtsatz6,waybilldata!$A:$A,0)),\"\",VLOOKUP(Frachtsatz6,waybilldata!$A:$V,16))","v":"MILLER BROS. FUEL"},{"$f":"IF(ISERROR(MATCH(Frachtsatz6,waybilldata!$A:$A,0)),\"\",VLOOKUP(Frachtsatz6,waybilldata!$A:$V,13))","v":"MILL HALL JUNC."},{"$f":"IF(ISERROR(MATCH(Frachtsatz6,waybilldata!$A:$A,0)),\"\",VLOOKUP(Frachtsatz6,waybilldata!$A:$V,10))","v":"ROME"},{"$f":"IF(ISERROR(MATCH(Frachtsatz6,waybilldata!$A:$A,0)),\"\",VLOOKUP(Frachtsatz6,waybilldata!$A:$V,1))","v":10},null,null,"Lading","From","VIA:",{"$f":"IF(ISERROR(MATCH(Frachtsatz6,waybilldata!$A:$A,0)),\"\",VLOOKUP(Frachtsatz6,waybilldata!$A:$V,21))","v":"BOHN COLLIERY"},"To:",{"$f":"IF(ISERROR(MATCH(Frachtsatz6,waybilldata!$A:$A,0)),\"\",VLOOKUP(Frachtsatz6,waybilldata!$A:$V,2))","v":"HOPPER"},{"$f":"IF(ISERROR(MATCH(Frachtsatz6,waybilldata!$A:$A,0)),\"\",VLOOKUP(Frachtsatz6,waybilldata!$A:$V,19))","v":"GREEN"},null,"Your Town 5",null,null,"Purple"]
[null,null,{"$f":"IF(ISERROR(MATCH(Frachtsatz4,waybilldata!$A:$A,0)),\"\",VLOOKUP(Frachtsatz4,waybilldata!$A:$V,2))","v":"BOXCAR"},null,null,null,null,{"$f":"IF(ISERROR(MATCH(Frachtsatz4,waybilldata!$A:$A,0)),\"\",VLOOKUP(Frachtsatz4,waybilldata!$A:$V,17))","v":"ELECTRIC PARTS"},null,null,{"$f":"IF(ISERROR(MATCH(Frachtsatz4,waybilldata!$A:$A,0)),\"\",VLOOKUP(Frachtsatz4,waybilldata!$A:$V,22))","v":"ELEVATORS"},{"$f":"IF(ISERROR(MATCH(Frachtsatz4,waybilldata!$A:$A,0)),\"\",VLOOKUP(Frachtsatz4,waybilldata!$A:$V,15))","v":"CASTANEA"},{"$f":"IF(ISERROR(MATCH(Frachtsatz4,waybilldata!$A:$A,0)),\"\",VLOOKUP(Frachtsatz4,waybilldata!$A:$V,18))","v":"TYRONE"},null,{"$f":"IF(ISERROR(MATCH(Frachtsatz4,waybilldata!$A:$A,0)),\"\",VLOOKUP(Frachtsatz4,waybilldata!$A:$V,20))","v":"TYRONE"},null,null,null,null,null,{"$f":"IF(ISERROR(MATCH(Frachtsatz5,waybilldata!$A:$A,0)),\"\",VLOOKUP(Frachtsatz5,waybilldata!$A:$V,2))","v":"GONDOLA"},null,null,null,null,{"$f":"IF(ISERROR(MATCH(Frachtsatz5,waybilldata!$A:$A,0)),\"\",VLOOKUP(Frachtsatz5,waybilldata!$A:$V,17))","v":"STEEL"},null,null,{"$f":"IF(ISERROR(MATCH(Frachtsatz5,waybilldata!$A:$A,0)),\"\",VLOOKUP(Frachtsatz5,waybilldata!$A:$V,22))","v":"SCRAP STEEL"},{"$f":"IF(ISERROR(MATCH(Frachtsatz5,waybilldata!$A:$A,0)),\"\",VLOOKUP(Frachtsatz5,waybilldata!$A:$V,15))","v":"CASTANEA"},{"$f":"IF(ISERROR(MATCH(Frachtsatz5,waybilldata!$A:$A,0)),\"\",VLOOKUP(Frachtsatz5,waybilldata!$A:$V,18))","v":"LOCK HAVEN"},null,{"$f":"IF(ISERROR(MATCH(Frachtsatz5,waybilldata!$A:$A,0)),\"\",VLOOKUP(Frachtsatz5,waybilldata!$A:$V,20))","v":"LOCK HAVEN "},null,null,null,null,null,{"$f":"IF(ISERROR(MATCH(Frachtsatz6,waybilldata!$A:$A,0)),\"\",VLOOKUP(Frachtsatz6,waybilldata!$A:$V,2))","v":"HOPPER"},null,null,null,null,{"$f":"IF(ISERROR(MATCH(Frachtsatz6,waybilldata!$A:$A,0)),\"\",VLOOKUP(Frachtsatz6,waybilldata!$A:$V,17))","v":"STOKER COAL"},null,null,{"$f":"IF(ISERROR(MATCH(Frachtsatz6,waybilldata!$A:$A,0)),\"\",VLOOKUP(Frachtsatz6,waybilldata!$A:$V,22))","v":"MTY"},{"$f":"IF(ISERROR(MATCH(Frachtsatz6,waybilldata!$A:$A,0)),\"\",VLOOKUP(Frachtsatz6,waybilldata!$A:$V,15))","v":"CASTANEA"},{"$f":"IF(ISERROR(MATCH(Frachtsatz6,waybilldata!$A:$A,0)),\"\",VLOOKUP(Frachtsatz6,waybilldata!$A:$V,18))","v":"KCR"},null,{"$f":"IF(ISERROR(MATCH(Frachtsatz6,waybilldata!$A:$A,0)),\"\",VLOOKUP(Frachtsatz6,waybilldata!$A:$V,20))","v":"ROME"},null,null,null,"Your Town 6",null,null,"Orange"]
[null,null,null,null,null,null,null,null,null,null,null,null,null,null,null,null,null,null,null,null,null,null,null,null,null,null,null,null,null,null,null,null,null,null,null,null,null,null,null,null,null,null,null,null,null,null,null,null,null,null,null,null,null,null,"Your Town 7",null,null,"Aqua"]
[null,null,null,"To:",null,"VIA:","From","Lading",null,null,null,null,null,null,null,4,null,null,null,null,null,"To:",null,"VIA:","From","Lading",null,null,null,null,null,null,null,4,null,null,null,null,null,"To:",null,"VIA:","From","Lading",null,null,null,null,null,null,null,4,null,null,"Your Town 8",null,null,"Green"]
[{"$f":"IF(ISERROR(MATCH(Frachtsatz7,waybilldata!$A:$A,0)),\"\",VLOOKUP(Frachtsatz7,waybilldata!$A:$V,14))","v":"GRAY"},null,3,{"$f":"IF(ISERROR(MATCH(Frachtsatz7,waybilldata!$A:$A,0)),\"\",VLOOKUP(Frachtsatz7,waybilldata!$A:$V,15))","v":"CASTANEA"},{"$f":"IF(ISERROR(MATCH(Frachtsatz7,waybilldata!$A:$A,0)),\"\",VLOOKUP(Frachtsatz7,waybilldata!$A:$V,16))","v":"CENTURY HOIST"},{"$f":"IF(ISERROR(MATCH(Frachtsatz7,waybilldata!$A:$A,0)),\"\",VLOOKUP(Frachtsatz7,waybilldata!$A:$V,13))","v":"MILL HALL JUNC."},{"$f":"IF(ISERROR(MATCH(Frachtsatz7,waybilldata!$A:$A,0)),\"\",VLOOKUP(Frachtsatz7,waybilldata!$A:$V,10))","v":"LOCK HAVEN "},{"$f":"IF(ISERROR(MATCH(Frachtsatz7,waybilldata!$A:$A,0)),\"\",VLOOKUP(Frachtsatz7,waybilldata!$A:$V,1))","v":3},null,null,"Lading","From","VIA:",{"$f":"IF(ISERROR(MATCH(Frachtsatz7,waybilldata!$A:$A,0)),\"\",VLOOKUP(Frachtsatz7,waybilldata!$A:$V,21))","v":"STAGING"},"To:",{"$f":"IF(ISERROR(MATCH(Frachtsatz7,waybilldata!$A:$A,0)),\"\",VLOOKUP(Frachtsatz7,waybilldata!$A:$V,2))","v":"BOXCAR"},{"$f":"IF(ISERROR(MATCH(Frachtsatz7,waybilldata!$A:$A,0)),\"\",VLOOKUP(Frachtsatz7,waybilldata!$A:$V,19))","v":"BLACK"},null,{"$f":"IF(ISERROR(MATCH(Frachtsatz8,waybilldata!$A:$A,0)),\"\",VLOOKUP(Frachtsatz8,waybilldata!$A:$V,14))","v":"GRAY"},null,3,{"$f":"IF(ISERROR(MATCH(Frachtsatz8,waybilldata!$A:$A,0)),\"\",VLOOKUP(Frachtsatz8,waybilldata!$A:$V,15))","v":"CASTANEA"},{"$f":"IF(ISERROR(MATCH(Frachtsatz8,waybilldata!$A:$A,0)),\"\",VLOOKUP(Frachtsatz8,waybilldata!$A:$V,16))","v":"LOCK HAVEN CHAIR"},{"$f":"IF(ISERROR(MATCH(Frachtsatz8,waybilldata!$A:$A,0)),\"\",VLOOKUP(Frachtsatz8,waybilldata!$A:$V,13))","v":"MILL HALL JUNC."},{"$f":"IF(ISERROR(MATCH(Frachtsatz8,waybilldata!$A:$A,0)),\"\",VLOOKUP(Frachtsatz8,waybilldata!$A:$V,10))","v":"TYRONE"},{"$f":"IF(ISERROR(MATCH(Frachtsatz8,waybilldata!$A:$A,0)),\"\",VLOOKUP(Frachtsatz8,waybilldata!$A:$V,1))","v":7},null,null,"Lading","From","VIA:",{"$f":"IF(ISERROR(MATCH(Frachtsatz8,waybilldata!$A:$A,0)),\"\",VLOOKUP(Frachtsatz8,waybilldata!$A:$V,21))","v":"STAGING"},"To:",{"$f":"IF(ISERROR(MATCH(Frachtsatz8,waybilldata!$A:$A,0)),\"\",VLOOKUP(Frachtsatz8,waybilldata!$A:$V,2))","v":"BOXCAR"},{"$f":"IF(ISERROR(MATCH(Frachtsatz8,waybilldata!$A:$A,0)),\"\",VLOOKUP(Frachtsatz8,waybilldata!$A:$V,19))","v":"AQUA"},null,{"$f":"IF(ISERROR(MATCH(Frachtsatz9,waybilldata!$A:$A,0)),\"\",VLOOKUP(Frachtsatz9,waybilldata!$A:$V,14))","v":"GRAY"},null,3,{"$f":"IF(ISERROR(MATCH(Frachtsatz9,waybilldata!$A:$A,0)),\"\",VLOOKUP(Frachtsatz9,waybilldata!$A:$V,15))","v":"CASTANEA"},{"$f":"IF(ISERROR(MATCH(Frachtsatz9,waybilldata!$A:$A,0)),\"\",VLOOKUP(Frachtsatz9,waybilldata!$A:$V,16))","v":"MILLER BROS. FUEL"},{"$f":"IF(ISERROR(MATCH(Frachtsatz9,waybilldata!$A:$A,0)),\"\",VLOOKUP(Frachtsatz9,waybilldata!$A:$V,13))","v":"MILL HALL JUNC."},{"$f":"IF(ISERROR(MATCH(Frachtsatz9,waybilldata!$A:$A,0)),\"\",VLOOKUP(Frachtsatz9,waybilldata!$A:$V,10))","v":"ROME"},{"$f":"IF(ISERROR(MATCH(Frachtsatz9,waybilldata!$A:$A,0)),\"\",VLOOKUP(Frachtsatz9,waybilldata!$A:$V,1))","v":11},null,null,"Lading","From","VIA:",{"$f":"IF(ISERROR(MATCH(Frachtsatz9,waybilldata!$A:$A,0)),\"\",VLOOKUP(Frachtsatz9,waybilldata!$A:$V,21))","v":"BOHN COLLIERY"},"To:",{"$f":"IF(ISERROR(MATCH(Frachtsatz9,waybilldata!$A:$A,0)),\"\",VLOOKUP(Frachtsatz9,waybilldata!$A:$V,2))","v":"HOPPER"},{"$f":"IF(ISERROR(MATCH(Frachtsatz9,waybilldata!$A:$A,0)),\"\",VLOOKUP(Frachtsatz9,waybilldata!$A:$V,19))","v":"GREEN"}]
[null,null,{"$f":"IF(ISERROR(MATCH(Frachtsatz7,waybilldata!$A:$A,0)),\"\",VLOOKUP(Frachtsatz7,waybilldata!$A:$V,2))","v":"BOXCAR"},null,null,null,null,{"$f":"IF(ISERROR(MATCH(Frachtsatz7,waybilldata!$A:$A,0)),\"\",VLOOKUP(Frachtsatz7,waybilldata!$A:$V,17))","v":"ELECTRIC PARTS"},null,null,{"$f":"IF(ISERROR(MATCH(Frachtsatz7,waybilldata!$A:$A,0)),\"\",VLOOKUP(Frachtsatz7,waybilldata!$A:$V,22))","v":"ELEVATORS"},{"$f":"IF(ISERROR(MATCH(Frachtsatz7,waybilldata!$A:$A,0)),\"\",VLOOKUP(Frachtsatz7,waybilldata!$A:$V,15))","v":"CASTANEA"},{"$f":"IF(ISERROR(MATCH(Frachtsatz7,waybilldata!$A:$A,0)),\"\",VLOOKUP(Frachtsatz7,waybilldata!$A:$V,18))","v":"LOCK HAVEN"},null,{"$f":"IF(ISERROR(MATCH(Frachtsatz7,waybilldata!$A:$A,0)),\"\",VLOOKUP(Frachtsatz7,waybilldata!$A:$V,20))","v":"LOCK HAVEN "},null,null,null,null,null,{"$f":"IF(ISERROR(MATCH(Frachtsatz8,waybilldata!$A:$A,0)),\"\",VLOOKUP(Frachtsatz8,waybilldata!$A:$V,2))","v":"BOXCAR"},null,null,null,null,{"$f":"IF(ISERROR(MATCH(Frachtsatz8,waybilldata!$A:$A,0)),\"\",VLOOKUP(Frachtsatz8,waybilldata!$A:$V,17))","v":"MTY"},null,null,{"$f":"IF(ISERROR(MATCH(Frachtsatz8,waybilldata!$A:$A,0)),\"\",VLOOKUP(Frachtsatz8,waybilldata!$A:$V,22))","v":"FURNITURE"},{"$f":"IF(ISERROR(MATCH(Frachtsatz8,waybilldata!$A:$A,0)),\"\",VLOOKUP(Frachtsatz8,waybilldata!$A:$V,15))","v":"CASTANEA"},{"$f":"IF(ISERROR(MATCH(Frachtsatz8,waybilldata!$A:$A,0)),\"\",VLOOKUP(Frachtsatz8,waybilldata!$A:$V,18))","v":"TYRONE"},null,{"$f":"IF(ISERROR(MATCH(Frachtsatz8,waybilldata!$A:$A,0)),\"\",VLOOKUP(Frachtsatz8,waybilldata!$A:$V,20))","v":"TYRONE"},null,null,null,null,null,{"$f":"IF(ISERROR(MATCH(Frachtsatz9,waybilldata!$A:$A,0)),\"\",VLOOKUP(Frachtsatz9,waybilldata!$A:$V,2))","v":"HOPPER"},null,null,null,null,{"$f":"IF(ISERROR(MATCH(Frachtsatz9,waybilldata!$A:$A,0)),\"\",VLOOKUP(Frachtsatz9,waybilldata!$A:$V,17))","v":"STOKER COAL"},null,null,{"$f":"IF(ISERROR(MATCH(Frachtsatz9,waybilldata!$A:$A,0)),\"\",VLOOKUP(Frachtsatz9,waybilldata!$A:$V,22))","v":"MTY"},{"$f":"IF(ISERROR(MATCH(Frachtsatz9,waybilldata!$A:$A,0)),\"\",VLOOKUP(Frachtsatz9,waybilldata!$A:$V,15))","v":"CASTANEA"},{"$f":"IF(ISERROR(MATCH(Frachtsatz9,waybilldata!$A:$A,0)),\"\",VLOOKUP(Frachtsatz9,waybilldata!$A:$V,18))","v":"KCR"},null,{"$f":"IF(ISERROR(MATCH(Frachtsatz9,waybilldata!$A:$A,0)),\"\",VLOOKUP(Frachtsatz9,waybilldata!$A:$V,20))","v":"ROME"}]
[]
[null,null,null,"To:",null,"VIA:","From","Lading",null,null,null,null,null,null,null,4,null,null,null,null,null,"To:",null,"VIA:","From","Lading",null,null,null,null,null,null,null,4,null,null,null,null,null,"To:",null,"VIA:","From","Lading",null,null,null,null,null,null,null,4]
[{"$f":"IF(ISERROR(MATCH(Frachtsatz10,waybilldata!$A:$A,0)),\"\",VLOOKUP(Frachtsatz10,waybilldata!$A:$V,14))","v":"GRAY"},null,3,{"$f":"IF(ISERROR(MATCH(Frachtsatz10,waybilldata!$A:$A,0)),\"\",VLOOKUP(Frachtsatz10,waybilldata!$A:$V,15))","v":"CASTANEA"},{"$f":"IF(ISERROR(MATCH(Frachtsatz10,waybilldata!$A:$A,0)),\"\",VLOOKUP(Frachtsatz10,waybilldata!$A:$V,16))","v":"CENTURY HOIST"},{"$f":"IF(ISERROR(MATCH(Frachtsatz10,waybilldata!$A:$A,0)),\"\",VLOOKUP(Frachtsatz10,waybilldata!$A:$V,13))","v":"MILL HALL JUNC."},{"$f":"IF(ISERROR(MATCH(Frachtsatz10,waybilldata!$A:$A,0)),\"\",VLOOKUP(Frachtsatz10,waybilldata!$A:$V,10))","v":"LOCK HAVEN "},{"$f":"IF(ISERROR(MATCH(Frachtsatz10,waybilldata!$A:$A,0)),\"\",VLOOKUP(Frachtsatz10,waybilldata!$A:$V,1))","v":4},null,null,"Lading","From","VIA:",{"$f":"IF(ISERROR(MATCH(Frachtsatz10,waybilldata!$A:$A,0)),\"\",VLOOKUP(Frachtsatz10,waybilldata!$A:$V,21))","v":"STAGING"},"To:",{"$f":"IF(ISERROR(MATCH(Frachtsatz10,waybilldata!$A:$A,0)),\"\",VLOOKUP(Frachtsatz10,waybilldata!$A:$V,2))","v":"BOXCAR"},{"$f":"IF(ISERROR(MATCH(Frachtsatz10,waybilldata!$A:$A,0)),\"\",VLOOKUP(Frachtsatz10,waybilldata!$A:$V,19))","v":"BLACK"},null,{"$f":"IF(ISERROR(MATCH(Frachtsatz11,waybilldata!$A:$A,0)),\"\",VLOOKUP(Frachtsatz11,waybilldata!$A:$V,14))","v":"GRAY"},null,3,{"$f":"IF(ISERROR(MATCH(Frachtsatz11,waybilldata!$A:$A,0)),\"\",VLOOKUP(Frachtsatz11,waybilldata!$A:$V,15))","v":"CASTANEA"},{"$f":"IF(ISERROR(MATCH(Frachtsatz11,waybilldata!$A:$A,0)),\"\",VLOOKUP(Frachtsatz11,waybilldata!$A:$V,16))","v":"LOCK HAVEN CHAIR"},{"$f":"IF(ISERROR(MATCH(Frachtsatz11,waybilldata!$A:$A,0)),\"\",VLOOKUP(Frachtsatz11,waybilldata!$A:$V,13))","v":"MILL HALL JUNC."},{"$f":"IF(ISERROR(MATCH(Frachtsatz11,waybilldata!$A:$A,0)),\"\",VLOOKUP(Frachtsatz11,waybilldata!$A:$V,10))","v":"LOCK HAVEN "},{"$f":"IF(ISERROR(MATCH(Frachtsatz11,waybilldata!$A:$A,0)),\"\",VLOOKUP(Frachtsatz11,waybilldata!$A:$V,1))","v":8},null,null,"Lading","From","VIA:",{"$f":"IF(ISERROR(MATCH(Frachtsatz11,waybilldata!$A:$A,0)),\"\",VLOOKUP(Frachtsatz11,waybilldata!$A:$V,21))","v":"STAGING"},"To:",{"$f":"IF(ISERROR(MATCH(Frachtsatz11,waybilldata!$A:$A,0)),\"\",VLOOKUP(Frachtsatz11,waybilldata!$A:$V,2))","v":"BOXCAR"},{"$f":"IF(ISERROR(MATCH(Frachtsatz11,waybilldata!$A:$A,0)),\"\",VLOOKUP(Frachtsatz11,waybilldata!$A:$V,19))","v":"BLACK"},null,{"$f":"IF(ISERROR(MATCH(Frachtsatz12,waybilldata!$A:$A,0)),\"\",VLOOKUP(Frachtsatz12,waybilldata!$A:$V,14))","v":"GRAY"},null,3,{"$f":"IF(ISERROR(MATCH(Frachtsatz12,waybilldata!$A:$A,0)),\"\",VLOOKUP(Frachtsatz12,waybilldata!$A:$V,15))","v":"CASTANEA"},{"$f":"IF(ISERROR(MATCH(Frachtsatz12,waybilldata!$A:$A,0)),\"\",VLOOKUP(Frachtsatz12,waybilldata!$A:$V,16))","v":"MILLER BROS. FUEL"},{"$f":"IF(ISERROR(MATCH(Frachtsatz12,waybilldata!$A:$A,0)),\"\",VLOOKUP(Frachtsatz12,waybilldata!$A:$V,13))","v":"MILL HALL JUNC."},{"$f":"IF(ISERROR(MATCH(Frachtsatz12,waybilldata!$A:$A,0)),\"\",VLOOKUP(Frachtsatz12,waybilldata!$A:$V,10))","v":"TYRONE"},{"$f":"IF(ISERROR(MATCH(Frachtsatz12,waybilldata!$A:$A,0)),\"\",VLOOKUP(Frachtsatz12,waybilldata!$A:$V,1))","v":12},null,null,"Lading","From","VIA:",{"$f":"IF(ISERROR(MATCH(Frachtsatz12,waybilldata!$A:$A,0)),\"\",VLOOKUP(Frachtsatz12,waybilldata!$A:$V,21))","v":"STAGING"},"To:",{"$f":"IF(ISERROR(MATCH(Frachtsatz12,waybilldata!$A:$A,0)),\"\",VLOOKUP(Frachtsatz12,waybilldata!$A:$V,2))","v":"TANK"},{"$f":"IF(ISERROR(MATCH(Frachtsatz12,waybilldata!$A:$A,0)),\"\",VLOOKUP(Frachtsatz12,waybilldata!$A:$V,19))","v":"AQUA"}]
[null,null,{"$f":"IF(ISERROR(MATCH(Frachtsatz10,waybilldata!$A:$A,0)),\"\",VLOOKUP(Frachtsatz10,waybilldata!$A:$V,2))","v":"BOXCAR"},null,null,null,null,{"$f":"IF(ISERROR(MATCH(Frachtsatz10,waybilldata!$A:$A,0)),\"\",VLOOKUP(Frachtsatz10,waybilldata!$A:$V,17))","v":"ELECTRIC PARTS"},null,null,{"$f":"IF(ISERROR(MATCH(Frachtsatz10,waybilldata!$A:$A,0)),\"\",VLOOKUP(Frachtsatz10,waybilldata!$A:$V,22))","v":"ELEVATORS"},{"$f":"IF(ISERROR(MATCH(Frachtsatz10,waybilldata!$A:$A,0)),\"\",VLOOKUP(Frachtsatz10,waybilldata!$A:$V,15))","v":"CASTANEA"},{"$f":"IF(ISERROR(MATCH(Frachtsatz10,waybilldata!$A:$A,0)),\"\",VLOOKUP(Frachtsatz10,waybilldata!$A:$V,18))","v":"LOCK HAVEN"},null,{"$f":"IF(ISERROR(MATCH(Frachtsatz10,waybilldata!$A:$A,0)),\"\",VLOOKUP(Frachtsatz10,waybilldata!$A:$V,20))","v":"LOCK HAVEN "},null,null,null,null,null,{"$f":"IF(ISERROR(MATCH(Frachtsatz11,waybilldata!$A:$A,0)),\"\",VLOOKUP(Frachtsatz11,waybilldata!$A:$V,2))","v":"BOXCAR"},null,null,null,null,{"$f":"IF(ISERROR(MATCH(Frachtsatz11,waybilldata!$A:$A,0)),\"\",VLOOKUP(Frachtsatz11,waybilldata!$A:$V,17))","v":"MTY"},null,null,{"$f":"IF(ISERROR(MATCH(Frachtsatz11,waybilldata!$A:$A,0)),\"\",VLOOKUP(Frachtsatz11,waybilldata!$A:$V,22))","v":"FURNITURE"},{"$f":"IF(ISERROR(MATCH(Frachtsatz11,waybilldata!$A:$A,0)),\"\",VLOOKUP(Frachtsatz11,waybilldata!$A:$V,15))","v":"CASTANEA"},{"$f":"IF(ISERROR(MATCH(Frachtsatz11,waybilldata!$A:$A,0)),\"\",VLOOKUP(Frachtsatz11,waybilldata!$A:$V,18))","v":"LOCK HAVEN"},null,{"$f":"IF(ISERROR(MATCH(Frachtsatz11,waybilldata!$A:$A,0)),\"\",VLOOKUP(Frachtsatz11,waybilldata!$A:$V,20))","v":"LOCK HAVEN "},null,null,null,null,null,{"$f":"IF(ISERROR(MATCH(Frachtsatz12,waybilldata!$A:$A,0)),\"\",VLOOKUP(Frachtsatz12,waybilldata!$A:$V,2))","v":"TANK"},null,null,null,null,{"$f":"IF(ISERROR(MATCH(Frachtsatz12,waybilldata!$A:$A,0)),\"\",VLOOKUP(Frachtsatz12,waybilldata!$A:$V,17))","v":"GASOLINE"},null,null,{"$f":"IF(ISERROR(MATCH(Frachtsatz12,waybilldata!$A:$A,0)),\"\",VLOOKUP(Frachtsatz12,waybilldata!$A:$V,22))","v":"MTY"},{"$f":"IF(ISERROR(MATCH(Frachtsatz12,waybilldata!$A:$A,0)),\"\",VLOOKUP(Frachtsatz12,waybilldata!$A:$V,15))","v":"CASTANEA"},{"$f":"IF(ISERROR(MATCH(Frachtsatz12,waybilldata!$A:$A,0)),\"\",VLOOKUP(Frachtsatz12,waybilldata!$A:$V,18))","v":"TYRONE"},null,{"$f":"IF(ISERROR(MATCH(Frachtsatz12,waybilldata!$A:$A,0)),\"\",VLOOKUP(Frachtsatz12,waybilldata!$A:$V,20))","v":"TYRONE"}]
[]
[null,null,null,"To:",null,"VIA:","From","Lading",null,null,null,null,null,null,null,4,null,null,null,null,null,"To:",null,"VIA:","From","Lading",null,null,null,null,null,null,null,4,null,null,null,null,null,"To:",null,"VIA:","From","Lading",null,null,null,null,null,null,null,4]
[]
[]
[null,null,3,2,1.57,2,3,1.71,1,null,null,null,null,null,null,null,null,null,null,null,3,2,1.57,2,3,1.71,1,null,null,null,null,null,null,null,null,null,null,null,3,2,1.57,2,3,1.71,1]

{"sheet":"waybill front BLANK","index":4,"n_rows":20,"n_cols":52,"rows_kept":20,"cut":false,"hidden":false,"merged":[[2,14,4,14],[2,18,2,19],[2,20,4,20],[1,33,3,33],[1,24,3,24],[2,47,4,47],[2,48,4,48],[1,3,3,3],[1,5,3,5],[1,6,3,6],[1,15,3,15],[1,16,1,17],[1,18,1,19],[1,36,1,37],[1,39,3,39],[2,26,3,26],[2,27,3,27],[2,28,4,28],[2,38,4,38],[2,50,4,50],[2,52,2,53],[2,36,2,37],[2,2,4,2],[2,8,3,8],[2,9,3,9],[2,10,4,10],[2,11,4,11],[2,12,4,12],[1,21,3,21],[1,23,3,23],[2,16,2,17],[3,52,3,53],[4,52,4,53],[1,42,3,42],[1,51,3,51],[1,52,1,53],[2,44,3,44],[1,7,3,7],[1,25,3,25],[1,43,3,43],[1,34,1,35],[2,45,3,45],[2,46,4,46],[5,15,7,15],[1,41,3,41],[3,16,3,17],[3,18,3,19],[3,34,3,35],[3,36,3,37],[2,29,4,29],[2,30,4,30],[2,32,4,32],[2,34,2,35],[4,16,4,17],[4,18,4,19],[4,34,4,35],[4,36,4,37],[5,16,5,17],[5,18,5,19],[5,21,7,21],[5,23,7,23],[6,16,6,17],[6,18,6,19],[6,20,8,20],[8,16,8,17],[8,18,8,19],[5,34,5,35],[5,36,5,37],[5,39,7,39],[6,26,7,26],[6,27,7,27],[6,28,8,28],[6,34,6,35],[6,36,6,37],[6,38,8,38],[8,34,8,35],[6,14,8,14],[5,41,7,41],[5,42,7,42],[5,51,7,51],[5,52,5,53],[6,44,7,44],[6,45,7,45],[6,46,8,46],[5,24,7,24],[5,33,7,33],[6,50,8,50],[6,52,6,53],[7,16,7,17],[7,18,7,19],[7,34,7,35],[7,36,7,37],[6,29,8,29],[6,30,8,30],[6,32,8,32],[7,52,7,53],[8,36,8,37],[8,52,8,53],[6,47,8,47],[6,48,8,48],[6,2,8,2],[6,8,7,8],[6,9,7,9],[6,10,8,10],[6,11,8,11],[6,12,8,12],[5,3,7,3],[5,5,7,5],[5,6,7,6],[10,27,11,27],[10,28,12,28],[9,42,11,42],[12,34,12,35],[12,36,12,37],[10,45,11,45],[9,18,9,19],[9,21,11,21],[9,23,11,23],[10,18,10,19],[10,20,12,20],[9,34,9,35],[9,24,11,24],[9,33,11,33],[11,52,11,53],[10,29,12,29],[10,30,12,30],[10,32,12,32],[10,34,10,35],[10,36,10,37],[12,18,12,19],[12,52,12,53],[10,47,12,47],[10,48,12,48],[10,50,12,50],[10,52,10,53],[10,38,12,38],[9,41,11,41],[9,51,11,51],[9,52,9,53],[10,44,11,44],[10,46,12,46],[11,18,11,19],[11,34,11,35],[11,36,11,37],[9,36,9,37],[9,39,11,39],[10,26,11,26],[13,3,15,3],[13,5,15,5],[13,6,15,6],[14,2,16,2],[14,8,15,8],[12,16,12,17],[10,2,12,2],[14,9,15,9],[14,10,16,10],[14,11,16,11],[10,9,11,9],[10,10,12,10],[10,11,12,11],[10,12,12,12],[10,14,12,14],[9,3,11,3],[9,5,11,5],[9,6,11,6],[10,8,11,8],[10,16,10,17],[9,15,11,15],[9,16,9,17],[11,16,11,17],[13,18,13,19],[13,21,15,21],[13,23,15,23],[14,18,14,19],[14,20,16,20],[16,18,16,19],[15,18,15,19],[13,24,15,24],[13,33,15,33],[13,34,13,35],[13,36,13,37],[13,39,15,39],[14,26,15,26],[14,27,15,27],[14,28,16,28],[15,34,15,35],[15,36,15,37],[13,41,15,41],[13,42,15,42],[13,51,15,51],[13,52,13,53],[14,45,15,45],[14,46,16,46],[14,47,16,47],[14,52,14,53],[15,52,15,53],[14,48,16,48],[14,44,15,44],[16,52,16,53],[14,50,16,50],[5,43,7,43],[9,7,11,7],[9,25,11,25],[9,43,11,43],[14,12,16,12],[14,14,16,14],[14,16,14,17],[16,16,16,17],[13,15,15,15],[13,16,13,17],[16,36,16,37],[13,7,15,7],[13,25,15,25],[13,43,15,43],[14,29,16,29],[14,30,16,30],[14,32,16,32],[14,34,14,35],[15,16,15,17],[5,7,7,7],[5,25,7,25],[14,36,14,37],[14,38,16,38],[16,34,16,35]]}
[]
[null,null,1,null,null,null,null,null,null,null,"Lading","From","VIA:","Ind","To:","Car Type:",null,null,null,null,1,null,null,null,null,null,null,null,"Lading","From","VIA:","Ind","To:","Car Type:",null,null,null,null,1,null,null,null,null,null,null,null,"Lading","From","VIA:","Ind","To:","Car Type:"]
[null,null,"Car Type:",null,null,null,null,null,null,null,null,null,null,null,null,null,null,null,null,null,"Car Type:",null,null,null,null,null,null,null,null,null,null,null,null,null,null,null,null,null,"Car Type:"]
[]
[null,null,null,"To:","Ind","VIA:","From","Lading",null,null,null,null,null,null,null,2,null,null,null,null,null,"To:","Ind","VIA:","From","Lading",null,null,null,null,null,null,null,2,null,null,null,null,null,"To:","Ind","VIA:","From","Lading",null,null,null,null,null,null,null,2]
[null,null,1,null,null,null,null,null,null,null,"Lading","From","VIA:","Ind","To:","Car Type:",null,null,null,null,1,null,null,null,null,null,null,null,"Lading","From","VIA:","Ind","To:","Car Type:",null,null,null,null,1,null,null,null,null,null,null,null,"Lading","From","VIA:","Ind","To:","Car Type:"]
[null,null,"Car Type:",null,null,null,null,null,null,null,null,null,null,null,null,null,null,null,null,null,"Car Type:",null,null,null,null,null,null,null,null,null,null,null,null,null,null,null,null,null,"Car Type:"]
[]
[null,null,null,"To:","Ind","VIA:","From","Lading",null,null,null,null,null,null,null,2,null,null,null,null,null,"To:","Ind","VIA:","From","Lading",null,null,null,null,null,null,null,2,null,null,null,null,null,"To:","Ind","VIA:","From","Lading",null,null,null,null,null,null,null,2]
[null,null,1,null,null,null,null,null,null,null,"Lading","From","VIA:","Ind","To:","Car Type:",null,null,null,null,1,null,null,null,null,null,null,null,"Lading","From","VIA:","Ind","To:","Car Type:",null,null,null,null,1,null,null,null,null,null,null,null,"Lading","From","VIA:","Ind","To:","Car Type:"]
[null,null,"Car Type:",null,null,null,null,null,null,null,null,null,null,null,null,null,null,null,null,null,"Car Type:",null,null,null,null,null,null,null,null,null,null,null,null,null,null,null,null,null,"Car Type:"]
[]
[null,null,null,"To:","Ind","VIA:","From","Lading",null,null,null,null,null,null,null,2,null,null,null,null,null,"To:","Ind","VIA:","From","Lading",null,null,null,null,null,null,null,2,null,null,null,null,null,"To:","Ind","VIA:","From","Lading",null,null,null,null,null,null,null,2]
[null,null,1,null,null,null,null,null,null,null,"Lading","From","VIA:","Ind","To:","Car Type:",null,null,null,null,1,null,null,null,null,null,null,null,"Lading","From","VIA:","Ind","To:","Car Type:",null,null,null,null,1,null,null,null,null,null,null,null,"Lading","From","VIA:","Ind","To:","Car Type:"]
[null,null,"Car Type:",null,null,null,null,null,null,null,null,null,null,null,null,null,null,null,null,null,"Car Type:",null,null,null,null,null,null,null,null,null,null,null,null,null,null,null,null,null,"Car Type:"]
[]
[null,null,null,"To:","Ind","VIA:","From","Lading",null,null,null,null,null,null,null,2,null,null,null,null,null,"To:","Ind","VIA:","From","Lading",null,null,null,null,null,null,null,2,null,null,null,null,null,"To:","Ind","VIA:","From","Lading",null,null,null,null,null,null,null,2]
[]
[null,null,"Column Width"]
[null,null,3,2,1.57,2,3,1.71,1,null,null,null,null,null,null,null,null,null,null,null,3,2,1.57,2,3,1.71,1,null,null,null,null,null,null,null,null,null,null,null,3,2,1.57,2,3,1.71,1]

{"sheet":"waybill back BLANK","index":5,"n_rows":20,"n_cols":52,"rows_kept":20,"cut":false,"hidden":false,"merged":[[1,3,3,3],[1,5,3,5],[1,6,3,6],[1,7,3,7],[1,33,3,33],[1,34,1,35],[2,27,3,27],[2,28,4,28],[2,29,4,29],[2,30,4,30],[2,2,4,2],[2,8,3,8],[2,9,3,9],[2,10,4,10],[2,11,4,11],[1,36,1,37],[3,18,3,19],[4,16,4,17],[4,18,4,19],[1,23,3,23],[2,12,4,12],[2,14,4,14],[2,16,2,17],[2,18,2,19],[2,20,4,20],[2,26,3,26],[3,16,3,17],[1,24,3,24],[1,25,3,25],[1,15,3,15],[4,34,4,35],[4,36,4,37],[2,32,4,32],[2,34,2,35],[2,48,4,48],[2,50,4,50],[2,52,2,53],[3,52,3,53],[4,52,4,53],[1,51,3,51],[1,52,1,53],[2,46,4,46],[2,47,4,47],[2,36,2,37],[2,38,4,38],[2,44,3,44],[2,45,3,45],[3,34,3,35],[3,36,3,37],[5,16,5,17],[5,18,5,19],[5,21,7,21],[6,44,7,44],[6,45,7,45],[1,43,3,43],[1,39,3,39],[1,41,3,41],[1,42,3,42],[1,16,1,17],[1,18,1,19],[1,21,3,21],[5,43,7,43],[5,23,7,23],[5,24,7,24],[5,25,7,25],[5,33,7,33],[5,34,5,35],[6,38,8,38],[7,36,7,37],[8,34,8,35],[8,36,8,37],[6,48,8,48],[6,50,8,50],[6,52,6,53],[7,52,7,53],[8,52,8,53],[5,51,7,51],[5,52,5,53],[6,2,8,2],[6,8,7,8],[6,9,7,9],[6,10,8,10],[6,11,8,11],[5,36,5,37],[6,27,7,27],[6,28,8,28],[6,29,8,29],[6,30,8,30],[6,14,8,14],[6,16,6,17],[6,18,6,19],[6,20,8,20],[6,26,7,26],[7,16,7,17],[7,18,7,19],[10,20,12,20],[9,3,11,3],[9,5,11,5],[9,6,11,6],[9,7,11,7],[12,16,12,17],[12,18,12,19],[6,46,8,46],[6,47,8,47],[8,16,8,17],[8,18,8,19],[5,15,7,15],[6,32,8,32],[6,34,6,35],[6,36,6,37],[7,34,7,35],[5,3,7,3],[5,5,7,5],[5,6,7,6],[5,7,7,7],[5,39,7,39],[6,12,8,12],[5,41,7,41],[5,42,7,42],[9,41,11,41],[9,42,11,42],[9,43,11,43],[9,23,11,23],[9,24,11,24],[9,25,11,25],[9,33,11,33],[9,34,9,35],[10,36,10,37],[10,38,12,38],[10,26,11,26],[10,27,11,27],[10,28,12,28],[10,29,12,29],[12,34,12,35],[12,36,12,37],[10,46,12,46],[10,47,12,47],[10,48,12,48],[10,50,12,50],[10,2,12,2],[10,8,11,8],[10,9,11,9],[10,10,12,10],[10,11,12,11],[10,12,12,12],[10,30,12,30],[10,32,12,32],[10,34,10,35],[9,15,11,15],[9,16,9,17],[9,18,9,19],[9,21,11,21],[11,16,11,17],[11,18,11,19],[10,14,12,14],[10,16,10,17],[10,18,10,19],[9,36,9,37],[9,39,11,39],[10,52,10,53],[12,52,12,53],[9,51,11,51],[9,52,9,53],[11,52,11,53],[10,45,11,45],[14,14,16,14],[14,16,14,17],[14,18,14,19],[14,20,16,20],[13,36,13,37],[13,39,15,39],[13,41,15,41],[13,42,15,42],[13,43,15,43],[13,33,15,33],[13,34,13,35],[14,38,16,38],[14,44,15,44],[15,34,15,35],[15,36,15,37],[10,44,11,44],[11,34,11,35],[11,36,11,37],[13,5,15,5],[13,6,15,6],[13,7,15,7],[14,26,15,26],[14,27,15,27],[14,28,16,28],[14,29,16,29],[13,15,15,15],[13,16,13,17],[13,18,13,19],[13,21,15,21],[15,16,15,17],[15,18,15,19],[16,16,16,17],[13,23,15,23],[13,24,15,24],[13,25,15,25],[14,2,16,2],[14,8,15,8],[14,9,15,9],[14,10,16,10],[14,11,16,11],[14,12,16,12],[14,48,16,48],[14,50,16,50],[14,52,14,53],[16,52,16,53],[13,51,15,51],[13,52,13,53],[15,52,15,53],[16,18,16,19],[16,34,16,35],[16,36,16,37],[14,45,15,45],[14,46,16,46],[14,47,16,47],[14,30,16,30],[14,32,16,32],[14,34,14,35],[14,36,14,37],[13,3,15,3]]}
[]
[null,null,3,null,null,null,null,null,null,null,"Lading","From","VIA:","Ind","To:","CAR TYPE:",null,null,null,null,3,null,null,null,null,null,null,null,"Lading","From","VIA:","Ind","To:","CAR TYPE:",null,null,null,null,3,null,null,null,null,null,null,null,"Lading","From","VIA:","Ind","To:","CAR TYPE:"]
[null,null,"CAR TYPE",null,null,null,null,null,null,null,null,null,null,null,null,null,null,null,null,null,"CAR TYPE",null,null,null,null,null,null,null,null,null,null,null,null,null,null,null,null,null,"CAR TYPE"]
[]
[null,null,null,"To:","Ind","VIA:","From","Lading",null,null,null,null,null,null,null,4,null,null,null,null,null,"To:","Ind","VIA:","From","Lading",null,null,null,null,null,null,null,4,null,null,null,null,null,"To:","Ind","VIA:","From","Lading",null,null,null,null,null,null,null,4]
[null,null,3,null,null,null,null,null,null,null,"Lading","From","VIA:","Ind","To:","CAR TYPE:",null,null,null,null,3,null,null,null,null,null,null,null,"Lading","From","VIA:","Ind","To:","CAR TYPE:",null,null,null,null,3,null,null,null,null,null,null,null,"Lading","From","VIA:","Ind","To:","CAR TYPE:"]
[null,null,"CAR TYPE",null,null,null,null,null,null,null,null,null,null,null,null,null,null,null,null,null,"CAR TYPE",null,null,null,null,null,null,null,null,null,null,null,null,null,null,null,null,null,"CAR TYPE"]
[]
[null,null,null,"To:","Ind","VIA:","From","Lading",null,null,null,null,null,null,null,4,null,null,null,null,null,"To:","Ind","VIA:","From","Lading",null,null,null,null,null,null,null,4,null,null,null,null,null,"To:","Ind","VIA:","From","Lading",null,null,null,null,null,null,null,4]
[null,null,3,null,null,null,null,null,null,null,"Lading","From","VIA:","Ind","To:","CAR TYPE:",null,null,null,null,3,null,null,null,null,null,null,null,"Lading","From","VIA:","Ind","To:","CAR TYPE:",null,null,null,null,3,null,null,null,null,null,null,null,"Lading","From","VIA:","Ind","To:","CAR TYPE:"]
[null,null,"CAR TYPE",null,null,null,null,null,null,null,null,null,null,null,null,null,null,null,null,null,"CAR TYPE",null,null,null,null,null,null,null,null,null,null,null,null,null,null,null,null,null,"CAR TYPE"]
[]
[null,null,null,"To:","Ind","VIA:","From","Lading",null,null,null,null,null,null,null,4,null,null,null,null,null,"To:","Ind","VIA:","From","Lading",null,null,null,null,null,null,null,4,null,null,null,null,null,"To:","Ind","VIA:","From","Lading",null,null,null,null,null,null,null,4]
[null,null,3,null,null,null,null,null,null,null,"Lading","From","VIA:","Ind","To:","CAR TYPE:",null,null,null,null,3,null,null,null,null,null,null,null,"Lading","From","VIA:","Ind","To:","CAR TYPE:",null,null,null,null,3,null,null,null,null,null,null,null,"Lading","From","VIA:","Ind","To:","CAR TYPE:"]
[null,null,"CAR TYPE",null,null,null,null,null,null,null,null,null,null,null,null,null,null,null,null,null,"CAR TYPE",null,null,null,null,null,null,null,null,null,null,null,null,null,null,null,null,null,"CAR TYPE"]
[]
[null,null,null,"To:","Ind","VIA:","From","Lading",null,null,null,null,null,null,null,4,null,null,null,null,null,"To:","Ind","VIA:","From","Lading",null,null,null,null,null,null,null,4,null,null,null,null,null,"To:","Ind","VIA:","From","Lading",null,null,null,null,null,null,null,4]
[]
[]
[null,null,3,2,1.57,2,3,1.71,1,null,null,null,null,null,null,null,null,null,null,null,3,2,1.57,2,3,1.71,1,null,null,null,null,null,null,null,null,null,null,null,3,2,1.57,2,3,1.71,1]

{"sheet":"Train Instruction, Front, BLANK","index":6,"n_rows":14,"n_cols":50,"rows_kept":14,"cut":false,"hidden":false,"merged":[[1,31,4,31],[1,32,4,33],[1,12,4,13],[1,14,4,14],[1,15,4,16],[1,19,4,19],[1,20,4,20],[1,21,4,21],[1,2,4,2],[1,3,4,3],[1,4,4,4],[1,5,4,5],[1,6,4,8],[1,9,4,11],[5,19,8,19],[5,20,8,20],[5,21,8,21],[5,22,8,22],[1,46,4,47],[1,48,4,48],[1,49,4,50],[5,2,8,2],[5,3,8,3],[5,4,8,4],[5,5,8,5],[5,6,8,8],[5,9,8,11],[5,12,8,13],[1,36,4,36],[1,37,4,37],[1,38,4,38],[1,39,4,39],[1,40,4,42],[1,43,4,45],[1,22,4,22],[1,23,4,25],[1,26,4,28],[1,29,4,30],[5,48,8,48],[5,49,8,50],[9,2,12,2],[9,3,12,3],[9,4,12,4],[9,5,12,5],[9,6,12,8],[9,9,12,11],[9,12,12,13],[9,14,12,14],[5,37,8,37],[5,38,8,38],[5,39,8,39],[5,40,8,42],[5,43,8,45],[5,46,8,47],[5,23,8,25],[5,26,8,28],[5,29,8,30],[5,31,8,31],[5,32,8,33],[5,36,8,36],[5,14,8,14],[5,15,8,16],[9,31,12,31],[9,32,12,33],[9,36,12,36],[9,37,12,37],[9,15,12,16],[9,19,12,19],[9,20,12,20],[9,21,12,21],[9,22,12,22],[9,23,12,25],[13,19,16,19],[13,20,16,20],[13,21,16,21],[13,22,16,22],[13,23,16,25],[13,26,16,28],[9,49,12,50],[13,2,16,2],[13,3,16,3],[13,4,16,4],[13,5,16,5],[13,6,16,8],[13,9,16,11],[13,12,16,13],[13,14,16,14],[13,15,16,16],[9,38,12,38],[9,39,12,39],[9,40,12,42],[9,43,12,45],[9,46,12,47],[9,48,12,48],[9,26,12,28],[9,29,12,30],[13,39,16,39],[13,40,16,42],[13,43,16,45],[13,46,16,47],[13,48,16,48],[13,49,16,50],[13,29,16,30],[13,31,16,31],[13,32,16,33],[13,36,16,36],[13,37,16,37],[13,38,16,38]]}
[]
[null,null,"TRAIN INSTRUCTIONS","TRAIN TYPE: ________________________","TRAIN No. is ENGINE No.","Ø Pick up train at _________________","Ø",null,null,"Ø ",null,null,"Ø ",null,"<OVER>","ALWAYS OBTAIN DISPATCHER CLEARANCE WHEN OPERATING BEYOND YARD LIMITS!!\n",null,null,null,"TRAIN INSTRUCTIONS","TRAIN TYPE: ________________________","TRAIN No. is ENGINE No.","Ø Pick up train at _________________","Ø",null,null,"Ø ",null,null,"Ø ",null,"<OVER>","ALWAYS OBTAIN DISPATCHER CLEARANCE WHEN OPERATING BEYOND YARD LIMITS!!\n",null,null,null,"TRAIN INSTRUCTIONS","TRAIN TYPE: ________________________","TRAIN No. is ENGINE No.","Ø Pick up train at _________________","Ø",null,null,"Ø ",null,null,"Ø ",null,"<OVER>","ALWAYS OBTAIN DISPATCHER CLEARANCE WHEN OPERATING BEYOND YARD LIMITS!!\n"]
[]
[]
[]
[null,null,"TRAIN INSTRUCTIONS","TRAIN TYPE: ________________________","TRAIN No. is ENGINE No.","Ø Pick up train at _________________","Ø",null,null,"Ø ",null,null,"Ø ",null,"<OVER>","ALWAYS OBTAIN DISPATCHER CLEARANCE WHEN OPERATING BEYOND YARD LIMITS!!\n",null,null,null,"TRAIN INSTRUCTIONS","TRAIN TYPE: ________________________","TRAIN No. is ENGINE No.","Ø Pick up train at _________________","Ø",null,null,"Ø ",null,null,"Ø ",null,"<OVER>","ALWAYS OBTAIN DISPATCHER CLEARANCE WHEN OPERATING BEYOND YARD LIMITS!!\n",null,null,null,"TRAIN INSTRUCTIONS","TRAIN TYPE: ________________________","TRAIN No. is ENGINE No.","Ø Pick up train at _________________","Ø",null,null,"Ø ",null,null,"Ø ",null,"<OVER>","ALWAYS OBTAIN DISPATCHER CLEARANCE WHEN OPERATING BEYOND YARD LIMITS!!\n"]
[]
[]
[]
[null,null,"TRAIN INSTRUCTIONS","TRAIN TYPE: ________________________","TRAIN No. is ENGINE No.","Ø Pick up train at _________________","Ø",null,null,"Ø ",null,null,"Ø ",null,"<OVER>","ALWAYS OBTAIN DISPATCHER CLEARANCE WHEN OPERATING BEYOND YARD LIMITS!!\n",null,null,null,"TRAIN INSTRUCTIONS","TRAIN TYPE: ________________________","TRAIN No. is ENGINE No.","Ø Pick up train at _________________","Ø",null,null,"Ø ",null,null,"Ø ",null,"<OVER>","ALWAYS OBTAIN DISPATCHER CLEARANCE WHEN OPERATING BEYOND YARD LIMITS!!\n",null,null,null,"TRAIN INSTRUCTIONS","TRAIN TYPE: ________________________","TRAIN No. is ENGINE No.","Ø Pick up train at _________________","Ø",null,null,"Ø ",null,null,"Ø ",null,"<OVER>","ALWAYS OBTAIN DISPATCHER CLEARANCE WHEN OPERATING BEYOND YARD LIMITS!!\n"]
[]
[]
[]
[null,null,"TRAIN INSTRUCTIONS","TRAIN TYPE: ________________________","TRAIN No. is ENGINE No.","Ø Pick up train at _________________","Ø",null,null,"Ø ",null,null,"Ø ",null,"<OVER>","ALWAYS OBTAIN DISPATCHER CLEARANCE WHEN OPERATING BEYOND YARD LIMITS!!\n",null,null,null,"TRAIN INSTRUCTIONS","TRAIN TYPE: ________________________","TRAIN No. is ENGINE No.","Ø Pick up train at _________________","Ø",null,null,"Ø ",null,null,"Ø ",null,"<OVER>","ALWAYS OBTAIN DISPATCHER CLEARANCE WHEN OPERATING BEYOND YARD LIMITS!!\n",null,null,null,"TRAIN INSTRUCTIONS","TRAIN TYPE: ________________________","TRAIN No. is ENGINE No.","Ø Pick up train at _________________","Ø",null,null,"Ø ",null,null,"Ø ",null,"<OVER>","ALWAYS OBTAIN DISPATCHER CLEARANCE WHEN OPERATING BEYOND YARD LIMITS!!\n"]

{"sheet":"Train Instruction, Back, BLANK","index":7,"n_rows":14,"n_cols":48,"rows_kept":14,"cut":false,"hidden":false,"merged":[[1,27,4,28],[1,2,4,3],[1,4,4,4],[1,5,4,6],[1,7,4,9],[1,10,4,11],[1,12,4,12],[1,13,4,16],[1,19,4,20],[1,21,4,21],[1,22,4,23],[1,24,4,26],[1,44,4,45],[1,46,4,46],[1,47,4,50],[5,2,8,3],[5,4,8,4],[5,5,8,6],[5,7,8,9],[5,10,8,11],[5,12,8,12],[5,13,8,16],[1,29,4,29],[1,30,4,33],[1,36,4,37],[1,38,4,38],[1,39,4,40],[1,41,4,43],[5,44,8,45],[5,19,8,20],[5,21,8,21],[5,22,8,23],[5,24,8,26],[5,27,8,28],[5,29,8,29],[9,30,12,33],[5,46,8,46],[5,47,8,50],[9,2,12,3],[9,4,12,4],[9,5,12,6],[9,7,12,9],[9,10,12,11],[9,12,12,12],[9,13,12,16],[9,19,12,20],[5,30,8,33],[5,36,8,37],[5,38,8,38],[5,39,8,40],[5,41,8,43],[9,21,12,21],[9,22,12,23],[9,24,12,26],[9,27,12,28],[9,29,12,29],[9,47,12,50],[13,2,16,3],[13,4,16,4],[13,5,16,6],[13,7,16,9],[13,10,16,11],[13,12,16,12],[13,13,16,16],[13,19,16,20],[13,21,16,21],[9,36,12,37],[9,38,12,38],[9,39,12,40],[9,41,12,43],[9,44,12,45],[9,46,12,46],[13,47,16,50],[13,22,16,23],[13,24,16,26],[13,27,16,28],[13,29,16,29],[13,30,16,33],[13,36,16,37],[13,38,16,38],[13,39,16,40],[13,41,16,43],[13,44,16,45],[13,46,16,46]]}
["T"]
[null,null,"Ø Maximum train length of_____revenue cars plus cabin car.",null,"Ø Maximum mainline speed______MPH","ØSpeed restrictions include 10 MPH for bridges and turnouts",null,"Ø\n",null,null,"ØContact Dispatch @ control points as directed by Dispatch\n",null,"Ø","REMEMBER - \"You may know where your train is and God may know where your train is, but if the Dispatcher does not know ... you better be on good terms with God.\"",null,null,null,null,null,"Ø Maximum train length of_____revenue cars plus cabin car.",null,"Ø Maximum mainline speed______MPH","ØSpeed restrictions include 10 MPH for bridges and turnouts",null,"Ø\n",null,null,"ØContact Dispatch @ control points as directed by Dispatch\n",null,"Ø","REMEMBER - \"You may know where your train is and God may know where your train is, but if the Dispatcher does not know ... you better be on good terms with God.\"",null,null,null,null,null,"Ø Maximum train length of_____revenue cars plus cabin car.",null,"Ø Maximum mainline speed______MPH","ØSpeed restrictions include 10 MPH for bridges and turnouts",null,"Ø\n",null,null,"ØContact Dispatch @ control points as directed by Dispatch\n",null,"Ø","REMEMBER - \"You may know where your train is and God may know where your train is, but if the Dispatcher does not know ... you better be on good terms with God.\""]
[]
[]
[]
[null,null,"Ø Maximum train length of_____revenue cars plus cabin car.",null,"Ø Maximum mainline speed______MPH","ØSpeed restrictions include 10 MPH for bridges and turnouts",null,"Ø\n",null,null,"ØContact Dispatch @ control points as directed by Dispatch\n",null,"Ø","REMEMBER - \"You may know where your train is and God may know where your train is, but if the Dispatcher does not know ... you better be on good terms with God.\"",null,null,null,null,null,"Ø Maximum train length of_____revenue cars plus cabin car.",null,"Ø Maximum mainline speed______MPH","ØSpeed restrictions include 10 MPH for bridges and turnouts",null,"Ø\n",null,null,"ØContact Dispatch @ control points as directed by Dispatch\n",null,"Ø","REMEMBER - \"You may know where your train is and God may know where your train is, but if the Dispatcher does not know ... you better be on good terms with God.\"",null,null,null,null,null,"Ø Maximum train length of_____revenue cars plus cabin car.",null,"Ø Maximum mainline speed______MPH","ØSpeed restrictions include 10 MPH for bridges and turnouts",null,"Ø\n",null,null,"ØContact Dispatch @ control points as directed by Dispatch\n",null,"Ø","REMEMBER - \"You may know where your train is and God may know where your train is, but if the Dispatcher does not know ... you better be on good terms with God.\""]
[]
[]
[]
[null,null,"Ø Maximum train length of_____revenue cars plus cabin car.",null,"Ø Maximum mainline speed______MPH","ØSpeed restrictions include 10 MPH for bridges and turnouts",null,"Ø\n",null,null,"ØContact Dispatch @ control points as directed by Dispatch\n",null,"Ø","REMEMBER - \"You may know where your train is and God may know where your train is, but if the Dispatcher does not know ... you better be on good terms with God.\"",null,null,null,null,null,"Ø Maximum train length of_____revenue cars plus cabin car.",null,"Ø Maximum mainline speed______MPH","ØSpeed restrictions include 10 MPH for bridges and turnouts",null,"Ø\n",null,null,"ØContact Dispatch @ control points as directed by Dispatch\n",null,"Ø","REMEMBER - \"You may know where your train is and God may know where your train is, but if the Dispatcher does not know ... you better be on good terms with God.\"",null,null,null,null,null,"Ø Maximum train length of_____revenue cars plus cabin car.",null,"Ø Maximum mainline speed______MPH","ØSpeed restrictions include 10 MPH for bridges and turnouts",null,"Ø\n",null,null,"ØContact Dispatch @ control points as directed by Dispatch\n",null,"Ø","REMEMBER - \"You may know where your train is and God may know where your train is, but if the Dispatcher does not know ... you better be on good terms with God.\""]
[]
[]
[]
[null,null,"Ø Maximum train length of_____revenue cars plus cabin car.",null,"Ø Maximum mainline speed______MPH","ØSpeed restrictions include 10 MPH for bridges and turnouts",null,"Ø\n",null,null,"ØContact Dispatch @ control points as directed by Dispatch\n",null,"Ø","REMEMBER - \"You may know where your train is and God may know where your train is, but if the Dispatcher does not know ... you better be on good terms with God.\"",null,null,null,null,null,"Ø Maximum train length of_____revenue cars plus cabin car.",null,"Ø Maximum mainline speed______MPH","ØSpeed restrictions include 10 MPH for bridges and turnouts",null,"Ø\n",null,null,"ØContact Dispatch @ control points as directed by Dispatch\n",null,"Ø","REMEMBER - \"You may know where your train is and God may know where your train is, but if the Dispatcher does not know ... you better be on good terms with God.\"",null,null,null,null,null,"Ø Maximum train length of_____revenue cars plus cabin car.",null,"Ø Maximum mainline speed______MPH","ØSpeed restrictions include 10 MPH for bridges and turnouts",null,"Ø\n",null,null,"ØContact Dispatch @ control points as directed by Dispatch\n",null,"Ø","REMEMBER - \"You may know where your train is and God may know where your train is, but if the Dispatcher does not know ... you better be on good terms with God.\""]

{"sheet":"E-B Way Freight, Front","index":8,"n_rows":14,"n_cols":50,"rows_kept":14,"cut":false,"hidden":false,"merged":[[13,39,16,39],[13,40,16,42],[13,43,16,45],[13,46,16,47],[13,48,16,48],[13,49,16,50],[13,29,16,30],[13,31,16,31],[13,32,16,33],[13,36,16,36],[13,37,16,37],[13,38,16,38],[13,19,16,19],[13,20,16,20],[13,21,16,21],[13,22,16,22],[13,23,16,25],[13,26,16,28],[9,49,12,50],[13,2,16,2],[13,3,16,3],[13,4,16,4],[13,5,16,5],[13,6,16,8],[13,9,16,11],[13,12,16,13],[13,14,16,14],[13,15,16,16],[9,38,12,38],[9,39,12,39],[9,40,12,42],[9,43,12,45],[9,46,12,47],[9,48,12,48],[9,26,12,28],[9,29,12,30],[9,31,12,31],[9,32,12,33],[9,36,12,36],[9,37,12,37],[9,15,12,16],[9,19,12,19],[9,20,12,20],[9,21,12,21],[9,22,12,22],[9,23,12,25],[5,48,8,48],[5,49,8,50],[9,2,12,2],[9,3,12,3],[9,4,12,4],[9,5,12,5],[9,6,12,8],[9,9,12,11],[9,12,12,13],[9,14,12,14],[5,37,8,37],[5,38,8,38],[5,39,8,39],[5,40,8,42],[5,43,8,45],[5,46,8,47],[5,23,8,25],[5,26,8,28],[5,29,8,30],[5,31,8,31],[5,32,8,33],[5,36,8,36],[5,14,8,14],[5,15,8,16],[5,19,8,19],[5,20,8,20],[5,21,8,21],[5,22,8,22],[1,46,4,47],[1,48,4,48],[1,49,4,50],[5,2,8,2],[5,3,8,3],[5,4,8,4],[5,5,8,5],[5,6,8,8],[5,9,8,11],[5,12,8,13],[1,36,4,36],[1,37,4,37],[1,38,4,38],[1,39,4,39],[1,40,4,42],[1,43,4,45],[1,22,4,22],[1,23,4,25],[1,26,4,28],[1,29,4,30],[1,31,4,31],[1,32,4,33],[1,12,4,13],[1,14,4,14],[1,15,4,16],[1,19,4,19],[1,20,4,20],[1,21,4,21],[1,2,4,2],[1,3,4,3],[1,4,4,4],[1,5,4,5],[1,6,4,8],[1,9,4,11]]}
[]
[null,null,"TRAIN INSTRUCTIONS","E/B Way Freight","TRAIN No. is ENGINE No.","Ø Pick up train at Park Tower","ØContact East Tyrone Yardmaster to coordinate East Tyrone Yard setouts & pickups",null,null,"Ø Run E/B to Lock Haven making set outs and pickups as dictated by the waybills.",null,null,"Ø Release train at Lock Haven Tower after contacting Lock Haven Yardmaster.",null,"<OVER>","ALWAYS OBTAIN DISPATCHER CLEARANCE WHEN OPERATING BEYOND YARD LIMITS!!\n",null,null,null,"TRAIN INSTRUCTIONS","E/B Way Freight","TRAIN No. is ENGINE No.","Ø Pick up train at Park Tower","ØContact East Tyrone Yardmaster to coordinate East Tyrone Yard setouts & pickups",null,null,"Ø Run E/B to Lock Haven making set outs and pickups as dictated by the waybills.",null,null,"Ø Release train at Lock Haven Tower after contacting Lock Haven Yardmaster.",null,"<OVER>","ALWAYS OBTAIN DISPATCHER CLEARANCE WHEN OPERATING BEYOND YARD LIMITS!!\n",null,null,null,"TRAIN INSTRUCTIONS","E/B Way Freight","TRAIN No. is ENGINE No.","Ø Pick up train at Park Tower","ØContact East Tyrone Yardmaster to coordinate East Tyrone Yard setouts & pickups",null,null,"Ø Run E/B to Lock Haven making set outs and pickups as dictated by the waybills.",null,null,"Ø Release train at Lock Haven Tower after contacting Lock Haven Yardmaster.",null,"<OVER>","ALWAYS OBTAIN DISPATCHER CLEARANCE WHEN OPERATING BEYOND YARD LIMITS!!\n"]
[]
[]
[]
[null,null,"TRAIN INSTRUCTIONS","E/B Way Freight","TRAIN No. is ENGINE No.","Ø Pick up train at Park Tower","ØContact East Tyrone Yardmaster to coordinate East Tyrone Yard setouts & pickups",null,null,"Ø Run E/B to Lock Haven making set outs and pickups as dictated by the waybills.",null,null,"Ø Release train at Lock Haven Tower after contacting Lock Haven Yardmaster.",null,"<OVER>","ALWAYS OBTAIN DISPATCHER CLEARANCE WHEN OPERATING BEYOND YARD LIMITS!!\n",null,null,null,"TRAIN INSTRUCTIONS","E/B Way Freight","TRAIN No. is ENGINE No.","Ø Pick up train at Park Tower","ØContact East Tyrone Yardmaster to coordinate East Tyrone Yard setouts & pickups",null,null,"Ø Run E/B to Lock Haven making set outs and pickups as dictated by the waybills.",null,null,"Ø Release train at Lock Haven Tower after contacting Lock Haven Yardmaster.",null,"<OVER>","ALWAYS OBTAIN DISPATCHER CLEARANCE WHEN OPERATING BEYOND YARD LIMITS!!\n",null,null,null,"TRAIN INSTRUCTIONS","E/B Way Freight","TRAIN No. is ENGINE No.","Ø Pick up train at Park Tower","ØContact East Tyrone Yardmaster to coordinate East Tyrone Yard setouts & pickups",null,null,"Ø Run E/B to Lock Haven making set outs and pickups as dictated by the waybills.",null,null,"Ø Release train at Lock Haven Tower after contacting Lock Haven Yardmaster.",null,"<OVER>","ALWAYS OBTAIN DISPATCHER CLEARANCE WHEN OPERATING BEYOND YARD LIMITS!!\n"]
[]
[]
[]
[null,null,"TRAIN INSTRUCTIONS","E/B Way Freight","TRAIN No. is ENGINE No.","Ø Pick up train at Park Tower","ØContact East Tyrone Yardmaster to coordinate East Tyrone Yard setouts & pickups",null,null,"Ø Run E/B to Lock Haven making set outs and pickups as dictated by the waybills.",null,null,"Ø Release train at Lock Haven Tower after contacting Lock Haven Yardmaster.",null,"<OVER>","ALWAYS OBTAIN DISPATCHER CLEARANCE WHEN OPERATING BEYOND YARD LIMITS!!\n",null,null,null,"TRAIN INSTRUCTIONS","E/B Way Freight","TRAIN No. is ENGINE No.","Ø Pick up train at Park Tower","ØContact East Tyrone Yardmaster to coordinate East Tyrone Yard setouts & pickups",null,null,"Ø Run E/B to Lock Haven making set outs and pickups as dictated by the waybills.",null,null,"Ø Release train at Lock Haven Tower after contacting Lock Haven Yardmaster.",null,"<OVER>","ALWAYS OBTAIN DISPATCHER CLEARANCE WHEN OPERATING BEYOND YARD LIMITS!!\n",null,null,null,"TRAIN INSTRUCTIONS","E/B Way Freight","TRAIN No. is ENGINE No.","Ø Pick up train at Park Tower","ØContact East Tyrone Yardmaster to coordinate East Tyrone Yard setouts & pickups",null,null,"Ø Run E/B to Lock Haven making set outs and pickups as dictated by the waybills.",null,null,"Ø Release train at Lock Haven Tower after contacting Lock Haven Yardmaster.",null,"<OVER>","ALWAYS OBTAIN DISPATCHER CLEARANCE WHEN OPERATING BEYOND YARD LIMITS!!\n"]
[]
[]
[]
[null,null,"TRAIN INSTRUCTIONS","E/B Way Freight","TRAIN No. is ENGINE No.","Ø Pick up train at Park Tower","ØContact East Tyrone Yardmaster to coordinate East Tyrone Yard setouts & pickups",null,null,"Ø Run E/B to Lock Haven making set outs and pickups as dictated by the waybills.",null,null,"Ø Release train at Lock Haven Tower after contacting Lock Haven Yardmaster.",null,"<OVER>","ALWAYS OBTAIN DISPATCHER CLEARANCE WHEN OPERATING BEYOND YARD LIMITS!!\n",null,null,null,"TRAIN INSTRUCTIONS","E/B Way Freight","TRAIN No. is ENGINE No.","Ø Pick up train at Park Tower","ØContact East Tyrone Yardmaster to coordinate East Tyrone Yard setouts & pickups",null,null,"Ø Run E/B to Lock Haven making set outs and pickups as dictated by the waybills.",null,null,"Ø Release train at Lock Haven Tower after contacting Lock Haven Yardmaster.",null,"<OVER>","ALWAYS OBTAIN DISPATCHER CLEARANCE WHEN OPERATING BEYOND YARD LIMITS!!\n",null,null,null,"TRAIN INSTRUCTIONS","E/B Way Freight","TRAIN No. is ENGINE No.","Ø Pick up train at Park Tower","ØContact East Tyrone Yardmaster to coordinate East Tyrone Yard setouts & pickups",null,null,"Ø Run E/B to Lock Haven making set outs and pickups as dictated by the waybills.",null,null,"Ø Release train at Lock Haven Tower after contacting Lock Haven Yardmaster.",null,"<OVER>","ALWAYS OBTAIN DISPATCHER CLEARANCE WHEN OPERATING BEYOND YARD LIMITS!!\n"]

{"sheet":"W-B Way Freight, Front","index":9,"n_rows":14,"n_cols":50,"rows_kept":14,"cut":false,"hidden":false,"merged":[[13,39,16,39],[13,40,16,41],[13,42,16,44],[13,45,16,46],[13,48,16,48],[13,49,16,50],[13,28,16,29],[13,31,16,31],[13,32,16,33],[13,36,16,36],[13,37,16,37],[13,38,16,38],[13,19,16,19],[13,20,16,20],[13,21,16,21],[13,22,16,22],[13,23,16,24],[13,25,16,27],[9,49,12,50],[13,2,16,2],[13,3,16,3],[13,4,16,4],[13,5,16,5],[13,6,16,7],[13,8,16,10],[13,11,16,12],[13,14,16,14],[13,15,16,16],[9,38,12,38],[9,39,12,39],[9,40,12,41],[9,42,12,44],[9,45,12,46],[9,48,12,48],[9,25,12,27],[9,28,12,29],[9,31,12,31],[9,32,12,33],[9,36,12,36],[9,37,12,37],[9,15,12,16],[9,19,12,19],[9,20,12,20],[9,21,12,21],[9,22,12,22],[9,23,12,24],[5,48,8,48],[5,49,8,50],[9,2,12,2],[9,3,12,3],[9,4,12,4],[9,5,12,5],[9,6,12,7],[9,8,12,10],[9,11,12,12],[9,14,12,14],[5,37,8,37],[5,38,8,38],[5,39,8,39],[5,40,8,41],[5,42,8,44],[5,45,8,46],[5,23,8,24],[5,25,8,27],[5,28,8,29],[5,31,8,31],[5,32,8,33],[5,36,8,36],[5,14,8,14],[5,15,8,16],[5,19,8,19],[5,20,8,20],[5,21,8,21],[5,22,8,22],[1,45,4,46],[1,48,4,48],[1,49,4,50],[5,2,8,2],[5,3,8,3],[5,4,8,4],[5,5,8,5],[5,6,8,7],[5,8,8,10],[5,11,8,12],[1,36,4,36],[1,37,4,37],[1,38,4,38],[1,39,4,39],[1,40,4,41],[1,42,4,44],[1,22,4,22],[1,23,4,24],[1,25,4,27],[1,28,4,29],[1,31,4,31],[1,32,4,33],[1,11,4,12],[1,14,4,14],[1,15,4,16],[1,19,4,19],[1,20,4,20],[1,21,4,21],[1,2,4,2],[1,3,4,3],[1,4,4,4],[1,5,4,5],[1,6,4,7],[1,8,4,10]]}
[]
[null,null,"TRAIN INSTRUCTIONS","W/B Way Freight","TRAIN No. is ENGINE No.","Ø Pick up train at LH Tower","Ø Run W/B to Tyrone making set outs and pickups as dictated by the waybills.",null,"ØContact East Tyrone Yardmaster @ yard limits to coordinate East Tyrone yard setouts & pickups",null,null,"Ø Release train at Park Tower after contacting Tyrone Yardmaster.",null,null,"<OVER>","ALWAYS OBTAIN DISPATCHER CLEARANCE WHEN OPERATING BEYOND YARD LIMITS!!\n",null,null,null,"TRAIN INSTRUCTIONS","W/B Way Freight","TRAIN No. is ENGINE No.","Ø Pick up train at LH Tower","Ø Run W/B to Tyrone making set outs and pickups as dictated by the waybills.",null,"ØContact East Tyrone Yardmaster @ yard limits to coordinate East Tyrone yard setouts & pickups",null,null,"Ø Release train at Park Tower after contacting Tyrone Yardmaster.",null,null,"<OVER>","ALWAYS OBTAIN DISPATCHER CLEARANCE WHEN OPERATING BEYOND YARD LIMITS!!\n",null,null,null,"TRAIN INSTRUCTIONS","W/B Way Freight","TRAIN No. is ENGINE No.","Ø Pick up train at LH Tower","Ø Run W/B to Tyrone making set outs and pickups as dictated by the waybills.",null,"ØContact East Tyrone Yardmaster @ yard limits to coordinate East Tyrone yard setouts & pickups",null,null,"Ø Release train at Park Tower after contacting Tyrone Yardmaster.",null,null,"<OVER>","ALWAYS OBTAIN DISPATCHER CLEARANCE WHEN OPERATING BEYOND YARD LIMITS!!\n"]
[]
[]
[]
[null,null,"TRAIN INSTRUCTIONS","W/B Way Freight","TRAIN No. is ENGINE No.","Ø Pick up train at LH Tower","Ø Run W/B to Tyrone making set outs and pickups as dictated by the waybills.",null,"ØContact East Tyrone Yardmaster @ yard limits to coordinate East Tyrone yard setouts & pickups",null,null,"Ø Release train at Park Tower after contacting Tyrone Yardmaster.",null,null,"<OVER>","ALWAYS OBTAIN DISPATCHER CLEARANCE WHEN OPERATING BEYOND YARD LIMITS!!\n",null,null,null,"TRAIN INSTRUCTIONS","W/B Way Freight","TRAIN No. is ENGINE No.","Ø Pick up train at LH Tower","Ø Run W/B to Tyrone making set outs and pickups as dictated by the waybills.",null,"ØContact East Tyrone Yardmaster @ yard limits to coordinate East Tyrone yard setouts & pickups",null,null,"Ø Release train at Park Tower after contacting Tyrone Yardmaster.",null,null,"<OVER>","ALWAYS OBTAIN DISPATCHER CLEARANCE WHEN OPERATING BEYOND YARD LIMITS!!\n",null,null,null,"TRAIN INSTRUCTIONS","W/B Way Freight","TRAIN No. is ENGINE No.","Ø Pick up train at LH Tower","Ø Run W/B to Tyrone making set outs and pickups as dictated by the waybills.",null,"ØContact East Tyrone Yardmaster @ yard limits to coordinate East Tyrone yard setouts & pickups",null,null,"Ø Release train at Park Tower after contacting Tyrone Yardmaster.",null,null,"<OVER>","ALWAYS OBTAIN DISPATCHER CLEARANCE WHEN OPERATING BEYOND YARD LIMITS!!\n"]
[]
[]
[]
[null,null,"TRAIN INSTRUCTIONS","W/B Way Freight","TRAIN No. is ENGINE No.","Ø Pick up train at LH Tower","Ø Run W/B to Tyrone making set outs and pickups as dictated by the waybills.",null,"ØContact East Tyrone Yardmaster @ yard limits to coordinate East Tyrone yard setouts & pickups",null,null,"Ø Release train at Park Tower after contacting Tyrone Yardmaster.",null,null,"<OVER>","ALWAYS OBTAIN DISPATCHER CLEARANCE WHEN OPERATING BEYOND YARD LIMITS!!\n",null,null,null,"TRAIN INSTRUCTIONS","W/B Way Freight","TRAIN No. is ENGINE No.","Ø Pick up train at LH Tower","Ø Run W/B to Tyrone making set outs and pickups as dictated by the waybills.",null,"ØContact East Tyrone Yardmaster @ yard limits to coordinate East Tyrone yard setouts & pickups",null,null,"Ø Release train at Park Tower after contacting Tyrone Yardmaster.",null,null,"<OVER>","ALWAYS OBTAIN DISPATCHER CLEARANCE WHEN OPERATING BEYOND YARD LIMITS!!\n",null,null,null,"TRAIN INSTRUCTIONS","W/B Way Freight","TRAIN No. is ENGINE No.","Ø Pick up train at LH Tower","Ø Run W/B to Tyrone making set outs and pickups as dictated by the waybills.",null,"ØContact East Tyrone Yardmaster @ yard limits to coordinate East Tyrone yard setouts & pickups",null,null,"Ø Release train at Park Tower after contacting Tyrone Yardmaster.",null,null,"<OVER>","ALWAYS OBTAIN DISPATCHER CLEARANCE WHEN OPERATING BEYOND YARD LIMITS!!\n"]
[]
[]
[]
[null,null,"TRAIN INSTRUCTIONS","W/B Way Freight","TRAIN No. is ENGINE No.","Ø Pick up train at LH Tower","Ø Run W/B to Tyrone making set outs and pickups as dictated by the waybills.",null,"ØContact East Tyrone Yardmaster @ yard limits to coordinate East Tyrone yard setouts & pickups",null,null,"Ø Release train at Park Tower after contacting Tyrone Yardmaster.",null,null,"<OVER>","ALWAYS OBTAIN DISPATCHER CLEARANCE WHEN OPERATING BEYOND YARD LIMITS!!\n",null,null,null,"TRAIN INSTRUCTIONS","W/B Way Freight","TRAIN No. is ENGINE No.","Ø Pick up train at LH Tower","Ø Run W/B to Tyrone making set outs and pickups as dictated by the waybills.",null,"ØContact East Tyrone Yardmaster @ yard limits to coordinate East Tyrone yard setouts & pickups",null,null,"Ø Release train at Park Tower after contacting Tyrone Yardmaster.",null,null,"<OVER>","ALWAYS OBTAIN DISPATCHER CLEARANCE WHEN OPERATING BEYOND YARD LIMITS!!\n",null,null,null,"TRAIN INSTRUCTIONS","W/B Way Freight","TRAIN No. is ENGINE No.","Ø Pick up train at LH Tower","Ø Run W/B to Tyrone making set outs and pickups as dictated by the waybills.",null,"ØContact East Tyrone Yardmaster @ yard limits to coordinate East Tyrone yard setouts & pickups",null,null,"Ø Release train at Park Tower after contacting Tyrone Yardmaster.",null,null,"<OVER>","ALWAYS OBTAIN DISPATCHER CLEARANCE WHEN OPERATING BEYOND YARD LIMITS!!\n"]

{"sheet":"Way Freight, Back","index":10,"n_rows":14,"n_cols":48,"rows_kept":14,"cut":false,"hidden":false,"merged":[[13,47,16,50],[13,22,16,23],[13,24,16,26],[13,27,16,28],[13,29,16,29],[13,30,16,33],[13,36,16,37],[13,38,16,38],[13,39,16,40],[13,41,16,43],[13,44,16,45],[13,46,16,46],[9,47,12,50],[13,2,16,3],[13,4,16,4],[13,5,16,6],[13,7,16,9],[13,10,16,11],[13,12,16,12],[13,13,16,16],[13,19,16,20],[13,21,16,21],[9,36,12,37],[9,38,12,38],[9,39,12,40],[9,41,12,43],[9,44,12,45],[9,46,12,46],[9,21,12,21],[9,22,12,23],[9,24,12,26],[9,27,12,28],[9,29,12,29],[9,30,12,33],[5,46,8,46],[5,47,8,50],[9,2,12,3],[9,4,12,4],[9,5,12,6],[9,7,12,9],[9,10,12,11],[9,12,12,12],[9,13,12,16],[9,19,12,20],[5,30,8,33],[5,36,8,37],[5,38,8,38],[5,39,8,40],[5,41,8,43],[5,44,8,45],[5,19,8,20],[5,21,8,21],[5,22,8,23],[5,24,8,26],[5,27,8,28],[5,29,8,29],[1,44,4,45],[1,46,4,46],[1,47,4,50],[5,2,8,3],[5,4,8,4],[5,5,8,6],[5,7,8,9],[5,10,8,11],[5,12,8,12],[5,13,8,16],[1,29,4,29],[1,30,4,33],[1,36,4,37],[1,38,4,38],[1,39,4,40],[1,41,4,43],[1,27,4,28],[1,2,4,3],[1,4,4,4],[1,5,4,6],[1,7,4,9],[1,10,4,11],[1,12,4,12],[1,13,4,16],[1,19,4,20],[1,21,4,21],[1,22,4,23],[1,24,4,26]]}
[]
[null,null,"Ø Maximum train length of 12 revenue cars plus cabin car.",null,"Ø Maximum mainline speed 25 MPH","ØSpeed restrictions include 10 MPH for bridges and turnouts",null,"Ø Set off and pickup cars other than coal hoppers at all locations (handle hoppers only  if directed to do so by dispatcher)\n",null,null,"ØContact Dispatch @ control points as directed by Dispatch\n",null,null,"REMEMBER - \"You may know where your train is and God may know where your train is, but if the Dispatcher does not know ... you better be on good terms with God.\"",null,null,null,null,null,"Ø Maximum train length of 12 revenue cars plus cabin car.",null,"Ø Maximum mainline speed 25 MPH","ØSpeed restrictions include 10 MPH for bridges and turnouts",null,"Ø Set off and pickup cars other than coal hoppers at all locations (handle hoppers only  if directed to do so by dispatcher)\n",null,null,"ØContact Dispatch @ control points as directed by Dispatch\n",null,null,"REMEMBER - \"You may know where your train is and God may know where your train is, but if the Dispatcher does not know ... you better be on good terms with God.\"",null,null,null,null,null,"Ø Maximum train length of 12 revenue cars plus cabin car.",null,"Ø Maximum mainline speed 25 MPH","ØSpeed restrictions include 10 MPH for bridges and turnouts",null,"Ø Set off and pickup cars other than coal hoppers at all locations (handle hoppers only  if directed to do so by dispatcher)\n",null,null,"ØContact Dispatch @ control points as directed by Dispatch\n",null,null,"REMEMBER - \"You may know where your train is and God may know where your train is, but if the Dispatcher does not know ... you better be on good terms with God.\""]
[]
[]
[]
[null,null,"Ø Maximum train length of 12 revenue cars plus cabin car.",null,"Ø Maximum mainline speed 25 MPH","ØSpeed restrictions include 10 MPH for bridges and turnouts",null,"Ø Set off and pickup cars other than coal hoppers at all locations (handle hoppers only  if directed to do so by dispatcher)\n",null,null,"ØContact Dispatch @ control points as directed by Dispatch\n",null,null,"REMEMBER - \"You may know where your train is and God may know where your train is, but if the Dispatcher does not know ... you better be on good terms with God.\"",null,null,null,null,null,"Ø Maximum train length of 12 revenue cars plus cabin car.",null,"Ø Maximum mainline speed 25 MPH","ØSpeed restrictions include 10 MPH for bridges and turnouts",null,"Ø Set off and pickup cars other than coal hoppers at all locations (handle hoppers only  if directed to do so by dispatcher)\n",null,null,"ØContact Dispatch @ control points as directed by Dispatch\n",null,null,"REMEMBER - \"You may know where your train is and God may know where your train is, but if the Dispatcher does not know ... you better be on good terms with God.\"",null,null,null,null,null,"Ø Maximum train length of 12 revenue cars plus cabin car.",null,"Ø Maximum mainline speed 25 MPH","ØSpeed restrictions include 10 MPH for bridges and turnouts",null,"Ø Set off and pickup cars other than coal hoppers at all locations (handle hoppers only  if directed to do so by dispatcher)\n",null,null,"ØContact Dispatch @ control points as directed by Dispatch\n",null,null,"REMEMBER - \"You may know where your train is and God may know where your train is, but if the Dispatcher does not know ... you better be on good terms with God.\""]
[]
[]
[]
[null,null,"Ø Maximum train length of 12 revenue cars plus cabin car.",null,"Ø Maximum mainline speed 25 MPH","ØSpeed restrictions include 10 MPH for bridges and turnouts",null,"Ø Set off and pickup cars other than coal hoppers at all locations (handle hoppers only  if directed to do so by dispatcher)\n",null,null,"ØContact Dispatch @ control points as directed by Dispatch\n",null,null,"REMEMBER - \"You may know where your train is and God may know where your train is, but if the Dispatcher does not know ... you better be on good terms with God.\"",null,null,null,null,null,"Ø Maximum train length of 12 revenue cars plus cabin car.",null,"Ø Maximum mainline speed 25 MPH","ØSpeed restrictions include 10 MPH for bridges and turnouts",null,"Ø Set off and pickup cars other than coal hoppers at all locations (handle hoppers only  if directed to do so by dispatcher)\n",null,null,"ØContact Dispatch @ control points as directed by Dispatch\n",null,null,"REMEMBER - \"You may know where your train is and God may know where your train is, but if the Dispatcher does not know ... you better be on good terms with God.\"",null,null,null,null,null,"Ø Maximum train length of 12 revenue cars plus cabin car.",null,"Ø Maximum mainline speed 25 MPH","ØSpeed restrictions include 10 MPH for bridges and turnouts",null,"Ø Set off and pickup cars other than coal hoppers at all locations (handle hoppers only  if directed to do so by dispatcher)\n",null,null,"ØContact Dispatch @ control points as directed by Dispatch\n",null,null,"REMEMBER - \"You may know where your train is and God may know where your train is, but if the Dispatcher does not know ... you better be on good terms with God.\""]
[]
[]
[]
[null,null,"Ø Maximum train length of 12 revenue cars plus cabin car.",null,"Ø Maximum mainline speed 25 MPH","ØSpeed restrictions include 10 MPH for bridges and turnouts",null,"Ø Set off and pickup cars other than coal hoppers at all locations (handle hoppers only  if directed to do so by dispatcher)\n",null,null,"ØContact Dispatch @ control points as directed by Dispatch\n",null,null,"REMEMBER - \"You may know where your train is and God may know where your train is, but if the Dispatcher does not know ... you better be on good terms with God.\"",null,null,null,null,null,"Ø Maximum train length of 12 revenue cars plus cabin car.",null,"Ø Maximum mainline speed 25 MPH","ØSpeed restrictions include 10 MPH for bridges and turnouts",null,"Ø Set off and pickup cars other than coal hoppers at all locations (handle hoppers only  if directed to do so by dispatcher)\n",null,null,"ØContact Dispatch @ control points as directed by Dispatch\n",null,null,"REMEMBER - \"You may know where your train is and God may know where your train is, but if the Dispatcher does not know ... you better be on good terms with God.\"",null,null,null,null,null,"Ø Maximum train length of 12 revenue cars plus cabin car.",null,"Ø Maximum mainline speed 25 MPH","ØSpeed restrictions include 10 MPH for bridges and turnouts",null,"Ø Set off and pickup cars other than coal hoppers at all locations (handle hoppers only  if directed to do so by dispatcher)\n",null,null,"ØContact Dispatch @ control points as directed by Dispatch\n",null,null,"REMEMBER - \"You may know where your train is and God may know where your train is, but if the Dispatcher does not know ... you better be on good terms with God.\""]

{"sheet":"E-B Coal Drag, Front","index":11,"n_rows":14,"n_cols":50,"rows_kept":14,"cut":false,"hidden":false,"merged":[[13,39,16,39],[13,40,16,42],[13,43,16,45],[13,46,16,47],[13,48,16,48],[13,49,16,50],[13,29,16,30],[13,31,16,31],[13,32,16,33],[13,36,16,36],[13,37,16,37],[13,38,16,38],[13,19,16,19],[13,20,16,20],[13,21,16,21],[13,22,16,22],[13,23,16,25],[13,26,16,28],[9,49,12,50],[13,2,16,2],[13,3,16,3],[13,4,16,4],[13,5,16,5],[13,6,16,8],[13,9,16,11],[13,12,16,13],[13,14,16,14],[13,15,16,16],[9,38,12,38],[9,39,12,39],[9,40,12,42],[9,43,12,45],[9,46,12,47],[9,48,12,48],[9,26,12,28],[9,29,12,30],[9,31,12,31],[9,32,12,33],[9,36,12,36],[9,37,12,37],[9,15,12,16],[9,19,12,19],[9,20,12,20],[9,21,12,21],[9,22,12,22],[9,23,12,25],[5,48,8,48],[5,49,8,50],[9,2,12,2],[9,3,12,3],[9,4,12,4],[9,5,12,5],[9,6,12,8],[9,9,12,11],[9,12,12,13],[9,14,12,14],[5,37,8,37],[5,38,8,38],[5,39,8,39],[5,40,8,42],[5,43,8,45],[5,46,8,47],[5,23,8,25],[5,26,8,28],[5,29,8,30],[5,31,8,31],[5,32,8,33],[5,36,8,36],[5,14,8,14],[5,15,8,16],[5,19,8,19],[5,20,8,20],[5,21,8,21],[5,22,8,22],[1,46,4,47],[1,48,4,48],[1,49,4,50],[5,2,8,2],[5,3,8,3],[5,4,8,4],[5,5,8,5],[5,6,8,8],[5,9,8,11],[5,12,8,13],[1,36,4,36],[1,37,4,37],[1,38,4,38],[1,39,4,39],[1,40,4,42],[1,43,4,45],[1,22,4,22],[1,23,4,25],[1,26,4,28],[1,29,4,30],[1,31,4,31],[1,32,4,33],[1,12,4,13],[1,14,4,14],[1,15,4,16],[1,19,4,19],[1,20,4,20],[1,21,4,21],[1,2,4,2],[1,3,4,3],[1,4,4,4],[1,5,4,5],[1,6,4,8],[1,9,4,11]]}
[]
[null,null,"TRAIN INSTRUCTIONS","E/B Coal Drag","TRAIN No. is ENGINE No.","Ø Pick up train at Park Tower","ØContact East Tyrone Yardmaster to coordinate East Tyrone Yard setouts & pickups of coal hoppers only",null,null,"Ø Run E/B to Lock Haven making set outs and pickups coal hoppers ONLY as dictated by the waybills.",null,null,"Ø Switch Snow Shoe Branch including mines using local switcher",null,"<OVER>","ALWAYS OBTAIN DISPATCHER CLEARANCE WHEN OPERATING BEYOND YARD LIMITS!!\n",null,null,null,"TRAIN INSTRUCTIONS","E/B Coal Drag","TRAIN No. is ENGINE No.","Ø Pick up train at Park Tower","ØContact East Tyrone Yardmaster to coordinate East Tyrone Yard setouts & pickups of coal hoppers only",null,null,"Ø Run E/B to Lock Haven making set outs and pickups coal hoppers ONLY as dictated by the waybills.",null,null,"Ø Switch Snow Shoe Branch including mines using local switcher",null,"<OVER>","ALWAYS OBTAIN DISPATCHER CLEARANCE WHEN OPERATING BEYOND YARD LIMITS!!\n",null,null,null,"TRAIN INSTRUCTIONS","E/B Coal Drag","TRAIN No. is ENGINE No.","Ø Pick up train at Park Tower","ØContact East Tyrone Yardmaster to coordinate East Tyrone Yard setouts & pickups of coal hoppers only",null,null,"Ø Run E/B to Lock Haven making set outs and pickups coal hoppers ONLY as dictated by the waybills.",null,null,"Ø Switch Snow Shoe Branch including mines using local switcher",null,"<OVER>","ALWAYS OBTAIN DISPATCHER CLEARANCE WHEN OPERATING BEYOND YARD LIMITS!!\n"]
[]
[]
[]
[null,null,"TRAIN INSTRUCTIONS","E/B Coal Drag","TRAIN No. is ENGINE No.","Ø Pick up train at Park Tower","ØContact East Tyrone Yardmaster to coordinate East Tyrone Yard setouts & pickups of coal hoppers only",null,null,"Ø Run E/B to Lock Haven making set outs and pickups coal hoppers ONLY as dictated by the waybills.",null,null,"Ø Switch Snow Shoe Branch including mines using local switcher",null,"<OVER>","ALWAYS OBTAIN DISPATCHER CLEARANCE WHEN OPERATING BEYOND YARD LIMITS!!\n",null,null,null,"TRAIN INSTRUCTIONS","E/B Coal Drag","TRAIN No. is ENGINE No.","Ø Pick up train at Park Tower","ØContact East Tyrone Yardmaster to coordinate East Tyrone Yard setouts & pickups of coal hoppers only",null,null,"Ø Run E/B to Lock Haven making set outs and pickups coal hoppers ONLY as dictated by the waybills.",null,null,"Ø Switch Snow Shoe Branch including mines using local switcher",null,"<OVER>","ALWAYS OBTAIN DISPATCHER CLEARANCE WHEN OPERATING BEYOND YARD LIMITS!!\n",null,null,null,"TRAIN INSTRUCTIONS","E/B Coal Drag","TRAIN No. is ENGINE No.","Ø Pick up train at Park Tower","ØContact East Tyrone Yardmaster to coordinate East Tyrone Yard setouts & pickups of coal hoppers only",null,null,"Ø Run E/B to Lock Haven making set outs and pickups coal hoppers ONLY as dictated by the waybills.",null,null,"Ø Switch Snow Shoe Branch including mines using local switcher",null,"<OVER>","ALWAYS OBTAIN DISPATCHER CLEARANCE WHEN OPERATING BEYOND YARD LIMITS!!\n"]
[]
[]
[]
[null,null,"TRAIN INSTRUCTIONS","E/B Coal Drag","TRAIN No. is ENGINE No.","Ø Pick up train at Park Tower","ØContact East Tyrone Yardmaster to coordinate East Tyrone Yard setouts & pickups of coal hoppers only",null,null,"Ø Run E/B to Lock Haven making set outs and pickups coal hoppers ONLY as dictated by the waybills.",null,null,"Ø Switch Snow Shoe Branch including mines using local switcher",null,"<OVER>","ALWAYS OBTAIN DISPATCHER CLEARANCE WHEN OPERATING BEYOND YARD LIMITS!!\n",null,null,null,"TRAIN INSTRUCTIONS","E/B Coal Drag","TRAIN No. is ENGINE No.","Ø Pick up train at Park Tower","ØContact East Tyrone Yardmaster to coordinate East Tyrone Yard setouts & pickups of coal hoppers only",null,null,"Ø Run E/B to Lock Haven making set outs and pickups coal hoppers ONLY as dictated by the waybills.",null,null,"Ø Switch Snow Shoe Branch including mines using local switcher",null,"<OVER>","ALWAYS OBTAIN DISPATCHER CLEARANCE WHEN OPERATING BEYOND YARD LIMITS!!\n",null,null,null,"TRAIN INSTRUCTIONS","E/B Coal Drag","TRAIN No. is ENGINE No.","Ø Pick up train at Park Tower","ØContact East Tyrone Yardmaster to coordinate East Tyrone Yard setouts & pickups of coal hoppers only",null,null,"Ø Run E/B to Lock Haven making set outs and pickups coal hoppers ONLY as dictated by the waybills.",null,null,"Ø Switch Snow Shoe Branch including mines using local switcher",null,"<OVER>","ALWAYS OBTAIN DISPATCHER CLEARANCE WHEN OPERATING BEYOND YARD LIMITS!!\n"]
[]
[]
[]
[null,null,"TRAIN INSTRUCTIONS","E/B Coal Drag","TRAIN No. is ENGINE No.","Ø Pick up train at Park Tower","ØContact East Tyrone Yardmaster to coordinate East Tyrone Yard setouts & pickups of coal hoppers only",null,null,"Ø Run E/B to Lock Haven making set outs and pickups coal hoppers ONLY as dictated by the waybills.",null,null,"Ø Switch Snow Shoe Branch including mines using local switcher",null,"<OVER>","ALWAYS OBTAIN DISPATCHER CLEARANCE WHEN OPERATING BEYOND YARD LIMITS!!\n",null,null,null,"TRAIN INSTRUCTIONS","E/B Coal Drag","TRAIN No. is ENGINE No.","Ø Pick up train at Park Tower","ØContact East Tyrone Yardmaster to coordinate East Tyrone Yard setouts & pickups of coal hoppers only",null,null,"Ø Run E/B to Lock Haven making set outs and pickups coal hoppers ONLY as dictated by the waybills.",null,null,"Ø Switch Snow Shoe Branch including mines using local switcher",null,"<OVER>","ALWAYS OBTAIN DISPATCHER CLEARANCE WHEN OPERATING BEYOND YARD LIMITS!!\n",null,null,null,"TRAIN INSTRUCTIONS","E/B Coal Drag","TRAIN No. is ENGINE No.","Ø Pick up train at Park Tower","ØContact East Tyrone Yardmaster to coordinate East Tyrone Yard setouts & pickups of coal hoppers only",null,null,"Ø Run E/B to Lock Haven making set outs and pickups coal hoppers ONLY as dictated by the waybills.",null,null,"Ø Switch Snow Shoe Branch including mines using local switcher",null,"<OVER>","ALWAYS OBTAIN DISPATCHER CLEARANCE WHEN OPERATING BEYOND YARD LIMITS!!\n"]

{"sheet":"E-B Coal Drag, Back","index":12,"n_rows":14,"n_cols":48,"rows_kept":14,"cut":false,"hidden":false,"merged":[[9,39,12,42],[9,43,12,44],[9,45,12,46],[13,39,16,42],[13,43,16,44],[13,45,16,46],[1,39,4,42],[1,43,4,44],[1,45,4,46],[5,39,8,42],[5,43,8,44],[5,45,8,46],[1,22,4,25],[1,26,4,27],[5,22,8,25],[5,26,8,27],[9,22,12,25],[9,26,12,27],[1,11,4,12],[1,9,4,10],[1,5,4,8],[13,47,16,50],[13,30,16,33],[13,36,16,37],[13,38,16,38],[13,28,16,29],[9,47,12,50],[9,36,12,37],[9,38,12,38],[9,21,12,21],[9,28,12,29],[9,30,12,33],[5,47,8,50],[13,5,16,8],[5,30,8,33],[13,2,16,3],[13,4,16,4],[13,13,16,16],[13,19,16,20],[13,21,16,21],[9,11,12,12],[13,9,16,10],[13,11,16,12],[13,22,16,25],[13,26,16,27],[5,5,8,8],[5,9,8,10],[5,11,8,12],[9,5,12,8],[9,9,12,10],[5,21,8,21],[5,28,8,29],[9,2,12,3],[9,4,12,4],[9,13,12,16],[9,19,12,20],[1,47,4,50],[5,2,8,3],[5,4,8,4],[5,13,8,16],[1,30,4,33],[1,36,4,37],[1,38,4,38],[1,2,4,3],[1,4,4,4],[1,13,4,16],[1,19,4,20],[1,21,4,21],[1,28,4,29],[5,36,8,37],[5,38,8,38],[5,19,8,20]]}
[]
[null,null,"Ø Maximum train length of 12 revenue cars plus cabin car.",null,"Ø Maximum mainline speed 20 MPH","Ø Set off and pickup coal hoppers ONLY at all locations (handle other car types only  if directed to do so by dispatcher)\n",null,null,null,"ØContact Dispatch @ control points as directed by Dispatch\n",null,"Ø Release train at Park Tower after contacting Tyrone Yardmaster.",null,"REMEMBER - \"You may know where your train is and God may know where your train is, but if the Dispatcher does not know ... you better be on good terms with God.\"",null,null,null,null,null,"Ø Maximum train length of 12 revenue cars plus cabin car.",null,"Ø Maximum mainline speed 20 MPH","Ø Set off and pickup coal hoppers ONLY at all locations (handle other car types only  if directed to do so by dispatcher)\n",null,null,null,"ØContact Dispatch @ control points as directed by Dispatch\n",null,"Ø Release train at Park Tower after contacting Tyrone Yardmaster.",null,"REMEMBER - \"You may know where your train is and God may know where your train is, but if the Dispatcher does not know ... you better be on good terms with God.\"",null,null,null,null,null,"Ø Maximum train length of 12 revenue cars plus cabin car.",null,"Ø Maximum mainline speed 20 MPH","Ø Set off and pickup coal hoppers ONLY at all locations (handle other car types only  if directed to do so by dispatcher)\n",null,null,null,"ØContact Dispatch @ control points as directed by Dispatch\n",null,"Ø Release train at Park Tower after contacting Tyrone Yardmaster.",null,"REMEMBER - \"You may know where your train is and God may know where your train is, but if the Dispatcher does not know ... you better be on good terms with God.\""]
[]
[]
[]
[null,null,"Ø Maximum train length of 12 revenue cars plus cabin car.",null,"Ø Maximum mainline speed 20 MPH","Ø Set off and pickup coal hoppers ONLY at all locations (handle other car types only  if directed to do so by dispatcher)\n",null,null,null,"ØContact Dispatch @ control points as directed by Dispatch\n",null,"Ø Release train at Park Tower after contacting Tyrone Yardmaster.",null,"REMEMBER - \"You may know where your train is and God may know where your train is, but if the Dispatcher does not know ... you better be on good terms with God.\"",null,null,null,null,null,"Ø Maximum train length of 12 revenue cars plus cabin car.",null,"Ø Maximum mainline speed 20 MPH","Ø Set off and pickup coal hoppers ONLY at all locations (handle other car types only  if directed to do so by dispatcher)\n",null,null,null,"ØContact Dispatch @ control points as directed by Dispatch\n",null,"Ø Release train at Park Tower after contacting Tyrone Yardmaster.",null,"REMEMBER - \"You may know where your train is and God may know where your train is, but if the Dispatcher does not know ... you better be on good terms with God.\"",null,null,null,null,null,"Ø Maximum train length of 12 revenue cars plus cabin car.",null,"Ø Maximum mainline speed 20 MPH","Ø Set off and pickup coal hoppers ONLY at all locations (handle other car types only  if directed to do so by dispatcher)\n",null,null,null,"ØContact Dispatch @ control points as directed by Dispatch\n",null,"Ø Release train at Park Tower after contacting Tyrone Yardmaster.",null,"REMEMBER - \"You may know where your train is and God may know where your train is, but if the Dispatcher does not know ... you better be on good terms with God.\""]
[]
[]
[]
[null,null,"Ø Maximum train length of 12 revenue cars plus cabin car.",null,"Ø Maximum mainline speed 20 MPH","Ø Set off and pickup coal hoppers ONLY at all locations (handle other car types only  if directed to do so by dispatcher)\n",null,null,null,"ØContact Dispatch @ control points as directed by Dispatch\n",null,"Ø Release train at Park Tower after contacting Tyrone Yardmaster.",null,"REMEMBER - \"You may know where your train is and God may know where your train is, but if the Dispatcher does not know ... you better be on good terms with God.\"",null,null,null,null,null,"Ø Maximum train length of 12 revenue cars plus cabin car.",null,"Ø Maximum mainline speed 20 MPH","Ø Set off and pickup coal hoppers ONLY at all locations (handle other car types only  if directed to do so by dispatcher)\n",null,null,null,"ØContact Dispatch @ control points as directed by Dispatch\n",null,"Ø Release train at Park Tower after contacting Tyrone Yardmaster.",null,"REMEMBER - \"You may know where your train is and God may know where your train is, but if the Dispatcher does not know ... you better be on good terms with God.\"",null,null,null,null,null,"Ø Maximum train length of 12 revenue cars plus cabin car.",null,"Ø Maximum mainline speed 20 MPH","Ø Set off and pickup coal hoppers ONLY at all locations (handle other car types only  if directed to do so by dispatcher)\n",null,null,null,"ØContact Dispatch @ control points as directed by Dispatch\n",null,"Ø Release train at Park Tower after contacting Tyrone Yardmaster.",null,"REMEMBER - \"You may know where your train is and God may know where your train is, but if the Dispatcher does not know ... you better be on good terms with God.\""]
[]
[]
[]
[null,null,"Ø Maximum train length of 12 revenue cars plus cabin car.",null,"Ø Maximum mainline speed 20 MPH","Ø Set off and pickup coal hoppers ONLY at all locations (handle other car types only  if directed to do so by dispatcher)\n",null,null,null,"ØContact Dispatch @ control points as directed by Dispatch\n",null,"Ø Release train at Park Tower after contacting Tyrone Yardmaster.",null,"REMEMBER - \"You may know where your train is and God may know where your train is, but if the Dispatcher does not know ... you better be on good terms with God.\"",null,null,null,null,null,"Ø Maximum train length of 12 revenue cars plus cabin car.",null,"Ø Maximum mainline speed 20 MPH","Ø Set off and pickup coal hoppers ONLY at all locations (handle other car types only  if directed to do so by dispatcher)\n",null,null,null,"ØContact Dispatch @ control points as directed by Dispatch\n",null,"Ø Release train at Park Tower after contacting Tyrone Yardmaster.",null,"REMEMBER - \"You may know where your train is and God may know where your train is, but if the Dispatcher does not know ... you better be on good terms with God.\"",null,null,null,null,null,"Ø Maximum train length of 12 revenue cars plus cabin car.",null,"Ø Maximum mainline speed 20 MPH","Ø Set off and pickup coal hoppers ONLY at all locations (handle other car types only  if directed to do so by dispatcher)\n",null,null,null,"ØContact Dispatch @ control points as directed by Dispatch\n",null,"Ø Release train at Park Tower after contacting Tyrone Yardmaster.",null,"REMEMBER - \"You may know where your train is and God may know where your train is, but if the Dispatcher does not know ... you better be on good terms with God.\""]

{"sheet":"W-B Coal Drag, Front","index":13,"n_rows":14,"n_cols":50,"rows_kept":14,"cut":false,"hidden":false,"merged":[[13,39,16,39],[13,40,16,42],[13,43,16,45],[13,46,16,47],[13,48,16,48],[13,49,16,50],[13,29,16,30],[13,31,16,31],[13,32,16,33],[13,36,16,36],[13,37,16,37],[13,38,16,38],[13,19,16,19],[13,20,16,20],[13,21,16,21],[13,22,16,22],[13,23,16,25],[13,26,16,28],[9,49,12,50],[13,2,16,2],[13,3,16,3],[13,4,16,4],[13,5,16,5],[13,6,16,8],[13,9,16,11],[13,12,16,13],[13,14,16,14],[13,15,16,16],[9,38,12,38],[9,39,12,39],[9,40,12,42],[9,43,12,45],[9,46,12,47],[9,48,12,48],[9,26,12,28],[9,29,12,30],[9,31,12,31],[9,32,12,33],[9,36,12,36],[9,37,12,37],[9,15,12,16],[9,19,12,19],[9,20,12,20],[9,21,12,21],[9,22,12,22],[9,23,12,25],[5,48,8,48],[5,49,8,50],[9,2,12,2],[9,3,12,3],[9,4,12,4],[9,5,12,5],[9,6,12,8],[9,9,12,11],[9,12,12,13],[9,14,12,14],[5,37,8,37],[5,38,8,38],[5,39,8,39],[5,40,8,42],[5,43,8,45],[5,46,8,47],[5,23,8,25],[5,26,8,28],[5,29,8,30],[5,31,8,31],[5,32,8,33],[5,36,8,36],[5,14,8,14],[5,15,8,16],[5,19,8,19],[5,20,8,20],[5,21,8,21],[5,22,8,22],[1,46,4,47],[1,48,4,48],[1,49,4,50],[5,2,8,2],[5,3,8,3],[5,4,8,4],[5,5,8,5],[5,6,8,8],[5,9,8,11],[5,12,8,13],[1,36,4,36],[1,37,4,37],[1,38,4,38],[1,39,4,39],[1,40,4,42],[1,43,4,45],[1,22,4,22],[1,23,4,25],[1,26,4,28],[1,29,4,30],[1,31,4,31],[1,32,4,33],[1,12,4,13],[1,14,4,14],[1,15,4,16],[1,19,4,19],[1,20,4,20],[1,21,4,21],[1,2,4,2],[1,3,4,3],[1,4,4,4],[1,5,4,5],[1,6,4,8],[1,9,4,11]]}
[]
[null,null,"TRAIN INSTRUCTIONS","W/B Coal Drag","TRAIN No. is ENGINE No.","Ø Pick up train at LH Tower","Ø Run W/B to Tyrone making set outs and pickups of coal hoppers ONLY as dictated by the waybills.",null,null,"ØContact East Tyrone Yardmaster from Vail to coordinate setouts & pickups of coal hoppers only",null,null,"Ø Switch Snow Shoe Branch including mines using local switcher",null,"<OVER>","ALWAYS OBTAIN DISPATCHER CLEARANCE WHEN OPERATING BEYOND YARD LIMITS!!\n",null,null,null,"TRAIN INSTRUCTIONS","W/B Coal Drag","TRAIN No. is ENGINE No.","Ø Pick up train at LH Tower","Ø Run W/B to Tyrone making set outs and pickups of coal hoppers ONLY as dictated by the waybills.",null,null,"ØContact East Tyrone Yardmaster from Vail to coordinate setouts & pickups of coal hoppers only",null,null,"Ø Switch Snow Shoe Branch including mines using local switcher",null,"<OVER>","ALWAYS OBTAIN DISPATCHER CLEARANCE WHEN OPERATING BEYOND YARD LIMITS!!\n",null,null,null,"TRAIN INSTRUCTIONS","W/B Coal Drag","TRAIN No. is ENGINE No.","Ø Pick up train at LH Tower","Ø Run W/B to Tyrone making set outs and pickups of coal hoppers ONLY as dictated by the waybills.",null,null,"ØContact East Tyrone Yardmaster from Vail to coordinate setouts & pickups of coal hoppers only",null,null,"Ø Switch Snow Shoe Branch including mines using local switcher",null,"<OVER>","ALWAYS OBTAIN DISPATCHER CLEARANCE WHEN OPERATING BEYOND YARD LIMITS!!\n"]
[]
[]
[]
[null,null,"TRAIN INSTRUCTIONS","W/B Coal Drag","TRAIN No. is ENGINE No.","Ø Pick up train at LH Tower","Ø Run W/B to Tyrone making set outs and pickups of coal hoppers ONLY as dictated by the waybills.",null,null,"ØContact East Tyrone Yardmaster from Vail to coordinate setouts & pickups of coal hoppers only",null,null,"Ø Switch Snow Shoe Branch including mines using local switcher",null,"<OVER>","ALWAYS OBTAIN DISPATCHER CLEARANCE WHEN OPERATING BEYOND YARD LIMITS!!\n",null,null,null,"TRAIN INSTRUCTIONS","W/B Coal Drag","TRAIN No. is ENGINE No.","Ø Pick up train at LH Tower","Ø Run W/B to Tyrone making set outs and pickups of coal hoppers ONLY as dictated by the waybills.",null,null,"ØContact East Tyrone Yardmaster from Vail to coordinate setouts & pickups of coal hoppers only",null,null,"Ø Switch Snow Shoe Branch including mines using local switcher",null,"<OVER>","ALWAYS OBTAIN DISPATCHER CLEARANCE WHEN OPERATING BEYOND YARD LIMITS!!\n",null,null,null,"TRAIN INSTRUCTIONS","W/B Coal Drag","TRAIN No. is ENGINE No.","Ø Pick up train at LH Tower","Ø Run W/B to Tyrone making set outs and pickups of coal hoppers ONLY as dictated by the waybills.",null,null,"ØContact East Tyrone Yardmaster from Vail to coordinate setouts & pickups of coal hoppers only",null,null,"Ø Switch Snow Shoe Branch including mines using local switcher",null,"<OVER>","ALWAYS OBTAIN DISPATCHER CLEARANCE WHEN OPERATING BEYOND YARD LIMITS!!\n"]
[]
[]
[]
[null,null,"TRAIN INSTRUCTIONS","W/B Coal Drag","TRAIN No. is ENGINE No.","Ø Pick up train at LH Tower","Ø Run W/B to Tyrone making set outs and pickups of coal hoppers ONLY as dictated by the waybills.",null,null,"ØContact East Tyrone Yardmaster from Vail to coordinate setouts & pickups of coal hoppers only",null,null,"Ø Switch Snow Shoe Branch including mines using local switcher",null,"<OVER>","ALWAYS OBTAIN DISPATCHER CLEARANCE WHEN OPERATING BEYOND YARD LIMITS!!\n",null,null,null,"TRAIN INSTRUCTIONS","W/B Coal Drag","TRAIN No. is ENGINE No.","Ø Pick up train at LH Tower","Ø Run W/B to Tyrone making set outs and pickups of coal hoppers ONLY as dictated by the waybills.",null,null,"ØContact East Tyrone Yardmaster from Vail to coordinate setouts & pickups of coal hoppers only",null,null,"Ø Switch Snow Shoe Branch including mines using local switcher",null,"<OVER>","ALWAYS OBTAIN DISPATCHER CLEARANCE WHEN OPERATING BEYOND YARD LIMITS!!\n",null,null,null,"TRAIN INSTRUCTIONS","W/B Coal Drag","TRAIN No. is ENGINE No.","Ø Pick up train at LH Tower","Ø Run W/B to Tyrone making set outs and pickups of coal hoppers ONLY as dictated by the waybills.",null,null,"ØContact East Tyrone Yardmaster from Vail to coordinate setouts & pickups of coal hoppers only",null,null,"Ø Switch Snow Shoe Branch including mines using local switcher",null,"<OVER>","ALWAYS OBTAIN DISPATCHER CLEARANCE WHEN OPERATING BEYOND YARD LIMITS!!\n"]
[]
[]
[]
[null,null,"TRAIN INSTRUCTIONS","W/B Coal Drag","TRAIN No. is ENGINE No.","Ø Pick up train at LH Tower","Ø Run W/B to Tyrone making set outs and pickups of coal hoppers ONLY as dictated by the waybills.",null,null,"ØContact East Tyrone Yardmaster from Vail to coordinate setouts & pickups of coal hoppers only",null,null,"Ø Switch Snow Shoe Branch including mines using local switcher",null,"<OVER>","ALWAYS OBTAIN DISPATCHER CLEARANCE WHEN OPERATING BEYOND YARD LIMITS!!\n",null,null,null,"TRAIN INSTRUCTIONS","W/B Coal Drag","TRAIN No. is ENGINE No.","Ø Pick up train at LH Tower","Ø Run W/B to Tyrone making set outs and pickups of coal hoppers ONLY as dictated by the waybills.",null,null,"ØContact East Tyrone Yardmaster from Vail to coordinate setouts & pickups of coal hoppers only",null,null,"Ø Switch Snow Shoe Branch including mines using local switcher",null,"<OVER>","ALWAYS OBTAIN DISPATCHER CLEARANCE WHEN OPERATING BEYOND YARD LIMITS!!\n",null,null,null,"TRAIN INSTRUCTIONS","W/B Coal Drag","TRAIN No. is ENGINE No.","Ø Pick up train at LH Tower","Ø Run W/B to Tyrone making set outs and pickups of coal hoppers ONLY as dictated by the waybills.",null,null,"ØContact East Tyrone Yardmaster from Vail to coordinate setouts & pickups of coal hoppers only",null,null,"Ø Switch Snow Shoe Branch including mines using local switcher",null,"<OVER>","ALWAYS OBTAIN DISPATCHER CLEARANCE WHEN OPERATING BEYOND YARD LIMITS!!\n"]

{"sheet":"W-B Coal Drag, Back","index":14,"n_rows":14,"n_cols":48,"rows_kept":14,"cut":false,"hidden":false,"merged":[[13,47,16,50],[13,19,16,20],[13,21,16,21],[13,22,16,25],[13,26,16,27],[13,28,16,29],[13,30,16,33],[13,36,16,37],[13,38,16,38],[13,39,16,42],[13,43,16,44],[13,45,16,46],[13,2,16,3],[13,4,16,4],[13,5,16,8],[13,9,16,10],[13,11,16,12],[13,13,16,16],[9,36,12,37],[9,38,12,38],[9,39,12,42],[9,43,12,44],[9,13,12,16],[9,45,12,46],[9,47,12,50],[9,19,12,20],[9,21,12,21],[9,22,12,25],[9,26,12,27],[9,28,12,29],[9,30,12,33],[9,2,12,3],[9,4,12,4],[9,5,12,8],[9,9,12,10],[9,11,12,12],[5,47,8,50],[5,19,8,20],[5,21,8,21],[5,22,8,25],[5,26,8,27],[5,28,8,29],[5,30,8,33],[5,36,8,37],[5,38,8,38],[5,39,8,42],[5,43,8,44],[5,45,8,46],[5,2,8,3],[5,4,8,4],[5,5,8,8],[5,9,8,10],[5,11,8,12],[5,13,8,16],[1,36,4,37],[1,38,4,38],[1,39,4,42],[1,43,4,44],[1,13,4,16],[1,45,4,46],[1,47,4,50],[1,19,4,20],[1,21,4,21],[1,22,4,25],[1,26,4,27],[1,28,4,29],[1,30,4,33],[1,2,4,3],[1,4,4,4],[1,5,4,8],[1,9,4,10],[1,11,4,12]]}
[]
[null,null,"Ø Maximum train length of 12 revenue cars plus cabin car.",null,"Ø Maximum mainline speed 20 MPH","Ø Set off and pickup coal hoppers ONLY at all locations (handle other car types only  if directed to do so by dispatcher)\n",null,null,null,"ØContact Dispatch @ control points as directed by Dispatch\n",null,"Ø Release train at LH Tower after contacting Lock Haven Yardmaster.",null,"REMEMBER - \"You may know where your train is and God may know where your train is, but if the Dispatcher does not know ... you better be on good terms with God.\"",null,null,null,null,null,"Ø Maximum train length of 12 revenue cars plus cabin car.",null,"Ø Maximum mainline speed 20 MPH","Ø Set off and pickup coal hoppers ONLY at all locations (handle other car types only  if directed to do so by dispatcher)\n",null,null,null,"ØContact Dispatch @ control points as directed by Dispatch\n",null,"Ø Release train at LH Tower after contacting Lock Haven Yardmaster.",null,"REMEMBER - \"You may know where your train is and God may know where your train is, but if the Dispatcher does not know ... you better be on good terms with God.\"",null,null,null,null,null,"Ø Maximum train length of 12 revenue cars plus cabin car.",null,"Ø Maximum mainline speed 20 MPH","Ø Set off and pickup coal hoppers ONLY at all locations (handle other car types only  if directed to do so by dispatcher)\n",null,null,null,"ØContact Dispatch @ control points as directed by Dispatch\n",null,"Ø Release train at LH Tower after contacting Lock Haven Yardmaster.",null,"REMEMBER - \"You may know where your train is and God may know where your train is, but if the Dispatcher does not know ... you better be on good terms with God.\""]
[]
[]
[]
[null,null,"Ø Maximum train length of 12 revenue cars plus cabin car.",null,"Ø Maximum mainline speed 20 MPH","Ø Set off and pickup coal hoppers ONLY at all locations (handle other car types only  if directed to do so by dispatcher)\n",null,null,null,"ØContact Dispatch @ control points as directed by Dispatch\n",null,"Ø Release train at LH Tower after contacting Lock Haven Yardmaster.",null,"REMEMBER - \"You may know where your train is and God may know where your train is, but if the Dispatcher does not know ... you better be on good terms with God.\"",null,null,null,null,null,"Ø Maximum train length of 12 revenue cars plus cabin car.",null,"Ø Maximum mainline speed 20 MPH","Ø Set off and pickup coal hoppers ONLY at all locations (handle other car types only  if directed to do so by dispatcher)\n",null,null,null,"ØContact Dispatch @ control points as directed by Dispatch\n",null,"Ø Release train at LH Tower after contacting Lock Haven Yardmaster.",null,"REMEMBER - \"You may know where your train is and God may know where your train is, but if the Dispatcher does not know ... you better be on good terms with God.\"",null,null,null,null,null,"Ø Maximum train length of 12 revenue cars plus cabin car.",null,"Ø Maximum mainline speed 20 MPH","Ø Set off and pickup coal hoppers ONLY at all locations (handle other car types only  if directed to do so by dispatcher)\n",null,null,null,"ØContact Dispatch @ control points as directed by Dispatch\n",null,"Ø Release train at LH Tower after contacting Lock Haven Yardmaster.",null,"REMEMBER - \"You may know where your train is and God may know where your train is, but if the Dispatcher does not know ... you better be on good terms with God.\""]
[]
[]
[]
[null,null,"Ø Maximum train length of 12 revenue cars plus cabin car.",null,"Ø Maximum mainline speed 20 MPH","Ø Set off and pickup coal hoppers ONLY at all locations (handle other car types only  if directed to do so by dispatcher)\n",null,null,null,"ØContact Dispatch @ control points as directed by Dispatch\n",null,"Ø Release train at LH Tower after contacting Lock Haven Yardmaster.",null,"REMEMBER - \"You may know where your train is and God may know where your train is, but if the Dispatcher does not know ... you better be on good terms with God.\"",null,null,null,null,null,"Ø Maximum train length of 12 revenue cars plus cabin car.",null,"Ø Maximum mainline speed 20 MPH","Ø Set off and pickup coal hoppers ONLY at all locations (handle other car types only  if directed to do so by dispatcher)\n",null,null,null,"ØContact Dispatch @ control points as directed by Dispatch\n",null,"Ø Release train at LH Tower after contacting Lock Haven Yardmaster.",null,"REMEMBER - \"You may know where your train is and God may know where your train is, but if the Dispatcher does not know ... you better be on good terms with God.\"",null,null,null,null,null,"Ø Maximum train length of 12 revenue cars plus cabin car.",null,"Ø Maximum mainline speed 20 MPH","Ø Set off and pickup coal hoppers ONLY at all locations (handle other car types only  if directed to do so by dispatcher)\n",null,null,null,"ØContact Dispatch @ control points as directed by Dispatch\n",null,"Ø Release train at LH Tower after contacting Lock Haven Yardmaster.",null,"REMEMBER - \"You may know where your train is and God may know where your train is, but if the Dispatcher does not know ... you better be on good terms with God.\""]
[]
[]
[]
[null,null,"Ø Maximum train length of 12 revenue cars plus cabin car.",null,"Ø Maximum mainline speed 20 MPH","Ø Set off and pickup coal hoppers ONLY at all locations (handle other car types only  if directed to do so by dispatcher)\n",null,null,null,"ØContact Dispatch @ control points as directed by Dispatch\n",null,"Ø Release train at LH Tower after contacting Lock Haven Yardmaster.",null,"REMEMBER - \"You may know where your train is and God may know where your train is, but if the Dispatcher does not know ... you better be on good terms with God.\"",null,null,null,null,null,"Ø Maximum train length of 12 revenue cars plus cabin car.",null,"Ø Maximum mainline speed 20 MPH","Ø Set off and pickup coal hoppers ONLY at all locations (handle other car types only  if directed to do so by dispatcher)\n",null,null,null,"ØContact Dispatch @ control points as directed by Dispatch\n",null,"Ø Release train at LH Tower after contacting Lock Haven Yardmaster.",null,"REMEMBER - \"You may know where your train is and God may know where your train is, but if the Dispatcher does not know ... you better be on good terms with God.\"",null,null,null,null,null,"Ø Maximum train length of 12 revenue cars plus cabin car.",null,"Ø Maximum mainline speed 20 MPH","Ø Set off and pickup coal hoppers ONLY at all locations (handle other car types only  if directed to do so by dispatcher)\n",null,null,null,"ØContact Dispatch @ control points as directed by Dispatch\n",null,"Ø Release train at LH Tower after contacting Lock Haven Yardmaster.",null,"REMEMBER - \"You may know where your train is and God may know where your train is, but if the Dispatcher does not know ... you better be on good terms with God.\""]

{"sheet":"E-B Thru Freight, Front","index":15,"n_rows":14,"n_cols":50,"rows_kept":14,"cut":false,"hidden":false,"merged":[[13,39,16,39],[13,40,16,42],[13,43,16,43],[13,44,16,45],[13,48,16,48],[13,49,16,50],[13,27,16,28],[13,31,16,31],[13,32,16,33],[13,36,16,36],[13,37,16,37],[13,38,16,38],[13,19,16,19],[13,20,16,20],[13,21,16,21],[13,22,16,22],[13,23,16,25],[13,26,16,26],[9,49,12,50],[13,2,16,2],[13,3,16,3],[13,4,16,4],[13,5,16,5],[13,6,16,8],[13,9,16,9],[13,10,16,11],[13,14,16,14],[13,15,16,16],[9,38,12,38],[9,39,12,39],[9,40,12,42],[9,43,12,43],[9,44,12,45],[9,48,12,48],[9,26,12,26],[9,27,12,28],[9,31,12,31],[9,32,12,33],[9,36,12,36],[9,37,12,37],[9,15,12,16],[9,19,12,19],[9,20,12,20],[9,21,12,21],[9,22,12,22],[9,23,12,25],[5,48,8,48],[5,49,8,50],[9,2,12,2],[9,3,12,3],[9,4,12,4],[9,5,12,5],[9,6,12,8],[9,9,12,9],[9,10,12,11],[9,14,12,14],[5,37,8,37],[5,38,8,38],[5,39,8,39],[5,40,8,42],[5,43,8,43],[5,44,8,45],[5,23,8,25],[5,26,8,26],[5,27,8,28],[5,31,8,31],[5,32,8,33],[5,36,8,36],[5,14,8,14],[5,15,8,16],[5,19,8,19],[5,20,8,20],[5,21,8,21],[5,22,8,22],[1,44,4,45],[1,48,4,48],[1,49,4,50],[5,2,8,2],[5,3,8,3],[5,4,8,4],[5,5,8,5],[5,6,8,8],[5,9,8,9],[5,10,8,11],[1,36,4,36],[1,37,4,37],[1,38,4,38],[1,39,4,39],[1,40,4,42],[1,43,4,43],[1,22,4,22],[1,23,4,25],[1,26,4,26],[1,27,4,28],[1,31,4,31],[1,32,4,33],[1,10,4,11],[1,14,4,14],[1,15,4,16],[1,19,4,19],[1,20,4,20],[1,21,4,21],[1,2,4,2],[1,3,4,3],[1,4,4,4],[1,5,4,5],[1,6,4,8],[1,9,4,9]]}
[]
[null,null,"TRAIN INSTRUCTIONS","E/B Thru Freight","TRAIN No. is ENGINE No.","Ø Pick up train at Park Tower","ØContact East Tyrone Yardmaster to coordinate movement through Yard",null,null,"Ø Run E/B to Lock Haven","Ø Release train at Lock Haven Tower after contacting Lock Haven Yardmaster.",null,null,null,"<OVER>","ALWAYS OBTAIN DISPATCHER CLEARANCE WHEN OPERATING BEYOND YARD LIMITS!!\n",null,null,null,"TRAIN INSTRUCTIONS","E/B Thru Freight","TRAIN No. is ENGINE No.","Ø Pick up train at Park Tower","ØContact East Tyrone Yardmaster to coordinate movement through Yard",null,null,"Ø Run E/B to Lock Haven","Ø Release train at Lock Haven Tower after contacting Lock Haven Yardmaster.",null,null,null,"<OVER>","ALWAYS OBTAIN DISPATCHER CLEARANCE WHEN OPERATING BEYOND YARD LIMITS!!\n",null,null,null,"TRAIN INSTRUCTIONS","E/B Thru Freight","TRAIN No. is ENGINE No.","Ø Pick up train at Park Tower","ØContact East Tyrone Yardmaster to coordinate movement through Yard",null,null,"Ø Run E/B to Lock Haven","Ø Release train at Lock Haven Tower after contacting Lock Haven Yardmaster.",null,null,null,"<OVER>","ALWAYS OBTAIN DISPATCHER CLEARANCE WHEN OPERATING BEYOND YARD LIMITS!!\n"]
[]
[]
[]
[null,null,"TRAIN INSTRUCTIONS","E/B Thru Freight","TRAIN No. is ENGINE No.","Ø Pick up train at Park Tower","ØContact East Tyrone Yardmaster to coordinate movement through Yard",null,null,"Ø Run E/B to Lock Haven","Ø Release train at Lock Haven Tower after contacting Lock Haven Yardmaster.",null,null,null,"<OVER>","ALWAYS OBTAIN DISPATCHER CLEARANCE WHEN OPERATING BEYOND YARD LIMITS!!\n",null,null,null,"TRAIN INSTRUCTIONS","E/B Thru Freight","TRAIN No. is ENGINE No.","Ø Pick up train at Park Tower","ØContact East Tyrone Yardmaster to coordinate movement through Yard",null,null,"Ø Run E/B to Lock Haven","Ø Release train at Lock Haven Tower after contacting Lock Haven Yardmaster.",null,null,null,"<OVER>","ALWAYS OBTAIN DISPATCHER CLEARANCE WHEN OPERATING BEYOND YARD LIMITS!!\n",null,null,null,"TRAIN INSTRUCTIONS","E/B Thru Freight","TRAIN No. is ENGINE No.","Ø Pick up train at Park Tower","ØContact East Tyrone Yardmaster to coordinate movement through Yard",null,null,"Ø Run E/B to Lock Haven","Ø Release train at Lock Haven Tower after contacting Lock Haven Yardmaster.",null,null,null,"<OVER>","ALWAYS OBTAIN DISPATCHER CLEARANCE WHEN OPERATING BEYOND YARD LIMITS!!\n"]
[]
[]
[]
[null,null,"TRAIN INSTRUCTIONS","E/B Thru Freight","TRAIN No. is ENGINE No.","Ø Pick up train at Park Tower","ØContact East Tyrone Yardmaster to coordinate movement through Yard",null,null,"Ø Run E/B to Lock Haven","Ø Release train at Lock Haven Tower after contacting Lock Haven Yardmaster.",null,null,null,"<OVER>","ALWAYS OBTAIN DISPATCHER CLEARANCE WHEN OPERATING BEYOND YARD LIMITS!!\n",null,null,null,"TRAIN INSTRUCTIONS","E/B Thru Freight","TRAIN No. is ENGINE No.","Ø Pick up train at Park Tower","ØContact East Tyrone Yardmaster to coordinate movement through Yard",null,null,"Ø Run E/B to Lock Haven","Ø Release train at Lock Haven Tower after contacting Lock Haven Yardmaster.",null,null,null,"<OVER>","ALWAYS OBTAIN DISPATCHER CLEARANCE WHEN OPERATING BEYOND YARD LIMITS!!\n",null,null,null,"TRAIN INSTRUCTIONS","E/B Thru Freight","TRAIN No. is ENGINE No.","Ø Pick up train at Park Tower","ØContact East Tyrone Yardmaster to coordinate movement through Yard",null,null,"Ø Run E/B to Lock Haven","Ø Release train at Lock Haven Tower after contacting Lock Haven Yardmaster.",null,null,null,"<OVER>","ALWAYS OBTAIN DISPATCHER CLEARANCE WHEN OPERATING BEYOND YARD LIMITS!!\n"]
[]
[]
[]
[null,null,"TRAIN INSTRUCTIONS","E/B Thru Freight","TRAIN No. is ENGINE No.","Ø Pick up train at Park Tower","ØContact East Tyrone Yardmaster to coordinate movement through Yard",null,null,"Ø Run E/B to Lock Haven","Ø Release train at Lock Haven Tower after contacting Lock Haven Yardmaster.",null,null,null,"<OVER>","ALWAYS OBTAIN DISPATCHER CLEARANCE WHEN OPERATING BEYOND YARD LIMITS!!\n",null,null,null,"TRAIN INSTRUCTIONS","E/B Thru Freight","TRAIN No. is ENGINE No.","Ø Pick up train at Park Tower","ØContact East Tyrone Yardmaster to coordinate movement through Yard",null,null,"Ø Run E/B to Lock Haven","Ø Release train at Lock Haven Tower after contacting Lock Haven Yardmaster.",null,null,null,"<OVER>","ALWAYS OBTAIN DISPATCHER CLEARANCE WHEN OPERATING BEYOND YARD LIMITS!!\n",null,null,null,"TRAIN INSTRUCTIONS","E/B Thru Freight","TRAIN No. is ENGINE No.","Ø Pick up train at Park Tower","ØContact East Tyrone Yardmaster to coordinate movement through Yard",null,null,"Ø Run E/B to Lock Haven","Ø Release train at Lock Haven Tower after contacting Lock Haven Yardmaster.",null,null,null,"<OVER>","ALWAYS OBTAIN DISPATCHER CLEARANCE WHEN OPERATING BEYOND YARD LIMITS!!\n"]

{"sheet":"W-B Thru Freight, Front","index":16,"n_rows":14,"n_cols":50,"rows_kept":14,"cut":false,"hidden":false,"merged":[[13,39,16,39],[13,40,16,40],[13,41,16,42],[13,43,16,44],[13,48,16,48],[13,49,16,50],[13,26,16,27],[13,31,16,31],[13,32,16,33],[13,36,16,36],[13,37,16,37],[13,38,16,38],[13,19,16,19],[13,20,16,20],[13,21,16,21],[13,22,16,22],[13,23,16,23],[13,24,16,25],[9,49,12,50],[13,2,16,2],[13,3,16,3],[13,4,16,4],[13,5,16,5],[13,6,16,6],[13,7,16,8],[13,9,16,10],[13,14,16,14],[13,15,16,16],[9,38,12,38],[9,39,12,39],[9,40,12,40],[9,41,12,42],[9,43,12,44],[9,48,12,48],[9,24,12,25],[9,26,12,27],[9,31,12,31],[9,32,12,33],[9,36,12,36],[9,37,12,37],[9,15,12,16],[9,19,12,19],[9,20,12,20],[9,21,12,21],[9,22,12,22],[9,23,12,23],[5,48,8,48],[5,49,8,50],[9,2,12,2],[9,3,12,3],[9,4,12,4],[9,5,12,5],[9,6,12,6],[9,7,12,8],[9,9,12,10],[9,14,12,14],[5,37,8,37],[5,38,8,38],[5,39,8,39],[5,40,8,40],[5,41,8,42],[5,43,8,44],[5,23,8,23],[5,24,8,25],[5,26,8,27],[5,31,8,31],[5,32,8,33],[5,36,8,36],[5,14,8,14],[5,15,8,16],[5,19,8,19],[5,20,8,20],[5,21,8,21],[5,22,8,22],[1,43,4,44],[1,48,4,48],[1,49,4,50],[5,2,8,2],[5,3,8,3],[5,4,8,4],[5,5,8,5],[5,6,8,6],[5,7,8,8],[5,9,8,10],[1,36,4,36],[1,37,4,37],[1,38,4,38],[1,39,4,39],[1,40,4,40],[1,41,4,42],[1,22,4,22],[1,23,4,23],[1,24,4,25],[1,26,4,27],[1,31,4,31],[1,32,4,33],[1,9,4,10],[1,14,4,14],[1,15,4,16],[1,19,4,19],[1,20,4,20],[1,21,4,21],[1,2,4,2],[1,3,4,3],[1,4,4,4],[1,5,4,5],[1,6,4,6],[1,7,4,8]]}
[]
[null,null,"TRAIN INSTRUCTIONS","W/B Thru Freight","TRAIN No. is ENGINE No.","Ø Pick up train at LH Tower","Ø Run W/B to Tyrone","ØContact East Tyrone Yardmaster @ yard limits to coordinate movement through Yard",null,"Ø Release train at Park Tower after contacting Tyrone Yardmaster.",null,null,null,null,"<OVER>","ALWAYS OBTAIN DISPATCHER CLEARANCE WHEN OPERATING BEYOND YARD LIMITS!!\n",null,null,null,"TRAIN INSTRUCTIONS","W/B Thru Freight","TRAIN No. is ENGINE No.","Ø Pick up train at LH Tower","Ø Run W/B to Tyrone","ØContact East Tyrone Yardmaster @ yard limits to coordinate movement through Yard",null,"Ø Release train at Park Tower after contacting Tyrone Yardmaster.",null,null,null,null,"<OVER>","ALWAYS OBTAIN DISPATCHER CLEARANCE WHEN OPERATING BEYOND YARD LIMITS!!\n",null,null,null,"TRAIN INSTRUCTIONS","W/B Thru Freight","TRAIN No. is ENGINE No.","Ø Pick up train at LH Tower","Ø Run W/B to Tyrone","ØContact East Tyrone Yardmaster @ yard limits to coordinate movement through Yard",null,"Ø Release train at Park Tower after contacting Tyrone Yardmaster.",null,null,null,null,"<OVER>","ALWAYS OBTAIN DISPATCHER CLEARANCE WHEN OPERATING BEYOND YARD LIMITS!!\n"]
[]
[]
[]
[null,null,"TRAIN INSTRUCTIONS","W/B Thru Freight","TRAIN No. is ENGINE No.","Ø Pick up train at LH Tower","Ø Run W/B to Tyrone","ØContact East Tyrone Yardmaster @ yard limits to coordinate movement through Yard",null,"Ø Release train at Park Tower after contacting Tyrone Yardmaster.",null,null,null,null,"<OVER>","ALWAYS OBTAIN DISPATCHER CLEARANCE WHEN OPERATING BEYOND YARD LIMITS!!\n",null,null,null,"TRAIN INSTRUCTIONS","W/B Thru Freight","TRAIN No. is ENGINE No.","Ø Pick up train at LH Tower","Ø Run W/B to Tyrone","ØContact East Tyrone Yardmaster @ yard limits to coordinate movement through Yard",null,"Ø Release train at Park Tower after contacting Tyrone Yardmaster.",null,null,null,null,"<OVER>","ALWAYS OBTAIN DISPATCHER CLEARANCE WHEN OPERATING BEYOND YARD LIMITS!!\n",null,null,null,"TRAIN INSTRUCTIONS","W/B Thru Freight","TRAIN No. is ENGINE No.","Ø Pick up train at LH Tower","Ø Run W/B to Tyrone","ØContact East Tyrone Yardmaster @ yard limits to coordinate movement through Yard",null,"Ø Release train at Park Tower after contacting Tyrone Yardmaster.",null,null,null,null,"<OVER>","ALWAYS OBTAIN DISPATCHER CLEARANCE WHEN OPERATING BEYOND YARD LIMITS!!\n"]
[]
[]
[]
[null,null,"TRAIN INSTRUCTIONS","W/B Thru Freight","TRAIN No. is ENGINE No.","Ø Pick up train at LH Tower","Ø Run W/B to Tyrone","ØContact East Tyrone Yardmaster @ yard limits to coordinate movement through Yard",null,"Ø Release train at Park Tower after contacting Tyrone Yardmaster.",null,null,null,null,"<OVER>","ALWAYS OBTAIN DISPATCHER CLEARANCE WHEN OPERATING BEYOND YARD LIMITS!!\n",null,null,null,"TRAIN INSTRUCTIONS","W/B Thru Freight","TRAIN No. is ENGINE No.","Ø Pick up train at LH Tower","Ø Run W/B to Tyrone","ØContact East Tyrone Yardmaster @ yard limits to coordinate movement through Yard",null,"Ø Release train at Park Tower after contacting Tyrone Yardmaster.",null,null,null,null,"<OVER>","ALWAYS OBTAIN DISPATCHER CLEARANCE WHEN OPERATING BEYOND YARD LIMITS!!\n",null,null,null,"TRAIN INSTRUCTIONS","W/B Thru Freight","TRAIN No. is ENGINE No.","Ø Pick up train at LH Tower","Ø Run W/B to Tyrone","ØContact East Tyrone Yardmaster @ yard limits to coordinate movement through Yard",null,"Ø Release train at Park Tower after contacting Tyrone Yardmaster.",null,null,null,null,"<OVER>","ALWAYS OBTAIN DISPATCHER CLEARANCE WHEN OPERATING BEYOND YARD LIMITS!!\n"]
[]
[]
[]
[null,null,"TRAIN INSTRUCTIONS","W/B Thru Freight","TRAIN No. is ENGINE No.","Ø Pick up train at LH Tower","Ø Run W/B to Tyrone","ØContact East Tyrone Yardmaster @ yard limits to coordinate movement through Yard",null,"Ø Release train at Park Tower after contacting Tyrone Yardmaster.",null,null,null,null,"<OVER>","ALWAYS OBTAIN DISPATCHER CLEARANCE WHEN OPERATING BEYOND YARD LIMITS!!\n",null,null,null,"TRAIN INSTRUCTIONS","W/B Thru Freight","TRAIN No. is ENGINE No.","Ø Pick up train at LH Tower","Ø Run W/B to Tyrone","ØContact East Tyrone Yardmaster @ yard limits to coordinate movement through Yard",null,"Ø Release train at Park Tower after contacting Tyrone Yardmaster.",null,null,null,null,"<OVER>","ALWAYS OBTAIN DISPATCHER CLEARANCE WHEN OPERATING BEYOND YARD LIMITS!!\n",null,null,null,"TRAIN INSTRUCTIONS","W/B Thru Freight","TRAIN No. is ENGINE No.","Ø Pick up train at LH Tower","Ø Run W/B to Tyrone","ØContact East Tyrone Yardmaster @ yard limits to coordinate movement through Yard",null,"Ø Release train at Park Tower after contacting Tyrone Yardmaster.",null,null,null,null,"<OVER>","ALWAYS OBTAIN DISPATCHER CLEARANCE WHEN OPERATING BEYOND YARD LIMITS!!\n"]

{"sheet":"Thru Freight, Back","index":17,"n_rows":14,"n_cols":48,"rows_kept":14,"cut":false,"hidden":false,"merged":[[13,47,16,50],[13,19,16,20],[13,21,16,21],[13,22,16,23],[13,24,16,25],[13,29,16,29],[13,30,16,33],[13,36,16,37],[13,38,16,38],[13,39,16,40],[13,41,16,42],[13,46,16,46],[13,2,16,3],[13,4,16,4],[13,5,16,6],[13,7,16,8],[13,12,16,12],[13,13,16,16],[9,36,12,37],[9,38,12,38],[9,39,12,40],[9,41,12,42],[9,13,12,16],[9,46,12,46],[9,47,12,50],[9,19,12,20],[9,21,12,21],[9,22,12,23],[9,24,12,25],[9,29,12,29],[9,30,12,33],[9,2,12,3],[9,4,12,4],[9,5,12,6],[9,7,12,8],[9,12,12,12],[5,47,8,50],[5,19,8,20],[5,21,8,21],[5,22,8,23],[5,24,8,25],[5,29,8,29],[5,30,8,33],[5,36,8,37],[5,38,8,38],[5,39,8,40],[5,41,8,42],[5,46,8,46],[5,2,8,3],[5,4,8,4],[5,5,8,6],[5,7,8,8],[5,12,8,12],[5,13,8,16],[1,36,4,37],[1,38,4,38],[1,39,4,40],[1,41,4,42],[1,13,4,16],[1,46,4,46],[1,47,4,50],[1,19,4,20],[1,21,4,21],[1,22,4,23],[1,24,4,25],[1,29,4,29],[1,30,4,33],[1,2,4,3],[1,4,4,4],[1,5,4,6],[1,7,4,8],[1,12,4,12]]}
[]
[null,null,"Ø Maximum train length of 12 revenue cars plus cabin car.",null,"Ø Maximum mainline speed 25 MPH","ØSpeed restrictions include 10 MPH for bridges and turnouts",null,"ØContact Dispatch @ control points as directed by Dispatch\n",null,null,null,null,null,"REMEMBER - \"You may know where your train is and God may know where your train is, but if the Dispatcher does not know ... you better be on good terms with God.\"",null,null,null,null,null,"Ø Maximum train length of 12 revenue cars plus cabin car.",null,"Ø Maximum mainline speed 25 MPH","ØSpeed restrictions include 10 MPH for bridges and turnouts",null,"ØContact Dispatch @ control points as directed by Dispatch\n",null,null,null,null,null,"REMEMBER - \"You may know where your train is and God may know where your train is, but if the Dispatcher does not know ... you better be on good terms with God.\"",null,null,null,null,null,"Ø Maximum train length of 12 revenue cars plus cabin car.",null,"Ø Maximum mainline speed 25 MPH","ØSpeed restrictions include 10 MPH for bridges and turnouts",null,"ØContact Dispatch @ control points as directed by Dispatch\n",null,null,null,null,null,"REMEMBER - \"You may know where your train is and God may know where your train is, but if the Dispatcher does not know ... you better be on good terms with God.\""]
[]
[]
[]
[null,null,"Ø Maximum train length of 12 revenue cars plus cabin car.",null,"Ø Maximum mainline speed 25 MPH","ØSpeed restrictions include 10 MPH for bridges and turnouts",null,"ØContact Dispatch @ control points as directed by Dispatch\n",null,null,null,null,null,"REMEMBER - \"You may know where your train is and God may know where your train is, but if the Dispatcher does not know ... you better be on good terms with God.\"",null,null,null,null,null,"Ø Maximum train length of 12 revenue cars plus cabin car.",null,"Ø Maximum mainline speed 25 MPH","ØSpeed restrictions include 10 MPH for bridges and turnouts",null,"ØContact Dispatch @ control points as directed by Dispatch\n",null,null,null,null,null,"REMEMBER - \"You may know where your train is and God may know where your train is, but if the Dispatcher does not know ... you better be on good terms with God.\"",null,null,null,null,null,"Ø Maximum train length of 12 revenue cars plus cabin car.",null,"Ø Maximum mainline speed 25 MPH","ØSpeed restrictions include 10 MPH for bridges and turnouts",null,"ØContact Dispatch @ control points as directed by Dispatch\n",null,null,null,null,null,"REMEMBER - \"You may know where your train is and God may know where your train is, but if the Dispatcher does not know ... you better be on good terms with God.\""]
[]
[]
[]
[null,null,"Ø Maximum train length of 12 revenue cars plus cabin car.",null,"Ø Maximum mainline speed 25 MPH","ØSpeed restrictions include 10 MPH for bridges and turnouts",null,"ØContact Dispatch @ control points as directed by Dispatch\n",null,null,null,null,null,"REMEMBER - \"You may know where your train is and God may know where your train is, but if the Dispatcher does not know ... you better be on good terms with God.\"",null,null,null,null,null,"Ø Maximum train length of 12 revenue cars plus cabin car.",null,"Ø Maximum mainline speed 25 MPH","ØSpeed restrictions include 10 MPH for bridges and turnouts",null,"ØContact Dispatch @ control points as directed by Dispatch\n",null,null,null,null,null,"REMEMBER - \"You may know where your train is and God may know where your train is, but if the Dispatcher does not know ... you better be on good terms with God.\"",null,null,null,null,null,"Ø Maximum train length of 12 revenue cars plus cabin car.",null,"Ø Maximum mainline speed 25 MPH","ØSpeed restrictions include 10 MPH for bridges and turnouts",null,"ØContact Dispatch @ control points as directed by Dispatch\n",null,null,null,null,null,"REMEMBER - \"You may know where your train is and God may know where your train is, but if the Dispatcher does not know ... you better be on good terms with God.\""]
[]
[]
[]
[null,null,"Ø Maximum train length of 12 revenue cars plus cabin car.",null,"Ø Maximum mainline speed 25 MPH","ØSpeed restrictions include 10 MPH for bridges and turnouts",null,"ØContact Dispatch @ control points as directed by Dispatch\n",null,null,null,null,null,"REMEMBER - \"You may know where your train is and God may know where your train is, but if the Dispatcher does not know ... you better be on good terms with God.\"",null,null,null,null,null,"Ø Maximum train length of 12 revenue cars plus cabin car.",null,"Ø Maximum mainline speed 25 MPH","ØSpeed restrictions include 10 MPH for bridges and turnouts",null,"ØContact Dispatch @ control points as directed by Dispatch\n",null,null,null,null,null,"REMEMBER - \"You may know where your train is and God may know where your train is, but if the Dispatcher does not know ... you better be on good terms with God.\"",null,null,null,null,null,"Ø Maximum train length of 12 revenue cars plus cabin car.",null,"Ø Maximum mainline speed 25 MPH","ØSpeed restrictions include 10 MPH for bridges and turnouts",null,"ØContact Dispatch @ control points as directed by Dispatch\n",null,null,null,null,null,"REMEMBER - \"You may know where your train is and God may know where your train is, but if the Dispatcher does not know ... you better be on good terms with God.\""]

{"sheet":"E-B 510 Passenger, Front","index":18,"n_rows":14,"n_cols":50,"rows_kept":14,"cut":false,"hidden":false,"merged":[[13,39,16,39],[13,40,16,42],[13,43,16,43],[13,44,16,45],[13,48,16,48],[13,49,16,50],[13,27,16,28],[13,31,16,31],[13,32,16,33],[13,36,16,36],[13,37,16,37],[13,38,16,38],[13,19,16,19],[13,20,16,20],[13,21,16,21],[13,22,16,22],[13,23,16,25],[13,26,16,26],[9,49,12,50],[13,2,16,2],[13,3,16,3],[13,4,16,4],[13,5,16,5],[13,6,16,8],[13,9,16,9],[13,10,16,11],[13,14,16,14],[13,15,16,16],[9,38,12,38],[9,39,12,39],[9,40,12,42],[9,43,12,43],[9,44,12,45],[9,48,12,48],[9,26,12,26],[9,27,12,28],[9,31,12,31],[9,32,12,33],[9,36,12,36],[9,37,12,37],[9,15,12,16],[9,19,12,19],[9,20,12,20],[9,21,12,21],[9,22,12,22],[9,23,12,25],[5,48,8,48],[5,49,8,50],[9,2,12,2],[9,3,12,3],[9,4,12,4],[9,5,12,5],[9,6,12,8],[9,9,12,9],[9,10,12,11],[9,14,12,14],[5,37,8,37],[5,38,8,38],[5,39,8,39],[5,40,8,42],[5,43,8,43],[5,44,8,45],[5,23,8,25],[5,26,8,26],[5,27,8,28],[5,31,8,31],[5,32,8,33],[5,36,8,36],[5,14,8,14],[5,15,8,16],[5,19,8,19],[5,20,8,20],[5,21,8,21],[5,22,8,22],[1,44,4,45],[1,48,4,48],[1,49,4,50],[5,2,8,2],[5,3,8,3],[5,4,8,4],[5,5,8,5],[5,6,8,8],[5,9,8,9],[5,10,8,11],[1,36,4,36],[1,37,4,37],[1,38,4,38],[1,39,4,39],[1,40,4,42],[1,43,4,43],[1,22,4,22],[1,23,4,25],[1,26,4,26],[1,27,4,28],[1,31,4,31],[1,32,4,33],[1,10,4,11],[1,14,4,14],[1,15,4,16],[1,19,4,19],[1,20,4,20],[1,21,4,21],[1,2,4,2],[1,3,4,3],[1,4,4,4],[1,5,4,5],[1,6,4,8],[1,9,4,9]]}
[]
[null,null,"TRAIN INSTRUCTIONS","E/B Passenger","TRAIN No. 510","Ø Pick up train at Park Tower","ØContact East Tyrone Yardmaster to coordinate movement through Yard",null,null,"Ø Run E/B to Lock Haven","Ø Release train at Lock Haven Tower after contacting Lock Haven Yardmaster.",null,null,null,"<OVER>","ALWAYS OBTAIN DISPATCHER CLEARANCE WHEN OPERATING BEYOND YARD LIMITS!!\n",null,null,null,"TRAIN INSTRUCTIONS","E/B Passenger","TRAIN No. 510","Ø Pick up train at Park Tower","ØContact East Tyrone Yardmaster to coordinate movement through Yard",null,null,"Ø Run E/B to Lock Haven","Ø Release train at Lock Haven Tower after contacting Lock Haven Yardmaster.",null,null,null,"<OVER>","ALWAYS OBTAIN DISPATCHER CLEARANCE WHEN OPERATING BEYOND YARD LIMITS!!\n",null,null,null,"TRAIN INSTRUCTIONS","E/B Passenger","TRAIN No. 510","Ø Pick up train at Park Tower","ØContact East Tyrone Yardmaster to coordinate movement through Yard",null,null,"Ø Run E/B to Lock Haven","Ø Release train at Lock Haven Tower after contacting Lock Haven Yardmaster.",null,null,null,"<OVER>","ALWAYS OBTAIN DISPATCHER CLEARANCE WHEN OPERATING BEYOND YARD LIMITS!!\n"]
[]
[]
[]
[null,null,"TRAIN INSTRUCTIONS","E/B Passenger","TRAIN No. 510","Ø Pick up train at Park Tower","ØContact East Tyrone Yardmaster to coordinate movement through Yard",null,null,"Ø Run E/B to Lock Haven","Ø Release train at Lock Haven Tower after contacting Lock Haven Yardmaster.",null,null,null,"<OVER>","ALWAYS OBTAIN DISPATCHER CLEARANCE WHEN OPERATING BEYOND YARD LIMITS!!\n",null,null,null,"TRAIN INSTRUCTIONS","E/B Passenger","TRAIN No. 510","Ø Pick up train at Park Tower","ØContact East Tyrone Yardmaster to coordinate movement through Yard",null,null,"Ø Run E/B to Lock Haven","Ø Release train at Lock Haven Tower after contacting Lock Haven Yardmaster.",null,null,null,"<OVER>","ALWAYS OBTAIN DISPATCHER CLEARANCE WHEN OPERATING BEYOND YARD LIMITS!!\n",null,null,null,"TRAIN INSTRUCTIONS","E/B Passenger","TRAIN No. 510","Ø Pick up train at Park Tower","ØContact East Tyrone Yardmaster to coordinate movement through Yard",null,null,"Ø Run E/B to Lock Haven","Ø Release train at Lock Haven Tower after contacting Lock Haven Yardmaster.",null,null,null,"<OVER>","ALWAYS OBTAIN DISPATCHER CLEARANCE WHEN OPERATING BEYOND YARD LIMITS!!\n"]
[]
[]
[]
[null,null,"TRAIN INSTRUCTIONS","E/B Passenger","TRAIN No. 510","Ø Pick up train at Park Tower","ØContact East Tyrone Yardmaster to coordinate movement through Yard",null,null,"Ø Run E/B to Lock Haven","Ø Release train at Lock Haven Tower after contacting Lock Haven Yardmaster.",null,null,null,"<OVER>","ALWAYS OBTAIN DISPATCHER CLEARANCE WHEN OPERATING BEYOND YARD LIMITS!!\n",null,null,null,"TRAIN INSTRUCTIONS","E/B Passenger","TRAIN No. 510","Ø Pick up train at Park Tower","ØContact East Tyrone Yardmaster to coordinate movement through Yard",null,null,"Ø Run E/B to Lock Haven","Ø Release train at Lock Haven Tower after contacting Lock Haven Yardmaster.",null,null,null,"<OVER>","ALWAYS OBTAIN DISPATCHER CLEARANCE WHEN OPERATING BEYOND YARD LIMITS!!\n",null,null,null,"TRAIN INSTRUCTIONS","E/B Passenger","TRAIN No. 510","Ø Pick up train at Park Tower","ØContact East Tyrone Yardmaster to coordinate movement through Yard",null,null,"Ø Run E/B to Lock Haven","Ø Release train at Lock Haven Tower after contacting Lock Haven Yardmaster.",null,null,null,"<OVER>","ALWAYS OBTAIN DISPATCHER CLEARANCE WHEN OPERATING BEYOND YARD LIMITS!!\n"]
[]
[]
[]
[null,null,"TRAIN INSTRUCTIONS","E/B Passenger","TRAIN No. 510","Ø Pick up train at Park Tower","ØContact East Tyrone Yardmaster to coordinate movement through Yard",null,null,"Ø Run E/B to Lock Haven","Ø Release train at Lock Haven Tower after contacting Lock Haven Yardmaster.",null,null,null,"<OVER>","ALWAYS OBTAIN DISPATCHER CLEARANCE WHEN OPERATING BEYOND YARD LIMITS!!\n",null,null,null,"TRAIN INSTRUCTIONS","E/B Passenger","TRAIN No. 510","Ø Pick up train at Park Tower","ØContact East Tyrone Yardmaster to coordinate movement through Yard",null,null,"Ø Run E/B to Lock Haven","Ø Release train at Lock Haven Tower after contacting Lock Haven Yardmaster.",null,null,null,"<OVER>","ALWAYS OBTAIN DISPATCHER CLEARANCE WHEN OPERATING BEYOND YARD LIMITS!!\n",null,null,null,"TRAIN INSTRUCTIONS","E/B Passenger","TRAIN No. 510","Ø Pick up train at Park Tower","ØContact East Tyrone Yardmaster to coordinate movement through Yard",null,null,"Ø Run E/B to Lock Haven","Ø Release train at Lock Haven Tower after contacting Lock Haven Yardmaster.",null,null,null,"<OVER>","ALWAYS OBTAIN DISPATCHER CLEARANCE WHEN OPERATING BEYOND YARD LIMITS!!\n"]

{"sheet":"E-B 510 Passenger, Back","index":19,"n_rows":14,"n_cols":48,"rows_kept":14,"cut":false,"hidden":false,"merged":[[13,47,16,50],[13,24,16,24],[13,25,16,26],[13,27,16,28],[13,29,16,29],[13,30,16,33],[13,36,16,38],[13,39,16,40],[13,41,16,41],[13,42,16,43],[13,44,16,45],[13,46,16,46],[9,47,12,50],[13,2,16,4],[13,5,16,6],[13,7,16,7],[13,8,16,9],[13,10,16,11],[13,12,16,12],[13,13,16,16],[13,19,16,21],[13,22,16,23],[9,36,12,38],[9,39,12,40],[9,41,12,41],[9,42,12,43],[9,44,12,45],[9,46,12,46],[9,22,12,23],[9,24,12,24],[9,25,12,26],[9,27,12,28],[9,29,12,29],[9,30,12,33],[5,46,8,46],[5,47,8,50],[9,2,12,4],[9,5,12,6],[9,7,12,7],[9,8,12,9],[9,10,12,11],[9,12,12,12],[9,13,12,16],[9,19,12,21],[5,30,8,33],[5,36,8,38],[5,39,8,40],[5,41,8,41],[5,42,8,43],[5,44,8,45],[5,19,8,21],[5,22,8,23],[5,24,8,24],[5,25,8,26],[5,27,8,28],[5,29,8,29],[1,44,4,45],[1,46,4,46],[1,47,4,50],[5,2,8,4],[5,5,8,6],[5,7,8,7],[5,8,8,9],[5,10,8,11],[5,12,8,12],[5,13,8,16],[1,29,4,29],[1,30,4,33],[1,36,4,38],[1,39,4,40],[1,41,4,41],[1,42,4,43],[1,27,4,28],[1,2,4,4],[1,5,4,6],[1,7,4,7],[1,8,4,9],[1,10,4,11],[1,12,4,12],[1,13,4,16],[1,19,4,21],[1,22,4,23],[1,24,4,24],[1,25,4,26]]}
[]
[null,null,"Ø  Stop for 5 real time minutes at Dix, Snow Shoe & Howard stations and flag stops that display a blue  flag.\n",null,null,"Ø Maximum train length of 6 cars",null,"Ø Maximum mainline speed 40 MPH","ØSpeed restrictions include 20 MPH for bridges and turnouts",null,"ØContact Dispatch @ control points as directed by Dispatch\n",null,null,"REMEMBER - \"You may know where your train is and God may know where your train is, but if the Dispatcher does not know ... you better be on good terms with God.\"",null,null,null,null,null,"Ø  Stop for 5 real time minutes at Dix, Snow Shoe & Howard stations and flag stops that display a blue  flag.\n",null,null,"Ø Maximum train length of 6 cars",null,"Ø Maximum mainline speed 40 MPH","ØSpeed restrictions include 20 MPH for bridges and turnouts",null,"ØContact Dispatch @ control points as directed by Dispatch\n",null,null,"REMEMBER - \"You may know where your train is and God may know where your train is, but if the Dispatcher does not know ... you better be on good terms with God.\"",null,null,null,null,null,"Ø  Stop for 5 real time minutes at Dix, Snow Shoe & Howard stations and flag stops that display a blue  flag.\n",null,null,"Ø Maximum train length of 6 cars",null,"Ø Maximum mainline speed 40 MPH","ØSpeed restrictions include 20 MPH for bridges and turnouts",null,"ØContact Dispatch @ control points as directed by Dispatch\n",null,null,"REMEMBER - \"You may know where your train is and God may know where your train is, but if the Dispatcher does not know ... you better be on good terms with God.\""]
[]
[]
[]
[null,null,"Ø  Stop for 5 real time minutes at Dix, Snow Shoe & Howard stations and flag stops that display a blue  flag.\n",null,null,"Ø Maximum train length of 6 cars",null,"Ø Maximum mainline speed 40 MPH","ØSpeed restrictions include 20 MPH for bridges and turnouts",null,"ØContact Dispatch @ control points as directed by Dispatch\n",null,null,"REMEMBER - \"You may know where your train is and God may know where your train is, but if the Dispatcher does not know ... you better be on good terms with God.\"",null,null,null,null,null,"Ø  Stop for 5 real time minutes at Dix, Snow Shoe & Howard stations and flag stops that display a blue  flag.\n",null,null,"Ø Maximum train length of 6 cars",null,"Ø Maximum mainline speed 40 MPH","ØSpeed restrictions include 20 MPH for bridges and turnouts",null,"ØContact Dispatch @ control points as directed by Dispatch\n",null,null,"REMEMBER - \"You may know where your train is and God may know where your train is, but if the Dispatcher does not know ... you better be on good terms with God.\"",null,null,null,null,null,"Ø  Stop for 5 real time minutes at Dix, Snow Shoe & Howard stations and flag stops that display a blue  flag.\n",null,null,"Ø Maximum train length of 6 cars",null,"Ø Maximum mainline speed 40 MPH","ØSpeed restrictions include 20 MPH for bridges and turnouts",null,"ØContact Dispatch @ control points as directed by Dispatch\n",null,null,"REMEMBER - \"You may know where your train is and God may know where your train is, but if the Dispatcher does not know ... you better be on good terms with God.\""]
[]
[]
[]
[null,null,"Ø  Stop for 5 real time minutes at Dix, Snow Shoe & Howard stations and flag stops that display a blue  flag.\n",null,null,"Ø Maximum train length of 6 cars",null,"Ø Maximum mainline speed 40 MPH","ØSpeed restrictions include 20 MPH for bridges and turnouts",null,"ØContact Dispatch @ control points as directed by Dispatch\n",null,null,"REMEMBER - \"You may know where your train is and God may know where your train is, but if the Dispatcher does not know ... you better be on good terms with God.\"",null,null,null,null,null,"Ø  Stop for 5 real time minutes at Dix, Snow Shoe & Howard stations and flag stops that display a blue  flag.\n",null,null,"Ø Maximum train length of 6 cars",null,"Ø Maximum mainline speed 40 MPH","ØSpeed restrictions include 20 MPH for bridges and turnouts",null,"ØContact Dispatch @ control points as directed by Dispatch\n",null,null,"REMEMBER - \"You may know where your train is and God may know where your train is, but if the Dispatcher does not know ... you better be on good terms with God.\"",null,null,null,null,null,"Ø  Stop for 5 real time minutes at Dix, Snow Shoe & Howard stations and flag stops that display a blue  flag.\n",null,null,"Ø Maximum train length of 6 cars",null,"Ø Maximum mainline speed 40 MPH","ØSpeed restrictions include 20 MPH for bridges and turnouts",null,"ØContact Dispatch @ control points as directed by Dispatch\n",null,null,"REMEMBER - \"You may know where your train is and God may know where your train is, but if the Dispatcher does not know ... you better be on good terms with God.\""]
[]
[]
[]
[null,null,"Ø  Stop for 5 real time minutes at Dix, Snow Shoe & Howard stations and flag stops that display a blue  flag.\n",null,null,"Ø Maximum train length of 6 cars",null,"Ø Maximum mainline speed 40 MPH","ØSpeed restrictions include 20 MPH for bridges and turnouts",null,"ØContact Dispatch @ control points as directed by Dispatch\n",null,null,"REMEMBER - \"You may know where your train is and God may know where your train is, but if the Dispatcher does not know ... you better be on good terms with God.\"",null,null,null,null,null,"Ø  Stop for 5 real time minutes at Dix, Snow Shoe & Howard stations and flag stops that display a blue  flag.\n",null,null,"Ø Maximum train length of 6 cars",null,"Ø Maximum mainline speed 40 MPH","ØSpeed restrictions include 20 MPH for bridges and turnouts",null,"ØContact Dispatch @ control points as directed by Dispatch\n",null,null,"REMEMBER - \"You may know where your train is and God may know where your train is, but if the Dispatcher does not know ... you better be on good terms with God.\"",null,null,null,null,null,"Ø  Stop for 5 real time minutes at Dix, Snow Shoe & Howard stations and flag stops that display a blue  flag.\n",null,null,"Ø Maximum train length of 6 cars",null,"Ø Maximum mainline speed 40 MPH","ØSpeed restrictions include 20 MPH for bridges and turnouts",null,"ØContact Dispatch @ control points as directed by Dispatch\n",null,null,"REMEMBER - \"You may know where your train is and God may know where your train is, but if the Dispatcher does not know ... you better be on good terms with God.\""]

{"sheet":"W-B 511 Passenger, Front","index":20,"n_rows":14,"n_cols":50,"rows_kept":14,"cut":false,"hidden":false,"merged":[[13,39,16,39],[13,40,16,40],[13,41,16,42],[13,43,16,44],[13,48,16,48],[13,49,16,50],[13,26,16,27],[13,31,16,31],[13,32,16,33],[13,36,16,36],[13,37,16,37],[13,38,16,38],[13,19,16,19],[13,20,16,20],[13,21,16,21],[13,22,16,22],[13,23,16,23],[13,24,16,25],[9,49,12,50],[13,2,16,2],[13,3,16,3],[13,4,16,4],[13,5,16,5],[13,6,16,6],[13,7,16,8],[13,9,16,10],[13,14,16,14],[13,15,16,16],[9,38,12,38],[9,39,12,39],[9,40,12,40],[9,41,12,42],[9,43,12,44],[9,48,12,48],[9,24,12,25],[9,26,12,27],[9,31,12,31],[9,32,12,33],[9,36,12,36],[9,37,12,37],[9,15,12,16],[9,19,12,19],[9,20,12,20],[9,21,12,21],[9,22,12,22],[9,23,12,23],[5,48,8,48],[5,49,8,50],[9,2,12,2],[9,3,12,3],[9,4,12,4],[9,5,12,5],[9,6,12,6],[9,7,12,8],[9,9,12,10],[9,14,12,14],[5,37,8,37],[5,38,8,38],[5,39,8,39],[5,40,8,40],[5,41,8,42],[5,43,8,44],[5,23,8,23],[5,24,8,25],[5,26,8,27],[5,31,8,31],[5,32,8,33],[5,36,8,36],[5,14,8,14],[5,15,8,16],[5,19,8,19],[5,20,8,20],[5,21,8,21],[5,22,8,22],[1,43,4,44],[1,48,4,48],[1,49,4,50],[5,2,8,2],[5,3,8,3],[5,4,8,4],[5,5,8,5],[5,6,8,6],[5,7,8,8],[5,9,8,10],[1,36,4,36],[1,37,4,37],[1,38,4,38],[1,39,4,39],[1,40,4,40],[1,41,4,42],[1,22,4,22],[1,23,4,23],[1,24,4,25],[1,26,4,27],[1,31,4,31],[1,32,4,33],[1,9,4,10],[1,14,4,14],[1,15,4,16],[1,19,4,19],[1,20,4,20],[1,21,4,21],[1,2,4,2],[1,3,4,3],[1,4,4,4],[1,5,4,5],[1,6,4,6],[1,7,4,8]]}
[]
[null,null,"TRAIN INSTRUCTIONS","w/B Passenger","TRAIN No. 511","Ø Pick up train at LH Tower","Ø Run W/B to Tyrone","ØContact East Tyrone Yardmaster @ yard limits to coordinate movement through Yard",null,"Ø Release train at Park Tower after contacting Tyrone Yardmaster.",null,null,null,null,"<OVER>","ALWAYS OBTAIN DISPATCHER CLEARANCE WHEN OPERATING BEYOND YARD LIMITS!!\n",null,null,null,"TRAIN INSTRUCTIONS","W/B 511 Passenger","TRAIN No. 511","Ø Pick up train at LH Tower","Ø Run W/B to Tyrone","ØContact East Tyrone Yardmaster @ yard limits to coordinate movement through Yard",null,"Ø Release train at Park Tower after contacting Tyrone Yardmaster.",null,null,null,null,"<OVER>","ALWAYS OBTAIN DISPATCHER CLEARANCE WHEN OPERATING BEYOND YARD LIMITS!!\n",null,null,null,"TRAIN INSTRUCTIONS","W/B 511 Passenger","TRAIN No. 511","Ø Pick up train at LH Tower","Ø Run W/B to Tyrone","ØContact East Tyrone Yardmaster @ yard limits to coordinate movement through Yard",null,"Ø Release train at Park Tower after contacting Tyrone Yardmaster.",null,null,null,null,"<OVER>","ALWAYS OBTAIN DISPATCHER CLEARANCE WHEN OPERATING BEYOND YARD LIMITS!!\n"]
[]
[]
[]
[null,null,"TRAIN INSTRUCTIONS","E/B Passenger","TRAIN No. 511","Ø Pick up train at LH Tower","Ø Run W/B to Tyrone","ØContact East Tyrone Yardmaster @ yard limits to coordinate movement through Yard",null,"Ø Release train at Park Tower after contacting Tyrone Yardmaster.",null,null,null,null,"<OVER>","ALWAYS OBTAIN DISPATCHER CLEARANCE WHEN OPERATING BEYOND YARD LIMITS!!\n",null,null,null,"TRAIN INSTRUCTIONS","W/B 511 Passenger","TRAIN No. 511","Ø Pick up train at LH Tower","Ø Run W/B to Tyrone","ØContact East Tyrone Yardmaster @ yard limits to coordinate movement through Yard",null,"Ø Release train at Park Tower after contacting Tyrone Yardmaster.",null,null,null,null,"<OVER>","ALWAYS OBTAIN DISPATCHER CLEARANCE WHEN OPERATING BEYOND YARD LIMITS!!\n",null,null,null,"TRAIN INSTRUCTIONS","W/B 511 Passenger","TRAIN No. 511","Ø Pick up train at LH Tower","Ø Run W/B to Tyrone","ØContact East Tyrone Yardmaster @ yard limits to coordinate movement through Yard",null,"Ø Release train at Park Tower after contacting Tyrone Yardmaster.",null,null,null,null,"<OVER>","ALWAYS OBTAIN DISPATCHER CLEARANCE WHEN OPERATING BEYOND YARD LIMITS!!\n"]
[]
[]
[]
[null,null,"TRAIN INSTRUCTIONS","E/B Passenger","TRAIN No. 511","Ø Pick up train at LH Tower","Ø Run W/B to Tyrone","ØContact East Tyrone Yardmaster @ yard limits to coordinate movement through Yard",null,"Ø Release train at Park Tower after contacting Tyrone Yardmaster.",null,null,null,null,"<OVER>","ALWAYS OBTAIN DISPATCHER CLEARANCE WHEN OPERATING BEYOND YARD LIMITS!!\n",null,null,null,"TRAIN INSTRUCTIONS","W/B 511 Passenger","TRAIN No. 511","Ø Pick up train at LH Tower","Ø Run W/B to Tyrone","ØContact East Tyrone Yardmaster @ yard limits to coordinate movement through Yard",null,"Ø Release train at Park Tower after contacting Tyrone Yardmaster.",null,null,null,null,"<OVER>","ALWAYS OBTAIN DISPATCHER CLEARANCE WHEN OPERATING BEYOND YARD LIMITS!!\n",null,null,null,"TRAIN INSTRUCTIONS","W/B 511 Passenger","TRAIN No. 511","Ø Pick up train at LH Tower","Ø Run W/B to Tyrone","ØContact East Tyrone Yardmaster @ yard limits to coordinate movement through Yard",null,"Ø Release train at Park Tower after contacting Tyrone Yardmaster.",null,null,null,null,"<OVER>","ALWAYS OBTAIN DISPATCHER CLEARANCE WHEN OPERATING BEYOND YARD LIMITS!!\n"]
[]
[]
[]
[null,null,"TRAIN INSTRUCTIONS","E/B Passenger","TRAIN No. 511","Ø Pick up train at LH Tower","Ø Run W/B to Tyrone","ØContact East Tyrone Yardmaster @ yard limits to coordinate movement through Yard",null,"Ø Release train at Park Tower after contacting Tyrone Yardmaster.",null,null,null,null,"<OVER>","ALWAYS OBTAIN DISPATCHER CLEARANCE WHEN OPERATING BEYOND YARD LIMITS!!\n",null,null,null,"TRAIN INSTRUCTIONS","W/B 511 Passenger","TRAIN No. 511","Ø Pick up train at LH Tower","Ø Run W/B to Tyrone","ØContact East Tyrone Yardmaster @ yard limits to coordinate movement through Yard",null,"Ø Release train at Park Tower after contacting Tyrone Yardmaster.",null,null,null,null,"<OVER>","ALWAYS OBTAIN DISPATCHER CLEARANCE WHEN OPERATING BEYOND YARD LIMITS!!\n",null,null,null,"TRAIN INSTRUCTIONS","W/B 511 Passenger","TRAIN No. 511","Ø Pick up train at LH Tower","Ø Run W/B to Tyrone","ØContact East Tyrone Yardmaster @ yard limits to coordinate movement through Yard",null,"Ø Release train at Park Tower after contacting Tyrone Yardmaster.",null,null,null,null,"<OVER>","ALWAYS OBTAIN DISPATCHER CLEARANCE WHEN OPERATING BEYOND YARD LIMITS!!\n"]

{"sheet":"W-B 511 Passenger, Back","index":21,"n_rows":14,"n_cols":48,"rows_kept":14,"cut":false,"hidden":false,"merged":[[13,47,16,50],[13,24,16,24],[13,25,16,26],[13,27,16,28],[13,29,16,29],[13,30,16,33],[13,36,16,38],[13,39,16,40],[13,41,16,41],[13,42,16,43],[13,44,16,45],[13,46,16,46],[9,47,12,50],[13,2,16,4],[13,5,16,6],[13,7,16,7],[13,8,16,9],[13,10,16,11],[13,12,16,12],[13,13,16,16],[13,19,16,21],[13,22,16,23],[9,36,12,38],[9,39,12,40],[9,41,12,41],[9,42,12,43],[9,44,12,45],[9,46,12,46],[9,22,12,23],[9,24,12,24],[9,25,12,26],[9,27,12,28],[9,29,12,29],[9,30,12,33],[5,46,8,46],[5,47,8,50],[9,2,12,4],[9,5,12,6],[9,7,12,7],[9,8,12,9],[9,10,12,11],[9,12,12,12],[9,13,12,16],[9,19,12,21],[5,30,8,33],[5,36,8,38],[5,39,8,40],[5,41,8,41],[5,42,8,43],[5,44,8,45],[5,19,8,21],[5,22,8,23],[5,24,8,24],[5,25,8,26],[5,27,8,28],[5,29,8,29],[1,44,4,45],[1,46,4,46],[1,47,4,50],[5,2,8,4],[5,5,8,6],[5,7,8,7],[5,8,8,9],[5,10,8,11],[5,12,8,12],[5,13,8,16],[1,29,4,29],[1,30,4,33],[1,36,4,38],[1,39,4,40],[1,41,4,41],[1,42,4,43],[1,27,4,28],[1,2,4,4],[1,5,4,6],[1,7,4,7],[1,8,4,9],[1,10,4,11],[1,12,4,12],[1,13,4,16],[1,19,4,21],[1,22,4,23],[1,24,4,24],[1,25,4,26]]}
[]
[null,null,"Ø  Stop for 5 real time minutes at Howard, Snow Shoe & Dix stations and flag stops that display a blue  flag.\n",null,null,"Ø Maximum train length of 6 cars",null,"Ø Maximum mainline speed 40 MPH","ØSpeed restrictions include 20 MPH for bridges and turnouts",null,"ØContact Dispatch @ control points as directed by Dispatch\n",null,null,"REMEMBER - \"You may know where your train is and God may know where your train is, but if the Dispatcher does not know ... you better be on good terms with God.\"",null,null,null,null,null,"Ø  Stop for 5 real time minutes at Howard, Snow Shoe & Dix stations and flag stops that display a blue  flag.\n",null,null,"Ø Maximum train length of 6 cars",null,"Ø Maximum mainline speed 40 MPH","ØSpeed restrictions include 20 MPH for bridges and turnouts",null,"ØContact Dispatch @ control points as directed by Dispatch\n",null,null,"REMEMBER - \"You may know where your train is and God may know where your train is, but if the Dispatcher does not know ... you better be on good terms with God.\"",null,null,null,null,null,"Ø  Stop for 5 real time minutes at Howard, Snow Shoe & Dix stations and flag stops that display a blue  flag.\n",null,null,"Ø Maximum train length of 6 cars",null,"Ø Maximum mainline speed 40 MPH","ØSpeed restrictions include 20 MPH for bridges and turnouts",null,"ØContact Dispatch @ control points as directed by Dispatch\n",null,null,"REMEMBER - \"You may know where your train is and God may know where your train is, but if the Dispatcher does not know ... you better be on good terms with God.\""]
[]
[]
[]
[null,null,"Ø  Stop for 5 real time minutes at Howard, Snow Shoe & Dix stations and flag stops that display a blue  flag.\n",null,null,"Ø Maximum train length of 6 cars",null,"Ø Maximum mainline speed 40 MPH","ØSpeed restrictions include 20 MPH for bridges and turnouts",null,"ØContact Dispatch @ control points as directed by Dispatch\n",null,null,"REMEMBER - \"You may know where your train is and God may know where your train is, but if the Dispatcher does not know ... you better be on good terms with God.\"",null,null,null,null,null,"Ø  Stop for 5 real time minutes at Howard, Snow Shoe & Dix stations and flag stops that display a blue  flag.\n",null,null,"Ø Maximum train length of 6 cars",null,"Ø Maximum mainline speed 40 MPH","ØSpeed restrictions include 20 MPH for bridges and turnouts",null,"ØContact Dispatch @ control points as directed by Dispatch\n",null,null,"REMEMBER - \"You may know where your train is and God may know where your train is, but if the Dispatcher does not know ... you better be on good terms with God.\"",null,null,null,null,null,"Ø  Stop for 5 real time minutes at Howard, Snow Shoe & Dix stations and flag stops that display a blue  flag.\n",null,null,"Ø Maximum train length of 6 cars",null,"Ø Maximum mainline speed 40 MPH","ØSpeed restrictions include 20 MPH for bridges and turnouts",null,"ØContact Dispatch @ control points as directed by Dispatch\n",null,null,"REMEMBER - \"You may know where your train is and God may know where your train is, but if the Dispatcher does not know ... you better be on good terms with God.\""]
[]
[]
[]
[null,null,"Ø  Stop for 5 real time minutes at Howard, Snow Shoe & Dix stations and flag stops that display a blue  flag.\n",null,null,"Ø Maximum train length of 6 cars",null,"Ø Maximum mainline speed 40 MPH","ØSpeed restrictions include 20 MPH for bridges and turnouts",null,"ØContact Dispatch @ control points as directed by Dispatch\n",null,null,"REMEMBER - \"You may know where your train is and God may know where your train is, but if the Dispatcher does not know ... you better be on good terms with God.\"",null,null,null,null,null,"Ø  Stop for 5 real time minutes at Howard, Snow Shoe & Dix stations and flag stops that display a blue  flag.\n",null,null,"Ø Maximum train length of 6 cars",null,"Ø Maximum mainline speed 40 MPH","ØSpeed restrictions include 20 MPH for bridges and turnouts",null,"ØContact Dispatch @ control points as directed by Dispatch\n",null,null,"REMEMBER - \"You may know where your train is and God may know where your train is, but if the Dispatcher does not know ... you better be on good terms with God.\"",null,null,null,null,null,"Ø  Stop for 5 real time minutes at Howard, Snow Shoe & Dix stations and flag stops that display a blue  flag.\n",null,null,"Ø Maximum train length of 6 cars",null,"Ø Maximum mainline speed 40 MPH","ØSpeed restrictions include 20 MPH for bridges and turnouts",null,"ØContact Dispatch @ control points as directed by Dispatch\n",null,null,"REMEMBER - \"You may know where your train is and God may know where your train is, but if the Dispatcher does not know ... you better be on good terms with God.\""]
[]
[]
[]
[null,null,"Ø  Stop for 5 real time minutes at Howard, Snow Shoe & Dix stations and flag stops that display a blue  flag.\n",null,null,"Ø Maximum train length of 6 cars",null,"Ø Maximum mainline speed 40 MPH","ØSpeed restrictions include 20 MPH for bridges and turnouts",null,"ØContact Dispatch @ control points as directed by Dispatch\n",null,null,"REMEMBER - \"You may know where your train is and God may know where your train is, but if the Dispatcher does not know ... you better be on good terms with God.\"",null,null,null,null,null,"Ø  Stop for 5 real time minutes at Howard, Snow Shoe & Dix stations and flag stops that display a blue  flag.\n",null,null,"Ø Maximum train length of 6 cars",null,"Ø Maximum mainline speed 40 MPH","ØSpeed restrictions include 20 MPH for bridges and turnouts",null,"ØContact Dispatch @ control points as directed by Dispatch\n",null,null,"REMEMBER - \"You may know where your train is and God may know where your train is, but if the Dispatcher does not know ... you better be on good terms with God.\"",null,null,null,null,null,"Ø  Stop for 5 real time minutes at Howard, Snow Shoe & Dix stations and flag stops that display a blue  flag.\n",null,null,"Ø Maximum train length of 6 cars",null,"Ø Maximum mainline speed 40 MPH","ØSpeed restrictions include 20 MPH for bridges and turnouts",null,"ØContact Dispatch @ control points as directed by Dispatch\n",null,null,"REMEMBER - \"You may know where your train is and God may know where your train is, but if the Dispatcher does not know ... you better be on good terms with God.\""]

{"sheet":"East Tyrone Turn, Front","index":22,"n_rows":14,"n_cols":50,"rows_kept":14,"cut":false,"hidden":false,"merged":[[13,39,16,39],[13,40,16,44],[13,45,16,45],[13,46,16,47],[13,48,16,48],[13,49,16,50],[13,29,16,30],[13,31,16,31],[13,32,16,33],[13,36,16,36],[13,37,16,37],[13,38,16,38],[13,19,16,19],[13,20,16,20],[13,21,16,21],[13,22,16,22],[13,23,16,27],[13,28,16,28],[9,49,12,50],[13,2,16,2],[13,3,16,3],[13,4,16,4],[13,5,16,5],[13,6,16,10],[13,11,16,11],[13,12,16,13],[13,14,16,14],[13,15,16,16],[9,38,12,38],[9,39,12,39],[9,40,12,44],[9,45,12,45],[9,46,12,47],[9,48,12,48],[9,28,12,28],[9,29,12,30],[9,31,12,31],[9,32,12,33],[9,36,12,36],[9,37,12,37],[9,15,12,16],[9,19,12,19],[9,20,12,20],[9,21,12,21],[9,22,12,22],[9,23,12,27],[5,48,8,48],[5,49,8,50],[9,2,12,2],[9,3,12,3],[9,4,12,4],[9,5,12,5],[9,6,12,10],[9,11,12,11],[9,12,12,13],[9,14,12,14],[5,37,8,37],[5,38,8,38],[5,39,8,39],[5,40,8,44],[5,45,8,45],[5,46,8,47],[5,23,8,27],[5,28,8,28],[5,29,8,30],[5,31,8,31],[5,32,8,33],[5,36,8,36],[5,14,8,14],[5,15,8,16],[5,19,8,19],[5,20,8,20],[5,21,8,21],[5,22,8,22],[1,46,4,47],[1,48,4,48],[1,49,4,50],[5,2,8,2],[5,3,8,3],[5,4,8,4],[5,5,8,5],[5,6,8,10],[5,11,8,11],[5,12,8,13],[1,36,4,36],[1,37,4,37],[1,38,4,38],[1,39,4,39],[1,40,4,44],[1,45,4,45],[1,22,4,22],[1,23,4,27],[1,28,4,28],[1,29,4,30],[1,31,4,31],[1,32,4,33],[1,12,4,13],[1,14,4,14],[1,15,4,16],[1,19,4,19],[1,20,4,20],[1,21,4,21],[1,2,4,2],[1,3,4,3],[1,4,4,4],[1,5,4,5],[1,6,4,10],[1,11,4,11]]}
[]
[null,null,"TRAIN INSTRUCTIONS","East Tyrone Turn","TRAIN No. is ENGINE No.","Ø Pick up train at Park Tower","ØContact East Tyrone Yardmaster from Vail to coordinate East Tyrone Yard setouts & pickups, all car types except hoppers",null,null,null,null,"Ø Turn engine on East Tyrone wye","Ø Release train at Park Tower after contacting Tyrone Yardmaster.",null,"<OVER>","ALWAYS OBTAIN DISPATCHER CLEARANCE WHEN OPERATING BEYOND YARD LIMITS!!\n",null,null,null,"TRAIN INSTRUCTIONS","East Tyrone Turn","TRAIN No. is ENGINE No.","Ø Pick up train at Park Tower","ØContact East Tyrone Yardmaster from Vail to coordinate East Tyrone Yard setouts & pickups, all car types except hoppers",null,null,null,null,"Ø Turn engine on East Tyrone wye","Ø Release train at Park Tower after contacting Tyrone Yardmaster.",null,"<OVER>","ALWAYS OBTAIN DISPATCHER CLEARANCE WHEN OPERATING BEYOND YARD LIMITS!!\n",null,null,null,"TRAIN INSTRUCTIONS","East Tyrone Turn","TRAIN No. is ENGINE No.","Ø Pick up train at Park Tower","ØContact East Tyrone Yardmaster from Vail to coordinate East Tyrone Yard setouts & pickups, all car types except hoppers",null,null,null,null,"Ø Turn engine on East Tyrone wye","Ø Release train at Park Tower after contacting Tyrone Yardmaster.",null,"<OVER>","ALWAYS OBTAIN DISPATCHER CLEARANCE WHEN OPERATING BEYOND YARD LIMITS!!\n"]
[]
[]
[]
[null,null,"TRAIN INSTRUCTIONS","East Tyrone Turn","TRAIN No. is ENGINE No.","Ø Pick up train at Park Tower","ØContact East Tyrone Yardmaster from Vail to coordinate East Tyrone Yard setouts & pickups, all car types except hoppers",null,null,null,null,"Ø Turn engine on East Tyrone wye","Ø Release train at Park Tower after contacting Tyrone Yardmaster.",null,"<OVER>","ALWAYS OBTAIN DISPATCHER CLEARANCE WHEN OPERATING BEYOND YARD LIMITS!!\n",null,null,null,"TRAIN INSTRUCTIONS","East Tyrone Turn","TRAIN No. is ENGINE No.","Ø Pick up train at Park Tower","ØContact East Tyrone Yardmaster from Vail to coordinate East Tyrone Yard setouts & pickups, all car types except hoppers",null,null,null,null,"Ø Turn engine on East Tyrone wye","Ø Release train at Park Tower after contacting Tyrone Yardmaster.",null,"<OVER>","ALWAYS OBTAIN DISPATCHER CLEARANCE WHEN OPERATING BEYOND YARD LIMITS!!\n",null,null,null,"TRAIN INSTRUCTIONS","East Tyrone Turn","TRAIN No. is ENGINE No.","Ø Pick up train at Park Tower","ØContact East Tyrone Yardmaster from Vail to coordinate East Tyrone Yard setouts & pickups, all car types except hoppers",null,null,null,null,"Ø Turn engine on East Tyrone wye","Ø Release train at Park Tower after contacting Tyrone Yardmaster.",null,"<OVER>","ALWAYS OBTAIN DISPATCHER CLEARANCE WHEN OPERATING BEYOND YARD LIMITS!!\n"]
[]
[]
[]
[null,null,"TRAIN INSTRUCTIONS","East Tyrone Turn","TRAIN No. is ENGINE No.","Ø Pick up train at Park Tower","ØContact East Tyrone Yardmaster from Vail to coordinate East Tyrone Yard setouts & pickups, all car types except hoppers",null,null,null,null,"Ø Turn engine on East Tyrone wye","Ø Release train at Park Tower after contacting Tyrone Yardmaster.",null,"<OVER>","ALWAYS OBTAIN DISPATCHER CLEARANCE WHEN OPERATING BEYOND YARD LIMITS!!\n",null,null,null,"TRAIN INSTRUCTIONS","East Tyrone Turn","TRAIN No. is ENGINE No.","Ø Pick up train at Park Tower","ØContact East Tyrone Yardmaster from Vail to coordinate East Tyrone Yard setouts & pickups, all car types except hoppers",null,null,null,null,"Ø Turn engine on East Tyrone wye","Ø Release train at Park Tower after contacting Tyrone Yardmaster.",null,"<OVER>","ALWAYS OBTAIN DISPATCHER CLEARANCE WHEN OPERATING BEYOND YARD LIMITS!!\n",null,null,null,"TRAIN INSTRUCTIONS","East Tyrone Turn","TRAIN No. is ENGINE No.","Ø Pick up train at Park Tower","ØContact East Tyrone Yardmaster from Vail to coordinate East Tyrone Yard setouts & pickups, all car types except hoppers",null,null,null,null,"Ø Turn engine on East Tyrone wye","Ø Release train at Park Tower after contacting Tyrone Yardmaster.",null,"<OVER>","ALWAYS OBTAIN DISPATCHER CLEARANCE WHEN OPERATING BEYOND YARD LIMITS!!\n"]
[]
[]
[]
[null,null,"TRAIN INSTRUCTIONS","East Tyrone Turn","TRAIN No. is ENGINE No.","Ø Pick up train at Park Tower","ØContact East Tyrone Yardmaster from Vail to coordinate East Tyrone Yard setouts & pickups, all car types except hoppers",null,null,null,null,"Ø Turn engine on East Tyrone wye","Ø Release train at Park Tower after contacting Tyrone Yardmaster.",null,"<OVER>","ALWAYS OBTAIN DISPATCHER CLEARANCE WHEN OPERATING BEYOND YARD LIMITS!!\n",null,null,null,"TRAIN INSTRUCTIONS","East Tyrone Turn","TRAIN No. is ENGINE No.","Ø Pick up train at Park Tower","ØContact East Tyrone Yardmaster from Vail to coordinate East Tyrone Yard setouts & pickups, all car types except hoppers",null,null,null,null,"Ø Turn engine on East Tyrone wye","Ø Release train at Park Tower after contacting Tyrone Yardmaster.",null,"<OVER>","ALWAYS OBTAIN DISPATCHER CLEARANCE WHEN OPERATING BEYOND YARD LIMITS!!\n",null,null,null,"TRAIN INSTRUCTIONS","East Tyrone Turn","TRAIN No. is ENGINE No.","Ø Pick up train at Park Tower","ØContact East Tyrone Yardmaster from Vail to coordinate East Tyrone Yard setouts & pickups, all car types except hoppers",null,null,null,null,"Ø Turn engine on East Tyrone wye","Ø Release train at Park Tower after contacting Tyrone Yardmaster.",null,"<OVER>","ALWAYS OBTAIN DISPATCHER CLEARANCE WHEN OPERATING BEYOND YARD LIMITS!!\n"]

{"sheet":"East Tyrone Turn, Back","index":23,"n_rows":14,"n_cols":48,"rows_kept":14,"cut":false,"hidden":false,"merged":[[13,38,16,38],[5,44,8,45],[13,47,16,50],[9,47,12,50],[13,2,16,3],[13,5,16,6],[13,7,16,9],[13,10,16,11],[13,12,16,12],[13,13,16,16],[13,19,16,20],[13,22,16,23],[13,24,16,26],[13,39,16,40],[13,41,16,43],[13,44,16,45],[13,46,16,46],[1,46,4,46],[5,46,8,46],[5,47,8,50],[9,2,12,3],[9,5,12,6],[9,7,12,9],[9,10,12,11],[9,12,12,12],[9,13,12,16],[9,19,12,20],[9,22,12,23],[9,46,12,46],[5,38,8,38],[5,36,8,37],[5,39,8,40],[5,41,8,43],[13,27,16,28],[1,47,4,50],[5,2,8,3],[5,5,8,6],[5,7,8,9],[5,10,8,11],[5,12,8,12],[5,13,8,16],[5,19,8,20],[5,22,8,23],[5,24,8,26],[1,30,4,33],[1,36,4,37],[1,39,4,40],[1,41,4,43],[1,44,4,45],[13,4,16,4],[9,38,12,38],[9,39,12,40],[9,41,12,43],[9,44,12,45],[9,27,12,28],[9,29,12,29],[9,30,12,33],[9,36,12,37],[9,21,12,21],[9,24,12,26],[9,4,12,4],[13,29,16,29],[13,30,16,33],[13,36,16,37],[13,21,16,21],[5,27,8,28],[5,29,8,29],[5,30,8,33],[5,21,8,21],[5,4,8,4],[1,38,4,38],[1,22,4,23],[1,24,4,26],[1,27,4,28],[1,29,4,29],[1,2,4,3],[1,5,4,6],[1,7,4,9],[1,10,4,11],[1,21,4,21],[1,12,4,12],[1,13,4,16],[1,19,4,20],[1,4,4,4]]}
[]
[null,null,"Ø Maximum train length of 12 revenue cars plus cabin car.",null,"Ø Maximum mainline speed 25 MPH","ØSpeed restrictions include 10 MPH for bridges and turnouts",null,"Ø Set off and pickup cars other than coal hoppers at all locations (handle hoppers only  if directed to do so by dispatcher)\n",null,null,"ØContact Dispatch @ control points as directed by Dispatch\n",null,null,"REMEMBER - \"You may know where your train is and God may know where your train is, but if the Dispatcher does not know ... you better be on good terms with God.\"",null,null,null,null,null,"Ø Maximum train length of 12 revenue cars plus cabin car.",null,"Ø Maximum mainline speed 25 MPH","ØSpeed restrictions include 10 MPH for bridges and turnouts",null,"Ø Set off and pickup cars other than coal hoppers at all locations (handle hoppers only  if directed to do so by dispatcher)\n",null,null,"ØContact Dispatch @ control points as directed by Dispatch\n",null,null,"REMEMBER - \"You may know where your train is and God may know where your train is, but if the Dispatcher does not know ... you better be on good terms with God.\"",null,null,null,null,null,"Ø Maximum train length of 12 revenue cars plus cabin car.",null,"Ø Maximum mainline speed 25 MPH","ØSpeed restrictions include 10 MPH for bridges and turnouts",null,"Ø Set off and pickup cars other than coal hoppers at all locations (handle hoppers only  if directed to do so by dispatcher)\n",null,null,"ØContact Dispatch @ control points as directed by Dispatch\n",null,null,"REMEMBER - \"You may know where your train is and God may know where your train is, but if the Dispatcher does not know ... you better be on good terms with God.\""]
[]
[]
[]
[null,null,"Ø Maximum train length of 12 revenue cars plus cabin car.",null,"Ø Maximum mainline speed 25 MPH","ØSpeed restrictions include 10 MPH for bridges and turnouts",null,"Ø Set off and pickup cars other than coal hoppers at all locations (handle hoppers only  if directed to do so by dispatcher)\n",null,null,"ØContact Dispatch @ control points as directed by Dispatch\n",null,null,"REMEMBER - \"You may know where your train is and God may know where your train is, but if the Dispatcher does not know ... you better be on good terms with God.\"",null,null,null,null,null,"Ø Maximum train length of 12 revenue cars plus cabin car.",null,"Ø Maximum mainline speed 25 MPH","ØSpeed restrictions include 10 MPH for bridges and turnouts",null,"Ø Set off and pickup cars other than coal hoppers at all locations (handle hoppers only  if directed to do so by dispatcher)\n",null,null,"ØContact Dispatch @ control points as directed by Dispatch\n",null,null,"REMEMBER - \"You may know where your train is and God may know where your train is, but if the Dispatcher does not know ... you better be on good terms with God.\"",null,null,null,null,null,"Ø Maximum train length of 12 revenue cars plus cabin car.",null,"Ø Maximum mainline speed 25 MPH","ØSpeed restrictions include 10 MPH for bridges and turnouts",null,"Ø Set off and pickup cars other than coal hoppers at all locations (handle hoppers only  if directed to do so by dispatcher)\n",null,null,"ØContact Dispatch @ control points as directed by Dispatch\n",null,null,"REMEMBER - \"You may know where your train is and God may know where your train is, but if the Dispatcher does not know ... you better be on good terms with God.\""]
[]
[]
[]
[null,null,"Ø Maximum train length of 12 revenue cars plus cabin car.",null,"Ø Maximum mainline speed 25 MPH","ØSpeed restrictions include 10 MPH for bridges and turnouts",null,"Ø Set off and pickup cars other than coal hoppers at all locations (handle hoppers only  if directed to do so by dispatcher)\n",null,null,"ØContact Dispatch @ control points as directed by Dispatch\n",null,null,"REMEMBER - \"You may know where your train is and God may know where your train is, but if the Dispatcher does not know ... you better be on good terms with God.\"",null,null,null,null,null,"Ø Maximum train length of 12 revenue cars plus cabin car.",null,"Ø Maximum mainline speed 25 MPH","ØSpeed restrictions include 10 MPH for bridges and turnouts",null,"Ø Set off and pickup cars other than coal hoppers at all locations (handle hoppers only  if directed to do so by dispatcher)\n",null,null,"ØContact Dispatch @ control points as directed by Dispatch\n",null,null,"REMEMBER - \"You may know where your train is and God may know where your train is, but if the Dispatcher does not know ... you better be on good terms with God.\"",null,null,null,null,null,"Ø Maximum train length of 12 revenue cars plus cabin car.",null,"Ø Maximum mainline speed 25 MPH","ØSpeed restrictions include 10 MPH for bridges and turnouts",null,"Ø Set off and pickup cars other than coal hoppers at all locations (handle hoppers only  if directed to do so by dispatcher)\n",null,null,"ØContact Dispatch @ control points as directed by Dispatch\n",null,null,"REMEMBER - \"You may know where your train is and God may know where your train is, but if the Dispatcher does not know ... you better be on good terms with God.\""]
[]
[]
[]
[null,null,"Ø Maximum train length of 12 revenue cars plus cabin car.",null,"Ø Maximum mainline speed 25 MPH","ØSpeed restrictions include 10 MPH for bridges and turnouts",null,"Ø Set off and pickup cars other than coal hoppers at all locations (handle hoppers only  if directed to do so by dispatcher)\n",null,null,"ØContact Dispatch @ control points as directed by Dispatch\n",null,null,"REMEMBER - \"You may know where your train is and God may know where your train is, but if the Dispatcher does not know ... you better be on good terms with God.\"",null,null,null,null,null,"Ø Maximum train length of 12 revenue cars plus cabin car.",null,"Ø Maximum mainline speed 25 MPH","ØSpeed restrictions include 10 MPH for bridges and turnouts",null,"Ø Set off and pickup cars other than coal hoppers at all locations (handle hoppers only  if directed to do so by dispatcher)\n",null,null,"ØContact Dispatch @ control points as directed by Dispatch\n",null,null,"REMEMBER - \"You may know where your train is and God may know where your train is, but if the Dispatcher does not know ... you better be on good terms with God.\"",null,null,null,null,null,"Ø Maximum train length of 12 revenue cars plus cabin car.",null,"Ø Maximum mainline speed 25 MPH","ØSpeed restrictions include 10 MPH for bridges and turnouts",null,"Ø Set off and pickup cars other than coal hoppers at all locations (handle hoppers only  if directed to do so by dispatcher)\n",null,null,"ØContact Dispatch @ control points as directed by Dispatch\n",null,null,"REMEMBER - \"You may know where your train is and God may know where your train is, but if the Dispatcher does not know ... you better be on good terms with God.\""]

{"sheet":"Lock Haven Turn, Front","index":24,"n_rows":14,"n_cols":50,"rows_kept":14,"cut":false,"hidden":false,"merged":[[13,40,16,41],[13,42,16,44],[13,45,16,45],[13,46,16,47],[13,48,16,48],[13,49,16,50],[13,31,16,31],[13,32,16,33],[13,36,16,36],[13,37,16,37],[13,38,16,38],[13,39,16,39],[13,21,16,21],[13,22,16,22],[13,23,16,24],[13,25,16,27],[13,28,16,28],[13,29,16,30],[13,11,16,11],[13,12,16,13],[13,14,16,14],[13,15,16,16],[13,19,16,19],[13,20,16,20],[13,2,16,2],[13,3,16,3],[13,4,16,4],[13,5,16,5],[13,6,16,7],[13,8,16,10],[9,40,12,41],[9,42,12,44],[9,45,12,45],[9,21,12,21],[9,22,12,22],[9,23,12,24],[9,25,12,27],[9,28,12,28],[9,29,12,30],[9,11,12,11],[9,12,12,13],[9,14,12,14],[9,15,12,16],[9,19,12,19],[9,20,12,20],[9,2,12,2],[9,3,12,3],[9,4,12,4],[9,46,12,47],[9,48,12,48],[9,49,12,50],[9,31,12,31],[9,32,12,33],[9,36,12,36],[9,37,12,37],[9,38,12,38],[9,39,12,39],[9,5,12,5],[9,6,12,7],[9,8,12,10],[5,40,8,41],[5,42,8,44],[5,45,8,45],[5,46,8,47],[5,48,8,48],[5,49,8,50],[5,31,8,31],[5,32,8,33],[5,36,8,36],[5,37,8,37],[5,38,8,38],[5,39,8,39],[5,21,8,21],[5,22,8,22],[5,23,8,24],[5,25,8,27],[5,28,8,28],[5,29,8,30],[5,11,8,11],[5,12,8,13],[5,14,8,14],[5,15,8,16],[5,19,8,19],[5,20,8,20],[5,2,8,2],[5,3,8,3],[5,4,8,4],[5,5,8,5],[5,6,8,7],[5,8,8,10],[1,40,4,41],[1,42,4,44],[1,45,4,45],[1,46,4,47],[1,48,4,48],[1,49,4,50],[1,31,4,31],[1,32,4,33],[1,36,4,36],[1,37,4,37],[1,38,4,38],[1,39,4,39],[1,25,4,27],[1,28,4,28],[1,29,4,30],[1,11,4,11],[1,12,4,13],[1,14,4,14],[1,15,4,16],[1,19,4,19],[1,20,4,20],[1,2,4,2],[1,3,4,3],[1,4,4,4],[1,5,4,5],[1,6,4,7],[1,8,4,10],[1,21,4,21],[1,22,4,22],[1,23,4,24]]}
[]
[null,null,"TRAIN INSTRUCTIONS","Lock Haven Turn","TRAIN No. is ENGINE No.","Ø Pick up train at LH Tower","Ø Run W/B to Tyrone making set outs and pickups as dictated by the waybills.",null,"ØContact East Tyrone Yardmaster from Vail to coordinate East Tyrone yard setouts & pickups",null,null,"Ø Turn engine on East Tyrone wye","Ø Return E/B, release train at LH Tower after contacting Lock Haven Yardmaster.",null,"<OVER>","ALWAYS OBTAIN DISPATCHER CLEARANCE WHEN OPERATING BEYOND YARD LIMITS!!\n",null,null,null,"TRAIN INSTRUCTIONS","Lock Haven Turn","TRAIN No. is ENGINE No.","Ø Pick up train at LH Tower","Ø Run W/B to Tyrone making set outs and pickups as dictated by the waybills.",null,"ØContact East Tyrone Yardmaster from Vail to coordinate East Tyrone yard setouts & pickups",null,null,"Ø Turn engine on East Tyrone wye","Ø Return E/B, release train at LH Tower after contacting Lock Haven Yardmaster.",null,"<OVER>","ALWAYS OBTAIN DISPATCHER CLEARANCE WHEN OPERATING BEYOND YARD LIMITS!!\n",null,null,null,"TRAIN INSTRUCTIONS","Lock Haven Turn","TRAIN No. is ENGINE No.","Ø Pick up train at LH Tower","Ø Run W/B to Tyrone making set outs and pickups as dictated by the waybills.",null,"ØContact East Tyrone Yardmaster from Vail to coordinate East Tyrone yard setouts & pickups",null,null,"Ø Turn engine on East Tyrone wye","Ø Return E/B, release train at LH Tower after contacting Lock Haven Yardmaster.",null,"<OVER>","ALWAYS OBTAIN DISPATCHER CLEARANCE WHEN OPERATING BEYOND YARD LIMITS!!\n"]
[]
[]
[]
[null,null,"TRAIN INSTRUCTIONS","Lock Haven Turn","TRAIN No. is ENGINE No.","Ø Pick up train at LH Tower","Ø Run W/B to Tyrone making set outs and pickups as dictated by the waybills.",null,"ØContact East Tyrone Yardmaster from Vail to coordinate East Tyrone yard setouts & pickups",null,null,"Ø Turn engine on East Tyrone wye","Ø Return E/B, release train at LH Tower after contacting Lock Haven Yardmaster.",null,"<OVER>","ALWAYS OBTAIN DISPATCHER CLEARANCE WHEN OPERATING BEYOND YARD LIMITS!!\n",null,null,null,"TRAIN INSTRUCTIONS","Lock Haven Turn","TRAIN No. is ENGINE No.","Ø Pick up train at LH Tower","Ø Run W/B to Tyrone making set outs and pickups as dictated by the waybills.",null,"ØContact East Tyrone Yardmaster from Vail to coordinate East Tyrone yard setouts & pickups",null,null,"Ø Turn engine on East Tyrone wye","Ø Return E/B, release train at LH Tower after contacting Lock Haven Yardmaster.",null,"<OVER>","ALWAYS OBTAIN DISPATCHER CLEARANCE WHEN OPERATING BEYOND YARD LIMITS!!\n",null,null,null,"TRAIN INSTRUCTIONS","Lock Haven Turn","TRAIN No. is ENGINE No.","Ø Pick up train at LH Tower","Ø Run W/B to Tyrone making set outs and pickups as dictated by the waybills.",null,"ØContact East Tyrone Yardmaster from Vail to coordinate East Tyrone yard setouts & pickups",null,null,"Ø Turn engine on East Tyrone wye","Ø Return E/B, release train at LH Tower after contacting Lock Haven Yardmaster.",null,"<OVER>","ALWAYS OBTAIN DISPATCHER CLEARANCE WHEN OPERATING BEYOND YARD LIMITS!!\n"]
[]
[]
[]
[null,null,"TRAIN INSTRUCTIONS","Lock Haven Turn","TRAIN No. is ENGINE No.","Ø Pick up train at LH Tower","Ø Run W/B to Tyrone making set outs and pickups as dictated by the waybills.",null,"ØContact East Tyrone Yardmaster from Vail to coordinate East Tyrone yard setouts & pickups",null,null,"Ø Turn engine on East Tyrone wye","Ø Return E/B, release train at LH Tower after contacting Lock Haven Yardmaster.",null,"<OVER>","ALWAYS OBTAIN DISPATCHER CLEARANCE WHEN OPERATING BEYOND YARD LIMITS!!\n",null,null,null,"TRAIN INSTRUCTIONS","Lock Haven Turn","TRAIN No. is ENGINE No.","Ø Pick up train at LH Tower","Ø Run W/B to Tyrone making set outs and pickups as dictated by the waybills.",null,"ØContact East Tyrone Yardmaster from Vail to coordinate East Tyrone yard setouts & pickups",null,null,"Ø Turn engine on East Tyrone wye","Ø Return E/B, release train at LH Tower after contacting Lock Haven Yardmaster.",null,"<OVER>","ALWAYS OBTAIN DISPATCHER CLEARANCE WHEN OPERATING BEYOND YARD LIMITS!!\n",null,null,null,"TRAIN INSTRUCTIONS","Lock Haven Turn","TRAIN No. is ENGINE No.","Ø Pick up train at LH Tower","Ø Run W/B to Tyrone making set outs and pickups as dictated by the waybills.",null,"ØContact East Tyrone Yardmaster from Vail to coordinate East Tyrone yard setouts & pickups",null,null,"Ø Turn engine on East Tyrone wye","Ø Return E/B, release train at LH Tower after contacting Lock Haven Yardmaster.",null,"<OVER>","ALWAYS OBTAIN DISPATCHER CLEARANCE WHEN OPERATING BEYOND YARD LIMITS!!\n"]
[]
[]
[]
[null,null,"TRAIN INSTRUCTIONS","Lock Haven Turn","TRAIN No. is ENGINE No.","Ø Pick up train at LH Tower","Ø Run W/B to Tyrone making set outs and pickups as dictated by the waybills.",null,"ØContact East Tyrone Yardmaster from Vail to coordinate East Tyrone yard setouts & pickups",null,null,"Ø Turn engine on East Tyrone wye","Ø Return E/B, release train at LH Tower after contacting Lock Haven Yardmaster.",null,"<OVER>","ALWAYS OBTAIN DISPATCHER CLEARANCE WHEN OPERATING BEYOND YARD LIMITS!!\n",null,null,null,"TRAIN INSTRUCTIONS","Lock Haven Turn","TRAIN No. is ENGINE No.","Ø Pick up train at LH Tower","Ø Run W/B to Tyrone making set outs and pickups as dictated by the waybills.",null,"ØContact East Tyrone Yardmaster from Vail to coordinate East Tyrone yard setouts & pickups",null,null,"Ø Turn engine on East Tyrone wye","Ø Return E/B, release train at LH Tower after contacting Lock Haven Yardmaster.",null,"<OVER>","ALWAYS OBTAIN DISPATCHER CLEARANCE WHEN OPERATING BEYOND YARD LIMITS!!\n",null,null,null,"TRAIN INSTRUCTIONS","Lock Haven Turn","TRAIN No. is ENGINE No.","Ø Pick up train at LH Tower","Ø Run W/B to Tyrone making set outs and pickups as dictated by the waybills.",null,"ØContact East Tyrone Yardmaster from Vail to coordinate East Tyrone yard setouts & pickups",null,null,"Ø Turn engine on East Tyrone wye","Ø Return E/B, release train at LH Tower after contacting Lock Haven Yardmaster.",null,"<OVER>","ALWAYS OBTAIN DISPATCHER CLEARANCE WHEN OPERATING BEYOND YARD LIMITS!!\n"]

{"sheet":"Lock Haven Turn, Back","index":25,"n_rows":14,"n_cols":48,"rows_kept":14,"cut":false,"hidden":false,"merged":[[13,47,16,50],[13,19,16,20],[13,21,16,21],[13,22,16,23],[13,24,16,27],[13,28,16,29],[13,30,16,33],[13,36,16,37],[13,38,16,38],[13,39,16,40],[13,41,16,44],[13,45,16,46],[13,2,16,3],[13,4,16,4],[13,5,16,6],[13,7,16,10],[13,11,16,12],[13,13,16,16],[9,36,12,37],[9,38,12,38],[9,39,12,40],[9,41,12,44],[9,13,12,16],[9,45,12,46],[9,47,12,50],[9,19,12,20],[9,21,12,21],[9,22,12,23],[9,24,12,27],[9,28,12,29],[9,30,12,33],[9,2,12,3],[9,4,12,4],[9,5,12,6],[9,7,12,10],[9,11,12,12],[5,47,8,50],[5,19,8,20],[5,21,8,21],[5,22,8,23],[5,24,8,27],[5,28,8,29],[5,30,8,33],[5,36,8,37],[5,38,8,38],[5,39,8,40],[5,41,8,44],[5,45,8,46],[5,2,8,3],[5,4,8,4],[5,5,8,6],[5,7,8,10],[5,11,8,12],[5,13,8,16],[1,36,4,37],[1,38,4,38],[1,39,4,40],[1,41,4,44],[1,13,4,16],[1,45,4,46],[1,47,4,50],[1,19,4,20],[1,21,4,21],[1,22,4,23],[1,24,4,27],[1,28,4,29],[1,30,4,33],[1,2,4,3],[1,4,4,4],[1,5,4,6],[1,7,4,10],[1,11,4,12]]}
[]
[null,null,"Ø Maximum train length of 12 revenue cars plus cabin car.",null,"Ø Maximum mainline speed 25 MPH","ØSpeed restrictions include 10 MPH for bridges and turnouts",null,"Ø Set off and pickup cars while traveling in both directions other than coal hoppers at all locations (handle hoppers only  if directed by dispatcher)\n",null,null,null,"ØContact Dispatch @ control points as directed by Dispatch\n",null,"REMEMBER - \"You may know where your train is and God may know where your train is, but if the Dispatcher does not know ... you better be on good terms with God.\"",null,null,null,null,null,"Ø Maximum train length of 12 revenue cars plus cabin car.",null,"Ø Maximum mainline speed 25 MPH","ØSpeed restrictions include 10 MPH for bridges and turnouts",null,"Ø Set off and pickup cars while traveling in both directions other than coal hoppers at all locations (handle hoppers only  if directed by dispatcher)\n",null,null,null,"ØContact Dispatch @ control points as directed by Dispatch\n",null,"REMEMBER - \"You may know where your train is and God may know where your train is, but if the Dispatcher does not know ... you better be on good terms with God.\"",null,null,null,null,null,"Ø Maximum train length of 12 revenue cars plus cabin car.",null,"Ø Maximum mainline speed 25 MPH","ØSpeed restrictions include 10 MPH for bridges and turnouts",null,"Ø Set off and pickup cars while traveling in both directions other than coal hoppers at all locations (handle hoppers only  if directed by dispatcher)\n",null,null,null,"ØContact Dispatch @ control points as directed by Dispatch\n",null,"REMEMBER - \"You may know where your train is and God may know where your train is, but if the Dispatcher does not know ... you better be on good terms with God.\""]
[]
[]
[]
[null,null,"Ø Maximum train length of 12 revenue cars plus cabin car.",null,"Ø Maximum mainline speed 25 MPH","ØSpeed restrictions include 10 MPH for bridges and turnouts",null,"Ø Set off and pickup cars while traveling in both directions other than coal hoppers at all locations (handle hoppers only  if directed by dispatcher)\n",null,null,null,"ØContact Dispatch @ control points as directed by Dispatch\n",null,"REMEMBER - \"You may know where your train is and God may know where your train is, but if the Dispatcher does not know ... you better be on good terms with God.\"",null,null,null,null,null,"Ø Maximum train length of 12 revenue cars plus cabin car.",null,"Ø Maximum mainline speed 25 MPH","ØSpeed restrictions include 10 MPH for bridges and turnouts",null,"Ø Set off and pickup cars while traveling in both directions other than coal hoppers at all locations (handle hoppers only  if directed by dispatcher)\n",null,null,null,"ØContact Dispatch @ control points as directed by Dispatch\n",null,"REMEMBER - \"You may know where your train is and God may know where your train is, but if the Dispatcher does not know ... you better be on good terms with God.\"",null,null,null,null,null,"Ø Maximum train length of 12 revenue cars plus cabin car.",null,"Ø Maximum mainline speed 25 MPH","ØSpeed restrictions include 10 MPH for bridges and turnouts",null,"Ø Set off and pickup cars while traveling in both directions other than coal hoppers at all locations (handle hoppers only  if directed by dispatcher)\n",null,null,null,"ØContact Dispatch @ control points as directed by Dispatch\n",null,"REMEMBER - \"You may know where your train is and God may know where your train is, but if the Dispatcher does not know ... you better be on good terms with God.\""]
[]
[]
[]
[null,null,"Ø Maximum train length of 12 revenue cars plus cabin car.",null,"Ø Maximum mainline speed 25 MPH","ØSpeed restrictions include 10 MPH for bridges and turnouts",null,"Ø Set off and pickup cars while traveling in both directions other than coal hoppers at all locations (handle hoppers only  if directed by dispatcher)\n",null,null,null,"ØContact Dispatch @ control points as directed by Dispatch\n",null,"REMEMBER - \"You may know where your train is and God may know where your train is, but if the Dispatcher does not know ... you better be on good terms with God.\"",null,null,null,null,null,"Ø Maximum train length of 12 revenue cars plus cabin car.",null,"Ø Maximum mainline speed 25 MPH","ØSpeed restrictions include 10 MPH for bridges and turnouts",null,"Ø Set off and pickup cars while traveling in both directions other than coal hoppers at all locations (handle hoppers only  if directed by dispatcher)\n",null,null,null,"ØContact Dispatch @ control points as directed by Dispatch\n",null,"REMEMBER - \"You may know where your train is and God may know where your train is, but if the Dispatcher does not know ... you better be on good terms with God.\"",null,null,null,null,null,"Ø Maximum train length of 12 revenue cars plus cabin car.",null,"Ø Maximum mainline speed 25 MPH","ØSpeed restrictions include 10 MPH for bridges and turnouts",null,"Ø Set off and pickup cars while traveling in both directions other than coal hoppers at all locations (handle hoppers only  if directed by dispatcher)\n",null,null,null,"ØContact Dispatch @ control points as directed by Dispatch\n",null,"REMEMBER - \"You may know where your train is and God may know where your train is, but if the Dispatcher does not know ... you better be on good terms with God.\""]
[]
[]
[]
[null,null,"Ø Maximum train length of 12 revenue cars plus cabin car.",null,"Ø Maximum mainline speed 25 MPH","ØSpeed restrictions include 10 MPH for bridges and turnouts",null,"Ø Set off and pickup cars while traveling in both directions other than coal hoppers at all locations (handle hoppers only  if directed by dispatcher)\n",null,null,null,"ØContact Dispatch @ control points as directed by Dispatch\n",null,"REMEMBER - \"You may know where your train is and God may know where your train is, but if the Dispatcher does not know ... you better be on good terms with God.\"",null,null,null,null,null,"Ø Maximum train length of 12 revenue cars plus cabin car.",null,"Ø Maximum mainline speed 25 MPH","ØSpeed restrictions include 10 MPH for bridges and turnouts",null,"Ø Set off and pickup cars while traveling in both directions other than coal hoppers at all locations (handle hoppers only  if directed by dispatcher)\n",null,null,null,"ØContact Dispatch @ control points as directed by Dispatch\n",null,"REMEMBER - \"You may know where your train is and God may know where your train is, but if the Dispatcher does not know ... you better be on good terms with God.\"",null,null,null,null,null,"Ø Maximum train length of 12 revenue cars plus cabin car.",null,"Ø Maximum mainline speed 25 MPH","ØSpeed restrictions include 10 MPH for bridges and turnouts",null,"Ø Set off and pickup cars while traveling in both directions other than coal hoppers at all locations (handle hoppers only  if directed by dispatcher)\n",null,null,null,"ØContact Dispatch @ control points as directed by Dispatch\n",null,"REMEMBER - \"You may know where your train is and God may know where your train is, but if the Dispatcher does not know ... you better be on good terms with God.\""]

{"sheet":"Mill Turn, Front","index":26,"n_rows":14,"n_cols":50,"rows_kept":14,"cut":false,"hidden":false,"merged":[[13,19,16,19],[13,20,16,20],[9,15,12,16],[13,40,16,40],[13,41,16,43],[13,44,16,44],[13,45,16,45],[13,46,16,47],[13,48,16,48],[9,36,12,36],[9,37,12,37],[9,38,12,38],[9,39,12,39],[13,49,16,50],[13,31,16,31],[13,32,16,33],[9,49,12,50],[1,23,4,23],[1,24,4,26],[1,27,4,27],[5,23,8,23],[5,24,8,26],[5,27,8,27],[9,23,12,23],[9,24,12,26],[9,27,12,27],[9,40,12,40],[9,41,12,43],[9,44,12,44],[13,36,16,36],[13,37,16,37],[13,38,16,38],[13,39,16,39],[9,46,12,47],[9,48,12,48],[9,31,12,31],[9,32,12,33],[13,2,16,2],[13,3,16,3],[13,4,16,4],[13,5,16,5],[9,2,12,2],[9,3,12,3],[9,4,12,4],[13,28,16,28],[13,29,16,30],[9,6,12,6],[9,7,12,9],[9,10,12,10],[13,6,16,6],[13,7,16,9],[13,10,16,10],[13,23,16,23],[13,24,16,26],[13,27,16,27],[13,21,16,21],[13,22,16,22],[13,11,16,11],[13,12,16,13],[13,14,16,14],[13,15,16,16],[9,5,12,5],[9,45,12,45],[9,21,12,21],[9,22,12,22],[9,28,12,28],[9,29,12,30],[9,11,12,11],[9,12,12,13],[9,14,12,14],[9,19,12,19],[9,20,12,20],[5,45,8,45],[5,46,8,47],[5,48,8,48],[5,49,8,50],[5,31,8,31],[5,32,8,33],[5,36,8,36],[5,37,8,37],[5,38,8,38],[5,39,8,39],[5,40,8,40],[5,41,8,43],[5,44,8,44],[5,28,8,28],[5,29,8,30],[5,21,8,21],[5,22,8,22],[5,11,8,11],[5,12,8,13],[5,14,8,14],[5,15,8,16],[5,19,8,19],[5,20,8,20],[5,2,8,2],[5,3,8,3],[5,4,8,4],[5,5,8,5],[5,6,8,6],[5,7,8,9],[5,10,8,10],[1,45,4,45],[1,46,4,47],[1,28,4,28],[1,29,4,30],[1,11,4,11],[1,12,4,13],[1,14,4,14],[1,15,4,16],[1,19,4,19],[1,20,4,20],[1,2,4,2],[1,3,4,3],[1,4,4,4],[1,5,4,5],[1,21,4,21],[1,22,4,22],[1,6,4,6],[1,7,4,9],[1,10,4,10],[1,48,4,48],[1,49,4,50],[1,31,4,31],[1,32,4,33],[1,36,4,36],[1,37,4,37],[1,38,4,38],[1,39,4,39],[1,40,4,40],[1,41,4,43],[1,44,4,44]]}
[]
[null,null,"TRAIN INSTRUCTIONS","Paper Turn","TRAIN No. is ENGINE No.","Ø Pick up train at LH Tower","Ø Run W/B to Vail","ØContact Dispatcher from Vail to coordinate WVP&P setouts & pickups",null,null,"Ø Pickup ONLY Freight Cars","Ø Turn engine on East Tyrone wye","Ø Return E/B, release train at LH Tower after contacting Lock Haven Yardmaster.",null,"<OVER>","ALWAYS OBTAIN DISPATCHER CLEARANCE WHEN OPERATING BEYOND YARD LIMITS!!\n",null,null,null,"TRAIN INSTRUCTIONS","Paper Turn","TRAIN No. is ENGINE No.","Ø Pick up train at LH Tower","Ø Run W/B to Vail","ØContact Dispatcher from Vail to coordinate WVP&P setouts & pickups",null,null,"Ø Pickup ONLY Freight Cars","Ø Turn engine on East Tyrone wye","Ø Return E/B, release train at LH Tower after contacting Lock Haven Yardmaster.",null,"<OVER>","ALWAYS OBTAIN DISPATCHER CLEARANCE WHEN OPERATING BEYOND YARD LIMITS!!\n",null,null,null,"TRAIN INSTRUCTIONS","Paper Turn","TRAIN No. is ENGINE No.","Ø Pick up train at LH Tower","Ø Run W/B to Vail","ØContact Dispatcher from Vail to coordinate WVP&P setouts & pickups",null,null,"Ø Pickup ONLY Freight Cars","Ø Turn engine on East Tyrone wye","Ø Return E/B, release train at LH Tower after contacting Lock Haven Yardmaster.",null,"<OVER>","ALWAYS OBTAIN DISPATCHER CLEARANCE WHEN OPERATING BEYOND YARD LIMITS!!\n"]
[]
[]
[]
[null,null,"TRAIN INSTRUCTIONS","Paper Turn","TRAIN No. is ENGINE No.","Ø Pick up train at LH Tower","Ø Run W/B to Vail","ØContact Dispatcher from Vail to coordinate WVP&P setouts & pickups",null,null,"Ø Pickup ONLY Freight Cars","Ø Turn engine on East Tyrone wye","Ø Return E/B, release train at LH Tower after contacting Lock Haven Yardmaster.",null,"<OVER>","ALWAYS OBTAIN DISPATCHER CLEARANCE WHEN OPERATING BEYOND YARD LIMITS!!\n",null,null,null,"TRAIN INSTRUCTIONS","Paper Turn","TRAIN No. is ENGINE No.","Ø Pick up train at LH Tower","Ø Run W/B to Vail","ØContact Dispatcher from Vail to coordinate WVP&P setouts & pickups",null,null,"Ø Pickup ONLY Freight Cars","Ø Turn engine on East Tyrone wye","Ø Return E/B, release train at LH Tower after contacting Lock Haven Yardmaster.",null,"<OVER>","ALWAYS OBTAIN DISPATCHER CLEARANCE WHEN OPERATING BEYOND YARD LIMITS!!\n",null,null,null,"TRAIN INSTRUCTIONS","Paper Turn","TRAIN No. is ENGINE No.","Ø Pick up train at LH Tower","Ø Run W/B to Vail","ØContact Dispatcher from Vail to coordinate WVP&P setouts & pickups",null,null,"Ø Pickup ONLY Freight Cars","Ø Turn engine on East Tyrone wye","Ø Return E/B, release train at LH Tower after contacting Lock Haven Yardmaster.",null,"<OVER>","ALWAYS OBTAIN DISPATCHER CLEARANCE WHEN OPERATING BEYOND YARD LIMITS!!\n"]
[]
[]
[]
[null,null,"TRAIN INSTRUCTIONS","Paper Turn","TRAIN No. is ENGINE No.","Ø Pick up train at LH Tower","Ø Run W/B to Vail","ØContact Dispatcher from Vail to coordinate WVP&P setouts & pickups",null,null,"Ø Pickup ONLY Freight Cars","Ø Turn engine on East Tyrone wye","Ø Return E/B, release train at LH Tower after contacting Lock Haven Yardmaster.",null,"<OVER>","ALWAYS OBTAIN DISPATCHER CLEARANCE WHEN OPERATING BEYOND YARD LIMITS!!\n",null,null,null,"TRAIN INSTRUCTIONS","Paper Turn","TRAIN No. is ENGINE No.","Ø Pick up train at LH Tower","Ø Run W/B to Vail","ØContact Dispatcher from Vail to coordinate WVP&P setouts & pickups",null,null,"Ø Pickup ONLY Freight Cars","Ø Turn engine on East Tyrone wye","Ø Return E/B, release train at LH Tower after contacting Lock Haven Yardmaster.",null,"<OVER>","ALWAYS OBTAIN DISPATCHER CLEARANCE WHEN OPERATING BEYOND YARD LIMITS!!\n",null,null,null,"TRAIN INSTRUCTIONS","Paper Turn","TRAIN No. is ENGINE No.","Ø Pick up train at LH Tower","Ø Run W/B to Vail","ØContact Dispatcher from Vail to coordinate WVP&P setouts & pickups",null,null,"Ø Pickup ONLY Freight Cars","Ø Turn engine on East Tyrone wye","Ø Return E/B, release train at LH Tower after contacting Lock Haven Yardmaster.",null,"<OVER>","ALWAYS OBTAIN DISPATCHER CLEARANCE WHEN OPERATING BEYOND YARD LIMITS!!\n"]
[]
[]
[]
[null,null,"TRAIN INSTRUCTIONS","Paper Turn","TRAIN No. is ENGINE No.","Ø Pick up train at LH Tower","Ø Run W/B to Vail","ØContact Dispatcher from Vail to coordinate WVP&P setouts & pickups",null,null,"Ø Pickup ONLY Freight Cars","Ø Turn engine on East Tyrone wye","Ø Return E/B, release train at LH Tower after contacting Lock Haven Yardmaster.",null,"<OVER>","ALWAYS OBTAIN DISPATCHER CLEARANCE WHEN OPERATING BEYOND YARD LIMITS!!\n",null,null,null,"TRAIN INSTRUCTIONS","Paper Turn","TRAIN No. is ENGINE No.","Ø Pick up train at LH Tower","Ø Run W/B to Vail","ØContact Dispatcher from Vail to coordinate WVP&P setouts & pickups",null,null,"Ø Pickup ONLY Freight Cars","Ø Turn engine on East Tyrone wye","Ø Return E/B, release train at LH Tower after contacting Lock Haven Yardmaster.",null,"<OVER>","ALWAYS OBTAIN DISPATCHER CLEARANCE WHEN OPERATING BEYOND YARD LIMITS!!\n",null,null,null,"TRAIN INSTRUCTIONS","Paper Turn","TRAIN No. is ENGINE No.","Ø Pick up train at LH Tower","Ø Run W/B to Vail","ØContact Dispatcher from Vail to coordinate WVP&P setouts & pickups",null,null,"Ø Pickup ONLY Freight Cars","Ø Turn engine on East Tyrone wye","Ø Return E/B, release train at LH Tower after contacting Lock Haven Yardmaster.",null,"<OVER>","ALWAYS OBTAIN DISPATCHER CLEARANCE WHEN OPERATING BEYOND YARD LIMITS!!\n"]

{"sheet":"Mill Turn, Back","index":27,"n_rows":14,"n_cols":48,"rows_kept":14,"cut":false,"hidden":false,"merged":[[13,47,16,50],[13,19,16,20],[13,21,16,21],[13,22,16,23],[13,24,16,27],[13,28,16,29],[13,30,16,33],[13,36,16,37],[13,38,16,38],[13,39,16,40],[13,41,16,44],[13,45,16,46],[13,2,16,3],[13,4,16,4],[13,5,16,6],[13,7,16,10],[13,11,16,12],[13,13,16,16],[9,36,12,37],[9,38,12,38],[9,39,12,40],[9,41,12,44],[9,13,12,16],[9,45,12,46],[9,47,12,50],[9,19,12,20],[9,21,12,21],[9,22,12,23],[9,24,12,27],[9,28,12,29],[9,30,12,33],[9,2,12,3],[9,4,12,4],[9,5,12,6],[9,7,12,10],[9,11,12,12],[5,47,8,50],[5,19,8,20],[5,21,8,21],[5,22,8,23],[5,24,8,27],[5,28,8,29],[5,30,8,33],[5,36,8,37],[5,38,8,38],[5,39,8,40],[5,41,8,44],[5,45,8,46],[5,2,8,3],[5,4,8,4],[5,5,8,6],[5,7,8,10],[5,11,8,12],[5,13,8,16],[1,36,4,37],[1,38,4,38],[1,39,4,40],[1,41,4,44],[1,13,4,16],[1,45,4,46],[1,47,4,50],[1,19,4,20],[1,21,4,21],[1,22,4,23],[1,24,4,27],[1,28,4,29],[1,30,4,33],[1,2,4,3],[1,4,4,4],[1,5,4,6],[1,7,4,10],[1,11,4,12]]}
[]
[null,null,"Ø Maximum train length of 12 revenue cars plus cabin car.",null,"Ø Maximum mainline speed 25 MPH","ØSpeed restrictions include 10 MPH for bridges and turnouts",null,"Ø Set off and pickup cars freight cars other than coal hoppers at only WVP&P",null,null,null,"ØContact Dispatch @ control points as directed by Dispatch\n",null,"REMEMBER - \"You may know where your train is and God may know where your train is, but if the Dispatcher does not know ... you better be on good terms with God.\"",null,null,null,null,null,"Ø Maximum train length of 12 revenue cars plus cabin car.",null,"Ø Maximum mainline speed 25 MPH","ØSpeed restrictions include 10 MPH for bridges and turnouts",null,"Ø Set off and pickup cars freight cars other than coal hoppers at only WVP&P",null,null,null,"ØContact Dispatch @ control points as directed by Dispatch\n",null,"REMEMBER - \"You may know where your train is and God may know where your train is, but if the Dispatcher does not know ... you better be on good terms with God.\"",null,null,null,null,null,"Ø Maximum train length of 12 revenue cars plus cabin car.",null,"Ø Maximum mainline speed 25 MPH","ØSpeed restrictions include 10 MPH for bridges and turnouts",null,"Ø Set off and pickup cars freight cars other than coal hoppers at only WVP&P",null,null,null,"ØContact Dispatch @ control points as directed by Dispatch\n",null,"REMEMBER - \"You may know where your train is and God may know where your train is, but if the Dispatcher does not know ... you better be on good terms with God.\""]
[]
[]
[]
[null,null,"Ø Maximum train length of 12 revenue cars plus cabin car.",null,"Ø Maximum mainline speed 25 MPH","ØSpeed restrictions include 10 MPH for bridges and turnouts",null,"Ø Set off and pickup cars freight cars other than coal hoppers at only WVP&P",null,null,null,"ØContact Dispatch @ control points as directed by Dispatch\n",null,"REMEMBER - \"You may know where your train is and God may know where your train is, but if the Dispatcher does not know ... you better be on good terms with God.\"",null,null,null,null,null,"Ø Maximum train length of 12 revenue cars plus cabin car.",null,"Ø Maximum mainline speed 25 MPH","ØSpeed restrictions include 10 MPH for bridges and turnouts",null,"Ø Set off and pickup cars freight cars other than coal hoppers at only WVP&P",null,null,null,"ØContact Dispatch @ control points as directed by Dispatch\n",null,"REMEMBER - \"You may know where your train is and God may know where your train is, but if the Dispatcher does not know ... you better be on good terms with God.\"",null,null,null,null,null,"Ø Maximum train length of 12 revenue cars plus cabin car.",null,"Ø Maximum mainline speed 25 MPH","ØSpeed restrictions include 10 MPH for bridges and turnouts",null,"Ø Set off and pickup cars freight cars other than coal hoppers at only WVP&P",null,null,null,"ØContact Dispatch @ control points as directed by Dispatch\n",null,"REMEMBER - \"You may know where your train is and God may know where your train is, but if the Dispatcher does not know ... you better be on good terms with God.\""]
[]
[]
[]
[null,null,"Ø Maximum train length of 12 revenue cars plus cabin car.",null,"Ø Maximum mainline speed 25 MPH","ØSpeed restrictions include 10 MPH for bridges and turnouts",null,"Ø Set off and pickup cars freight cars other than coal hoppers at only WVP&P",null,null,null,"ØContact Dispatch @ control points as directed by Dispatch\n",null,"REMEMBER - \"You may know where your train is and God may know where your train is, but if the Dispatcher does not know ... you better be on good terms with God.\"",null,null,null,null,null,"Ø Maximum train length of 12 revenue cars plus cabin car.",null,"Ø Maximum mainline speed 25 MPH","ØSpeed restrictions include 10 MPH for bridges and turnouts",null,"Ø Set off and pickup cars freight cars other than coal hoppers at only WVP&P",null,null,null,"ØContact Dispatch @ control points as directed by Dispatch\n",null,"REMEMBER - \"You may know where your train is and God may know where your train is, but if the Dispatcher does not know ... you better be on good terms with God.\"",null,null,null,null,null,"Ø Maximum train length of 12 revenue cars plus cabin car.",null,"Ø Maximum mainline speed 25 MPH","ØSpeed restrictions include 10 MPH for bridges and turnouts",null,"Ø Set off and pickup cars freight cars other than coal hoppers at only WVP&P",null,null,null,"ØContact Dispatch @ control points as directed by Dispatch\n",null,"REMEMBER - \"You may know where your train is and God may know where your train is, but if the Dispatcher does not know ... you better be on good terms with God.\""]
[]
[]
[]
[null,null,"Ø Maximum train length of 12 revenue cars plus cabin car.",null,"Ø Maximum mainline speed 25 MPH","ØSpeed restrictions include 10 MPH for bridges and turnouts",null,"Ø Set off and pickup cars freight cars other than coal hoppers at only WVP&P",null,null,null,"ØContact Dispatch @ control points as directed by Dispatch\n",null,"REMEMBER - \"You may know where your train is and God may know where your train is, but if the Dispatcher does not know ... you better be on good terms with God.\"",null,null,null,null,null,"Ø Maximum train length of 12 revenue cars plus cabin car.",null,"Ø Maximum mainline speed 25 MPH","ØSpeed restrictions include 10 MPH for bridges and turnouts",null,"Ø Set off and pickup cars freight cars other than coal hoppers at only WVP&P",null,null,null,"ØContact Dispatch @ control points as directed by Dispatch\n",null,"REMEMBER - \"You may know where your train is and God may know where your train is, but if the Dispatcher does not know ... you better be on good terms with God.\"",null,null,null,null,null,"Ø Maximum train length of 12 revenue cars plus cabin car.",null,"Ø Maximum mainline speed 25 MPH","ØSpeed restrictions include 10 MPH for bridges and turnouts",null,"Ø Set off and pickup cars freight cars other than coal hoppers at only WVP&P",null,null,null,"ØContact Dispatch @ control points as directed by Dispatch\n",null,"REMEMBER - \"You may know where your train is and God may know where your train is, but if the Dispatcher does not know ... you better be on good terms with God.\""]

{"sheet":"Pulp Turn, Front","index":28,"n_rows":14,"n_cols":50,"rows_kept":14,"cut":false,"hidden":false,"merged":[[13,46,16,47],[13,48,16,48],[13,49,16,50],[13,31,16,31],[13,32,16,33],[13,36,16,36],[13,37,16,37],[13,38,16,38],[13,39,16,39],[13,40,16,41],[13,42,16,43],[13,44,16,45],[13,29,16,30],[13,12,16,13],[13,14,16,14],[13,15,16,16],[13,19,16,19],[13,20,16,20],[13,25,16,26],[13,27,16,28],[13,2,16,2],[13,3,16,3],[13,4,16,4],[13,5,16,5],[13,6,16,7],[13,8,16,9],[13,10,16,11],[13,23,16,24],[13,21,16,21],[13,22,16,22],[9,29,12,30],[9,12,12,13],[9,14,12,14],[9,15,12,16],[9,19,12,19],[9,20,12,20],[9,2,12,2],[9,3,12,3],[9,4,12,4],[9,5,12,5],[9,6,12,7],[9,8,12,9],[9,10,12,11],[9,23,12,24],[9,25,12,26],[9,27,12,28],[9,21,12,21],[9,22,12,22],[9,46,12,47],[9,48,12,48],[9,49,12,50],[9,31,12,31],[9,32,12,33],[9,36,12,36],[9,37,12,37],[9,38,12,38],[9,39,12,39],[9,40,12,41],[9,42,12,43],[9,44,12,45],[5,46,8,47],[5,48,8,48],[5,49,8,50],[5,31,8,31],[5,32,8,33],[5,36,8,36],[5,37,8,37],[5,38,8,38],[5,39,8,39],[5,40,8,41],[5,42,8,43],[5,44,8,45],[5,29,8,30],[5,12,8,13],[5,14,8,14],[5,15,8,16],[5,19,8,19],[5,20,8,20],[5,2,8,2],[5,3,8,3],[5,4,8,4],[5,5,8,5],[5,6,8,7],[5,8,8,9],[5,10,8,11],[5,23,8,24],[5,25,8,26],[5,27,8,28],[5,21,8,21],[5,22,8,22],[1,46,4,47],[1,48,4,48],[1,49,4,50],[1,31,4,31],[1,32,4,33],[1,36,4,36],[1,37,4,37],[1,38,4,38],[1,39,4,39],[1,40,4,41],[1,42,4,43],[1,44,4,45],[1,29,4,30],[1,14,4,14],[1,15,4,16],[1,19,4,19],[1,20,4,20],[1,12,4,13],[1,8,4,9],[1,10,4,11],[1,2,4,2],[1,3,4,3],[1,4,4,4],[1,5,4,5],[1,21,4,21],[1,22,4,22],[1,6,4,7],[1,23,4,24],[1,25,4,26],[1,27,4,28]]}
[]
[null,null,"TRAIN INSTRUCTIONS","Pulp Turn","TRAIN No. is ENGINE No.","Ø Pick up train at Park Tower","Ø Travel to WVP&P to pickup MTY pulp cars @ WVP&P",null,"Ø Run E/B to Metz Bros. Logging.",null,"Ø Setout & pickup pulp cars",null,"Ø Place engine on downhill end of train for return to Vail",null,"<OVER>","ALWAYS OBTAIN KCR ROME OPERATOR CLEARANCE WHEN OPERATING THROUGH ROME!!\n",null,null,null,"TRAIN INSTRUCTIONS","Pulp Turn","TRAIN No. is ENGINE No.","Ø Pick up train at Park Tower","Ø Travel to WVP&P to pickup MTY pulp cars @ WVP&P",null,"Ø Run E/B to Metz Bros. Logging.",null,"Ø Setout & pickup pulp cars",null,"Ø Place engine on downhill end of train for return to Vail",null,"<OVER>","ALWAYS OBTAIN KCR ROME OPERATOR CLEARANCE WHEN OPERATING THROUGH ROME!!\n",null,null,null,"TRAIN INSTRUCTIONS","Pulp Turn","TRAIN No. is ENGINE No.","Ø Pick up train at Park Tower","Ø Travel to WVP&P to pickup MTY pulp cars @ WVP&P",null,"Ø Run E/B to Metz Bros. Logging.",null,"Ø Setout & pickup pulp cars",null,"Ø Place engine on downhill end of train for return to Vail",null,"<OVER>","ALWAYS OBTAIN KCR ROME OPERATOR CLEARANCE WHEN OPERATING THROUGH ROME!!\n"]
[]
[]
[]
[null,null,"TRAIN INSTRUCTIONS","Pulp Turn","TRAIN No. is ENGINE No.","Ø Pick up train at Park Tower","Ø Travel to WVP&P to pickup MTY pulp cars @ WVP&P",null,"Ø Run E/B to Metz Bros. Logging.",null,"Ø Setout & pickup pulp cars",null,"Ø Place engine on downhill end of train for return to Vail",null,"<OVER>","ALWAYS OBTAIN KCR ROME OPERATOR CLEARANCE WHEN OPERATING THROUGH ROME!!\n",null,null,null,"TRAIN INSTRUCTIONS","Pulp Turn","TRAIN No. is ENGINE No.","Ø Pick up train at Park Tower","Ø Travel to WVP&P to pickup MTY pulp cars @ WVP&P",null,"Ø Run E/B to Metz Bros. Logging.",null,"Ø Setout & pickup pulp cars",null,"Ø Place engine on downhill end of train for return to Vail",null,"<OVER>","ALWAYS OBTAIN KCR ROME OPERATOR CLEARANCE WHEN OPERATING THROUGH ROME!!\n",null,null,null,"TRAIN INSTRUCTIONS","Pulp Turn","TRAIN No. is ENGINE No.","Ø Pick up train at Park Tower","Ø Travel to WVP&P to pickup MTY pulp cars @ WVP&P",null,"Ø Run E/B to Metz Bros. Logging.",null,"Ø Setout & pickup pulp cars",null,"Ø Place engine on downhill end of train for return to Vail",null,"<OVER>","ALWAYS OBTAIN KCR ROME OPERATOR CLEARANCE WHEN OPERATING THROUGH ROME!!\n"]
[]
[]
[]
[null,null,"TRAIN INSTRUCTIONS","Pulp Turn","TRAIN No. is ENGINE No.","Ø Pick up train at Park Tower","Ø Travel to WVP&P to pickup MTY pulp cars @ WVP&P",null,"Ø Run E/B to Metz Bros. Logging.",null,"Ø Setout & pickup pulp cars",null,"Ø Place engine on downhill end of train for return to Vail",null,"<OVER>","ALWAYS OBTAIN KCR ROME OPERATOR CLEARANCE WHEN OPERATING THROUGH ROME!!\n",null,null,null,"TRAIN INSTRUCTIONS","Pulp Turn","TRAIN No. is ENGINE No.","Ø Pick up train at Park Tower","Ø Travel to WVP&P to pickup MTY pulp cars @ WVP&P",null,"Ø Run E/B to Metz Bros. Logging.",null,"Ø Setout & pickup pulp cars",null,"Ø Place engine on downhill end of train for return to Vail",null,"<OVER>","ALWAYS OBTAIN KCR ROME OPERATOR CLEARANCE WHEN OPERATING THROUGH ROME!!\n",null,null,null,"TRAIN INSTRUCTIONS","Pulp Turn","TRAIN No. is ENGINE No.","Ø Pick up train at Park Tower","Ø Travel to WVP&P to pickup MTY pulp cars @ WVP&P",null,"Ø Run E/B to Metz Bros. Logging.",null,"Ø Setout & pickup pulp cars",null,"Ø Place engine on downhill end of train for return to Vail",null,"<OVER>","ALWAYS OBTAIN KCR ROME OPERATOR CLEARANCE WHEN OPERATING THROUGH ROME!!\n"]
[]
[]
[]
[null,null,"TRAIN INSTRUCTIONS","Pulp Turn","TRAIN No. is ENGINE No.","Ø Pick up train at Park Tower","Ø Travel to WVP&P to pickup MTY pulp cars @ WVP&P",null,"Ø Run E/B to Metz Bros. Logging.",null,"Ø Setout & pickup pulp cars",null,"Ø Place engine on downhill end of train for return to Vail",null,"<OVER>","ALWAYS OBTAIN KCR ROME OPERATOR CLEARANCE WHEN OPERATING THROUGH ROME!!\n",null,null,null,"TRAIN INSTRUCTIONS","Pulp Turn","TRAIN No. is ENGINE No.","Ø Pick up train at Park Tower","Ø Travel to WVP&P to pickup MTY pulp cars @ WVP&P",null,"Ø Run E/B to Metz Bros. Logging.",null,"Ø Setout & pickup pulp cars",null,"Ø Place engine on downhill end of train for return to Vail",null,"<OVER>","ALWAYS OBTAIN KCR ROME OPERATOR CLEARANCE WHEN OPERATING THROUGH ROME!!\n",null,null,null,"TRAIN INSTRUCTIONS","Pulp Turn","TRAIN No. is ENGINE No.","Ø Pick up train at Park Tower","Ø Travel to WVP&P to pickup MTY pulp cars @ WVP&P",null,"Ø Run E/B to Metz Bros. Logging.",null,"Ø Setout & pickup pulp cars",null,"Ø Place engine on downhill end of train for return to Vail",null,"<OVER>","ALWAYS OBTAIN KCR ROME OPERATOR CLEARANCE WHEN OPERATING THROUGH ROME!!\n"]

{"sheet":"Pulp Turn, Back","index":29,"n_rows":14,"n_cols":48,"rows_kept":14,"cut":false,"hidden":false,"merged":[[13,47,16,50],[13,19,16,20],[13,21,16,21],[13,22,16,23],[13,24,16,25],[13,26,16,28],[13,30,16,33],[13,36,16,37],[13,38,16,38],[13,39,16,40],[13,41,16,42],[13,43,16,45],[13,2,16,3],[13,4,16,4],[13,5,16,6],[13,7,16,8],[13,9,16,11],[13,13,16,16],[9,36,12,37],[9,38,12,38],[9,39,12,40],[9,41,12,42],[9,13,12,16],[9,43,12,45],[9,47,12,50],[9,19,12,20],[9,21,12,21],[9,22,12,23],[9,24,12,25],[9,26,12,28],[9,30,12,33],[9,2,12,3],[9,4,12,4],[9,5,12,6],[9,7,12,8],[9,9,12,11],[5,47,8,50],[5,19,8,20],[5,21,8,21],[5,22,8,23],[5,24,8,25],[5,26,8,28],[5,30,8,33],[5,36,8,37],[5,38,8,38],[5,39,8,40],[5,41,8,42],[5,43,8,45],[5,2,8,3],[5,4,8,4],[5,5,8,6],[5,7,8,8],[5,9,8,11],[5,13,8,16],[1,36,4,37],[1,38,4,38],[1,39,4,40],[1,41,4,42],[1,13,4,16],[1,43,4,45],[1,47,4,50],[1,19,4,20],[1,21,4,21],[1,22,4,23],[1,24,4,25],[1,26,4,28],[1,30,4,33],[1,2,4,3],[1,4,4,4],[1,5,4,6],[1,7,4,8],[1,9,4,11]]}
[]
[null,null,"Ø Maximum train length of 6 revenue cars plus cabin car.",null,"Ø Maximum mainline speed 15 MPH","ØSpeed restrictions include 10 MPH for bridges and turnouts",null,"Ø Engine must ALWAYS be on down grade end of loaded trains!!\n",null,"ØContact Dispatch at Vail when re-entering PRR territory\n",null,null,null,"REMEMBER - \"The KCR is a non-union railroad and if the Rome Operator does not approve your train's Rome movements ... Your committeeman cannot help you!\"",null,null,null,null,null,"Ø Maximum train length of 6 revenue cars plus cabin car.",null,"Ø Maximum mainline speed 15 MPH","ØSpeed restrictions include 10 MPH for bridges and turnouts",null,"Ø Engine must ALWAYS be on down grade end of loaded trains!!\n",null,"ØContact Dispatch at Vail when re-entering PRR territory\n",null,null,null,"REMEMBER - \"The KCR is a non-union railroad and if the Rome Operator does not approve your train's Rome movements ... Your committeeman cannot help you!\"",null,null,null,null,null,"Ø Maximum train length of 6 revenue cars plus cabin car.",null,"Ø Maximum mainline speed 15 MPH","ØSpeed restrictions include 10 MPH for bridges and turnouts",null,"Ø Engine must ALWAYS be on down grade end of loaded trains!!\n",null,"ØContact Dispatch at Vail when re-entering PRR territory\n",null,null,null,"REMEMBER - \"The KCR is a non-union railroad and if the Rome Operator does not approve your train's Rome movements ... Your committeeman cannot help you!\""]
[]
[]
[]
[null,null,"Ø Maximum train length of 6 revenue cars plus cabin car.",null,"Ø Maximum mainline speed 15 MPH","ØSpeed restrictions include 10 MPH for bridges and turnouts",null,"Ø Engine must ALWAYS be on down grade end of loaded trains!!\n",null,"ØContact Dispatch at Vail when re-entering PRR territory\n",null,null,null,"REMEMBER - \"The KCR is a non-union railroad and if the Rome Operator does not approve your train's Rome movements ... Your committeeman cannot help you!\"",null,null,null,null,null,"Ø Maximum train length of 6 revenue cars plus cabin car.",null,"Ø Maximum mainline speed 15 MPH","ØSpeed restrictions include 10 MPH for bridges and turnouts",null,"Ø Engine must ALWAYS be on down grade end of loaded trains!!\n",null,"ØContact Dispatch at Vail when re-entering PRR territory\n",null,null,null,"REMEMBER - \"The KCR is a non-union railroad and if the Rome Operator does not approve your train's Rome movements ... Your committeeman cannot help you!\"",null,null,null,null,null,"Ø Maximum train length of 6 revenue cars plus cabin car.",null,"Ø Maximum mainline speed 15 MPH","ØSpeed restrictions include 10 MPH for bridges and turnouts",null,"Ø Engine must ALWAYS be on down grade end of loaded trains!!\n",null,"ØContact Dispatch at Vail when re-entering PRR territory\n",null,null,null,"REMEMBER - \"The KCR is a non-union railroad and if the Rome Operator does not approve your train's Rome movements ... Your committeeman cannot help you!\""]
[]
[]
[]
[null,null,"Ø Maximum train length of 6 revenue cars plus cabin car.",null,"Ø Maximum mainline speed 15 MPH","ØSpeed restrictions include 10 MPH for bridges and turnouts",null,"Ø Engine must ALWAYS be on down grade end of loaded trains!!\n",null,"ØContact Dispatch at Vail when re-entering PRR territory\n",null,null,null,"REMEMBER - \"The KCR is a non-union railroad and if the Rome Operator does not approve your train's Rome movements ... Your committeeman cannot help you!\"",null,null,null,null,null,"Ø Maximum train length of 6 revenue cars plus cabin car.",null,"Ø Maximum mainline speed 15 MPH","ØSpeed restrictions include 10 MPH for bridges and turnouts",null,"Ø Engine must ALWAYS be on down grade end of loaded trains!!\n",null,"ØContact Dispatch at Vail when re-entering PRR territory\n",null,null,null,"REMEMBER - \"The KCR is a non-union railroad and if the Rome Operator does not approve your train's Rome movements ... Your committeeman cannot help you!\"",null,null,null,null,null,"Ø Maximum train length of 6 revenue cars plus cabin car.",null,"Ø Maximum mainline speed 15 MPH","ØSpeed restrictions include 10 MPH for bridges and turnouts",null,"Ø Engine must ALWAYS be on down grade end of loaded trains!!\n",null,"ØContact Dispatch at Vail when re-entering PRR territory\n",null,null,null,"REMEMBER - \"The KCR is a non-union railroad and if the Rome Operator does not approve your train's Rome movements ... Your committeeman cannot help you!\""]
[]
[]
[]
[null,null,"Ø Maximum train length of 6 revenue cars plus cabin car.",null,"Ø Maximum mainline speed 15 MPH","ØSpeed restrictions include 10 MPH for bridges and turnouts",null,"Ø Engine must ALWAYS be on down grade end of loaded trains!!\n",null,"ØContact Dispatch at Vail when re-entering PRR territory\n",null,null,null,"REMEMBER - \"The KCR is a non-union railroad and if the Rome Operator does not approve your train's Rome movements ... Your committeeman cannot help you!\"",null,null,null,null,null,"Ø Maximum train length of 6 revenue cars plus cabin car.",null,"Ø Maximum mainline speed 15 MPH","ØSpeed restrictions include 10 MPH for bridges and turnouts",null,"Ø Engine must ALWAYS be on down grade end of loaded trains!!\n",null,"ØContact Dispatch at Vail when re-entering PRR territory\n",null,null,null,"REMEMBER - \"The KCR is a non-union railroad and if the Rome Operator does not approve your train's Rome movements ... Your committeeman cannot help you!\"",null,null,null,null,null,"Ø Maximum train length of 6 revenue cars plus cabin car.",null,"Ø Maximum mainline speed 15 MPH","ØSpeed restrictions include 10 MPH for bridges and turnouts",null,"Ø Engine must ALWAYS be on down grade end of loaded trains!!\n",null,"ØContact Dispatch at Vail when re-entering PRR territory\n",null,null,null,"REMEMBER - \"The KCR is a non-union railroad and if the Rome Operator does not approve your train's Rome movements ... Your committeeman cannot help you!\""]

{"sheet":"KCR Turn, Front","index":30,"n_rows":14,"n_cols":50,"rows_kept":14,"cut":false,"hidden":false,"merged":[[13,39,16,39],[13,40,16,42],[13,43,16,45],[13,46,16,47],[13,48,16,48],[13,49,16,50],[13,29,16,30],[13,31,16,31],[13,32,16,33],[13,36,16,36],[13,37,16,37],[13,38,16,38],[13,19,16,19],[13,20,16,20],[13,21,16,21],[13,22,16,22],[13,23,16,25],[13,26,16,28],[9,49,12,50],[13,2,16,2],[13,3,16,3],[13,4,16,4],[13,5,16,5],[13,6,16,8],[13,9,16,11],[13,12,16,13],[13,14,16,14],[13,15,16,16],[9,38,12,38],[9,39,12,39],[9,40,12,42],[9,43,12,45],[9,46,12,47],[9,48,12,48],[9,26,12,28],[9,29,12,30],[9,31,12,31],[9,32,12,33],[9,36,12,36],[9,37,12,37],[9,15,12,16],[9,19,12,19],[9,20,12,20],[9,21,12,21],[9,22,12,22],[9,23,12,25],[5,48,8,48],[5,49,8,50],[9,2,12,2],[9,3,12,3],[9,4,12,4],[9,5,12,5],[9,6,12,8],[9,9,12,11],[9,12,12,13],[9,14,12,14],[5,37,8,37],[5,38,8,38],[5,39,8,39],[5,40,8,42],[5,43,8,45],[5,46,8,47],[5,23,8,25],[5,26,8,28],[5,29,8,30],[5,31,8,31],[5,32,8,33],[5,36,8,36],[5,14,8,14],[5,15,8,16],[5,19,8,19],[5,20,8,20],[5,21,8,21],[5,22,8,22],[1,46,4,47],[1,48,4,48],[1,49,4,50],[5,2,8,2],[5,3,8,3],[5,4,8,4],[5,5,8,5],[5,6,8,8],[5,9,8,11],[5,12,8,13],[1,36,4,36],[1,37,4,37],[1,38,4,38],[1,39,4,39],[1,40,4,42],[1,43,4,45],[1,22,4,22],[1,23,4,25],[1,26,4,28],[1,29,4,30],[1,31,4,31],[1,32,4,33],[1,12,4,13],[1,14,4,14],[1,15,4,16],[1,19,4,19],[1,20,4,20],[1,21,4,21],[1,2,4,2],[1,3,4,3],[1,4,4,4],[1,5,4,5],[1,6,4,8],[1,9,4,11]]}
[]
[null,null,"TRAIN INSTRUCTIONS","KCR TURN","TRAIN No. is ENGINE No.","Ø Pick up train at Park Tower","ØContact East Tyrone Yardmaster to coordinate East Tyrone Yard setouts & pickups",null,null,"Ø Run E/B to Clearfield making set outs and pickups as dictated by the waybills.",null,null,"Ø Place engine on downhill end of train for return to Vail",null,"<OVER>","ALWAYS OBTAIN KCR ROME OPERATOR CLEARANCE WHEN OPERATING THROUGH ROME!!\n",null,null,null,"TRAIN INSTRUCTIONS","KCR TURN","TRAIN No. is ENGINE No.","Ø Pick up train at Park Tower","ØContact East Tyrone Yardmaster to coordinate East Tyrone Yard setouts & pickups",null,null,"Ø Run E/B to Clearfield making set outs and pickups as dictated by the waybills.",null,null,"Ø Place engine on downhill end of train for return to Vail",null,"<OVER>","ALWAYS OBTAIN KCR ROME OPERATOR CLEARANCE WHEN OPERATING THROUGH ROME!!\n",null,null,null,"TRAIN INSTRUCTIONS","KCR TURN","TRAIN No. is ENGINE No.","Ø Pick up train at Park Tower","ØContact East Tyrone Yardmaster to coordinate East Tyrone Yard setouts & pickups",null,null,"Ø Run E/B to Clearfield making set outs and pickups as dictated by the waybills.",null,null,"Ø Place engine on downhill end of train for return to Vail",null,"<OVER>","ALWAYS OBTAIN KCR ROME OPERATOR CLEARANCE WHEN OPERATING THROUGH ROME!!\n"]
[]
[]
[]
[null,null,"TRAIN INSTRUCTIONS","KCR TURN","TRAIN No. is ENGINE No.","Ø Pick up train at Park Tower","ØContact East Tyrone Yardmaster to coordinate East Tyrone Yard setouts & pickups",null,null,"Ø Run E/B to Clearfield making set outs and pickups as dictated by the waybills.",null,null,"Ø Place engine on downhill end of train for return to Vail",null,"<OVER>","ALWAYS OBTAIN KCR ROME OPERATOR CLEARANCE WHEN OPERATING THROUGH ROME!!\n",null,null,null,"TRAIN INSTRUCTIONS","KCR TURN","TRAIN No. is ENGINE No.","Ø Pick up train at Park Tower","ØContact East Tyrone Yardmaster to coordinate East Tyrone Yard setouts & pickups",null,null,"Ø Run E/B to Clearfield making set outs and pickups as dictated by the waybills.",null,null,"Ø Place engine on downhill end of train for return to Vail",null,"<OVER>","ALWAYS OBTAIN KCR ROME OPERATOR CLEARANCE WHEN OPERATING THROUGH ROME!!\n",null,null,null,"TRAIN INSTRUCTIONS","KCR TURN","TRAIN No. is ENGINE No.","Ø Pick up train at Park Tower","ØContact East Tyrone Yardmaster to coordinate East Tyrone Yard setouts & pickups",null,null,"Ø Run E/B to Clearfield making set outs and pickups as dictated by the waybills.",null,null,"Ø Place engine on downhill end of train for return to Vail",null,"<OVER>","ALWAYS OBTAIN KCR ROME OPERATOR CLEARANCE WHEN OPERATING THROUGH ROME!!\n"]
[]
[]
[]
[null,null,"TRAIN INSTRUCTIONS","KCR TURN","TRAIN No. is ENGINE No.","Ø Pick up train at Park Tower","ØContact East Tyrone Yardmaster to coordinate East Tyrone Yard setouts & pickups",null,null,"Ø Run E/B to Clearfield making set outs and pickups as dictated by the waybills.",null,null,"Ø Place engine on downhill end of train for return to Vail",null,"<OVER>","ALWAYS OBTAIN KCR ROME OPERATOR CLEARANCE WHEN OPERATING THROUGH ROME!!\n",null,null,null,"TRAIN INSTRUCTIONS","KCR TURN","TRAIN No. is ENGINE No.","Ø Pick up train at Park Tower","ØContact East Tyrone Yardmaster to coordinate East Tyrone Yard setouts & pickups",null,null,"Ø Run E/B to Clearfield making set outs and pickups as dictated by the waybills.",null,null,"Ø Place engine on downhill end of train for return to Vail",null,"<OVER>","ALWAYS OBTAIN KCR ROME OPERATOR CLEARANCE WHEN OPERATING THROUGH ROME!!\n",null,null,null,"TRAIN INSTRUCTIONS","KCR TURN","TRAIN No. is ENGINE No.","Ø Pick up train at Park Tower","ØContact East Tyrone Yardmaster to coordinate East Tyrone Yard setouts & pickups",null,null,"Ø Run E/B to Clearfield making set outs and pickups as dictated by the waybills.",null,null,"Ø Place engine on downhill end of train for return to Vail",null,"<OVER>","ALWAYS OBTAIN KCR ROME OPERATOR CLEARANCE WHEN OPERATING THROUGH ROME!!\n"]
[]
[]
[]
[null,null,"TRAIN INSTRUCTIONS","KCR TURN","TRAIN No. is ENGINE No.","Ø Pick up train at Park Tower","ØContact East Tyrone Yardmaster to coordinate East Tyrone Yard setouts & pickups",null,null,"Ø Run E/B to Clearfield making set outs and pickups as dictated by the waybills.",null,null,"Ø Place engine on downhill end of train for return to Vail",null,"<OVER>","ALWAYS OBTAIN KCR ROME OPERATOR CLEARANCE WHEN OPERATING THROUGH ROME!!\n",null,null,null,"TRAIN INSTRUCTIONS","KCR TURN","TRAIN No. is ENGINE No.","Ø Pick up train at Park Tower","ØContact East Tyrone Yardmaster to coordinate East Tyrone Yard setouts & pickups",null,null,"Ø Run E/B to Clearfield making set outs and pickups as dictated by the waybills.",null,null,"Ø Place engine on downhill end of train for return to Vail",null,"<OVER>","ALWAYS OBTAIN KCR ROME OPERATOR CLEARANCE WHEN OPERATING THROUGH ROME!!\n",null,null,null,"TRAIN INSTRUCTIONS","KCR TURN","TRAIN No. is ENGINE No.","Ø Pick up train at Park Tower","ØContact East Tyrone Yardmaster to coordinate East Tyrone Yard setouts & pickups",null,null,"Ø Run E/B to Clearfield making set outs and pickups as dictated by the waybills.",null,null,"Ø Place engine on downhill end of train for return to Vail",null,"<OVER>","ALWAYS OBTAIN KCR ROME OPERATOR CLEARANCE WHEN OPERATING THROUGH ROME!!\n"]

{"sheet":"KCR Turn, Back","index":31,"n_rows":14,"n_cols":48,"rows_kept":14,"cut":false,"hidden":false,"merged":[[13,47,16,50],[13,22,16,23],[13,24,16,25],[13,26,16,27],[13,28,16,29],[13,30,16,33],[13,36,16,37],[13,38,16,38],[13,39,16,40],[13,41,16,42],[13,43,16,44],[13,45,16,46],[9,47,12,50],[13,2,16,3],[13,4,16,4],[13,5,16,6],[13,7,16,8],[13,9,16,10],[13,11,16,12],[13,13,16,16],[13,19,16,20],[13,21,16,21],[9,36,12,37],[9,38,12,38],[9,39,12,40],[9,41,12,42],[9,43,12,44],[9,45,12,46],[9,21,12,21],[9,22,12,23],[9,24,12,25],[9,26,12,27],[9,28,12,29],[9,30,12,33],[5,45,8,46],[5,47,8,50],[9,2,12,3],[9,4,12,4],[9,5,12,6],[9,7,12,8],[9,9,12,10],[9,11,12,12],[9,13,12,16],[9,19,12,20],[5,30,8,33],[5,36,8,37],[5,38,8,38],[5,39,8,40],[5,41,8,42],[5,43,8,44],[5,19,8,20],[5,21,8,21],[5,22,8,23],[5,24,8,25],[5,26,8,27],[5,28,8,29],[1,43,4,44],[1,45,4,46],[1,47,4,50],[5,2,8,3],[5,4,8,4],[5,5,8,6],[5,7,8,8],[5,9,8,10],[5,11,8,12],[5,13,8,16],[1,28,4,29],[1,30,4,33],[1,36,4,37],[1,38,4,38],[1,39,4,40],[1,41,4,42],[1,26,4,27],[1,2,4,3],[1,4,4,4],[1,5,4,6],[1,7,4,8],[1,9,4,10],[1,11,4,12],[1,13,4,16],[1,19,4,20],[1,21,4,21],[1,22,4,23],[1,24,4,25]]}
[]
[null,null,"Ø Maximum train length of 12 revenue cars plus cabin car.",null,"Ø Maximum mainline speed 20 MPH","ØSpeed restrictions include 10 MPH for bridges and turnouts",null,"Ø Engine must ALWAYS be on down grade end of loaded trains!!\n",null,"Ø Contact ET Yardmaster @ yard limits to coordinate setouts & pickups\n",null,"Ø Freight trains ONLY handle freight cars, NOT HOPPERS\n",null,"REMEMBER - \"The KCR is a non-union railroad and if the Rome Operator does not approve your train's Rome movements ... Your committeeman cannot help you!\"",null,null,null,null,null,"Ø Maximum train length of 12 revenue cars plus cabin car.",null,"Ø Maximum mainline speed 20 MPH","ØSpeed restrictions include 10 MPH for bridges and turnouts",null,"Ø Engine must ALWAYS be on down grade end of loaded trains!!\n",null,"Ø Contact ET Yardmaster @ yard limits to coordinate setouts & pickups\n",null,"Ø Freight trains ONLY handle freight cars, NOT HOPPERS\n",null,"REMEMBER - \"The KCR is a non-union railroad and if the Rome Operator does not approve your train's Rome movements ... Your committeeman cannot help you!\"",null,null,null,null,null,"Ø Maximum train length of 12 revenue cars plus cabin car.",null,"Ø Maximum mainline speed 20 MPH","ØSpeed restrictions include 10 MPH for bridges and turnouts",null,"Ø Engine must ALWAYS be on down grade end of loaded trains!!\n",null,"Ø Contact ET Yardmaster @ yard limits to coordinate setouts & pickups\n",null,"Ø Freight trains ONLY handle freight cars, NOT HOPPERS\n",null,"REMEMBER - \"The KCR is a non-union railroad and if the Rome Operator does not approve your train's Rome movements ... Your committeeman cannot help you!\""]
[]
[]
[]
[null,null,"Ø Maximum train length of 12 revenue cars plus cabin car.",null,"Ø Maximum mainline speed 20 MPH","ØSpeed restrictions include 10 MPH for bridges and turnouts",null,"Ø Engine must ALWAYS be on down grade end of loaded trains!!\n",null,"Ø Contact ET Yardmaster @ yard limits to coordinate setouts & pickups\n",null,"Ø Freight trains ONLY handle freight cars, NOT HOPPERS\n",null,"REMEMBER - \"The KCR is a non-union railroad and if the Rome Operator does not approve your train's Rome movements ... Your committeeman cannot help you!\"",null,null,null,null,null,"Ø Maximum train length of 12 revenue cars plus cabin car.",null,"Ø Maximum mainline speed 20 MPH","ØSpeed restrictions include 10 MPH for bridges and turnouts",null,"Ø Engine must ALWAYS be on down grade end of loaded trains!!\n",null,"Ø Contact ET Yardmaster @ yard limits to coordinate setouts & pickups\n",null,"Ø Freight trains ONLY handle freight cars, NOT HOPPERS\n",null,"REMEMBER - \"The KCR is a non-union railroad and if the Rome Operator does not approve your train's Rome movements ... Your committeeman cannot help you!\"",null,null,null,null,null,"Ø Maximum train length of 12 revenue cars plus cabin car.",null,"Ø Maximum mainline speed 20 MPH","ØSpeed restrictions include 10 MPH for bridges and turnouts",null,"Ø Engine must ALWAYS be on down grade end of loaded trains!!\n",null,"Ø Contact ET Yardmaster @ yard limits to coordinate setouts & pickups\n",null,"Ø Freight trains ONLY handle freight cars, NOT HOPPERS\n",null,"REMEMBER - \"The KCR is a non-union railroad and if the Rome Operator does not approve your train's Rome movements ... Your committeeman cannot help you!\""]
[]
[]
[]
[null,null,"Ø Maximum train length of 12 revenue cars plus cabin car.",null,"Ø Maximum mainline speed 20 MPH","ØSpeed restrictions include 10 MPH for bridges and turnouts",null,"Ø Engine must ALWAYS be on down grade end of loaded trains!!\n",null,"Ø Contact ET Yardmaster @ yard limits to coordinate setouts & pickups\n",null,"Ø Freight trains ONLY handle freight cars, NOT HOPPERS\n",null,"REMEMBER - \"The KCR is a non-union railroad and if the Rome Operator does not approve your train's Rome movements ... Your committeeman cannot help you!\"",null,null,null,null,null,"Ø Maximum train length of 12 revenue cars plus cabin car.",null,"Ø Maximum mainline speed 20 MPH","ØSpeed restrictions include 10 MPH for bridges and turnouts",null,"Ø Engine must ALWAYS be on down grade end of loaded trains!!\n",null,"Ø Contact ET Yardmaster @ yard limits to coordinate setouts & pickups\n",null,"Ø Freight trains ONLY handle freight cars, NOT HOPPERS\n",null,"REMEMBER - \"The KCR is a non-union railroad and if the Rome Operator does not approve your train's Rome movements ... Your committeeman cannot help you!\"",null,null,null,null,null,"Ø Maximum train length of 12 revenue cars plus cabin car.",null,"Ø Maximum mainline speed 20 MPH","ØSpeed restrictions include 10 MPH for bridges and turnouts",null,"Ø Engine must ALWAYS be on down grade end of loaded trains!!\n",null,"Ø Contact ET Yardmaster @ yard limits to coordinate setouts & pickups\n",null,"Ø Freight trains ONLY handle freight cars, NOT HOPPERS\n",null,"REMEMBER - \"The KCR is a non-union railroad and if the Rome Operator does not approve your train's Rome movements ... Your committeeman cannot help you!\""]
[]
[]
[]
[null,null,"Ø Maximum train length of 12 revenue cars plus cabin car.",null,"Ø Maximum mainline speed 20 MPH","ØSpeed restrictions include 10 MPH for bridges and turnouts",null,"Ø Engine must ALWAYS be on down grade end of loaded trains!!\n",null,"Ø Contact ET Yardmaster @ yard limits to coordinate setouts & pickups\n",null,"Ø Freight trains ONLY handle freight cars, NOT HOPPERS\n",null,"REMEMBER - \"The KCR is a non-union railroad and if the Rome Operator does not approve your train's Rome movements ... Your committeeman cannot help you!\"",null,null,null,null,null,"Ø Maximum train length of 12 revenue cars plus cabin car.",null,"Ø Maximum mainline speed 20 MPH","ØSpeed restrictions include 10 MPH for bridges and turnouts",null,"Ø Engine must ALWAYS be on down grade end of loaded trains!!\n",null,"Ø Contact ET Yardmaster @ yard limits to coordinate setouts & pickups\n",null,"Ø Freight trains ONLY handle freight cars, NOT HOPPERS\n",null,"REMEMBER - \"The KCR is a non-union railroad and if the Rome Operator does not approve your train's Rome movements ... Your committeeman cannot help you!\"",null,null,null,null,null,"Ø Maximum train length of 12 revenue cars plus cabin car.",null,"Ø Maximum mainline speed 20 MPH","ØSpeed restrictions include 10 MPH for bridges and turnouts",null,"Ø Engine must ALWAYS be on down grade end of loaded trains!!\n",null,"Ø Contact ET Yardmaster @ yard limits to coordinate setouts & pickups\n",null,"Ø Freight trains ONLY handle freight cars, NOT HOPPERS\n",null,"REMEMBER - \"The KCR is a non-union railroad and if the Rome Operator does not approve your train's Rome movements ... Your committeeman cannot help you!\""]

{"sheet":"WVP&P Mill Turn, Front","index":32,"n_rows":14,"n_cols":50,"rows_kept":14,"cut":false,"hidden":false,"merged":[[13,40,16,41],[13,42,16,43],[13,44,16,44],[13,45,16,47],[13,48,16,48],[13,49,16,50],[13,31,16,31],[13,32,16,33],[13,36,16,36],[13,37,16,37],[13,38,16,38],[13,39,16,39],[13,21,16,21],[13,22,16,22],[13,23,16,24],[13,25,16,26],[13,27,16,27],[13,28,16,30],[13,10,16,10],[13,11,16,13],[13,14,16,14],[13,15,16,16],[13,19,16,19],[13,20,16,20],[13,2,16,2],[13,3,16,3],[13,4,16,4],[13,5,16,5],[13,6,16,7],[13,8,16,9],[9,40,12,41],[9,42,12,43],[9,44,12,44],[9,21,12,21],[9,22,12,22],[9,23,12,24],[9,25,12,26],[9,27,12,27],[9,28,12,30],[9,10,12,10],[9,11,12,13],[9,14,12,14],[9,15,12,16],[9,19,12,19],[9,20,12,20],[9,2,12,2],[9,3,12,3],[9,4,12,4],[9,45,12,47],[9,48,12,48],[9,49,12,50],[9,31,12,31],[9,32,12,33],[9,36,12,36],[9,37,12,37],[9,38,12,38],[9,39,12,39],[9,5,12,5],[9,6,12,7],[9,8,12,9],[5,40,8,41],[5,42,8,43],[5,44,8,44],[5,45,8,47],[5,48,8,48],[5,49,8,50],[5,31,8,31],[5,32,8,33],[5,36,8,36],[5,37,8,37],[5,38,8,38],[5,39,8,39],[5,21,8,21],[5,22,8,22],[5,23,8,24],[5,25,8,26],[5,27,8,27],[5,28,8,30],[5,10,8,10],[5,11,8,13],[5,14,8,14],[5,15,8,16],[5,19,8,19],[5,20,8,20],[5,2,8,2],[5,3,8,3],[5,4,8,4],[5,5,8,5],[5,6,8,7],[5,8,8,9],[1,40,4,41],[1,42,4,43],[1,44,4,44],[1,45,4,47],[1,48,4,48],[1,49,4,50],[1,31,4,31],[1,32,4,33],[1,36,4,36],[1,37,4,37],[1,38,4,38],[1,39,4,39],[1,25,4,26],[1,27,4,27],[1,28,4,30],[1,10,4,10],[1,11,4,13],[1,14,4,14],[1,15,4,16],[1,19,4,19],[1,20,4,20],[1,2,4,2],[1,3,4,3],[1,4,4,4],[1,5,4,5],[1,6,4,7],[1,8,4,9],[1,21,4,21],[1,22,4,22],[1,23,4,24]]}
[]
[null,null,"TRAIN INSTRUCTIONS","WVP&P Mill Turn","TRAIN No. is ENGINE No.","Ø Build train at WVP&P Mill","ØContact East Tyrone Yardmaster to coordinate movement through yard",null,"Ø Run E/B on KCR to Metz Bros. Logging @ Clearfield",null,"Ø Return W/B w/ load's to WVP&P","Ø Contact Rome operator for clearance through Rome in both directions",null,null,"<OVER>","ALWAYS OBTAIN KCR ROME OPERATOR CLEARANCE WHEN OPERATING THROUGH ROME!!\n",null,null,null,"TRAIN INSTRUCTIONS","WVP&P Mill Turn","TRAIN No. is ENGINE No.","Ø Build train at WVP&P Mill","ØContact East Tyrone Yardmaster to coordinate movement through yard",null,"Ø Run E/B on KCR to Metz Bros. Logging @ Clearfield",null,"Ø Return W/B w/ load's to WVP&P","Ø Contact Rome operator for clearance through Rome in both directions",null,null,"<OVER>","ALWAYS OBTAIN KCR ROME OPERATOR CLEARANCE WHEN OPERATING THROUGH ROME!!\n",null,null,null,"TRAIN INSTRUCTIONS","WVP&P Mill Turn","TRAIN No. is ENGINE No.","Ø Build train at WVP&P Mill","ØContact East Tyrone Yardmaster to coordinate movement through yard",null,"Ø Run E/B on KCR to Metz Bros. Logging @ Clearfield",null,"Ø Return W/B w/ load's to WVP&P","Ø Contact Rome operator for clearance through Rome in both directions",null,null,"<OVER>","ALWAYS OBTAIN KCR ROME OPERATOR CLEARANCE WHEN OPERATING THROUGH ROME!!\n"]
[]
[]
[]
[null,null,"TRAIN INSTRUCTIONS","WVP&P Mill Turn","TRAIN No. is ENGINE No.","Ø Build train at WVP&P Mill","ØContact East Tyrone Yardmaster to coordinate movement through yard",null,"Ø Run E/B on KCR to Metz Bros. Logging @ Clearfield",null,"Ø Return W/B w/ load's to WVP&P","Ø Contact Rome operator for clearance through Rome in both directions",null,null,"<OVER>","ALWAYS OBTAIN KCR ROME OPERATOR CLEARANCE WHEN OPERATING THROUGH ROME!!\n",null,null,null,"TRAIN INSTRUCTIONS","WVP&P Mill Turn","TRAIN No. is ENGINE No.","Ø Build train at WVP&P Mill","ØContact East Tyrone Yardmaster to coordinate movement through yard",null,"Ø Run E/B on KCR to Metz Bros. Logging @ Clearfield",null,"Ø Return W/B w/ load's to WVP&P","Ø Contact Rome operator for clearance through Rome in both directions",null,null,"<OVER>","ALWAYS OBTAIN KCR ROME OPERATOR CLEARANCE WHEN OPERATING THROUGH ROME!!\n",null,null,null,"TRAIN INSTRUCTIONS","WVP&P Mill Turn","TRAIN No. is ENGINE No.","Ø Build train at WVP&P Mill","ØContact East Tyrone Yardmaster to coordinate movement through yard",null,"Ø Run E/B on KCR to Metz Bros. Logging @ Clearfield",null,"Ø Return W/B w/ load's to WVP&P","Ø Contact Rome operator for clearance through Rome in both directions",null,null,"<OVER>","ALWAYS OBTAIN KCR ROME OPERATOR CLEARANCE WHEN OPERATING THROUGH ROME!!\n"]
[]
[]
[]
[null,null,"TRAIN INSTRUCTIONS","WVP&P Mill Turn","TRAIN No. is ENGINE No.","Ø Build train at WVP&P Mill","ØContact East Tyrone Yardmaster to coordinate movement through yard",null,"Ø Run E/B on KCR to Metz Bros. Logging @ Clearfield",null,"Ø Return W/B w/ load's to WVP&P","Ø Contact Rome operator for clearance through Rome in both directions",null,null,"<OVER>","ALWAYS OBTAIN KCR ROME OPERATOR CLEARANCE WHEN OPERATING THROUGH ROME!!\n",null,null,null,"TRAIN INSTRUCTIONS","WVP&P Mill Turn","TRAIN No. is ENGINE No.","Ø Build train at WVP&P Mill","ØContact East Tyrone Yardmaster to coordinate movement through yard",null,"Ø Run E/B on KCR to Metz Bros. Logging @ Clearfield",null,"Ø Return W/B w/ load's to WVP&P","Ø Contact Rome operator for clearance through Rome in both directions",null,null,"<OVER>","ALWAYS OBTAIN KCR ROME OPERATOR CLEARANCE WHEN OPERATING THROUGH ROME!!\n",null,null,null,"TRAIN INSTRUCTIONS","WVP&P Mill Turn","TRAIN No. is ENGINE No.","Ø Build train at WVP&P Mill","ØContact East Tyrone Yardmaster to coordinate movement through yard",null,"Ø Run E/B on KCR to Metz Bros. Logging @ Clearfield",null,"Ø Return W/B w/ load's to WVP&P","Ø Contact Rome operator for clearance through Rome in both directions",null,null,"<OVER>","ALWAYS OBTAIN KCR ROME OPERATOR CLEARANCE WHEN OPERATING THROUGH ROME!!\n"]
[]
[]
[]
[null,null,"TRAIN INSTRUCTIONS","WVP&P Mill Turn","TRAIN No. is ENGINE No.","Ø Build train at WVP&P Mill","ØContact East Tyrone Yardmaster to coordinate movement through yard",null,"Ø Run E/B on KCR to Metz Bros. Logging @ Clearfield",null,"Ø Return W/B w/ load's to WVP&P","Ø Contact Rome operator for clearance through Rome in both directions",null,null,"<OVER>","ALWAYS OBTAIN KCR ROME OPERATOR CLEARANCE WHEN OPERATING THROUGH ROME!!\n",null,null,null,"TRAIN INSTRUCTIONS","WVP&P Mill Turn","TRAIN No. is ENGINE No.","Ø Build train at WVP&P Mill","ØContact East Tyrone Yardmaster to coordinate movement through yard",null,"Ø Run E/B on KCR to Metz Bros. Logging @ Clearfield",null,"Ø Return W/B w/ load's to WVP&P","Ø Contact Rome operator for clearance through Rome in both directions",null,null,"<OVER>","ALWAYS OBTAIN KCR ROME OPERATOR CLEARANCE WHEN OPERATING THROUGH ROME!!\n",null,null,null,"TRAIN INSTRUCTIONS","WVP&P Mill Turn","TRAIN No. is ENGINE No.","Ø Build train at WVP&P Mill","ØContact East Tyrone Yardmaster to coordinate movement through yard",null,"Ø Run E/B on KCR to Metz Bros. Logging @ Clearfield",null,"Ø Return W/B w/ load's to WVP&P","Ø Contact Rome operator for clearance through Rome in both directions",null,null,"<OVER>","ALWAYS OBTAIN KCR ROME OPERATOR CLEARANCE WHEN OPERATING THROUGH ROME!!\n"]

{"sheet":"WVP&P Mill Turn, Back","index":33,"n_rows":14,"n_cols":48,"rows_kept":14,"cut":false,"hidden":false,"merged":[[13,47,16,50],[13,19,16,20],[13,21,16,21],[13,22,16,23],[13,24,16,27],[13,28,16,29],[13,30,16,33],[13,36,16,37],[13,38,16,38],[13,39,16,40],[13,41,16,44],[13,45,16,46],[13,2,16,3],[13,4,16,4],[13,5,16,6],[13,7,16,10],[13,11,16,12],[13,13,16,16],[9,36,12,37],[9,38,12,38],[9,39,12,40],[9,41,12,44],[9,13,12,16],[9,45,12,46],[9,47,12,50],[9,19,12,20],[9,21,12,21],[9,22,12,23],[9,24,12,27],[9,28,12,29],[9,30,12,33],[9,2,12,3],[9,4,12,4],[9,5,12,6],[9,7,12,10],[9,11,12,12],[5,47,8,50],[5,19,8,20],[5,21,8,21],[5,22,8,23],[5,24,8,27],[5,28,8,29],[5,30,8,33],[5,36,8,37],[5,38,8,38],[5,39,8,40],[5,41,8,44],[5,45,8,46],[5,2,8,3],[5,4,8,4],[5,5,8,6],[5,7,8,10],[5,11,8,12],[5,13,8,16],[1,36,4,37],[1,38,4,38],[1,39,4,40],[1,41,4,44],[1,13,4,16],[1,45,4,46],[1,47,4,50],[1,19,4,20],[1,21,4,21],[1,22,4,23],[1,24,4,27],[1,28,4,29],[1,30,4,33],[1,2,4,3],[1,4,4,4],[1,5,4,6],[1,7,4,10],[1,11,4,12]]}
[]
[null,null,"Ø Maximum train length of 6 revenue cars plus cabin car.",null,"Ø Maximum mainline speed 15 MPH","ØSpeed restrictions include 10 MPH for bridges and turnouts",null,"Ø Engine must ALWAYS be on down grade end of loaded trains!!\n",null,null,null,null,null,"REMEMBER - \"The KCR is a non-union railroad and if the Rome Operator does not approve your train's Rome movements ... Your committeeman cannot help you!\"",null,null,null,null,null,"Ø Maximum train length of 6 revenue cars plus cabin car.",null,"Ø Maximum mainline speed 15 MPH","ØSpeed restrictions include 10 MPH for bridges and turnouts",null,"Ø Engine must ALWAYS be on down grade end of loaded trains!!\n",null,null,null,null,null,"REMEMBER - \"The KCR is a non-union railroad and if the Rome Operator does not approve your train's Rome movements ... Your committeeman cannot help you!\"",null,null,null,null,null,"Ø Maximum train length of 6 revenue cars plus cabin car.",null,"Ø Maximum mainline speed 15 MPH","ØSpeed restrictions include 10 MPH for bridges and turnouts",null,"Ø Engine must ALWAYS be on down grade end of loaded trains!!\n",null,null,null,null,null,"REMEMBER - \"The KCR is a non-union railroad and if the Rome Operator does not approve your train's Rome movements ... Your committeeman cannot help you!\""]
[]
[]
[]
[null,null,"Ø Maximum train length of 6 revenue cars plus cabin car.",null,"Ø Maximum mainline speed 15 MPH","ØSpeed restrictions include 10 MPH for bridges and turnouts",null,"Ø Engine must ALWAYS be on down grade end of loaded trains!!\n",null,null,null,null,null,"REMEMBER - \"The KCR is a non-union railroad and if the Rome Operator does not approve your train's Rome movements ... Your committeeman cannot help you!\"",null,null,null,null,null,"Ø Maximum train length of 6 revenue cars plus cabin car.",null,"Ø Maximum mainline speed 15 MPH","ØSpeed restrictions include 10 MPH for bridges and turnouts",null,"Ø Engine must ALWAYS be on down grade end of loaded trains!!\n",null,null,null,null,null,"REMEMBER - \"The KCR is a non-union railroad and if the Rome Operator does not approve your train's Rome movements ... Your committeeman cannot help you!\"",null,null,null,null,null,"Ø Maximum train length of 6 revenue cars plus cabin car.",null,"Ø Maximum mainline speed 15 MPH","ØSpeed restrictions include 10 MPH for bridges and turnouts",null,"Ø Engine must ALWAYS be on down grade end of loaded trains!!\n",null,null,null,null,null,"REMEMBER - \"The KCR is a non-union railroad and if the Rome Operator does not approve your train's Rome movements ... Your committeeman cannot help you!\""]
[]
[]
[]
[null,null,"Ø Maximum train length of 6 revenue cars plus cabin car.",null,"Ø Maximum mainline speed 15 MPH","ØSpeed restrictions include 10 MPH for bridges and turnouts",null,"Ø Engine must ALWAYS be on down grade end of loaded trains!!\n",null,null,null,null,null,"REMEMBER - \"The KCR is a non-union railroad and if the Rome Operator does not approve your train's Rome movements ... Your committeeman cannot help you!\"",null,null,null,null,null,"Ø Maximum train length of 6 revenue cars plus cabin car.",null,"Ø Maximum mainline speed 15 MPH","ØSpeed restrictions include 10 MPH for bridges and turnouts",null,"Ø Engine must ALWAYS be on down grade end of loaded trains!!\n",null,null,null,null,null,"REMEMBER - \"The KCR is a non-union railroad and if the Rome Operator does not approve your train's Rome movements ... Your committeeman cannot help you!\"",null,null,null,null,null,"Ø Maximum train length of 6 revenue cars plus cabin car.",null,"Ø Maximum mainline speed 15 MPH","ØSpeed restrictions include 10 MPH for bridges and turnouts",null,"Ø Engine must ALWAYS be on down grade end of loaded trains!!\n",null,null,null,null,null,"REMEMBER - \"The KCR is a non-union railroad and if the Rome Operator does not approve your train's Rome movements ... Your committeeman cannot help you!\""]
[]
[]
[]
[null,null,"Ø Maximum train length of 6 revenue cars plus cabin car.",null,"Ø Maximum mainline speed 15 MPH","ØSpeed restrictions include 10 MPH for bridges and turnouts",null,"Ø Engine must ALWAYS be on down grade end of loaded trains!!\n",null,null,null,null,null,"REMEMBER - \"The KCR is a non-union railroad and if the Rome Operator does not approve your train's Rome movements ... Your committeeman cannot help you!\"",null,null,null,null,null,"Ø Maximum train length of 6 revenue cars plus cabin car.",null,"Ø Maximum mainline speed 15 MPH","ØSpeed restrictions include 10 MPH for bridges and turnouts",null,"Ø Engine must ALWAYS be on down grade end of loaded trains!!\n",null,null,null,null,null,"REMEMBER - \"The KCR is a non-union railroad and if the Rome Operator does not approve your train's Rome movements ... Your committeeman cannot help you!\"",null,null,null,null,null,"Ø Maximum train length of 6 revenue cars plus cabin car.",null,"Ø Maximum mainline speed 15 MPH","ØSpeed restrictions include 10 MPH for bridges and turnouts",null,"Ø Engine must ALWAYS be on down grade end of loaded trains!!\n",null,null,null,null,null,"REMEMBER - \"The KCR is a non-union railroad and if the Rome Operator does not approve your train's Rome movements ... Your committeeman cannot help you!\""]

{"sheet":"KCR Coal Turn, Front","index":34,"n_rows":14,"n_cols":50,"rows_kept":14,"cut":false,"hidden":false,"merged":[[5,21,8,21],[5,22,8,22],[5,26,8,28],[5,29,8,30],[5,23,8,25],[9,23,12,25],[13,23,16,25],[9,21,12,21],[9,22,12,22],[9,26,12,28],[9,29,12,30],[9,46,12,47],[1,43,4,45],[1,46,4,47],[1,21,4,21],[1,22,4,22],[1,23,4,25],[13,48,16,48],[13,49,16,50],[13,31,16,31],[13,32,16,33],[13,36,16,36],[13,37,16,37],[13,38,16,38],[13,39,16,39],[13,46,16,47],[9,48,12,48],[9,49,12,50],[9,31,12,31],[9,32,12,33],[9,36,12,36],[9,37,12,37],[9,38,12,38],[9,39,12,39],[5,43,8,45],[13,2,16,2],[13,3,16,3],[13,4,16,4],[13,5,16,5],[13,43,16,45],[13,6,16,8],[13,9,16,11],[13,12,16,13],[13,40,16,42],[13,21,16,21],[13,22,16,22],[13,26,16,28],[13,29,16,30],[13,14,16,14],[13,15,16,16],[13,19,16,19],[13,20,16,20],[5,46,8,47],[5,48,8,48],[5,49,8,50],[5,31,8,31],[5,32,8,33],[5,36,8,36],[5,37,8,37],[5,38,8,38],[5,39,8,39],[5,40,8,42],[9,40,12,42],[9,43,12,45],[5,9,8,11],[5,12,8,13],[5,14,8,14],[5,15,8,16],[5,19,8,19],[5,20,8,20],[5,2,8,2],[5,3,8,3],[5,4,8,4],[5,5,8,5],[5,6,8,8],[9,9,12,11],[9,12,12,13],[9,14,12,14],[9,15,12,16],[9,19,12,19],[9,20,12,20],[9,2,12,2],[9,3,12,3],[9,4,12,4],[9,5,12,5],[9,6,12,8],[1,48,4,48],[1,49,4,50],[1,31,4,31],[1,32,4,33],[1,36,4,36],[1,37,4,37],[1,38,4,38],[1,39,4,39],[1,26,4,28],[1,29,4,30],[1,40,4,42],[1,9,4,11],[1,12,4,13],[1,14,4,14],[1,15,4,16],[1,19,4,19],[1,20,4,20],[1,2,4,2],[1,3,4,3],[1,4,4,4],[1,5,4,5],[1,6,4,8]]}
[]
[null,null,"TRAIN INSTRUCTIONS","KCR COAL TURN","TRAIN No. is ENGINE No.","Ø Pick up train at Park Tower","ØContact East Tyrone Yardmaster to coordinate East Tyrone Yard setouts & pickups",null,null,"Ø Run E/B to Clearfield making set outs and pickups as dictated by the waybills.",null,null,"Ø Place engine on downhill end of train for return to Vail",null,"<OVER>","ALWAYS OBTAIN KCR ROME OPERATOR CLEARANCE WHEN OPERATING THROUGH ROME!!\n",null,null,null,"TRAIN INSTRUCTIONS","KCR COAL TURN","TRAIN No. is ENGINE No.","Ø Pick up train at Park Tower","ØContact East Tyrone Yardmaster to coordinate East Tyrone Yard setouts & pickups",null,null,"Ø Run E/B to Clearfield making set outs and pickups as dictated by the waybills.",null,null,"Ø Place engine on downhill end of train for return to Vail",null,"<OVER>","ALWAYS OBTAIN KCR ROME OPERATOR CLEARANCE WHEN OPERATING THROUGH ROME!!\n",null,null,null,"TRAIN INSTRUCTIONS","KCR COAL TURN","TRAIN No. is ENGINE No.","Ø Pick up train at Park Tower","ØContact East Tyrone Yardmaster to coordinate East Tyrone Yard setouts & pickups",null,null,"Ø Run E/B to Clearfield making set outs and pickups as dictated by the waybills.",null,null,"Ø Place engine on downhill end of train for return to Vail",null,"<OVER>","ALWAYS OBTAIN KCR ROME OPERATOR CLEARANCE WHEN OPERATING THROUGH ROME!!\n"]
[]
[]
[]
[null,null,"TRAIN INSTRUCTIONS","KCR COAL TURN","TRAIN No. is ENGINE No.","Ø Pick up train at Park Tower","ØContact East Tyrone Yardmaster to coordinate East Tyrone Yard setouts & pickups",null,null,"Ø Run E/B to Clearfield making set outs and pickups as dictated by the waybills.",null,null,"Ø Place engine on downhill end of train for return to Vail",null,"<OVER>","ALWAYS OBTAIN KCR ROME OPERATOR CLEARANCE WHEN OPERATING THROUGH ROME!!\n",null,null,null,"TRAIN INSTRUCTIONS","KCR COAL TURN","TRAIN No. is ENGINE No.","Ø Pick up train at Park Tower","ØContact East Tyrone Yardmaster to coordinate East Tyrone Yard setouts & pickups",null,null,"Ø Run E/B to Clearfield making set outs and pickups as dictated by the waybills.",null,null,"Ø Place engine on downhill end of train for return to Vail",null,"<OVER>","ALWAYS OBTAIN KCR ROME OPERATOR CLEARANCE WHEN OPERATING THROUGH ROME!!\n",null,null,null,"TRAIN INSTRUCTIONS","KCR COAL TURN","TRAIN No. is ENGINE No.","Ø Pick up train at Park Tower","ØContact East Tyrone Yardmaster to coordinate East Tyrone Yard setouts & pickups",null,null,"Ø Run E/B to Clearfield making set outs and pickups as dictated by the waybills.",null,null,"Ø Place engine on downhill end of train for return to Vail",null,"<OVER>","ALWAYS OBTAIN KCR ROME OPERATOR CLEARANCE WHEN OPERATING THROUGH ROME!!\n"]
[]
[]
[]
[null,null,"TRAIN INSTRUCTIONS","KCR COAL TURN","TRAIN No. is ENGINE No.","Ø Pick up train at Park Tower","ØContact East Tyrone Yardmaster to coordinate East Tyrone Yard setouts & pickups",null,null,"Ø Run E/B to Clearfield making set outs and pickups as dictated by the waybills.",null,null,"Ø Place engine on downhill end of train for return to Vail",null,"<OVER>","ALWAYS OBTAIN KCR ROME OPERATOR CLEARANCE WHEN OPERATING THROUGH ROME!!\n",null,null,null,"TRAIN INSTRUCTIONS","KCR COAL TURN","TRAIN No. is ENGINE No.","Ø Pick up train at Park Tower","ØContact East Tyrone Yardmaster to coordinate East Tyrone Yard setouts & pickups",null,null,"Ø Run E/B to Clearfield making set outs and pickups as dictated by the waybills.",null,null,"Ø Place engine on downhill end of train for return to Vail",null,"<OVER>","ALWAYS OBTAIN KCR ROME OPERATOR CLEARANCE WHEN OPERATING THROUGH ROME!!\n",null,null,null,"TRAIN INSTRUCTIONS","KCR COAL TURN","TRAIN No. is ENGINE No.","Ø Pick up train at Park Tower","ØContact East Tyrone Yardmaster to coordinate East Tyrone Yard setouts & pickups",null,null,"Ø Run E/B to Clearfield making set outs and pickups as dictated by the waybills.",null,null,"Ø Place engine on downhill end of train for return to Vail",null,"<OVER>","ALWAYS OBTAIN KCR ROME OPERATOR CLEARANCE WHEN OPERATING THROUGH ROME!!\n"]
[]
[]
[]
[null,null,"TRAIN INSTRUCTIONS","KCR COAL TURN","TRAIN No. is ENGINE No.","Ø Pick up train at Park Tower","ØContact East Tyrone Yardmaster to coordinate East Tyrone Yard setouts & pickups",null,null,"Ø Run E/B to Clearfield making set outs and pickups as dictated by the waybills.",null,null,"Ø Place engine on downhill end of train for return to Vail",null,"<OVER>","ALWAYS OBTAIN KCR ROME OPERATOR CLEARANCE WHEN OPERATING THROUGH ROME!!\n",null,null,null,"TRAIN INSTRUCTIONS","KCR COAL TURN","TRAIN No. is ENGINE No.","Ø Pick up train at Park Tower","ØContact East Tyrone Yardmaster to coordinate East Tyrone Yard setouts & pickups",null,null,"Ø Run E/B to Clearfield making set outs and pickups as dictated by the waybills.",null,null,"Ø Place engine on downhill end of train for return to Vail",null,"<OVER>","ALWAYS OBTAIN KCR ROME OPERATOR CLEARANCE WHEN OPERATING THROUGH ROME!!\n",null,null,null,"TRAIN INSTRUCTIONS","KCR COAL TURN","TRAIN No. is ENGINE No.","Ø Pick up train at Park Tower","ØContact East Tyrone Yardmaster to coordinate East Tyrone Yard setouts & pickups",null,null,"Ø Run E/B to Clearfield making set outs and pickups as dictated by the waybills.",null,null,"Ø Place engine on downhill end of train for return to Vail",null,"<OVER>","ALWAYS OBTAIN KCR ROME OPERATOR CLEARANCE WHEN OPERATING THROUGH ROME!!\n"]

{"sheet":"KCR Coal Turn, Back","index":35,"n_rows":14,"n_cols":48,"rows_kept":14,"cut":false,"hidden":false,"merged":[[13,47,16,50],[13,22,16,23],[13,24,16,25],[13,26,16,27],[13,28,16,29],[13,30,16,33],[13,36,16,37],[13,38,16,38],[13,39,16,40],[13,41,16,42],[13,43,16,44],[13,45,16,46],[9,47,12,50],[13,2,16,3],[13,4,16,4],[13,5,16,6],[13,7,16,8],[13,9,16,10],[13,11,16,12],[13,13,16,16],[13,19,16,20],[13,21,16,21],[9,36,12,37],[9,38,12,38],[9,39,12,40],[9,41,12,42],[9,43,12,44],[9,45,12,46],[9,21,12,21],[9,22,12,23],[9,24,12,25],[9,26,12,27],[9,28,12,29],[9,30,12,33],[5,45,8,46],[5,47,8,50],[9,2,12,3],[9,4,12,4],[9,5,12,6],[9,7,12,8],[9,9,12,10],[9,11,12,12],[9,13,12,16],[9,19,12,20],[5,30,8,33],[5,36,8,37],[5,38,8,38],[5,39,8,40],[5,41,8,42],[5,43,8,44],[5,19,8,20],[5,21,8,21],[5,22,8,23],[5,24,8,25],[5,26,8,27],[5,28,8,29],[1,43,4,44],[1,45,4,46],[1,47,4,50],[5,2,8,3],[5,4,8,4],[5,5,8,6],[5,7,8,8],[5,9,8,10],[5,11,8,12],[5,13,8,16],[1,28,4,29],[1,30,4,33],[1,36,4,37],[1,38,4,38],[1,39,4,40],[1,41,4,42],[1,26,4,27],[1,2,4,3],[1,4,4,4],[1,5,4,6],[1,7,4,8],[1,9,4,10],[1,11,4,12],[1,13,4,16],[1,19,4,20],[1,21,4,21],[1,22,4,23],[1,24,4,25]]}
[]
[null,null,"Ø Maximum train length of 12 revenue cars plus cabin car.",null,"Ø Maximum mainline speed 20 MPH","ØSpeed restrictions include 10 MPH for bridges and turnouts",null,"Ø Engine must ALWAYS be on down grade end of loaded trains!!\n",null,"Ø Contact ET Yardmaster @ yard limits to coordinate setouts & pickups\n",null,"Ø Coal drags ONLY handle coal hoppers\n",null,"REMEMBER - \"The KCR is a non-union railroad and if the Rome Operator does not approve your train's Rome movements ... Your committeeman cannot help you!\"",null,null,null,null,null,"Ø Maximum train length of 12 revenue cars plus cabin car.",null,"Ø Maximum mainline speed 20 MPH","ØSpeed restrictions include 10 MPH for bridges and turnouts",null,"Ø Engine must ALWAYS be on down grade end of loaded trains!!\n",null,"Ø Contact ET Yardmaster @ yard limits to coordinate setouts & pickups\n",null,"Ø Coal drags ONLY handle coal hoppers\n",null,"REMEMBER - \"The KCR is a non-union railroad and if the Rome Operator does not approve your train's Rome movements ... Your committeeman cannot help you!\"",null,null,null,null,null,"Ø Maximum train length of 12 revenue cars plus cabin car.",null,"Ø Maximum mainline speed 20 MPH","ØSpeed restrictions include 10 MPH for bridges and turnouts",null,"Ø Engine must ALWAYS be on down grade end of loaded trains!!\n",null,"Ø Contact ET Yardmaster @ yard limits to coordinate setouts & pickups\n",null,"Ø Coal drags ONLY handle coal hoppers\n",null,"REMEMBER - \"The KCR is a non-union railroad and if the Rome Operator does not approve your train's Rome movements ... Your committeeman cannot help you!\""]
[]
[]
[]
[null,null,"Ø Maximum train length of 12 revenue cars plus cabin car.",null,"Ø Maximum mainline speed 20 MPH","ØSpeed restrictions include 10 MPH for bridges and turnouts",null,"Ø Engine must ALWAYS be on down grade end of loaded trains!!\n",null,"Ø Contact ET Yardmaster @ yard limits to coordinate setouts & pickups\n",null,"Ø Coal drags ONLY handle coal hoppers\n",null,"REMEMBER - \"The KCR is a non-union railroad and if the Rome Operator does not approve your train's Rome movements ... Your committeeman cannot help you!\"",null,null,null,null,null,"Ø Maximum train length of 12 revenue cars plus cabin car.",null,"Ø Maximum mainline speed 20 MPH","ØSpeed restrictions include 10 MPH for bridges and turnouts",null,"Ø Engine must ALWAYS be on down grade end of loaded trains!!\n",null,"Ø Contact ET Yardmaster @ yard limits to coordinate setouts & pickups\n",null,"Ø Coal drags ONLY handle coal hoppers\n",null,"REMEMBER - \"The KCR is a non-union railroad and if the Rome Operator does not approve your train's Rome movements ... Your committeeman cannot help you!\"",null,null,null,null,null,"Ø Maximum train length of 12 revenue cars plus cabin car.",null,"Ø Maximum mainline speed 20 MPH","ØSpeed restrictions include 10 MPH for bridges and turnouts",null,"Ø Engine must ALWAYS be on down grade end of loaded trains!!\n",null,"Ø Contact ET Yardmaster @ yard limits to coordinate setouts & pickups\n",null,"Ø Coal drags ONLY handle coal hoppers\n",null,"REMEMBER - \"The KCR is a non-union railroad and if the Rome Operator does not approve your train's Rome movements ... Your committeeman cannot help you!\""]
[]
[]
[]
[null,null,"Ø Maximum train length of 12 revenue cars plus cabin car.",null,"Ø Maximum mainline speed 20 MPH","ØSpeed restrictions include 10 MPH for bridges and turnouts",null,"Ø Engine must ALWAYS be on down grade end of loaded trains!!\n",null,"Ø Contact ET Yardmaster @ yard limits to coordinate setouts & pickups\n",null,"Ø Coal drags ONLY handle coal hoppers\n",null,"REMEMBER - \"The KCR is a non-union railroad and if the Rome Operator does not approve your train's Rome movements ... Your committeeman cannot help you!\"",null,null,null,null,null,"Ø Maximum train length of 12 revenue cars plus cabin car.",null,"Ø Maximum mainline speed 20 MPH","ØSpeed restrictions include 10 MPH for bridges and turnouts",null,"Ø Engine must ALWAYS be on down grade end of loaded trains!!\n",null,"Ø Contact ET Yardmaster @ yard limits to coordinate setouts & pickups\n",null,"Ø Coal drags ONLY handle coal hoppers\n",null,"REMEMBER - \"The KCR is a non-union railroad and if the Rome Operator does not approve your train's Rome movements ... Your committeeman cannot help you!\"",null,null,null,null,null,"Ø Maximum train length of 12 revenue cars plus cabin car.",null,"Ø Maximum mainline speed 20 MPH","ØSpeed restrictions include 10 MPH for bridges and turnouts",null,"Ø Engine must ALWAYS be on down grade end of loaded trains!!\n",null,"Ø Contact ET Yardmaster @ yard limits to coordinate setouts & pickups\n",null,"Ø Coal drags ONLY handle coal hoppers\n",null,"REMEMBER - \"The KCR is a non-union railroad and if the Rome Operator does not approve your train's Rome movements ... Your committeeman cannot help you!\""]
[]
[]
[]
[null,null,"Ø Maximum train length of 12 revenue cars plus cabin car.",null,"Ø Maximum mainline speed 20 MPH","ØSpeed restrictions include 10 MPH for bridges and turnouts",null,"Ø Engine must ALWAYS be on down grade end of loaded trains!!\n",null,"Ø Contact ET Yardmaster @ yard limits to coordinate setouts & pickups\n",null,"Ø Coal drags ONLY handle coal hoppers\n",null,"REMEMBER - \"The KCR is a non-union railroad and if the Rome Operator does not approve your train's Rome movements ... Your committeeman cannot help you!\"",null,null,null,null,null,"Ø Maximum train length of 12 revenue cars plus cabin car.",null,"Ø Maximum mainline speed 20 MPH","ØSpeed restrictions include 10 MPH for bridges and turnouts",null,"Ø Engine must ALWAYS be on down grade end of loaded trains!!\n",null,"Ø Contact ET Yardmaster @ yard limits to coordinate setouts & pickups\n",null,"Ø Coal drags ONLY handle coal hoppers\n",null,"REMEMBER - \"The KCR is a non-union railroad and if the Rome Operator does not approve your train's Rome movements ... Your committeeman cannot help you!\"",null,null,null,null,null,"Ø Maximum train length of 12 revenue cars plus cabin car.",null,"Ø Maximum mainline speed 20 MPH","ØSpeed restrictions include 10 MPH for bridges and turnouts",null,"Ø Engine must ALWAYS be on down grade end of loaded trains!!\n",null,"Ø Contact ET Yardmaster @ yard limits to coordinate setouts & pickups\n",null,"Ø Coal drags ONLY handle coal hoppers\n",null,"REMEMBER - \"The KCR is a non-union railroad and if the Rome Operator does not approve your train's Rome movements ... Your committeeman cannot help you!\""]

{"sheet":"E-B Sweeper, Front","index":36,"n_rows":14,"n_cols":50,"rows_kept":14,"cut":false,"hidden":false,"merged":[[1,31,4,31],[1,32,4,33],[1,12,4,13],[1,14,4,14],[1,15,4,16],[1,19,4,19],[1,20,4,20],[1,21,4,21],[1,2,4,2],[1,3,4,3],[1,4,4,4],[1,5,4,5],[1,6,4,8],[1,9,4,11],[5,19,8,19],[5,20,8,20],[5,21,8,21],[5,22,8,22],[1,46,4,47],[1,48,4,48],[1,49,4,50],[5,2,8,2],[5,3,8,3],[5,4,8,4],[5,5,8,5],[5,6,8,8],[5,9,8,11],[5,12,8,13],[1,36,4,36],[1,37,4,37],[1,38,4,38],[1,39,4,39],[1,40,4,42],[1,43,4,45],[1,22,4,22],[1,23,4,25],[1,26,4,28],[1,29,4,30],[5,48,8,48],[5,49,8,50],[9,2,12,2],[9,3,12,3],[9,4,12,4],[9,5,12,5],[9,6,12,8],[9,9,12,11],[9,12,12,13],[9,14,12,14],[5,37,8,37],[5,38,8,38],[5,39,8,39],[5,40,8,42],[5,43,8,45],[5,46,8,47],[5,23,8,25],[5,26,8,28],[5,29,8,30],[5,31,8,31],[5,32,8,33],[5,36,8,36],[5,14,8,14],[5,15,8,16],[9,31,12,31],[9,32,12,33],[9,36,12,36],[9,37,12,37],[9,15,12,16],[9,19,12,19],[9,20,12,20],[9,21,12,21],[9,22,12,22],[9,23,12,25],[13,19,16,19],[13,20,16,20],[13,21,16,21],[13,22,16,22],[13,23,16,25],[13,26,16,28],[9,49,12,50],[13,2,16,2],[13,3,16,3],[13,4,16,4],[13,5,16,5],[13,6,16,8],[13,9,16,11],[13,12,16,13],[13,14,16,14],[13,15,16,16],[9,38,12,38],[9,39,12,39],[9,40,12,42],[9,43,12,45],[9,46,12,47],[9,48,12,48],[9,26,12,28],[9,29,12,30],[13,39,16,39],[13,40,16,42],[13,43,16,45],[13,46,16,47],[13,48,16,48],[13,49,16,50],[13,29,16,30],[13,31,16,31],[13,32,16,33],[13,36,16,36],[13,37,16,37],[13,38,16,38]]}
[]
[null,null,"TRAIN INSTRUCTIONS","E/B Sweeper","TRAIN No. is ENGINE No.","Ø Pick up train at Park Tower","ØContact East Tyrone Yardmaster to coordinate East Tyrone Yard pickups",null,null,"Ø Run E/B to Lock Haven making pickups as dictated by the waybills.",null,null,"Ø Release train at Lock Haven Tower after contacting Lock Haven Yardmaster.",null,"<OVER>","ALWAYS OBTAIN DISPATCHER CLEARANCE WHEN OPERATING BEYOND YARD LIMITS!!\n",null,null,null,"TRAIN INSTRUCTIONS","E/B Sweeper","TRAIN No. is ENGINE No.","Ø Pick up train at Park Tower","ØContact East Tyrone Yardmaster to coordinate East Tyrone Yard pickups",null,null,"Ø Run E/B to Lock Haven making pickups as dictated by the waybills.",null,null,"Ø Release train at Lock Haven Tower after contacting Lock Haven Yardmaster.",null,"<OVER>","ALWAYS OBTAIN DISPATCHER CLEARANCE WHEN OPERATING BEYOND YARD LIMITS!!\n",null,null,null,"TRAIN INSTRUCTIONS","E/B Sweeper","TRAIN No. is ENGINE No.","Ø Pick up train at Park Tower","ØContact East Tyrone Yardmaster to coordinate East Tyrone Yard pickups",null,null,"Ø Run E/B to Lock Haven making pickups as dictated by the waybills.",null,null,"Ø Release train at Lock Haven Tower after contacting Lock Haven Yardmaster.",null,"<OVER>","ALWAYS OBTAIN DISPATCHER CLEARANCE WHEN OPERATING BEYOND YARD LIMITS!!\n"]
[]
[]
[]
[null,null,"TRAIN INSTRUCTIONS","E/B Sweeper","TRAIN No. is ENGINE No.","Ø Pick up train at Park Tower","ØContact East Tyrone Yardmaster to coordinate East Tyrone Yard pickups",null,null,"Ø Run E/B to Lock Haven making pickups as dictated by the waybills.",null,null,"Ø Release train at Lock Haven Tower after contacting Lock Haven Yardmaster.",null,"<OVER>","ALWAYS OBTAIN DISPATCHER CLEARANCE WHEN OPERATING BEYOND YARD LIMITS!!\n",null,null,null,"TRAIN INSTRUCTIONS","E/B Sweeper","TRAIN No. is ENGINE No.","Ø Pick up train at Park Tower","ØContact East Tyrone Yardmaster to coordinate East Tyrone Yard pickups",null,null,"Ø Run E/B to Lock Haven making pickups as dictated by the waybills.",null,null,"Ø Release train at Lock Haven Tower after contacting Lock Haven Yardmaster.",null,"<OVER>","ALWAYS OBTAIN DISPATCHER CLEARANCE WHEN OPERATING BEYOND YARD LIMITS!!\n",null,null,null,"TRAIN INSTRUCTIONS","E/B Sweeper","TRAIN No. is ENGINE No.","Ø Pick up train at Park Tower","ØContact East Tyrone Yardmaster to coordinate East Tyrone Yard pickups",null,null,"Ø Run E/B to Lock Haven making pickups as dictated by the waybills.",null,null,"Ø Release train at Lock Haven Tower after contacting Lock Haven Yardmaster.",null,"<OVER>","ALWAYS OBTAIN DISPATCHER CLEARANCE WHEN OPERATING BEYOND YARD LIMITS!!\n"]
[]
[]
[]
[null,null,"TRAIN INSTRUCTIONS","E/B Sweeper","TRAIN No. is ENGINE No.","Ø Pick up train at Park Tower","ØContact East Tyrone Yardmaster to coordinate East Tyrone Yard pickups",null,null,"Ø Run E/B to Lock Haven making pickups as dictated by the waybills.",null,null,"Ø Release train at Lock Haven Tower after contacting Lock Haven Yardmaster.",null,"<OVER>","ALWAYS OBTAIN DISPATCHER CLEARANCE WHEN OPERATING BEYOND YARD LIMITS!!\n",null,null,null,"TRAIN INSTRUCTIONS","E/B Sweeper","TRAIN No. is ENGINE No.","Ø Pick up train at Park Tower","ØContact East Tyrone Yardmaster to coordinate East Tyrone Yard pickups",null,null,"Ø Run E/B to Lock Haven making pickups as dictated by the waybills.",null,null,"Ø Release train at Lock Haven Tower after contacting Lock Haven Yardmaster.",null,"<OVER>","ALWAYS OBTAIN DISPATCHER CLEARANCE WHEN OPERATING BEYOND YARD LIMITS!!\n",null,null,null,"TRAIN INSTRUCTIONS","E/B Sweeper","TRAIN No. is ENGINE No.","Ø Pick up train at Park Tower","ØContact East Tyrone Yardmaster to coordinate East Tyrone Yard pickups",null,null,"Ø Run E/B to Lock Haven making pickups as dictated by the waybills.",null,null,"Ø Release train at Lock Haven Tower after contacting Lock Haven Yardmaster.",null,"<OVER>","ALWAYS OBTAIN DISPATCHER CLEARANCE WHEN OPERATING BEYOND YARD LIMITS!!\n"]
[]
[]
[]
[null,null,"TRAIN INSTRUCTIONS","E/B Sweeper","TRAIN No. is ENGINE No.","Ø Pick up train at Park Tower","ØContact East Tyrone Yardmaster to coordinate East Tyrone Yard pickups",null,null,"Ø Run E/B to Lock Haven making pickups as dictated by the waybills.",null,null,"Ø Release train at Lock Haven Tower after contacting Lock Haven Yardmaster.",null,"<OVER>","ALWAYS OBTAIN DISPATCHER CLEARANCE WHEN OPERATING BEYOND YARD LIMITS!!\n",null,null,null,"TRAIN INSTRUCTIONS","E/B Sweeper","TRAIN No. is ENGINE No.","Ø Pick up train at Park Tower","ØContact East Tyrone Yardmaster to coordinate East Tyrone Yard pickups",null,null,"Ø Run E/B to Lock Haven making pickups as dictated by the waybills.",null,null,"Ø Release train at Lock Haven Tower after contacting Lock Haven Yardmaster.",null,"<OVER>","ALWAYS OBTAIN DISPATCHER CLEARANCE WHEN OPERATING BEYOND YARD LIMITS!!\n",null,null,null,"TRAIN INSTRUCTIONS","E/B Sweeper","TRAIN No. is ENGINE No.","Ø Pick up train at Park Tower","ØContact East Tyrone Yardmaster to coordinate East Tyrone Yard pickups",null,null,"Ø Run E/B to Lock Haven making pickups as dictated by the waybills.",null,null,"Ø Release train at Lock Haven Tower after contacting Lock Haven Yardmaster.",null,"<OVER>","ALWAYS OBTAIN DISPATCHER CLEARANCE WHEN OPERATING BEYOND YARD LIMITS!!\n"]

{"sheet":"Sweeper, Back","index":37,"n_rows":14,"n_cols":48,"rows_kept":14,"cut":false,"hidden":false,"merged":[[1,27,4,28],[1,2,4,3],[1,4,4,4],[1,5,4,6],[1,7,4,9],[1,10,4,11],[1,12,4,12],[1,13,4,16],[1,19,4,20],[1,21,4,21],[1,22,4,23],[1,24,4,26],[1,44,4,45],[1,46,4,46],[1,47,4,50],[5,2,8,3],[5,4,8,4],[5,5,8,6],[5,7,8,9],[5,10,8,11],[5,12,8,12],[5,13,8,16],[1,29,4,29],[1,30,4,33],[1,36,4,37],[1,38,4,38],[1,39,4,40],[1,41,4,43],[5,44,8,45],[5,19,8,20],[5,21,8,21],[5,22,8,23],[5,24,8,26],[5,27,8,28],[5,29,8,29],[9,30,12,33],[5,46,8,46],[5,47,8,50],[9,2,12,3],[9,4,12,4],[9,5,12,6],[9,7,12,9],[9,10,12,11],[9,12,12,12],[9,13,12,16],[9,19,12,20],[5,30,8,33],[5,36,8,37],[5,38,8,38],[5,39,8,40],[5,41,8,43],[9,21,12,21],[9,22,12,23],[9,24,12,26],[9,27,12,28],[9,29,12,29],[9,47,12,50],[13,2,16,3],[13,4,16,4],[13,5,16,6],[13,7,16,9],[13,10,16,11],[13,12,16,12],[13,13,16,16],[13,19,16,20],[13,21,16,21],[9,36,12,37],[9,38,12,38],[9,39,12,40],[9,41,12,43],[9,44,12,45],[9,46,12,46],[13,47,16,50],[13,22,16,23],[13,24,16,26],[13,27,16,28],[13,29,16,29],[13,30,16,33],[13,36,16,37],[13,38,16,38],[13,39,16,40],[13,41,16,43],[13,44,16,45],[13,46,16,46]]}
[]
[null,null,"Ø Maximum train length of 12 revenue cars plus cabin car.",null,"Ø Maximum mainline speed 25 MPH","ØSpeed restrictions include 10 MPH for bridges and turnouts",null,"Ø Pickup cars other than coal hoppers at all locations (handle hoppers only  if directed to do so by dispatcher)\n",null,null,"ØContact Dispatch @ control points as directed by Dispatch\n",null,null,"REMEMBER - \"You may know where your train is and God may know where your train is, but if the Dispatcher does not know ... you better be on good terms with God.\"",null,null,null,null,null,"Ø Maximum train length of 12 revenue cars plus cabin car.",null,"Ø Maximum mainline speed 25 MPH","ØSpeed restrictions include 10 MPH for bridges and turnouts",null,"Ø Pickup cars other than coal hoppers at all locations (handle hoppers only  if directed to do so by dispatcher)\n",null,null,"ØContact Dispatch @ control points as directed by Dispatch\n",null,null,"REMEMBER - \"You may know where your train is and God may know where your train is, but if the Dispatcher does not know ... you better be on good terms with God.\"",null,null,null,null,null,"Ø Maximum train length of 12 revenue cars plus cabin car.",null,"Ø Maximum mainline speed 25 MPH","ØSpeed restrictions include 10 MPH for bridges and turnouts",null,"Ø Pickup cars other than coal hoppers at all locations (handle hoppers only  if directed to do so by dispatcher)\n",null,null,"ØContact Dispatch @ control points as directed by Dispatch\n",null,null,"REMEMBER - \"You may know where your train is and God may know where your train is, but if the Dispatcher does not know ... you better be on good terms with God.\""]
[]
[]
[]
[null,null,"Ø Maximum train length of 12 revenue cars plus cabin car.",null,"Ø Maximum mainline speed 25 MPH","ØSpeed restrictions include 10 MPH for bridges and turnouts",null,"Ø Pickup cars other than coal hoppers at all locations (handle hoppers only  if directed to do so by dispatcher)\n",null,null,"ØContact Dispatch @ control points as directed by Dispatch\n",null,null,"REMEMBER - \"You may know where your train is and God may know where your train is, but if the Dispatcher does not know ... you better be on good terms with God.\"",null,null,null,null,null,"Ø Maximum train length of 12 revenue cars plus cabin car.",null,"Ø Maximum mainline speed 25 MPH","ØSpeed restrictions include 10 MPH for bridges and turnouts",null,"Ø Pickup cars other than coal hoppers at all locations (handle hoppers only  if directed to do so by dispatcher)\n",null,null,"ØContact Dispatch @ control points as directed by Dispatch\n",null,null,"REMEMBER - \"You may know where your train is and God may know where your train is, but if the Dispatcher does not know ... you better be on good terms with God.\"",null,null,null,null,null,"Ø Maximum train length of 12 revenue cars plus cabin car.",null,"Ø Maximum mainline speed 25 MPH","ØSpeed restrictions include 10 MPH for bridges and turnouts",null,"Ø Pickup cars other than coal hoppers at all locations (handle hoppers only  if directed to do so by dispatcher)\n",null,null,"ØContact Dispatch @ control points as directed by Dispatch\n",null,null,"REMEMBER - \"You may know where your train is and God may know where your train is, but if the Dispatcher does not know ... you better be on good terms with God.\""]
[]
[]
[]
[null,null,"Ø Maximum train length of 12 revenue cars plus cabin car.",null,"Ø Maximum mainline speed 25 MPH","ØSpeed restrictions include 10 MPH for bridges and turnouts",null,"Ø Pickup cars other than coal hoppers at all locations (handle hoppers only  if directed to do so by dispatcher)\n",null,null,"ØContact Dispatch @ control points as directed by Dispatch\n",null,null,"REMEMBER - \"You may know where your train is and God may know where your train is, but if the Dispatcher does not know ... you better be on good terms with God.\"",null,null,null,null,null,"Ø Maximum train length of 12 revenue cars plus cabin car.",null,"Ø Maximum mainline speed 25 MPH","ØSpeed restrictions include 10 MPH for bridges and turnouts",null,"Ø Pickup cars other than coal hoppers at all locations (handle hoppers only  if directed to do so by dispatcher)\n",null,null,"ØContact Dispatch @ control points as directed by Dispatch\n",null,null,"REMEMBER - \"You may know where your train is and God may know where your train is, but if the Dispatcher does not know ... you better be on good terms with God.\"",null,null,null,null,null,"Ø Maximum train length of 12 revenue cars plus cabin car.",null,"Ø Maximum mainline speed 25 MPH","ØSpeed restrictions include 10 MPH for bridges and turnouts",null,"Ø Pickup cars other than coal hoppers at all locations (handle hoppers only  if directed to do so by dispatcher)\n",null,null,"ØContact Dispatch @ control points as directed by Dispatch\n",null,null,"REMEMBER - \"You may know where your train is and God may know where your train is, but if the Dispatcher does not know ... you better be on good terms with God.\""]
[]
[]
[]
[null,null,"Ø Maximum train length of 12 revenue cars plus cabin car.",null,"Ø Maximum mainline speed 25 MPH","ØSpeed restrictions include 10 MPH for bridges and turnouts",null,"Ø Pickup cars other than coal hoppers at all locations (handle hoppers only  if directed to do so by dispatcher)\n",null,null,"ØContact Dispatch @ control points as directed by Dispatch\n",null,null,"REMEMBER - \"You may know where your train is and God may know where your train is, but if the Dispatcher does not know ... you better be on good terms with God.\"",null,null,null,null,null,"Ø Maximum train length of 12 revenue cars plus cabin car.",null,"Ø Maximum mainline speed 25 MPH","ØSpeed restrictions include 10 MPH for bridges and turnouts",null,"Ø Pickup cars other than coal hoppers at all locations (handle hoppers only  if directed to do so by dispatcher)\n",null,null,"ØContact Dispatch @ control points as directed by Dispatch\n",null,null,"REMEMBER - \"You may know where your train is and God may know where your train is, but if the Dispatcher does not know ... you better be on good terms with God.\"",null,null,null,null,null,"Ø Maximum train length of 12 revenue cars plus cabin car.",null,"Ø Maximum mainline speed 25 MPH","ØSpeed restrictions include 10 MPH for bridges and turnouts",null,"Ø Pickup cars other than coal hoppers at all locations (handle hoppers only  if directed to do so by dispatcher)\n",null,null,"ØContact Dispatch @ control points as directed by Dispatch\n",null,null,"REMEMBER - \"You may know where your train is and God may know where your train is, but if the Dispatcher does not know ... you better be on good terms with God.\""]